Workbook

Sheet input ข้าว
A1: ปี พ.ศ. | B1: 2560 | D1: ฤดูแล้ง | E1: =RIGHT(B1,2)&"/"&RIGHT(B1+1,2) -> 60/61 | F1: ฤดูฝน | G1: =RIGHT(B1+1,2) -> 61 | I1: ชนิดข้าว | J1: ข้าว กข.(นาดำ)
A2: โครงการชลประทาน | C2: พลเทพ | D2: ทุ่งวัดสิงห์ | E2: ท่าโบสถ์ | F2: สามชุก | G2: ดอนเจดีย์ | H2: โพธิ์พระยา | I2: ชลประทานสุพรรณบุรี | J2: บรมธาตุ | K2: ชัณสูตร | L2: ยางมณี | M2: ผักไห่ | N2: บางบาล | O2: เจ้าเจ็ดบางยี่หน | P2: พระยาบรรลือ | Q2: พระพิมล | R2: ภาษีเจริญ | S2: มโนรมย์ | T2: ช่องแค | U2: โคกกะเทียม | V2: เริงราง | W2: มหาราช | X2: ป่าสักใต้ | Y2: นครหลวง | Z2: ชลประทานลพบุรี | AA2: คลองเพรียว-เสาไห้ | AB2: เขื่อนป่าสักชลสิทธิ์ | AC2: รังสิตเหนือ | AD2: รังสิตใต้ | AE2: ชลหารพิจิตร | AF2: พระองค์ไชยานุชิต | AG2: เขื่อนนเรศวร | AH2: เขื่อนแควน้อย | AI2: ยมน่าน | AJ2: พลายชุมพล | AK2: ดงเศรษฐี | AL2: ท่าบัว | AM2: ท่อทองแดง | AN2: ชลประทานกำแพงเพชร | AO2: ชลประทานนครสวรรค์ | AP2: ชลประทานตาก | AQ2: ชลประทานอุตรดิตถ์
A3: จังหวัด | C3: ชัยนาท | D3: ชัยนาท | E3: ชัยนาท | F3: สุพรรณบุรี | G3: สุพรรณบุรี | H3: สุพรรณบุรี | I3: สุพรรณบุรี | J3: ชัยนาท | K3: สิงห์บุรี | L3: อ่างทอง | M3: พระนครศรีอยุธยา | N3: พระนครศรีอยุธยา | O3: พระนครศรีอยุธยา | P3: นนทบุรี | Q3: นครปฐม | R3: สมุทรสาคร | S3: ชัยนาท | T3: ชัยนาท | U3: ลพบุรี | V3: สระบุรี | W3: สิงห์บุรี | X3: พระนครศรีอยุธยา | Y3: พระนครศรีอยุธยา | Z3: ลพบุรี | AA3: สระบุรี | AB3: สระบุรี | AC3: พระนครศรีอยุธยา | AD3: พระนครศรีอยุธยา | AE3: สมุทรปราการ | AF3: ฉะเชิงเทรา | AG3: พิษณุโลก | AH3: พิษณุโลก | AI3: พิษณุโลก | AJ3: พิษณุโลก | AK3: พิจิตร | AL3: พิจิตร | AM3: กำแพงเพชร | AN3: กำแพงเพชร | AO3: นครสวรรค์ | AP3: ตาก | AQ3: อุตรดิตถ์
A4: รั่วซึม มม./สัปดาห์ | C4: 7 | D4: 7 | E4: 7 | F4: 7 | G4: 7 | H4: 7 | I4: 7 | J4: 7 | K4: 7 | L4: 7 | M4: 7 | N4: 7 | O4: 7 | P4: 7 | Q4: 7 | R4: 7 | S4: 7 | T4: 7 | U4: 7 | V4: 7 | W4: 7 | X4: 7 | Y4: 7 | Z4: 7 | AA4: 7 | AB4: 7 | AC4: 7 | AD4: 7 | AE4: 7 | AF4: 7 | AG4: 7 | AH4: 7 | AI4: 7 | AJ4: 7 | AK4: 7 | AL4: 7 | AM4: 7 | AN4: 7 | AO4: 7 | AP4: 7 | AQ4: 7
A5: น้ำเตรียมแปลงฤดูแล้ง มม./สัปดาห์ | C5: 0 | D5: 0 | E5: 0 | F5: 0 | G5: 0 | H5: 0 | I5: 0 | J5: 0 | K5: 0 | L5: 0 | M5: 0 | N5: 0 | O5: 0 | P5: 0 | Q5: 0 | R5: 0 | S5: 0 | T5: 0 | U5: 0 | V5: 0 | W5: 0 | X5: 0 | Y5: 0 | Z5: 0 | AA5: 0 | AB5: 0 | AC5: 0 | AD5: 0 | AE5: 0 | AF5: 0 | AG5: 0 | AH5: 0 | AI5: 0 | AJ5: 0 | AK5: 0 | AL5: 0 | AM5: 0 | AN5: 0 | AO5: 0 | AP5: 0 | AQ5: 0
A6: น้ำเตรียมแปลงฤดูฝน มม./สัปดาห์ | C6: 100 | D6: 100 | E6: 100 | F6: 100 | G6: 100 | H6: 100 | I6: 100 | J6: 100 | K6: 100 | L6: 100 | M6: 100 | N6: 100 | O6: 100 | P6: 100 | Q6: 100 | R6: 100 | S6: 100 | T6: 100 | U6: 100 | V6: 100 | W6: 100 | X6: 100 | Y6: 100 | Z6: 100 | AA6: 100 | AB6: 100 | AC6: 100 | AD6: 100 | AE6: 100 | AF6: 100 | AG6: 100 | AH6: 100 | AI6: 100 | AJ6: 100 | AK6: 100 | AL6: 100 | AM6: 100 | AN6: 100 | AO6: 100 | AP6: 100 | AQ6: 100
A7: ประสิทธิ์ภาพโครงการ (%) | C7: 90 | D7: 90 | E7: 90 | F7: 90 | G7: 90 | H7: 90 | I7: 90 | J7: 90 | K7: 90 | L7: 90 | M7: 90 | N7: 77 | O7: 77 | P7: 77 | Q7: 77 | R7: 77 | S7: 85 | T7: 85 | U7: 85 | V7: 85 | W7: 85 | X7: 85 | Y7: 85 | Z7: 85 | AA7: 100 | AB7: 100 | AC7: 100 | AD7: 100 | AE7: 100 | AF7: 100 | AG7: 77 | AH7: 77 | AI7: 77 | AJ7: 77 | AK7: 77 | AL7: 77 | AM7: 65 | AN7: 65 | AO7: 85 | AP7: 85 | AQ7: 85
A8: เริ่มต้น | B8: สิ้นสุด | C8: จำนวนพื้นที่เพาะปลูกข้าวรายสัปดาห์ (ไร่)
A9: =+A10-7 -> 2017-08-02 | B9: =+A10-1 -> 2017-08-08 | C9: 542 | D9: 0 | E9: 0 | F9: 0 | G9: 0 | H9: 0 | I9: 0 | J9: 0 | K9: 0 | L9: 0 | M9: 0 | N9: 0 | O9: 0 | P9: 2050 | Q9: 0 | R9: 0 | S9: 0 | T9: 6583 | U9: 0 | V9: 0 | W9: 0 | X9: 0 | Y9: 0 | Z9: 0 | AA9: 0 | AB9: 0 | AC9: 0 | AD9: 5285 | AE9: 0 | AF9: 0 | AG9: 0 | AH9: 0 | AI9: 0 | AJ9: 1415 | AK9: 0 | AL9: 0 | AM9: 0 | AN9: 0 | AO9: 0 | AP9: 3620 | AQ9: 7450
A10: 2017-08-09 | B10: 2017-08-15 | C10: 0 | D10: 0 | E10: 0 | F10: 0 | G10: 0 | H10: 0 | I10: 0 | J10: 0 | K10: 2618 | L10: 0 | M10: 0 | N10: 0 | O10: 0 | P10: 0 | Q10: 0 | R10: 0 | S10: 0 | T10: 0 | U10: 0 | V10: 0 | W10: 0 | X10: 0 | Y10: 0 | Z10: 0 | AA10: 0 | AB10: 0 | AC10: 0 | AD10: 7714 | AE10: 0 | AF10: 0 | AG10: 45991 | AH10: 737 | AI10: 0 | AJ10: 0 | AK10: 0 | AL10: 0 | AM10: 0 | AN10: 0 | AO10: 0 | AP10: 2100 | AQ10: 0
A11: 2017-08-16 | B11: 2017-08-22 | C11: 0 | D11: 0 | E11: 0 | F11: 3418 | G11: 3179 | H11: 0 | I11: 0 | J11: 37114 | K11: 0 | L11: 0 | M11: 0 | N11: 0 | O11: 0 | P11: 900 | Q11: 0 | R11: 0 | S11: 0 | T11: 3570 | U11: 0 | V11: 0 | W11: 0 | X11: 0 | Y11: 55732 | Z11: 0 | AA11: 0 | AB11: 0 | AC11: 0 | AD11: 2783 | AE11: 0 | AF11: 7 | AG11: 0 | AH11: 0 | AI11: 0 | AJ11: 533 | AK11: 0 | AL11: 0 | AM11: 0 | AN11: 0 | AO11: 0 | AP11: 1400 | AQ11: 0
A12: 2017-08-23 | B12: 2017-08-29 | C12: 0 | D12: 0 | E12: 4053 | F12: 7088 | G12: 2539 | H12: 0 | I12: 0 | J12: 28079 | K12: 0 | L12: 0 | M12: 0 | N12: 0 | O12: 569 | P12: 0 | Q12: 0 | R12: 0 | S12: 140 | T12: 0 | U12: 0 | V12: 0 | W12: 0 | X12: 0 | Y12: 0 | Z12: 0 | AA12: 0 | AB12: 0 | AC12: 0 | AD12: 3173 | AE12: 0 | AF12: 0 | AG12: 0 | AH12: 0 | AI12: 0 | AJ12: 6381 | AK12: 0 | AL12: 0 | AM12: 0 | AN12: 0 | AO12: 0 | AP12: 2000 | AQ12: 0
A13: 2017-08-30 | B13: 2017-09-05 | C13: 0 | D13: 0 | E13: 3334 | F13: 16594 | G13: 13221 | H13: 4591 | I13: 0 | J13: 0 | K13: 0 | L13: 0 | M13: 0 | N13: 0 | O13: 0 | P13: 0 | Q13: 0 | R13: 0 | S13: 0 | T13: 0 | U13: 0 | V13: 0 | W13: 500 | X13: 0 | Y13: 0 | Z13: 0 | AA13: 0 | AB13: 0 | AC13: 0 | AD13: 28919 | AE13: 0 | AF13: 0 | AG13: 0 | AH13: 0 | AI13: 0 | AJ13: 14569 | AK13: 0 | AL13: 0 | AM13: 0 | AN13: 0 | AO13: 0 | AP13: 0 | AQ13: 0
A14: 2017-09-06 | B14: 2017-09-12 | C14: 9524 | D14: 0 | E14: 953 | F14: 25287 | G14: 10038 | H14: 8442 | I14: 0 | J14: 4746 | K14: 0 | L14: 0 | M14: 0 | N14: 0 | O14: 0 | P14: 0 | Q14: 0 | R14: 0 | S14: 20 | T14: 0 | U14: 0 | V14: 0 | W14: 0 | X14: 0 | Y14: 0 | Z14: 0 | AA14: 0 | AB14: 0 | AC14: 0 | AD14: 12397 | AE14: 0 | AF14: 0 | AG14: 0 | AH14: 0 | AI14: 0 | AJ14: 12068 | AK14: 0 | AL14: 1207 | AM14: 0 | AN14: 0 | AO14: 0 | AP14: 1200 | AQ14: 0
A15: 2017-09-13 | B15: 2017-09-19 | C15: 30591 | D15: 0 | E15: 8655 | F15: 39925 | G15: 17570 | H15: 1923 | I15: 0 | J15: 2982 | K15: 0 | L15: 0 | M15: 0 | N15: 0 | O15: 0 | P15: 0 | Q15: 0 | R15: 0 | S15: 0 | T15: 0 | U15: 0 | V15: 0 | W15: 0 | X15: 0 | Y15: 0 | Z15: 0 | AA15: 0 | AB15: 0 | AC15: 0 | AD15: 14005 | AE15: 0 | AF15: 0 | AG15: 0 | AH15: 0 | AI15: 0 | AJ15: 29241 | AK15: 0 | AL15: 0 | AM15: 0 | AN15: 177823 | AO15: 0 | AP15: 0 | AQ15: 0
A16: 2017-09-20 | B16: 2017-09-26 | C16: 20864 | D16: 0 | E16: 5182 | F16: 21126 | G16: 19872 | H16: 1363 | I16: 0 | J16: 84976 | K16: 51016 | L16: 15515 | M16: 0 | N16: 0 | O16: 0 | P16: 0 | Q16: 0 | R16: 0 | S16: 0 | T16: 0 | U16: 0 | V16: 0 | W16: 0 | X16: 0 | Y16: 0 | Z16: 0 | AA16: 0 | AB16: 0 | AC16: 0 | AD16: 22781 | AE16: 0 | AF16: 89368 | AG16: 0 | AH16: 0 | AI16: 0 | AJ16: 4170 | AK16: 0 | AL16: 8159 | AM16: 0 | AN16: 78846 | AO16: 0 | AP16: 2000 | AQ16: 0
A17: 2017-09-27 | B17: 2017-10-03 | C17: 13375 | D17: 0 | E17: 89 | F17: 54960 | G17: 10724 | H17: 1955 | I17: 0 | J17: 48935 | K17: 50679 | L17: 13979 | M17: 0 | N17: 0 | O17: 0 | P17: 3311 | Q17: 0 | R17: 2141 | S17: 0 | T17: 0 | U17: 0 | V17: 0 | W17: 0 | X17: 0 | Y17: 0 | Z17: 0 | AA17: 0 | AB17: 0 | AC17: 0 | AD17: 27938 | AE17: 0 | AF17: 9232 | AG17: 0 | AH17: 0 | AI17: 0 | AJ17: 6952 | AK17: 0 | AL17: 5117 | AM17: 0 | AN17: 22327 | AO17: 0 | AP17: 0 | AQ17: 0
A18: 2017-10-04 | B18: 2017-10-10 | C18: 7795 | D18: 0 | E18: 3948 | F18: 8099 | G18: 14454 | H18: 1248 | I18: 0 | J18: 18117 | K18: 15738 | L18: 1580 | M18: 0 | N18: 0 | O18: 0 | P18: 3932 | Q18: 0 | R18: 0 | S18: 0 | T18: 0 | U18: 0 | V18: 0 | W18: 0 | X18: 0 | Y18: 0 | Z18: 0 | AA18: 0 | AB18: 0 | AC18: 0 | AD18: 15982 | AE18: 0 | AF18: 6660 | AG18: 0 | AH18: 0 | AI18: 0 | AJ18: 8841 | AK18: 0 | AL18: 9030 | AM18: 0 | AN18: 10860 | AO18: 0 | AP18: 0 | AQ18: 0
A19: 2017-10-11 | B19: 2017-10-17 | C19: 6553 | D19: 0 | E19: 3025 | F19: 44496 | G19: 10169 | H19: 0 | I19: 0 | J19: 7208 | K19: 0 | L19: 0 | M19: 0 | N19: 0 | O19: 0 | P19: 1690 | Q19: 0 | R19: 1522 | S19: 0 | T19: 0 | U19: 0 | V19: 0 | W19: 0 | X19: 0 | Y19: 0 | Z19: 0 | AA19: 0 | AB19: 0 | AC19: 0 | AD19: 21744 | AE19: 0 | AF19: 0 | AG19: 0 | AH19: 0 | AI19: 0 | AJ19: 0 | AK19: 0 | AL19: 30350 | AM19: 0 | AN19: 0 | AO19: 0 | AP19: 0 | AQ19: 2096
A20: 2017-10-18 | B20: 2017-10-24 | C20: 0 | D20: 0 | E20: 0 | F20: 2195 | G20: 3686 | H20: 0 | I20: 0 | J20: 2480 | K20: 16137 | L20: 0 | M20: 0 | N20: 0 | O20: 0 | P20: 2570 | Q20: 0 | R20: 0 | S20: 0 | T20: 0 | U20: 0 | V20: 0 | W20: 0 | X20: 0 | Y20: 0 | Z20: 0 | AA20: 0 | AB20: 0 | AC20: 0 | AD20: 17117 | AE20: 0 | AF20: 14740 | AG20: 0 | AH20: 0 | AI20: 0 | AJ20: 2376 | AK20: 0 | AL20: 0 | AM20: 0 | AN20: 77082 | AO20: 0 | AP20: 0 | AQ20: 0
A21: =+A22-7 -> 2017-10-25 | B21: =+A22-1 -> 2017-10-31 | C21: 1761 | D21: 0 | E21: 324 | F21: 0 | G21: 2282 | H21: 0 | I21: 0 | J21: 1400 | K21: 0 | L21: 0 | M21: 0 | N21: 0 | O21: 0 | P21: 0 | Q21: 0 | R21: 0 | S21: 0 | T21: 0 | U21: 0 | V21: 0 | W21: 0 | X21: 0 | Y21: 0 | Z21: 0 | AA21: 0 | AB21: 0 | AC21: 0 | AD21: 146981 | AE21: 0 | AF21: 0 | AG21: 0 | AH21: 0 | AI21: 0 | AJ21: 0 | AK21: 0 | AL21: 0 | AM21: 0 | AN21: 0 | AO21: 0 | AP21: 0 | AQ21: 0
A22: 2017-11-01 | B22: =+A22+6 -> 2017-11-07 | C22: 0 | D22: 0 | E22: 0 | F22: 0 | G22: 0 | H22: 0 | I22: 0 | J22: 0 | K22: 0 | L22: 0 | M22: 0 | N22: 0 | O22: 0 | P22: 5121 | Q22: 0 | R22: 0 | S22: 0 | T22: 0 | U22: 0 | V22: 0 | W22: 0 | X22: 0 | Y22: 0 | Z22: 0 | AA22: 0 | AB22: 0 | AC22: 12550 | AD22: 18623 | AE22: 0 | AF22: 95349 | AG22: 0 | AH22: 0 | AI22: 0 | AJ22: 0 | AK22: 0 | AL22: 0 | AM22: 0 | AN22: 0 | AO22: 0 | AP22: 0 | AQ22: 0
A23: =+A22+7 -> 2017-11-08 | B23: 2017-11-14 | C23: 927 | D23: 0 | E23: 21117 | F23: 0 | G23: 10083 | H23: 869 | I23: 0 | J23: 2245 | K23: 0 | L23: 0 | M23: 0 | N23: 0 | O23: 0 | P23: 5640 | Q23: 250 | R23: 0 | S23: 0 | T23: 0 | U23: 0 | V23: 0 | W23: 0 | X23: 0 | Y23: 0 | Z23: 0 | AA23: 0 | AB23: 0 | AC23: 0 | AD23: 16364 | AE23: 69746 | AF23: 0 | AG23: 0 | AH23: 0 | AI23: 0 | AJ23: 0 | AK23: 0 | AL23: 0 | AM23: 6785 | AN23: 0 | AO23: 0 | AP23: 0 | AQ23: 0
A24: =+A23+7 -> 2017-11-15 | B24: 2017-11-21 | C24: 2151 | D24: 0 | E24: 46165 | F24: 2790 | G24: 0 | H24: 3400 | I24: 0 | J24: 4638 | K24: 85150 | L24: 0 | M24: 0 | N24: 0 | O24: 0 | P24: 23590 | Q24: 270 | R24: 0 | S24: 0 | T24: 0 | U24: 0 | V24: 13750 | W24: 0 | X24: 0 | Y24: 0 | Z24: 0 | AA24: 0 | AB24: 0 | AC24: 0 | AD24: 9442 | AE24: 0 | AF24: 18241 | AG24: 0 | AH24: 0 | AI24: 0 | AJ24: 0 | AK24: 0 | AL24: 0 | AM24: 3425 | AN24: 0 | AO24: 0 | AP24: 0 | AQ24: 0
A25: 2017-11-22 | B25: 2017-11-28 | C25: 0 | D25: 0 | E25: 45604 | F25: 0 | G25: 428 | H25: 5672 | I25: 0 | J25: 8033 | K25: 45661 | L25: 0 | M25: 0 | N25: 0 | O25: 0 | P25: 29931 | Q25: 230 | R25: 0 | S25: 0 | T25: 0 | U25: 0 | V25: 0 | W25: 0 | X25: 0 | Y25: 0 | Z25: 0 | AA25: 0 | AB25: 0 | AC25: 0 | AD25: 20260 | AE25: 0 | AF25: 0 | AG25: 0 | AH25: 0 | AI25: 0 | AJ25: 0 | AK25: 0 | AL25: 0 | AM25: 825 | AN25: 0 | AO25: 0 | AP25: 0 | AQ25: 0
A26: 2017-11-29 | B26: 2017-12-05 | C26: 0 | D26: 0 | E26: 8616 | F26: 0 | G26: 0 | H26: 6643 | I26: 0 | J26: 16163 | K26: 5079 | L26: 20905 | M26: 0 | N26: 0 | O26: 0 | P26: 24326 | Q26: 0 | R26: 0 | S26: 0 | T26: 0 | U26: 0 | V26: 3500 | W26: 69039 | X26: 46885 | Y26: 0 | Z26: 0 | AA26: 0 | AB26: 0 | AC26: 0 | AD26: 11766 | AE26: 0 | AF26: 0 | AG26: 0 | AH26: 0 | AI26: 0 | AJ26: 3102 | AK26: 1640 | AL26: 3430 | AM26: 7105 | AN26: 0 | AO26: 0 | AP26: 0 | AQ26: 190
A27: 2017-12-06 | B27: 2017-12-12 | C27: 2713 | D27: 0 | E27: 2800 | F27: 0 | G27: 0 | H27: 8298 | I27: 0 | J27: 22247 | K27: 31843 | L27: 0 | M27: 0 | N27: 0 | O27: 6710 | P27: 41781 | Q27: 39050 | R27: 0 | S27: 0 | T27: 0 | U27: 0 | V27: 9850 | W27: 28268 | X27: 0 | Y27: 0 | Z27: 0 | AA27: 0 | AB27: 0 | AC27: 28318 | AD27: 4684 | AE27: 0 | AF27: 0 | AG27: 0 | AH27: 0 | AI27: 0 | AJ27: 2986 | AK27: 5285 | AL27: 23870 | AM27: 9665 | AN27: 0 | AO27: 0 | AP27: 300 | AQ27: 0
A28: 2017-12-13 | B28: 2017-12-19 | C28: 0 | D28: 0 | E28: 1498 | F28: 6085 | G28: 3372 | H28: 11157 | I28: 0 | J28: 0 | K28: 20412 | L28: 0 | M28: 0 | N28: 0 | O28: 96301 | P28: 43237 | Q28: 3825 | R28: 0 | S28: 7791 | T28: 5300 | U28: 0 | V28: 6000 | W28: 7513 | X28: 0 | Y28: 39773 | Z28: 50716 | AA28: 0 | AB28: 0 | AC28: 17143 | AD28: 2962 | AE28: 0 | AF28: 0 | AG28: 0 | AH28: 0 | AI28: 0 | AJ28: 34906 | AK28: 18928 | AL28: 8336 | AM28: 40723 | AN28: 0 | AO28: 60040 | AP28: 530 | AQ28: 0
A29: 2017-12-20 | B29: 2017-12-26 | C29: 10656 | D29: 0 | E29: 1713 | F29: 1720 | G29: 7166 | H29: 16106 | I29: 0 | J29: 40056 | K29: 5106 | L29: 26048 | M29: 65523 | N29: 29073 | O29: 107602 | P29: 35549 | Q29: 2135 | R29: 0 | S29: 0 | T29: 78183 | U29: 0 | V29: 10100 | W29: 27938 | X29: 7730 | Y29: 0 | Z29: 0 | AA29: 0 | AB29: 0 | AC29: 0 | AD29: 3569 | AE29: 0 | AF29: 0 | AG29: 23270 | AH29: 0 | AI29: 64424 | AJ29: 50886 | AK29: 25929 | AL29: 13945 | AM29: 40630 | AN29: 78732 | AO29: 13410 | AP29: 1320 | AQ29: 170
A30: 2017-12-27 | B30: 2018-01-02 | C30: 0 | D30: 0 | E30: 0 | F30: 0 | G30: 4249 | H30: 7642 | I30: 0 | J30: 25262 | K30: 0 | L30: 320 | M30: 0 | N30: 0 | O30: 0 | P30: 0 | Q30: 0 | R30: 0 | S30: 54836 | T30: 0 | U30: 0 | V30: 0 | W30: 13488 | X30: 0 | Y30: 0 | Z30: 0 | AA30: 0 | AB30: 0 | AC30: 0 | AD30: 0 | AE30: 0 | AF30: 0 | AG30: 0 | AH30: 0 | AI30: 25659 | AJ30: 0 | AK30: 0 | AL30: 28843 | AM30: 0 | AN30: 0 | AO30: 0 | AP30: 0 | AQ30: 933
A31: 2018-01-03 | B31: 2018-01-09 | C31: 19480 | D31: 0 | E31: 1903 | F31: 4105 | G31: 6056 | H31: 16659 | I31: 0 | J31: 8143 | K31: 0 | L31: 29570 | M31: 65287 | N31: 55395 | O31: 116056 | P31: 43146 | Q31: 19125 | R31: 0 | S31: 24407 | T31: 84956 | U31: 169411 | V31: 14550 | W31: 7510 | X31: 0 | Y31: 11190 | Z31: 14947 | AA31: 19142 | AB31: 6000 | AC31: 0 | AD31: 13060 | AE31: 0 | AF31: 0 | AG31: 62010 | AH31: 86155 | AI31: 88702 | AJ31: 80028 | AK31: 55142 | AL31: 11211 | AM31: 34429 | AN31: 90827 | AO31: 50400 | AP31: 5050 | AQ31: 1680
A32: 2018-01-10 | B32: 2018-01-16 | C32: 19444 | D32: 0 | E32: 1157 | F32: 32318 | G32: 12848 | H32: 25147 | I32: 0 | J32: 15731 | K32: 18939 | L32: 17410 | M32: 11846 | N32: 9730 | O32: 5353 | P32: 920 | Q32: 530 | R32: 4233 | S32: 19078 | T32: 18045 | U32: 4776 | V32: 13245 | W32: 30300 | X32: 37085 | Y32: 7264 | Z32: 1100 | AA32: 7018 | AB32: 0 | AC32: 34226 | AD32: 3890 | AE32: 0 | AF32: 0 | AG32: 0 | AH32: 58305 | AI32: 58806 | AJ32: 26110 | AK32: 25612 | AL32: 44107 | AM32: 145483 | AN32: 127311 | AO32: 10185 | AP32: 0 | AQ32: 4950
A33: 2018-01-17 | B33: 2018-01-23 | C33: 13514 | D33: 0 | E33: 2335 | F33: 14737 | G33: 9545 | H33: 22473 | I33: 0 | J33: 22443 | K33: 42 | L33: 13043 | M33: 1373 | N33: 1979 | O33: 532 | P33: 5142 | Q33: 270 | R33: 205 | S33: 22848 | T33: 19370 | U33: 3303 | V33: 2300 | W33: 2445 | X33: 0 | Y33: 3653 | Z33: 0 | AA33: 0 | AB33: 0 | AC33: 9210 | AD33: 320 | AE33: 0 | AF33: 0 | AG33: 2220 | AH33: 2457 | AI33: 45497 | AJ33: 0 | AK33: 7012 | AL33: 12484 | AM33: 25051 | AN33: 30508 | AO33: 13120 | AP33: 1500 | AQ33: 14495
A34: 2018-01-24 | B34: 2018-01-30 | C34: 12835 | D34: 0 | E34: 221 | F34: 77074 | G34: 4777 | H34: 37651 | I34: 0 | J34: 24593 | K34: 38989 | L34: 18642 | M34: 1373 | N34: 1979 | O34: 0 | P34: 2255 | Q34: 785 | R34: 0 | S34: 12486 | T34: 150 | U34: 5229 | V34: 0 | W34: 13187 | X34: 0 | Y34: 14365 | Z34: 0 | AA34: 26708 | AB34: 0 | AC34: 0 | AD34: 24743 | AE34: 0 | AF34: 0 | AG34: 0 | AH34: 2691 | AI34: 5919 | AJ34: 0 | AK34: 4748 | AL34: 11319 | AM34: 23809 | AN34: 0 | AO34: 8396 | AP34: 2100 | AQ34: 11131
A35: 2018-01-31 | B35: 2018-02-06 | C35: 425 | D35: 0 | E35: 0 | F35: 80 | G35: 5987 | H35: 20156 | I35: 0 | J35: 7246 | K35: 0 | L35: 0 | M35: 550 | N35: 0 | O35: 0 | P35: 1535 | Q35: 0 | R35: 251 | S35: 3277 | T35: 0 | U35: 8052 | V35: 0 | W35: 13505 | X35: 0 | Y35: 5450 | Z35: 0 | AA35: 3521 | AB35: 0 | AC35: 0 | AD35: 0 | AE35: 0 | AF35: 0 | AG35: 0 | AH35: 1979 | AI35: 3300 | AJ35: 0 | AK35: 3173 | AL35: 1484 | AM35: 7018 | AN35: 8561 | AO35: 3449 | AP35: 1000 | AQ35: 0
A36: 2018-02-07 | B36: 2018-02-13 | C36: 1044 | D36: 0 | E36: 0 | F36: 0 | G36: 419 | H36: 52690 | I36: 0 | J36: 13449 | K36: 0 | L36: 0 | M36: 465 | N36: 0 | O36: 0 | P36: 0 | Q36: 3331 | R36: 62.5 | S36: 1180 | T36: 0 | U36: 6186 | V36: 0 | W36: 2607 | X36: 0 | Y36: 5170 | Z36: 0 | AA36: 29341 | AB36: 14000 | AC36: 0 | AD36: 23275 | AE36: 0 | AF36: 0 | AG36: 0 | AH36: 0 | AI36: 2100 | AJ36: 0 | AK36: 0 | AL36: 942 | AM36: 0 | AN36: 912 | AO36: 0 | AP36: 100 | AQ36: 497
A37: 2018-02-14 | B37: 2018-02-20 | C37: 0 | D37: 0 | E37: 0 | F37: 929 | G37: 261 | H37: 7344 | I37: 0 | J37: 0 | K37: 123 | L37: 0 | M37: 0 | N37: 90 | O37: 0 | P37: 0 | Q37: 3514 | R37: 62.5 | S37: 2740 | T37: 0 | U37: 50 | V37: 0 | W37: 0 | X37: 0 | Y37: 0 | Z37: 0 | AA37: 0 | AB37: 500 | AC37: 0 | AD37: 22271 | AE37: 0 | AF37: 0 | AG37: 0 | AH37: 0 | AI37: 700 | AJ37: 0 | AK37: 0 | AL37: 0 | AM37: 0 | AN37: 0 | AO37: 0 | AP37: 0 | AQ37: 400
A38: 2018-02-21 | B38: 2018-02-27 | C38: 3334 | D38: 0 | E38: 0 | F38: 0 | G38: 0 | H38: 6324 | I38: 0 | J38: 0 | K38: 0 | L38: 0 | M38: 0 | N38: 0 | O38: 0 | P38: 0 | Q38: 80 | R38: 0 | S38: 0 | T38: 0 | U38: 1310 | V38: 0 | W38: 0 | X38: 0 | Y38: 1000 | Z38: 0 | AA38: 0 | AB38: 0 | AC38: 0 | AD38: 9260 | AE38: 0 | AF38: 0 | AG38: 0 | AH38: 0 | AI38: 0 | AJ38: 0 | AK38: 0 | AL38: 0 | AM38: 0 | AN38: 17264 | AO38: 0 | AP38: 0 | AQ38: 0
A39: 2018-02-28 | B39: 2018-03-06 | C39: 0 | D39: 0 | E39: 0 | F39: 0 | G39: 0 | H39: 2928 | I39: 0 | J39: 0 | K39: 0 | L39: 0 | M39: 0 | N39: 0 | O39: 0 | P39: 0 | Q39: 215 | R39: 0 | S39: 0 | T39: 0 | U39: 0 | V39: 0 | W39: 400 | X39: 0 | Y39: 0 | Z39: 0 | AA39: 0 | AB39: 0 | AC39: 0 | AD39: 17954 | AE39: 0 | AF39: 22000 | AG39: 0 | AH39: 0 | AI39: 528 | AJ39: 0 | AK39: 0 | AL39: 0 | AM39: 0 | AN39: 0 | AO39: 0 | AP39: 0 | AQ39: 0
A40: 2018-03-07 | B40: 2018-03-13 | C40: 2761 | D40: 0 | E40: 1029 | F40: 0 | G40: 0 | H40: 0 | I40: 0 | J40: 0 | K40: 0 | L40: 0 | M40: 0 | N40: 0 | O40: 0 | P40: 0 | Q40: 415 | R40: 0 | S40: 0 | T40: 0 | U40: 1030 | V40: 0 | W40: 400 | X40: 0 | Y40: 0 | Z40: 0 | AA40: 0 | AB40: 2000 | AC40: 0 | AD40: 4800 | AE40: 0 | AF40: 0 | AG40: 0 | AH40: 0 | AI40: 0 | AJ40: 0 | AK40: 0 | AL40: 0 | AM40: 0 | AN40: 436 | AO40: 0 | AP40: 0 | AQ40: 0
A41: 2018-03-14 | B41: 2018-03-20 | C41: 0 | D41: 0 | E41: 1447 | F41: 0 | G41: 0 | H41: 0 | I41: 0 | J41: 0 | K41: 0 | L41: 0 | M41: 0 | N41: 0 | O41: 0 | P41: 5442 | Q41: 611 | R41: 0 | S41: 0 | T41: 0 | U41: 0 | V41: 0 | W41: 1630 | X41: 0 | Y41: 0 | Z41: 0 | AA41: 0 | AB41: 0 | AC41: 0 | AD41: 0 | AE41: 0 | AF41: 0 | AG41: 0 | AH41: 0 | AI41: 0 | AJ41: 0 | AK41: 0 | AL41: 0 | AM41: 0 | AN41: 0 | AO41: 0 | AP41: 0 | AQ41: 0
A42: 2018-03-21 | B42: 2018-03-27 | C42: 0 | D42: 0 | E42: 4096 | F42: 0 | G42: 0 | H42: 0 | I42: 0 | J42: 0 | K42: 0 | L42: 0 | M42: 0 | N42: 0 | O42: 0 | P42: 570 | Q42: 259 | R42: 0 | S42: 0 | T42: 0 | U42: 0 | V42: 0 | W42: 2250 | X42: 0 | Y42: 0 | Z42: 0 | AA42: 0 | AB42: 0 | AC42: 0 | AD42: 0 | AE42: 0 | AF42: 0 | AG42: 0 | AH42: 0 | AI42: 0 | AJ42: 0 | AK42: 0 | AL42: 0 | AM42: 0 | AN42: 0 | AO42: 0 | AP42: 0 | AQ42: 0
A43: 2018-03-28 | B43: 2018-04-03 | C43: 0 | D43: 0 | E43: 605 | F43: 0 | G43: 0 | H43: 0 | I43: 0 | J43: 2044 | K43: 0 | L43: 0 | M43: 0 | N43: 0 | O43: 0 | P43: 5330 | Q43: 165 | R43: 0 | S43: 0 | T43: 0 | U43: 0 | V43: 0 | W43: 12270 | X43: 0 | Y43: 0 | Z43: 0 | AA43: 0 | AB43: 0 | AC43: 0 | AD43: 0 | AE43: 0 | AF43: 0 | AG43: 0 | AH43: 0 | AI43: 0 | AJ43: 0 | AK43: 0 | AL43: 0 | AM43: 0 | AN43: 0 | AO43: 0 | AP43: 0 | AQ43: 0
A44: 2018-04-04 | B44: 2018-04-10 | C44: 0 | D44: 0 | E44: 454 | F44: 12580 | G44: 0 | H44: 0 | I44: 0 | J44: 0 | K44: 0 | L44: 0 | M44: 0 | N44: 0 | O44: 35090 | P44: 4900 | Q44: 700 | R44: 0 | S44: 0 | T44: 0 | U44: 0 | V44: 0 | W44: 2550 | X44: 0 | Y44: 0 | Z44: 0 | AA44: 0 | AB44: 0 | AC44: 0 | AD44: 0 | AE44: 0 | AF44: 0 | AG44: 0 | AH44: 0 | AI44: 14586 | AJ44: 8920 | AK44: 0 | AL44: 0 | AM44: 0 | AN44: 0 | AO44: 0 | AP44: 0 | AQ44: 0
A45: 2018-04-11 | B45: 2018-04-17 | C45: 0 | D45: 0 | E45: 0 | F45: 0 | G45: 0 | H45: 0 | I45: 0 | J45: 0 | K45: 0 | L45: 0 | M45: 0 | N45: 0 | O45: 23820 | P45: 10900 | Q45: 735 | R45: 0 | S45: 0 | T45: 0 | U45: 0 | V45: 0 | W45: 0 | X45: 0 | Y45: 0 | Z45: 0 | AA45: 0 | AB45: 0 | AC45: 0 | AD45: 0 | AE45: 0 | AF45: 0 | AG45: 0 | AH45: 0 | AI45: 0 | AJ45: 27436 | AK45: 0 | AL45: 0 | AM45: 0 | AN45: 0 | AO45: 0 | AP45: 0 | AQ45: 0
A46: 2018-04-18 | B46: 2018-04-24 | C46: 0 | D46: 0 | E46: 10133 | F46: 0 | G46: 0 | H46: 0 | I46: 0 | J46: 0 | K46: 0 | L46: 0 | M46: 0 | N46: 0 | O46: 35302 | P46: 14960 | Q46: 0 | R46: 0 | S46: 0 | T46: 0 | U46: 0 | V46: 0 | W46: 0 | X46: 0 | Y46: 0 | Z46: 0 | AA46: 0 | AB46: 0 | AC46: 0 | AD46: 0 | AE46: 0 | AF46: 0 | AG46: 6702 | AH46: 0 | AI46: 73607 | AJ46: 12805 | AK46: 0 | AL46: 0 | AM46: 0 | AN46: 0 | AO46: 0 | AP46: 0 | AQ46: 0
A47: 2018-04-25 | B47: 2018-05-01 | C47: 0 | D47: 0 | E47: 6474 | F47: 0 | G47: 0 | H47: 0 | I47: 0 | J47: 0 | K47: 0 | L47: 0 | M47: 0 | N47: 0 | O47: 83437 | P47: 6369 | Q47: 4300 | R47: 1460 | S47: 0 | T47: 0 | U47: 0 | V47: 0 | W47: 51419 | X47: 0 | Y47: 0 | Z47: 0 | AA47: 0 | AB47: 0 | AC47: 0 | AD47: 0 | AE47: 0 | AF47: 0 | AG47: 21228 | AH47: 0 | AI47: 65589 | AJ47: 8861 | AK47: 0 | AL47: 0 | AM47: 0 | AN47: 0 | AO47: 0 | AP47: 0 | AQ47: 0
A48: 2018-05-02 | B48: 2018-05-08 | C48: 10656 | D48: 0 | E48: 0 | F48: 88046 | G48: 0 | H48: 36381 | I48: 0 | J48: 36935 | K48: 54013 | L48: 15000 | M48: 60325 | N48: 0 | O48: 63123 | P48: 24770 | Q48: 0 | R48: 0 | S48: 16876 | T48: 10760 | U48: 32528 | V48: 0 | W48: 56737 | X48: 0 | Y48: 0 | Z48: 29100 | AA48: 0 | AB48: 0 | AC48: 0 | AD48: 0 | AE48: 0 | AF48: 0 | AG48: 19538 | AH48: 0 | AI48: 80807 | AJ48: 30801 | AK48: 0 | AL48: 14797 | AM48: 0 | AN48: 0 | AO48: 0 | AP48: 0 | AQ48: 0
A49: 2018-05-09 | B49: 2018-05-15 | C49: 33459 | D49: 0 | E49: 0 | F49: 50447 | G49: 29552 | H49: 40466 | I49: 0 | J49: 64226 | K49: 143653 | L49: 23363 | M49: 62036 | N49: 0 | O49: 70588 | P49: 31467 | Q49: 14300 | R49: 5640 | S49: 34506 | T49: 8543 | U49: 39254 | V49: 45150 | W49: 30571 | X49: 0 | Y49: 0 | Z49: 16500 | AA49: 0 | AB49: 0 | AC49: 7707 | AD49: 0 | AE49: 45702 | AF49: 0 | AG49: 0 | AH49: 0 | AI49: 56105 | AJ49: 22180 | AK49: 0 | AL49: 0 | AM49: 6125 | AN49: 0 | AO49: 161500 | AP49: 0 | AQ49: 0
A50: 2018-05-16 | B50: 2018-05-22 | C50: 21918 | D50: 0 | E50: 60142 | F50: 34531 | G50: 41119 | H50: 52925 | I50: 0 | J50: 66108 | K50: 70515 | L50: 50480 | M50: 19186 | N50: 0 | O50: 6908 | P50: 99733 | Q50: 27300 | R50: 0 | S50: 16206 | T50: 1437 | U50: 26643 | V50: 47696 | W50: 123024 | X50: 0 | Y50: 0 | Z50: 12400 | AA50: 0 | AB50: 0 | AC50: 0 | AD50: 0 | AE50: 266 | AF50: 0 | AG50: 27905 | AH50: 0 | AI50: 0 | AJ50: 54679 | AK50: 0 | AL50: 37462 | AM50: 23895 | AN50: 87639 | AO50: 0 | AP50: 0 | AQ50: 0
A51: 2018-05-23 | B51: 2018-05-29 | C51: 26330 | D51: 0 | E51: 15117 | F51: 26070 | G51: 7543 | H51: 28154 | I51: 0 | J51: 78972 | K51: 70076 | L51: 6546 | M51: 1226 | N51: 82677 | O51: 9 | P51: 24251 | Q51: 0 | R51: 0 | S51: 42135 | T51: 0 | U51: 33812 | V51: 4650 | W51: 48508 | X51: 0 | Y51: 0 | Z51: 6640 | AA51: 0 | AB51: 0 | AC51: 0 | AD51: 0 | AE51: 1017 | AF51: 0 | AG51: 0 | AH51: 0 | AI51: 0 | AJ51: 2759 | AK51: 0 | AL51: 40027 | AM51: 0 | AN51: 1204 | AO51: 0 | AP51: 0 | AQ51: 0
A52: 2018-05-30 | B52: 2018-06-05 | C52: 0 | D52: 21264 | E52: 31374 | F52: 11690 | G52: 33564 | H52: 37064 | I52: 0 | J52: 28709 | K52: 49081 | L52: 21128 | M52: 131 | N52: 11561 | O52: 0 | P52: 12029 | Q52: 910 | R52: 0 | S52: 57025 | T52: 119646 | U52: 36529 | V52: 16740 | W52: 10861 | X52: 0 | Y52: 0 | Z52: 0 | AA52: 0 | AB52: 0 | AC52: 0 | AD52: 303701 | AE52: 892 | AF52: 182330 | AG52: 10617 | AH52: 0 | AI52: 0 | AJ52: 16681 | AK52: 41118 | AL52: 47139 | AM52: 36790 | AN52: 129938 | AO52: 0 | AP52: 0 | AQ52: 0
A53: 2018-06-06 | B53: 2018-06-12 | C53: 442 | D53: 1003 | E53: 2662 | F53: 18805 | G53: 2080 | H53: 16426 | I53: 0 | J53: 34090 | K53: 4062 | L53: 7521 | M53: 0 | N53: 1704 | O53: 0 | P53: 9695 | Q53: 1395 | R53: 0 | S53: 49068 | T53: 21688 | U53: 17235 | V53: 2710 | W53: 10255 | X53: 26780 | Y53: 58928 | Z53: 0 | AA53: 6040 | AB53: 8641 | AC53: 0 | AD53: 10050 | AE53: 313 | AF53: 0 | AG53: 3077 | AH53: 20973 | AI53: 0 | AJ53: 9007 | AK53: 16022 | AL53: 4810 | AM53: 87401 | AN53: 155879 | AO53: 0 | AP53: 0 | AQ53: 0
A54: 2018-06-13 | B54: 2018-06-19 | C54: 1080 | D54: 30551 | E54: 6111 | F54: 10988 | G54: 3098 | H54: 18462 | I54: 0 | J54: 4965 | K54: 8148 | L54: 1198 | M54: 9 | N54: 0 | O54: 0 | P54: 6544 | Q54: 4535 | R54: 0 | S54: 18824 | T54: 12150 | U54: 5891 | V54: 0 | W54: 14109 | X54: 0 | Y54: 1447 | Z54: 0 | AA54: 4947 | AB54: 1738 | AC54: 42196 | AD54: 11102 | AE54: 0 | AF54: 51477 | AG54: 0 | AH54: 10480 | AI54: 0 | AJ54: 586 | AK54: 48138 | AL54: 11875 | AM54: 45089 | AN54: 67986 | AO54: 0 | AP54: 0 | AQ54: 0
A55: 2018-06-20 | B55: 2018-06-26 | C55: 0 | D55: 0 | E55: 4746 | F55: 4117 | G55: 0 | H55: 2000 | I55: 0 | J55: 0 | K55: 0 | L55: 702 | M55: 0 | N55: 0 | O55: 0 | P55: 7692 | Q55: 30135 | R55: 0 | S55: 11080 | T55: 24436 | U55: 3491 | V55: 20299 | W55: 6190 | X55: 22006 | Y55: 1038 | Z55: 0 | AA55: 5099 | AB55: 0 | AC55: 8406 | AD55: 14099 | AE55: 2990 | AF55: 0 | AG55: 0 | AH55: 0 | AI55: 0 | AJ55: 2170 | AK55: 32145 | AL55: 3232 | AM55: 51350 | AN55: 15862 | AO55: 0 | AP55: 1000 | AQ55: 0
A56: 2018-06-27 | B56: 2018-07-03 | C56: 0 | D56: 0 | E56: 8072 | F56: 5505 | G56: 2790 | H56: 0 | I56: 0 | J56: 3525 | K56: 0 | L56: 0 | M56: 0 | N56: 0 | O56: 0 | P56: 5141 | Q56: 1220 | R56: 0 | S56: 543 | T56: 18159 | U56: 965 | V56: 240 | W56: 6544 | X56: 11222 | Y56: 23322 | Z56: 0 | AA56: 5341 | AB56: 0 | AC56: 0 | AD56: 10169 | AE56: 1140 | AF56: 0 | AG56: 0 | AH56: 75066 | AI56: 0 | AJ56: 4265 | AK56: 6783 | AL56: 0 | AM56: 35568 | AN56: 0 | AO56: 1000 | AP56: 0 | AQ56: 0
A57: 2018-07-04 | B57: 2018-07-10 | C57: 0 | D57: 0 | E57: 4969 | F57: 0 | G57: 1260 | H57: 44041 | I57: 0 | J57: 0 | K57: 0 | L57: 0 | M57: 0 | N57: 0 | O57: 0 | P57: 5575 | Q57: 37705 | R57: 0 | S57: 0 | T57: 7958 | U57: 1900 | V57: 0 | W57: 0 | X57: 8224 | Y57: 1197 | Z57: 0 | AA57: 9450 | AB57: 0 | AC57: 28822 | AD57: 16522 | AE57: 8180 | AF57: 0 | AG57: 0 | AH57: 5183 | AI57: 0 | AJ57: 0 | AK57: 1169 | AL57: 0 | AM57: 60939 | AN57: 0 | AO57: 0 | AP57: 1030 | AQ57: 0
A58: 2018-07-11 | B58: 2018-07-17 | C58: 0 | D58: 0 | E58: 0 | F58: 0 | G58: 0 | H58: 4428 | I58: 0 | J58: 52 | K58: 0 | L58: 0 | M58: 0 | N58: 169 | O58: 0 | P58: 8862 | Q58: 0 | R58: 0 | S58: 0 | T58: 2720 | U58: 1683 | V58: 0 | W58: 0 | X58: 13181 | Y58: 660 | Z58: 0 | AA58: 0 | AB58: 42433 | AC58: 0 | AD58: 1680 | AE58: 9246 | AF58: 0 | AG58: 0 | AH58: 11221 | AI58: 0 | AJ58: 0 | AK58: 0 | AL58: 0 | AM58: 0 | AN58: 0 | AO58: 0 | AP58: 2250 | AQ58: 0
A59: 2018-07-18 | B59: 2018-07-24 | C59: 2370 | D59: 0 | E59: 634 | F59: 0 | G59: 0 | H59: 0 | I59: 0 | J59: 0 | K59: 0 | L59: 0 | M59: 0 | N59: 0 | O59: 0 | P59: 14950 | Q59: 0 | R59: 0 | S59: 0 | T59: 3000 | U59: 500 | V59: 0 | W59: 0 | X59: 8490 | Y59: 90 | Z59: 0 | AA59: 24609 | AB59: 15987 | AC59: 0 | AD59: 0 | AE59: 0 | AF59: 0 | AG59: 0 | AH59: 12791 | AI59: 0 | AJ59: 0 | AK59: 0 | AL59: 0 | AM59: 20350 | AN59: 0 | AO59: 0 | AP59: 3600 | AQ59: 0
A60: 2018-07-25 | B60: 2018-07-31 | C60: 0 | D60: 0 | E60: 0 | F60: 0 | G60: 0 | H60: 0 | I60: 0 | J60: 0 | K60: 0 | L60: 0 | M60: 0 | N60: 0 | O60: 0 | P60: 12525 | Q60: 0 | R60: 0 | S60: 0 | T60: 1015 | U60: 0 | V60: 0 | W60: 0 | X60: 0 | Y60: 0 | Z60: 0 | AA60: 79814 | AB60: 5681 | AC60: 0 | AD60: 0 | AE60: 0 | AF60: 0 | AG60: 0 | AH60: 9623 | AI60: 0 | AJ60: 0 | AK60: 0 | AL60: 0 | AM60: 8000 | AN60: 0 | AO60: 0 | AP60: 3850 | AQ60: 34446
A61: 2018-08-01 | B61: 2018-08-07 | C61: 0 | D61: 0 | E61: 2590 | F61: 975 | G61: 1089 | H61: 0 | I61: 0 | J61: 1297 | K61: 0 | L61: 0 | M61: 0 | N61: 0 | O61: 0 | P61: 3641 | Q61: 0 | R61: 0 | S61: 0 | T61: 0 | U61: 1416 | V61: 0 | W61: 0 | X61: 0 | Y61: 0 | Z61: 0 | AA61: 0 | AB61: 0 | AC61: 0 | AD61: 0 | AE61: 0 | AF61: 0 | AG61: 0 | AH61: 6742 | AI61: 0 | AJ61: 15388 | AK61: 0 | AL61: 0 | AM61: 0 | AN61: 0 | AO61: 0 | AP61: 5720 | AQ61: 0
A62: 2018-08-08 | B62: 2018-08-14 | C62: 0 | D62: 0 | E62: 4202 | F62: 0 | G62: 431 | H62: 0 | I62: 0 | J62: 0 | K62: 0 | L62: 0 | M62: 0 | N62: 0 | O62: 0 | P62: 400 | Q62: 0 | R62: 0 | S62: 0 | T62: 0 | U62: 0 | V62: 0 | W62: 59 | X62: 0 | Y62: 0 | Z62: 0 | AA62: 0 | AB62: 0 | AC62: 0 | AD62: 0 | AE62: 0 | AF62: 0 | AG62: 0 | AH62: 2224 | AI62: 0 | AJ62: 6437 | AK62: 0 | AL62: 0 | AM62: 0 | AN62: 0 | AO62: 0 | AP62: 1450 | AQ62: 0
A63: 2018-08-15 | B63: 2018-08-21 | C63: 8232 | D63: 0 | E63: 2430 | F63: 0 | G63: 0 | H63: 0 | I63: 0 | J63: 0 | K63: 19972 | L63: 0 | M63: 0 | N63: 0 | O63: 0 | P63: 0 | Q63: 0 | R63: 1730 | S63: 0 | T63: 0 | U63: 0 | V63: 0 | W63: 0 | X63: 0 | Y63: 0 | Z63: 0 | AA63: 0 | AB63: 0 | AC63: 0 | AD63: 17030 | AE63: 0 | AF63: 0 | AG63: 0 | AH63: 0 | AI63: 0 | AJ63: 5943 | AK63: 0 | AL63: 0 | AM63: 0 | AN63: 0 | AO63: 0 | AP63: 0 | AQ63: 0
A64: 2018-08-22 | B64: 2018-08-28 | C64: 12106 | D64: 0 | E64: 1380 | F64: 10369 | G64: 47946 | H64: 0 | I64: 0 | J64: 0 | K64: 4811 | L64: 0 | M64: 0 | N64: 0 | O64: 0 | P64: 0 | Q64: 3600 | R64: 1308 | S64: 0 | T64: 0 | U64: 0 | V64: 0 | W64: 0 | X64: 400 | Y64: 0 | Z64: 0 | AA64: 0 | AB64: 0 | AC64: 0 | AD64: 23342 | AE64: 0 | AF64: 0 | AG64: 0 | AH64: 0 | AI64: 0 | AJ64: 6752 | AK64: 0 | AL64: 0 | AM64: 0 | AN64: 0 | AO64: 0 | AP64: 8200 | AQ64: 0
A65: 2018-08-29 | B65: 2018-09-04 | C65: 43842 | D65: 0 | E65: 2236 | F65: 35349 | G65: 11123 | H65: 0 | I65: 0 | J65: 48334 | K65: 109750 | L65: 0 | M65: 0 | N65: 0 | O65: 0 | P65: 0 | Q65: 0 | R65: 0 | S65: 0 | T65: 0 | U65: 0 | V65: 0 | W65: 109 | X65: 0 | Y65: 0 | Z65: 0 | AA65: 0 | AB65: 0 | AC65: 0 | AD65: 7893 | AE65: 0 | AF65: 18000 | AG65: 0 | AH65: 0 | AI65: 0 | AJ65: 0 | AK65: 0 | AL65: 0 | AM65: 0 | AN65: 0 | AO65: 0 | AP65: 0 | AQ65: 0
A66: 2018-09-05 | B66: 2018-09-11 | C66: 17428 | D66: 0 | E66: 3537 | F66: 44822 | G66: 24894 | H66: 0 | I66: 0 | J66: 14224 | K66: 58704 | L66: 0 | M66: 0 | N66: 0 | O66: 0 | P66: 0 | Q66: 0 | R66: 350 | S66: 0 | T66: 0 | U66: 0 | V66: 0 | W66: 0 | X66: 0 | Y66: 0 | Z66: 0 | AA66: 0 | AB66: 0 | AC66: 0 | AD66: 0 | AE66: 0 | AF66: 0 | AG66: 0 | AH66: 0 | AI66: 0 | AJ66: 1630 | AK66: 0 | AL66: 0 | AM66: 0 | AN66: 0 | AO66: 16150 | AP66: 0 | AQ66: 0
A67: 2018-09-12 | B67: 2018-09-18 | C67: 10546 | D67: 0 | E67: 12808 | F67: 49889 | G67: 2900 | H67: 0 | I67: 0 | J67: 0 | K67: 9043 | L67: 0 | M67: 0 | N67: 0 | O67: 0 | P67: 0 | Q67: 0 | R67: 0 | S67: 0 | T67: 0 | U67: 0 | V67: 0 | W67: 0 | X67: 0 | Y67: 0 | Z67: 0 | AA67: 0 | AB67: 0 | AC67: 0 | AD67: 0 | AE67: 0 | AF67: 0 | AG67: 0 | AH67: 0 | AI67: 0 | AJ67: 2010 | AK67: 25570 | AL67: 0 | AM67: 0 | AN67: 101706 | AO67: 33100 | AP67: 0 | AQ67: 0
A68: 2018-09-19 | B68: 2018-09-25 | C68: 1694 | D68: 0 | E68: 3321 | F68: 19458 | G68: 21190 | H68: 0 | I68: 0 | J68: 6020 | K68: 26239 | L68: 0 | M68: 0 | N68: 0 | O68: 0 | P68: 61010 | Q68: 0 | R68: 250 | S68: 0 | T68: 0 | U68: 0 | V68: 0 | W68: 0 | X68: 0 | Y68: 0 | Z68: 0 | AA68: 0 | AB68: 0 | AC68: 0 | AD68: 0 | AE68: 0 | AF68: 66306 | AG68: 0 | AH68: 0 | AI68: 0 | AJ68: 0 | AK68: 9500 | AL68: 0 | AM68: 0 | AN68: 110191 | AO68: 0 | AP68: 0 | AQ68: 0
A69: 2018-09-26 | B69: 2018-10-02 | C69: 2407 | D69: 0 | E69: 13413 | F69: 37777 | G69: 2246 | H69: 0 | I69: 0 | J69: 0 | K69: 0 | L69: 0 | M69: 0 | N69: 0 | O69: 0 | P69: 7950 | Q69: 0 | R69: 0 | S69: 0 | T69: 0 | U69: 0 | V69: 0 | W69: 0 | X69: 0 | Y69: 0 | Z69: 0 | AA69: 0 | AB69: 0 | AC69: 0 | AD69: 15500 | AE69: 0 | AF69: 76786 | AG69: 0 | AH69: 0 | AI69: 0 | AJ69: 1020 | AK69: 18355 | AL69: 0 | AM69: 0 | AN69: 62396 | AO69: 0 | AP69: 0 | AQ69: 0
A70: 2018-10-03 | B70: 2018-10-09 | C70: 0 | D70: 0 | E70: 1357 | F70: 24398 | G70: 5092 | H70: 0 | I70: 0 | J70: 90720 | K70: 15038 | L70: 7915 | M70: 0 | N70: 0 | O70: 0 | P70: 14780 | Q70: 0 | R70: 346 | S70: 0 | T70: 0 | U70: 0 | V70: 0 | W70: 0 | X70: 0 | Y70: 0 | Z70: 0 | AA70: 0 | AB70: 0 | AC70: 0 | AD70: 26575 | AE70: 0 | AF70: 0 | AG70: 0 | AH70: 0 | AI70: 0 | AJ70: 0 | AK70: 2764 | AL70: 0 | AM70: 0 | AN70: 8400 | AO70: 0 | AP70: 0 | AQ70: 0
A71: 2018-10-10 | B71: 2018-10-16 | C71: 0 | D71: 0 | E71: 40 | F71: 5173 | G71: 1172 | H71: 0 | I71: 0 | J71: 16788 | K71: 0 | L71: 0 | M71: 0 | N71: 0 | O71: 0 | P71: 9560 | Q71: 0 | R71: 1310 | S71: 0 | T71: 0 | U71: 0 | V71: 0 | W71: 0 | X71: 0 | Y71: 0 | Z71: 0 | AA71: 0 | AB71: 0 | AC71: 0 | AD71: 0 | AE71: 0 | AF71: 52762 | AG71: 0 | AH71: 0 | AI71: 0 | AJ71: 0 | AK71: 0 | AL71: 0 | AM71: 0 | AN71: 0 | AO71: 0 | AP71: 0 | AQ71: 0
A72: 2018-10-17 | B72: 2018-10-23 | C72: 0 | D72: 0 | E72: 0 | F72: 0 | G72: 838 | H72: 0 | I72: 0 | J72: 98 | K72: 0 | L72: 0 | M72: 0 | N72: 0 | O72: 0 | P72: 8580 | Q72: 0 | R72: 0 | S72: 0 | T72: 0 | U72: 0 | V72: 0 | W72: 0 | X72: 0 | Y72: 0 | Z72: 0 | AA72: 0 | AB72: 0 | AC72: 0 | AD72: 103822 | AE72: 0 | AF72: 0 | AG72: 0 | AH72: 0 | AI72: 0 | AJ72: 0 | AK72: 0 | AL72: 0 | AM72: 0 | AN72: 2824 | AO72: 0 | AP72: 0 | AQ72: 0
A73: 2018-10-24 | B73: 2018-10-30 | C73: 0 | D73: 0 | E73: 0 | F73: 25874 | G73: 742 | H73: 0 | I73: 0 | J73: 285 | K73: 0 | L73: 0 | M73: 0 | N73: 0 | O73: 0 | P73: 4933 | Q73: 0 | R73: 0 | S73: 0 | T73: 0 | U73: 0 | V73: 0 | W73: 0 | X73: 0 | Y73: 0 | Z73: 0 | AA73: 0 | AB73: 0 | AC73: 0 | AD73: 18467 | AE73: 0 | AF73: 0 | AG73: 0 | AH73: 0 | AI73: 0 | AJ73: 0 | AK73: 0 | AL73: 0 | AM73: 0 | AN73: 0 | AO73: 0 | AP73: 0 | AQ73: 0

Sheet input อ้อย
A1: ปี พ.ศ. | B1: =+'input ข้าว'!B1 -> 2560 | D1: ฤดูแล้ง | E1: =RIGHT(B1,2)&"/"&RIGHT(B1+1,2) -> 60/61 | F1: ฤดูฝน | G1: =RIGHT(B1+1,2) -> 61
A2: โครงการชลประทาน | C2: ='input ข้าว'!C2 -> พลเทพ | D2: ='input ข้าว'!D2 -> ทุ่งวัดสิงห์ | E2: ='input ข้าว'!E2 -> ท่าโบสถ์ | F2: ='input ข้าว'!F2 -> สามชุก | G2: ='input ข้าว'!G2 -> ดอนเจดีย์ | H2: ='input ข้าว'!H2 -> โพธิ์พระยา | I2: ='input ข้าว'!I2 -> ชลประทานสุพรรณบุรี | J2: ='input ข้าว'!J2 -> บรมธาตุ | K2: ='input ข้าว'!K2 -> ชัณสูตร | L2: ='input ข้าว'!L2 -> ยางมณี | M2: ='input ข้าว'!M2 -> ผักไห่ | N2: ='input ข้าว'!N2 -> บางบาล | O2: ='input ข้าว'!O2 -> เจ้าเจ็ดบางยี่หน | P2: ='input ข้าว'!P2 -> พระยาบรรลือ | Q2: ='input ข้าว'!Q2 -> พระพิมล | R2: ='input ข้าว'!R2 -> ภาษีเจริญ | S2: ='input ข้าว'!S2 -> มโนรมย์ | T2: ='input ข้าว'!T2 -> ช่องแค | U2: ='input ข้าว'!U2 -> โคกกะเทียม | V2: ='input ข้าว'!V2 -> เริงราง | W2: ='input ข้าว'!W2 -> มหาราช | X2: ='input ข้าว'!X2 -> ป่าสักใต้ | Y2: ='input ข้าว'!Y2 -> นครหลวง | Z2: ='input ข้าว'!Z2 -> ชลประทานลพบุรี | AA2: ='input ข้าว'!AA2 -> คลองเพรียว-เสาไห้ | AB2: ='input ข้าว'!AB2 -> เขื่อนป่าสักชลสิทธิ์ | AC2: ='input ข้าว'!AC2 -> รังสิตเหนือ | AD2: ='input ข้าว'!AD2 -> รังสิตใต้ | AE2: ='input ข้าว'!AE2 -> ชลหารพิจิตร | AF2: ='input ข้าว'!AF2 -> พระองค์ไชยานุชิต | AG2: ='input ข้าว'!AG2 -> เขื่อนนเรศวร | AH2: ='input ข้าว'!AH2 -> เขื่อนแควน้อย | AI2: ='input ข้าว'!AI2 -> ยมน่าน | AJ2: ='input ข้าว'!AJ2 -> พลายชุมพล | AK2: ='input ข้าว'!AK2 -> ดงเศรษฐี | AL2: ='input ข้าว'!AL2 -> ท่าบัว | AM2: ='input ข้าว'!AM2 -> ท่อทองแดง | AN2: ='input ข้าว'!AN2 -> ชลประทานกำแพงเพชร | AO2: ='input ข้าว'!AO2 -> ชลประทานนครสวรรค์ | AP2: ='input ข้าว'!AP2 -> ชลประทานตาก | AQ2: ='input ข้าว'!AQ2 -> ชลประทานอุตรดิตถ์
A3: จังหวัด | C3: =+'input ข้าว'!C3 -> ชัยนาท | D3: =+'input ข้าว'!D3 -> ชัยนาท | E3: =+'input ข้าว'!E3 -> ชัยนาท | F3: =+'input ข้าว'!F3 -> สุพรรณบุรี | G3: =+'input ข้าว'!G3 -> สุพรรณบุรี | H3: =+'input ข้าว'!H3 -> สุพรรณบุรี | I3: =+'input ข้าว'!I3 -> สุพรรณบุรี | J3: =+'input ข้าว'!J3 -> ชัยนาท | K3: =+'input ข้าว'!K3 -> สิงห์บุรี | L3: =+'input ข้าว'!L3 -> อ่างทอง | M3: =+'input ข้าว'!M3 -> พระนครศรีอยุธยา | N3: =+'input ข้าว'!N3 -> พระนครศรีอยุธยา | O3: =+'input ข้าว'!O3 -> พระนครศรีอยุธยา | P3: =+'input ข้าว'!P3 -> นนทบุรี | Q3: =+'input ข้าว'!Q3 -> นครปฐม | R3: =+'input ข้าว'!R3 -> สมุทรสาคร | S3: =+'input ข้าว'!S3 -> ชัยนาท | T3: =+'input ข้าว'!T3 -> ชัยนาท | U3: =+'input ข้าว'!U3 -> ลพบุรี | V3: =+'input ข้าว'!V3 -> สระบุรี | W3: =+'input ข้าว'!W3 -> สิงห์บุรี | X3: =+'input ข้าว'!X3 -> พระนครศรีอยุธยา | Y3: =+'input ข้าว'!Y3 -> พระนครศรีอยุธยา | Z3: =+'input ข้าว'!Z3 -> ลพบุรี | AA3: =+'input ข้าว'!AA3 -> สระบุรี | AB3: =+'input ข้าว'!AB3 -> สระบุรี | AC3: =+'input ข้าว'!AC3 -> พระนครศรีอยุธยา | AD3: =+'input ข้าว'!AD3 -> พระนครศรีอยุธยา | AE3: =+'input ข้าว'!AE3 -> สมุทรปราการ | AF3: =+'input ข้าว'!AF3 -> ฉะเชิงเทรา | AG3: =+'input ข้าว'!AG3 -> พิษณุโลก | AH3: =+'input ข้าว'!AH3 -> พิษณุโลก | AI3: =+'input ข้าว'!AI3 -> พิษณุโลก | AJ3: =+'input ข้าว'!AJ3 -> พิษณุโลก | AK3: =+'input ข้าว'!AK3 -> พิจิตร | AL3: =+'input ข้าว'!AL3 -> พิจิตร | AM3: =+'input ข้าว'!AM3 -> กำแพงเพชร | AN3: =+'input ข้าว'!AN3 -> กำแพงเพชร | AO3: =+'input ข้าว'!AO3 -> นครสวรรค์ | AP3: =+'input ข้าว'!AP3 -> ตาก | AQ3: =+'input ข้าว'!AQ3 -> อุตรดิตถ์
A4: รั่วซึม มม./สัปดาห์ | C4: ='input ข้าว'!C4 -> 7 | D4: ='input ข้าว'!D4 -> 7 | E4: ='input ข้าว'!E4 -> 7 | F4: ='input ข้าว'!F4 -> 7 | G4: ='input ข้าว'!G4 -> 7 | H4: ='input ข้าว'!H4 -> 7 | I4: ='input ข้าว'!I4 -> 7 | J4: ='input ข้าว'!J4 -> 7 | K4: ='input ข้าว'!K4 -> 7 | L4: ='input ข้าว'!L4 -> 7 | M4: ='input ข้าว'!M4 -> 7 | N4: ='input ข้าว'!N4 -> 7 | O4: ='input ข้าว'!O4 -> 7 | P4: ='input ข้าว'!P4 -> 7 | Q4: ='input ข้าว'!Q4 -> 7 | R4: ='input ข้าว'!R4 -> 7 | S4: ='input ข้าว'!S4 -> 7 | T4: ='input ข้าว'!T4 -> 7 | U4: ='input ข้าว'!U4 -> 7 | V4: ='input ข้าว'!V4 -> 7 | W4: ='input ข้าว'!W4 -> 7 | X4: ='input ข้าว'!X4 -> 7 | Y4: ='input ข้าว'!Y4 -> 7 | Z4: ='input ข้าว'!Z4 -> 7 | AA4: ='input ข้าว'!AA4 -> 7 | AB4: ='input ข้าว'!AB4 -> 7 | AC4: ='input ข้าว'!AC4 -> 7 | AD4: ='input ข้าว'!AD4 -> 7 | AE4: ='input ข้าว'!AE4 -> 7 | AF4: ='input ข้าว'!AF4 -> 7 | AG4: ='input ข้าว'!AG4 -> 7 | AH4: ='input ข้าว'!AH4 -> 7 | AI4: ='input ข้าว'!AI4 -> 7 | AJ4: ='input ข้าว'!AJ4 -> 7 | AK4: ='input ข้าว'!AK4 -> 7 | AL4: ='input ข้าว'!AL4 -> 7 | AM4: ='input ข้าว'!AM4 -> 7 | AN4: ='input ข้าว'!AN4 -> 7 | AO4: ='input ข้าว'!AO4 -> 7 | AP4: ='input ข้าว'!AP4 -> 7 | AQ4: ='input ข้าว'!AQ4 -> 7
A5: น้ำเตรียมแปลงฤดูแล้ง มม./สัปดาห์ | C5: 30 | D5: =C5 -> 30 | E5: =D5 -> 30 | F5: 30 | G5: 30 | H5: 30 | I5: 30 | J5: 30 | K5: 30 | L5: 30 | M5: 30 | N5: 30 | O5: 30 | P5: 30 | Q5: 30 | R5: 30 | S5: 30 | T5: 30 | U5: 30 | V5: 30 | W5: 30 | X5: 30 | Y5: 30 | Z5: 30 | AA5: 30 | AB5: 30 | AC5: 30 | AD5: 30 | AE5: 30 | AF5: 30 | AG5: 30 | AH5: 30 | AI5: 30 | AJ5: 30 | AK5: 30 | AL5: 30 | AM5: 30 | AN5: 30 | AO5: 30 | AP5: 30 | AQ5: 30
A6: น้ำเตรียมแปลงฤดูฝน มม./สัปดาห์ | C6: 15 | D6: =C6 -> 15 | E6: =D6 -> 15 | F6: 15 | G6: 15 | H6: 15 | I6: 15 | J6: 15 | K6: 15 | L6: 15 | M6: 15 | N6: 15 | O6: 15 | P6: 15 | Q6: 15 | R6: 15 | S6: 15 | T6: 15 | U6: 15 | V6: 15 | W6: 15 | X6: 15 | Y6: 15 | Z6: 15 | AA6: 15 | AB6: 15 | AC6: 15 | AD6: 15 | AE6: 15 | AF6: 15 | AG6: 15 | AH6: 15 | AI6: 15 | AJ6: 15 | AK6: 15 | AL6: 15 | AM6: 15 | AN6: 15 | AO6: 15 | AP6: 15 | AQ6: 15
A7: ประสิทธิ์ภาพโครงการ (%) | C7: ='input ข้าว'!C7 -> 90 | D7: ='input ข้าว'!D7 -> 90 | E7: ='input ข้าว'!E7 -> 90 | F7: ='input ข้าว'!F7 -> 90 | G7: ='input ข้าว'!G7 -> 90 | H7: ='input ข้าว'!H7 -> 90 | I7: ='input ข้าว'!I7 -> 90 | J7: ='input ข้าว'!J7 -> 90 | K7: ='input ข้าว'!K7 -> 90 | L7: ='input ข้าว'!L7 -> 90 | M7: ='input ข้าว'!M7 -> 90 | N7: ='input ข้าว'!N7 -> 77 | O7: ='input ข้าว'!O7 -> 77 | P7: ='input ข้าว'!P7 -> 77 | Q7: ='input ข้าว'!Q7 -> 77 | R7: ='input ข้าว'!R7 -> 77 | S7: ='input ข้าว'!S7 -> 85 | T7: ='input ข้าว'!T7 -> 85 | U7: ='input ข้าว'!U7 -> 85 | V7: ='input ข้าว'!V7 -> 85 | W7: ='input ข้าว'!W7 -> 85 | X7: ='input ข้าว'!X7 -> 85 | Y7: ='input ข้าว'!Y7 -> 85 | Z7: ='input ข้าว'!Z7 -> 85 | AA7: ='input ข้าว'!AA7 -> 100 | AB7: ='input ข้าว'!AB7 -> 100 | AC7: ='input ข้าว'!AC7 -> 100 | AD7: ='input ข้าว'!AD7 -> 100 | AE7: ='input ข้าว'!AE7 -> 100 | AF7: ='input ข้าว'!AF7 -> 100 | AG7: ='input ข้าว'!AG7 -> 77 | AH7: ='input ข้าว'!AH7 -> 77 | AI7: ='input ข้าว'!AI7 -> 77 | AJ7: ='input ข้าว'!AJ7 -> 77 | AK7: ='input ข้าว'!AK7 -> 77 | AL7: ='input ข้าว'!AL7 -> 77 | AM7: ='input ข้าว'!AM7 -> 65 | AN7: ='input ข้าว'!AN7 -> 65 | AO7: ='input ข้าว'!AO7 -> 85 | AP7: ='input ข้าว'!AP7 -> 85 | AQ7: ='input ข้าว'!AQ7 -> 85
A8: เริ่มต้น | B8: สิ้นสุด | C8: จำนวนพื้นที่เพาะปลูกอ้อยรายสัปดาห์ (ไร่)
A9: ='input ข้าว'!A22 -> 2017-11-01 | B9: =+A9+6 -> 2017-11-07 | C9: 27 | E9: 1630 | F9: 22852 | G9: 3658 | J9: 3888 | K9: 32536 | L9: 410 | S9: 10651 | T9: 370 | W9: 118 | AB9: 13439 | AJ9: 32 | AM9: 86421 | AN9: 204522 | AO9: 4000
A10: =+A9+7 -> 2017-11-08 | B10: 2017-11-14
A11: =+A10+7 -> 2017-11-15 | B11: 2017-11-21
A12: 2017-11-22 | B12: 2017-11-28
A13: 2017-11-29 | B13: 2017-12-05 | L13: 3571
A14: 2017-12-06 | B14: 2017-12-12 | AL14: 255
A15: 2017-12-13 | B15: 2017-12-19 | Z15: 570 | AO15: 3000
A16: 2017-12-20 | B16: 2017-12-26
A17: 2017-12-27 | B17: 2018-01-02
A18: 2018-01-03 | B18: 2018-01-09
A19: 2018-01-10 | B19: 2018-01-16 | F19: =22904-F9 -> 52 | AJ19: =899-32 -> 867 | AL19: =83-55 -> 28
A20: 2018-01-17 | B20: 2018-01-23 | AN20: 8639
A21: 2018-01-24 | B21: 2018-01-30
A22: 2018-01-31 | B22: 2018-02-06
A23: 2018-02-07 | B23: 2018-02-13
A24: 2018-02-14 | B24: 2018-02-20
A25: 2018-02-21 | B25: 2018-02-27
A26: 2018-02-28 | B26: 2018-03-06
A27: 2018-03-07 | B27: 2018-03-13 | Z27: =2000-570 -> 1430
A28: 2018-03-14 | B28: 2018-03-20
A29: 2018-03-21 | B29: 2018-03-27
A30: 2018-03-28 | B30: 2018-04-03
A31: 2018-04-04 | B31: 2018-04-10
A32: 2018-04-11 | B32: 2018-04-17
A33: 2018-04-18 | B33: 2018-04-24
A34: 2018-04-25 | B34: 2018-05-01
A35: 2018-05-02 | B35: 2018-05-08 | G35: 1690 | T35: 150 | AM35: =101391-86421 -> 14970
A36: 2018-05-09 | B36: 2018-05-15
A37: 2018-05-16 | B37: 2018-05-22
A38: 2018-05-23 | B38: 2018-05-29
A39: 2018-05-30 | B39: 2018-06-05
A40: 2018-06-06 | B40: 2018-06-12
A41: 2018-06-13 | B41: 2018-06-19
A42: 2018-06-20 | B42: 2018-06-26
A43: 2018-06-27 | B43: 2018-07-03
A44: 2018-07-04 | B44: 2018-07-10
A45: 2018-07-11 | B45: 2018-07-17
A46: 2018-07-18 | B46: 2018-07-24 | AB46: 70
A47: 2018-07-25 | B47: 2018-07-31
A48: 2018-08-01 | B48: 2018-08-07
A49: 2018-08-08 | B49: 2018-08-14
A50: 2018-08-15 | B50: 2018-08-21
A51: 2018-08-22 | B51: 2018-08-28
A52: 2018-08-29 | B52: 2018-09-04
A53: 2018-09-05 | B53: 2018-09-11
A54: 2018-09-12 | B54: 2018-09-18
A55: 2018-09-19 | B55: 2018-09-25
A56: 2018-09-26 | B56: 2018-10-02
A57: 2018-10-03 | B57: 2018-10-09
A58: 2018-10-10 | B58: 2018-10-16
A59: 2018-10-17 | B59: 2018-10-23
A60: 2018-10-24 | B60: 2018-10-30

Sheet input พืชไร่ (hidden)
A1: ปี พ.ศ. | B1: ='input ข้าว'!B1 -> 2560 | D1: ฤดูแล้ง | E1: =RIGHT(B1,2)&"/"&RIGHT(B1+1,2) -> 60/61 | F1: ฤดูฝน | G1: =RIGHT(B1+1,2) -> 61
A2: โครงการชลประทาน | C2: ='input ข้าว'!C2 -> พลเทพ | D2: ='input ข้าว'!D2 -> ทุ่งวัดสิงห์ | E2: ='input ข้าว'!E2 -> ท่าโบสถ์ | F2: ='input ข้าว'!F2 -> สามชุก | G2: ='input ข้าว'!G2 -> ดอนเจดีย์ | H2: ='input ข้าว'!H2 -> โพธิ์พระยา | I2: ='input ข้าว'!I2 -> ชลประทานสุพรรณบุรี | J2: ='input ข้าว'!J2 -> บรมธาตุ | K2: ='input ข้าว'!K2 -> ชัณสูตร | L2: ='input ข้าว'!L2 -> ยางมณี | M2: ='input ข้าว'!M2 -> ผักไห่ | N2: ='input ข้าว'!N2 -> บางบาล | O2: ='input ข้าว'!O2 -> เจ้าเจ็ดบางยี่หน | P2: ='input ข้าว'!P2 -> พระยาบรรลือ | Q2: ='input ข้าว'!Q2 -> พระพิมล | R2: ='input ข้าว'!R2 -> ภาษีเจริญ | S2: ='input ข้าว'!S2 -> มโนรมย์ | T2: ='input ข้าว'!T2 -> ช่องแค | U2: ='input ข้าว'!U2 -> โคกกะเทียม | V2: ='input ข้าว'!V2 -> เริงราง | W2: ='input ข้าว'!W2 -> มหาราช | X2: ='input ข้าว'!X2 -> ป่าสักใต้ | Y2: ='input ข้าว'!Y2 -> นครหลวง | Z2: ='input ข้าว'!Z2 -> ชลประทานลพบุรี | AA2: ='input ข้าว'!AA2 -> คลองเพรียว-เสาไห้ | AB2: ='input ข้าว'!AB2 -> เขื่อนป่าสักชลสิทธิ์ | AC2: ='input ข้าว'!AC2 -> รังสิตเหนือ | AD2: ='input ข้าว'!AD2 -> รังสิตใต้ | AE2: ='input ข้าว'!AE2 -> ชลหารพิจิตร | AF2: ='input ข้าว'!AF2 -> พระองค์ไชยานุชิต | AG2: ='input ข้าว'!AG2 -> เขื่อนนเรศวร | AH2: ='input ข้าว'!AH2 -> เขื่อนแควน้อย | AI2: ='input ข้าว'!AI2 -> ยมน่าน | AJ2: ='input ข้าว'!AJ2 -> พลายชุมพล | AK2: ='input ข้าว'!AK2 -> ดงเศรษฐี | AL2: ='input ข้าว'!AL2 -> ท่าบัว | AM2: ='input ข้าว'!AM2 -> ท่อทองแดง | AN2: ='input ข้าว'!AN2 -> ชลประทานกำแพงเพชร | AO2: ='input ข้าว'!AO2 -> ชลประทานนครสวรรค์ | AP2: ='input ข้าว'!AP2 -> ชลประทานตาก | AQ2: ='input ข้าว'!AQ2 -> ชลประทานอุตรดิตถ์
A3: จังหวัด | C3: ='input ข้าว'!C3 -> ชัยนาท | D3: ='input ข้าว'!D3 -> ชัยนาท | E3: ='input ข้าว'!E3 -> ชัยนาท | F3: ='input ข้าว'!F3 -> สุพรรณบุรี | G3: ='input ข้าว'!G3 -> สุพรรณบุรี | H3: ='input ข้าว'!H3 -> สุพรรณบุรี | I3: ='input ข้าว'!I3 -> สุพรรณบุรี | J3: ='input ข้าว'!J3 -> ชัยนาท | K3: ='input ข้าว'!K3 -> สิงห์บุรี | L3: ='input ข้าว'!L3 -> อ่างทอง | M3: ='input ข้าว'!M3 -> พระนครศรีอยุธยา | N3: ='input ข้าว'!N3 -> พระนครศรีอยุธยา | O3: ='input ข้าว'!O3 -> พระนครศรีอยุธยา | P3: ='input ข้าว'!P3 -> นนทบุรี | Q3: ='input ข้าว'!Q3 -> นครปฐม | R3: ='input ข้าว'!R3 -> สมุทรสาคร | S3: ='input ข้าว'!S3 -> ชัยนาท | T3: ='input ข้าว'!T3 -> ชัยนาท | U3: ='input ข้าว'!U3 -> ลพบุรี | V3: ='input ข้าว'!V3 -> สระบุรี | W3: ='input ข้าว'!W3 -> สิงห์บุรี | X3: ='input ข้าว'!X3 -> พระนครศรีอยุธยา | Y3: ='input ข้าว'!Y3 -> พระนครศรีอยุธยา | Z3: ='input ข้าว'!Z3 -> ลพบุรี | AA3: ='input ข้าว'!AA3 -> สระบุรี | AB3: ='input ข้าว'!AB3 -> สระบุรี | AC3: ='input ข้าว'!AC3 -> พระนครศรีอยุธยา | AD3: ='input ข้าว'!AD3 -> พระนครศรีอยุธยา | AE3: ='input ข้าว'!AE3 -> สมุทรปราการ | AF3: ='input ข้าว'!AF3 -> ฉะเชิงเทรา | AG3: ='input ข้าว'!AG3 -> พิษณุโลก | AH3: ='input ข้าว'!AH3 -> พิษณุโลก | AI3: ='input ข้าว'!AI3 -> พิษณุโลก | AJ3: ='input ข้าว'!AJ3 -> พิษณุโลก | AK3: ='input ข้าว'!AK3 -> พิจิตร | AL3: ='input ข้าว'!AL3 -> พิจิตร | AM3: ='input ข้าว'!AM3 -> กำแพงเพชร | AN3: ='input ข้าว'!AN3 -> กำแพงเพชร | AO3: ='input ข้าว'!AO3 -> นครสวรรค์ | AP3: ='input ข้าว'!AP3 -> ตาก | AQ3: ='input ข้าว'!AQ3 -> อุตรดิตถ์
A4: รั่วซึม มม./สัปดาห์ | C4: ='input ข้าว'!C4 -> 7 | D4: ='input ข้าว'!D4 -> 7 | E4: ='input ข้าว'!E4 -> 7 | F4: ='input ข้าว'!F4 -> 7 | G4: ='input ข้าว'!G4 -> 7 | H4: ='input ข้าว'!H4 -> 7 | I4: ='input ข้าว'!I4 -> 7 | J4: ='input ข้าว'!J4 -> 7 | K4: ='input ข้าว'!K4 -> 7 | L4: ='input ข้าว'!L4 -> 7 | M4: ='input ข้าว'!M4 -> 7 | N4: ='input ข้าว'!N4 -> 7 | O4: ='input ข้าว'!O4 -> 7 | P4: ='input ข้าว'!P4 -> 7 | Q4: ='input ข้าว'!Q4 -> 7 | R4: ='input ข้าว'!R4 -> 7 | S4: ='input ข้าว'!S4 -> 7 | T4: ='input ข้าว'!T4 -> 7 | U4: ='input ข้าว'!U4 -> 7 | V4: ='input ข้าว'!V4 -> 7 | W4: ='input ข้าว'!W4 -> 7 | X4: ='input ข้าว'!X4 -> 7 | Y4: ='input ข้าว'!Y4 -> 7 | Z4: ='input ข้าว'!Z4 -> 7 | AA4: ='input ข้าว'!AA4 -> 7 | AB4: ='input ข้าว'!AB4 -> 7 | AC4: ='input ข้าว'!AC4 -> 7 | AD4: ='input ข้าว'!AD4 -> 7 | AE4: ='input ข้าว'!AE4 -> 7 | AF4: ='input ข้าว'!AF4 -> 7 | AG4: ='input ข้าว'!AG4 -> 7 | AH4: ='input ข้าว'!AH4 -> 7 | AI4: ='input ข้าว'!AI4 -> 7 | AJ4: ='input ข้าว'!AJ4 -> 7 | AK4: ='input ข้าว'!AK4 -> 7 | AL4: ='input ข้าว'!AL4 -> 7 | AM4: ='input ข้าว'!AM4 -> 7 | AN4: ='input ข้าว'!AN4 -> 7 | AO4: ='input ข้าว'!AO4 -> 7 | AP4: ='input ข้าว'!AP4 -> 7 | AQ4: ='input ข้าว'!AQ4 -> 7
A5: น้ำเตรียมแปลง มม./สัปดาห์ | C5: 30 | D5: 30 | E5: 30 | F5: 30 | G5: 30 | H5: 30 | I5: 30 | J5: 30 | K5: 30 | L5: 30 | M5: 30 | N5: 30 | O5: 30 | P5: 30 | Q5: 30 | R5: 30 | S5: 30 | T5: 30 | U5: 30 | V5: 30 | W5: 30 | X5: 30 | Y5: 30 | Z5: 30 | AA5: 30 | AB5: 30 | AC5: 30 | AD5: 30 | AE5: 30 | AF5: 30 | AG5: 30 | AH5: 30 | AI5: 30 | AJ5: 30 | AK5: 30 | AL5: 30 | AM5: 30 | AN5: 30 | AO5: 30 | AP5: 31 | AQ5: 32
A6: ประสิทธิ์ภาพโครงการ (%) | C6: ='input ข้าว'!C7 -> 90 | D6: ='input ข้าว'!D7 -> 90 | E6: ='input ข้าว'!E7 -> 90 | F6: ='input ข้าว'!F7 -> 90 | G6: ='input ข้าว'!G7 -> 90 | H6: ='input ข้าว'!H7 -> 90 | I6: ='input ข้าว'!I7 -> 90 | J6: ='input ข้าว'!J7 -> 90 | K6: ='input ข้าว'!K7 -> 90 | L6: ='input ข้าว'!L7 -> 90 | M6: ='input ข้าว'!M7 -> 90 | N6: ='input ข้าว'!N7 -> 77 | O6: ='input ข้าว'!O7 -> 77 | P6: ='input ข้าว'!P7 -> 77 | Q6: ='input ข้าว'!Q7 -> 77 | R6: ='input ข้าว'!R7 -> 77 | S6: ='input ข้าว'!S7 -> 85 | T6: ='input ข้าว'!T7 -> 85 | U6: ='input ข้าว'!U7 -> 85 | V6: ='input ข้าว'!V7 -> 85 | W6: ='input ข้าว'!W7 -> 85 | X6: ='input ข้าว'!X7 -> 85 | Y6: ='input ข้าว'!Y7 -> 85 | Z6: ='input ข้าว'!Z7 -> 85 | AA6: ='input ข้าว'!AA7 -> 100 | AB6: ='input ข้าว'!AB7 -> 100 | AC6: ='input ข้าว'!AC7 -> 100 | AD6: ='input ข้าว'!AD7 -> 100 | AE6: ='input ข้าว'!AE7 -> 100 | AF6: ='input ข้าว'!AF7 -> 100 | AG6: ='input ข้าว'!AG7 -> 77 | AH6: ='input ข้าว'!AH7 -> 77 | AI6: ='input ข้าว'!AI7 -> 77 | AJ6: ='input ข้าว'!AJ7 -> 77 | AK6: ='input ข้าว'!AK7 -> 77 | AL6: ='input ข้าว'!AL7 -> 77 | AM6: ='input ข้าว'!AM7 -> 65 | AN6: ='input ข้าว'!AN7 -> 65 | AO6: ='input ข้าว'!AO7 -> 85 | AP6: ='input ข้าว'!AP7 -> 85 | AQ6: ='input ข้าว'!AQ7 -> 85
A7: ชนิดพืชไร่ | C7: กล้วยหอม | D7: กล้วยหอม | E7: กล้วยหอม | F7: กล้วยหอม | G7: กล้วยหอม | H7: กล้วยหอม | I7: กล้วยหอม | J7: กล้วยหอม | K7: กล้วยหอม | L7: กล้วยหอม | M7: กล้วยหอม | N7: กล้วยหอม | O7: กล้วยหอม | P7: กล้วยหอม | Q7: กล้วยหอม | R7: กล้วยหอม | S7: กล้วยหอม | T7: กล้วยหอม | U7: กล้วยหอม | V7: กล้วยหอม | W7: กล้วยหอม | X7: กล้วยหอม | Y7: กล้วยหอม | Z7: กล้วยหอม | AA7: กล้วยหอม | AB7: กล้วยหอม | AC7: กล้วยหอม | AD7: กล้วยหอม | AE7: กล้วยหอม | AF7: กล้วยหอม | AG7: กล้วยหอม | AH7: กล้วยหอม | AI7: กล้วยหอม | AJ7: กล้วยหอม | AK7: กล้วยหอม | AL7: กล้วยหอม | AM7: กล้วยหอม | AN7: กล้วยหอม | AO7: กล้วยหอม | AP7: กล้วยหอม | AQ7: กล้วยหอม
A8: วัน | C8: พืชไร่ (ไร่ พื้นที่สะสมรายสัปดาห์)
A9: =DATE(($B$1-543),11,1) -> 2017-11-01 | B9: =+A9+6 -> 2017-11-07 | C9: 101 | D9: 201 | E9: 301 | F9: 401 | G9: 501 | H9: 601 | I9: 701 | J9: 801 | K9: 901 | L9: 1001 | M9: 1101 | N9: 1201 | O9: 1301 | P9: 1401 | Q9: 1501 | R9: 1601 | S9: 1701 | T9: 1801 | U9: 1901 | V9: 2001 | W9: 2101 | X9: 2201 | Y9: 2301 | Z9: 2401 | AA9: 2501 | AB9: 2601 | AC9: 2701 | AD9: 2801 | AE9: 2901 | AF9: 3001 | AG9: 3101 | AH9: 3201 | AI9: 3301 | AJ9: 3401 | AK9: 3501 | AL9: 3601 | AM9: 3701 | AN9: 3801 | AO9: 3901 | AP9: 3902 | AQ9: 3903
A10: =+A9+7 -> 2017-11-08 | B10: 2017-11-14
A11: =+A10+7 -> 2017-11-15 | B11: 2017-11-21
A12: 2017-11-22 | B12: 2017-11-28
A13: 2017-11-29 | B13: 2017-12-05
A14: 2017-12-06 | B14: 2017-12-12
A15: 2017-12-13 | B15: 2017-12-19
A16: 2017-12-20 | B16: 2017-12-26
A17: 2017-12-27 | B17: 2018-01-02
A18: 2018-01-03 | B18: 2018-01-09
A19: 2018-01-10 | B19: 2018-01-16
A20: 2018-01-17 | B20: 2018-01-23
A21: 2018-01-24 | B21: 2018-01-30
A22: 2018-01-31 | B22: 2018-02-06
A23: 2018-02-07 | B23: 2018-02-13
A24: 2018-02-14 | B24: 2018-02-20
A25: 2018-02-21 | B25: 2018-02-27
A26: 2018-02-28 | B26: 2018-03-06
A27: 2018-03-07 | B27: 2018-03-13
A28: 2018-03-14 | B28: 2018-03-20
A29: 2018-03-21 | B29: 2018-03-27
A30: 2018-03-28 | B30: 2018-04-03
A31: 2018-04-04 | B31: 2018-04-10
A32: 2018-04-11 | B32: 2018-04-17
A33: 2018-04-18 | B33: 2018-04-24
A34: 2018-04-25 | B34: 2018-05-01
A35: 2018-05-02 | B35: 2018-05-08
A36: 2018-05-09 | B36: 2018-05-15
A37: 2018-05-16 | B37: 2018-05-22
A38: 2018-05-23 | B38: 2018-05-29
A39: 2018-05-30 | B39: 2018-06-05
A40: 2018-06-06 | B40: 2018-06-12
A41: 2018-06-13 | B41: 2018-06-19
A42: 2018-06-20 | B42: 2018-06-26
A43: 2018-06-27 | B43: 2018-07-03
A44: 2018-07-04 | B44: 2018-07-10
A45: 2018-07-11 | B45: 2018-07-17
A46: 2018-07-18 | B46: 2018-07-24
A47: 2018-07-25 | B47: 2018-07-31
A48: 2018-08-01 | B48: 2018-08-07
A49: 2018-08-08 | B49: 2018-08-14
A50: 2018-08-15 | B50: 2018-08-21
A51: 2018-08-22 | B51: 2018-08-28
A52: 2018-08-29 | B52: 2018-09-04
A53: 2018-09-05 | B53: 2018-09-11
A54: 2018-09-12 | B54: 2018-09-18
A55: 2018-09-19 | B55: 2018-09-25
A56: 2018-09-26 | B56: 2018-10-02
A57: 2018-10-03 | B57: 2018-10-09
A58: 2018-10-10 | B58: 2018-10-16
A59: 2018-10-17 | B59: 2018-10-23
A60: 2018-10-24 | B60: 2018-10-30

Sheet input พืชผัก
A1: ปี พ.ศ. | B1: ='input ข้าว'!B1 -> 2560 | D1: ฤดูแล้ง | E1: =RIGHT(B1,2)&"/"&RIGHT(B1+1,2) -> 60/61 | F1: ฤดูฝน | G1: =RIGHT(B1+1,2) -> 61
A2: โครงการชลประทาน | C2: ='input ข้าว'!C2 -> พลเทพ | D2: ='input ข้าว'!D2 -> ทุ่งวัดสิงห์ | E2: ='input ข้าว'!E2 -> ท่าโบสถ์ | F2: ='input ข้าว'!F2 -> สามชุก | G2: ='input ข้าว'!G2 -> ดอนเจดีย์ | H2: ='input ข้าว'!H2 -> โพธิ์พระยา | I2: ='input ข้าว'!I2 -> ชลประทานสุพรรณบุรี | J2: ='input ข้าว'!J2 -> บรมธาตุ | K2: ='input ข้าว'!K2 -> ชัณสูตร | L2: ='input ข้าว'!L2 -> ยางมณี | M2: ='input ข้าว'!M2 -> ผักไห่ | N2: ='input ข้าว'!N2 -> บางบาล | O2: ='input ข้าว'!O2 -> เจ้าเจ็ดบางยี่หน | P2: ='input ข้าว'!P2 -> พระยาบรรลือ | Q2: ='input ข้าว'!Q2 -> พระพิมล | R2: ='input ข้าว'!R2 -> ภาษีเจริญ | S2: ='input ข้าว'!S2 -> มโนรมย์ | T2: ='input ข้าว'!T2 -> ช่องแค | U2: ='input ข้าว'!U2 -> โคกกะเทียม | V2: ='input ข้าว'!V2 -> เริงราง | W2: ='input ข้าว'!W2 -> มหาราช | X2: ='input ข้าว'!X2 -> ป่าสักใต้ | Y2: ='input ข้าว'!Y2 -> นครหลวง | Z2: ='input ข้าว'!Z2 -> ชลประทานลพบุรี | AA2: ='input ข้าว'!AA2 -> คลองเพรียว-เสาไห้ | AB2: ='input ข้าว'!AB2 -> เขื่อนป่าสักชลสิทธิ์ | AC2: ='input ข้าว'!AC2 -> รังสิตเหนือ | AD2: ='input ข้าว'!AD2 -> รังสิตใต้ | AE2: ='input ข้าว'!AE2 -> ชลหารพิจิตร | AF2: ='input ข้าว'!AF2 -> พระองค์ไชยานุชิต | AG2: ='input ข้าว'!AG2 -> เขื่อนนเรศวร | AH2: ='input ข้าว'!AH2 -> เขื่อนแควน้อย | AI2: ='input ข้าว'!AI2 -> ยมน่าน | AJ2: ='input ข้าว'!AJ2 -> พลายชุมพล | AK2: ='input ข้าว'!AK2 -> ดงเศรษฐี | AL2: ='input ข้าว'!AL2 -> ท่าบัว | AM2: ='input ข้าว'!AM2 -> ท่อทองแดง | AN2: ='input ข้าว'!AN2 -> ชลประทานกำแพงเพชร | AO2: ='input ข้าว'!AO2 -> ชลประทานนครสวรรค์ | AP2: ='input ข้าว'!AP2 -> ชลประทานตาก | AQ2: ='input ข้าว'!AQ2 -> ชลประทานอุตรดิตถ์
A3: จังหวัด | C3: ='input ข้าว'!C3 -> ชัยนาท | D3: ='input ข้าว'!D3 -> ชัยนาท | E3: ='input ข้าว'!E3 -> ชัยนาท | F3: ='input ข้าว'!F3 -> สุพรรณบุรี | G3: ='input ข้าว'!G3 -> สุพรรณบุรี | H3: ='input ข้าว'!H3 -> สุพรรณบุรี | I3: ='input ข้าว'!I3 -> สุพรรณบุรี | J3: ='input ข้าว'!J3 -> ชัยนาท | K3: ='input ข้าว'!K3 -> สิงห์บุรี | L3: ='input ข้าว'!L3 -> อ่างทอง | M3: ='input ข้าว'!M3 -> พระนครศรีอยุธยา | N3: ='input ข้าว'!N3 -> พระนครศรีอยุธยา | O3: ='input ข้าว'!O3 -> พระนครศรีอยุธยา | P3: ='input ข้าว'!P3 -> นนทบุรี | Q3: ='input ข้าว'!Q3 -> นครปฐม | R3: ='input ข้าว'!R3 -> สมุทรสาคร | S3: ='input ข้าว'!S3 -> ชัยนาท | T3: ='input ข้าว'!T3 -> ชัยนาท | U3: ='input ข้าว'!U3 -> ลพบุรี | V3: ='input ข้าว'!V3 -> สระบุรี | W3: ='input ข้าว'!W3 -> สิงห์บุรี | X3: ='input ข้าว'!X3 -> พระนครศรีอยุธยา | Y3: ='input ข้าว'!Y3 -> พระนครศรีอยุธยา | Z3: ='input ข้าว'!Z3 -> ลพบุรี | AA3: ='input ข้าว'!AA3 -> สระบุรี | AB3: ='input ข้าว'!AB3 -> สระบุรี | AC3: ='input ข้าว'!AC3 -> พระนครศรีอยุธยา | AD3: ='input ข้าว'!AD3 -> พระนครศรีอยุธยา | AE3: ='input ข้าว'!AE3 -> สมุทรปราการ | AF3: ='input ข้าว'!AF3 -> ฉะเชิงเทรา | AG3: ='input ข้าว'!AG3 -> พิษณุโลก | AH3: ='input ข้าว'!AH3 -> พิษณุโลก | AI3: ='input ข้าว'!AI3 -> พิษณุโลก | AJ3: ='input ข้าว'!AJ3 -> พิษณุโลก | AK3: ='input ข้าว'!AK3 -> พิจิตร | AL3: ='input ข้าว'!AL3 -> พิจิตร | AM3: ='input ข้าว'!AM3 -> กำแพงเพชร | AN3: ='input ข้าว'!AN3 -> กำแพงเพชร | AO3: ='input ข้าว'!AO3 -> นครสวรรค์ | AP3: ='input ข้าว'!AP3 -> ตาก | AQ3: ='input ข้าว'!AQ3 -> อุตรดิตถ์
A4: รั่วซึม มม./สัปดาห์ | C4: ='input ข้าว'!C4 -> 7 | D4: ='input ข้าว'!D4 -> 7 | E4: ='input ข้าว'!E4 -> 7 | F4: ='input ข้าว'!F4 -> 7 | G4: ='input ข้าว'!G4 -> 7 | H4: ='input ข้าว'!H4 -> 7 | I4: ='input ข้าว'!I4 -> 7 | J4: ='input ข้าว'!J4 -> 7 | K4: ='input ข้าว'!K4 -> 7 | L4: ='input ข้าว'!L4 -> 7 | M4: ='input ข้าว'!M4 -> 7 | N4: ='input ข้าว'!N4 -> 7 | O4: ='input ข้าว'!O4 -> 7 | P4: ='input ข้าว'!P4 -> 7 | Q4: ='input ข้าว'!Q4 -> 7 | R4: ='input ข้าว'!R4 -> 7 | S4: ='input ข้าว'!S4 -> 7 | T4: ='input ข้าว'!T4 -> 7 | U4: ='input ข้าว'!U4 -> 7 | V4: ='input ข้าว'!V4 -> 7 | W4: ='input ข้าว'!W4 -> 7 | X4: ='input ข้าว'!X4 -> 7 | Y4: ='input ข้าว'!Y4 -> 7 | Z4: ='input ข้าว'!Z4 -> 7 | AA4: ='input ข้าว'!AA4 -> 7 | AB4: ='input ข้าว'!AB4 -> 7 | AC4: ='input ข้าว'!AC4 -> 7 | AD4: ='input ข้าว'!AD4 -> 7 | AE4: ='input ข้าว'!AE4 -> 7 | AF4: ='input ข้าว'!AF4 -> 7 | AG4: ='input ข้าว'!AG4 -> 7 | AH4: ='input ข้าว'!AH4 -> 7 | AI4: ='input ข้าว'!AI4 -> 7 | AJ4: ='input ข้าว'!AJ4 -> 7 | AK4: ='input ข้าว'!AK4 -> 7 | AL4: ='input ข้าว'!AL4 -> 7 | AM4: ='input ข้าว'!AM4 -> 7 | AN4: ='input ข้าว'!AN4 -> 7 | AO4: ='input ข้าว'!AO4 -> 7 | AP4: ='input ข้าว'!AP4 -> 7 | AQ4: ='input ข้าว'!AQ4 -> 7
A5: น้ำเตรียมแปลงฤดูแล้ง มม./สัปดาห์ | C5: 20 | D5: 20 | E5: 20 | F5: 20 | G5: 20 | H5: 20 | I5: 20 | J5: 20 | K5: 20 | L5: 20 | M5: 20 | N5: 20 | O5: 20 | P5: 20 | Q5: 20 | R5: 20 | S5: 20 | T5: 20 | U5: 20 | V5: 20 | W5: 20 | X5: 20 | Y5: 20 | Z5: 20 | AA5: 20 | AB5: 20 | AC5: 20 | AD5: 20 | AE5: 20 | AF5: 20 | AG5: 20 | AH5: 20 | AI5: 20 | AJ5: 20 | AK5: 20 | AL5: 20 | AM5: 20 | AN5: 20 | AO5: 20 | AP5: 20 | AQ5: 20
A6: น้ำเตรียมแปลงฤดูฝน มม./สัปดาห์ | C6: 10 | D6: 10 | E6: 10 | F6: 10 | G6: 10 | H6: 10 | I6: 10 | J6: 10 | K6: 10 | L6: 10 | M6: 10 | N6: 10 | O6: 10 | P6: 10 | Q6: 10 | R6: 10 | S6: 10 | T6: 10 | U6: 10 | V6: 10 | W6: 10 | X6: 10 | Y6: 10 | Z6: 10 | AA6: 10 | AB6: 10 | AC6: 10 | AD6: 10 | AE6: 10 | AF6: 10 | AG6: 10 | AH6: 10 | AI6: 10 | AJ6: 10 | AK6: 10 | AL6: 10 | AM6: 10 | AN6: 10 | AO6: 10 | AP6: 10 | AQ6: 10
A7: ประสิทธิ์ภาพโครงการ (%) | C7: ='input ข้าว'!C7 -> 90 | D7: ='input ข้าว'!D7 -> 90 | E7: ='input ข้าว'!E7 -> 90 | F7: ='input ข้าว'!F7 -> 90 | G7: ='input ข้าว'!G7 -> 90 | H7: ='input ข้าว'!H7 -> 90 | I7: ='input ข้าว'!I7 -> 90 | J7: ='input ข้าว'!J7 -> 90 | K7: ='input ข้าว'!K7 -> 90 | L7: ='input ข้าว'!L7 -> 90 | M7: ='input ข้าว'!M7 -> 90 | N7: ='input ข้าว'!N7 -> 77 | O7: ='input ข้าว'!O7 -> 77 | P7: ='input ข้าว'!P7 -> 77 | Q7: ='input ข้าว'!Q7 -> 77 | R7: ='input ข้าว'!R7 -> 77 | S7: ='input ข้าว'!S7 -> 85 | T7: ='input ข้าว'!T7 -> 85 | U7: ='input ข้าว'!U7 -> 85 | V7: ='input ข้าว'!V7 -> 85 | W7: ='input ข้าว'!W7 -> 85 | X7: ='input ข้าว'!X7 -> 85 | Y7: ='input ข้าว'!Y7 -> 85 | Z7: ='input ข้าว'!Z7 -> 85 | AA7: ='input ข้าว'!AA7 -> 100 | AB7: ='input ข้าว'!AB7 -> 100 | AC7: ='input ข้าว'!AC7 -> 100 | AD7: ='input ข้าว'!AD7 -> 100 | AE7: ='input ข้าว'!AE7 -> 100 | AF7: ='input ข้าว'!AF7 -> 100 | AG7: ='input ข้าว'!AG7 -> 77 | AH7: ='input ข้าว'!AH7 -> 77 | AI7: ='input ข้าว'!AI7 -> 77 | AJ7: ='input ข้าว'!AJ7 -> 77 | AK7: ='input ข้าว'!AK7 -> 77 | AL7: ='input ข้าว'!AL7 -> 77 | AM7: ='input ข้าว'!AM7 -> 65 | AN7: ='input ข้าว'!AN7 -> 65 | AO7: ='input ข้าว'!AO7 -> 85 | AP7: ='input ข้าว'!AP7 -> 85 | AQ7: ='input ข้าว'!AQ7 -> 85
A8: วัน | B8: ชนิดพืช | C8: กะหล่ำดอก | D8: กะหล่ำดอก | E8: กะหล่ำดอก | F8: กะหล่ำดอก | G8: กะหล่ำดอก | H8: กะหล่ำดอก | I8: กะหล่ำดอก | J8: กะหล่ำดอก | K8: กะหล่ำดอก | L8: กะหล่ำดอก | M8: กะหล่ำดอก | N8: กะหล่ำดอก | O8: กะหล่ำดอก | P8: กะหล่ำดอก | Q8: กะหล่ำดอก | R8: กะหล่ำดอก | S8: กะหล่ำดอก | T8: กะหล่ำดอก | U8: กะหล่ำดอก | V8: กะหล่ำดอก | W8: กะหล่ำดอก | X8: กะหล่ำดอก | Y8: กะหล่ำดอก | Z8: กะหล่ำดอก | AA8: กะหล่ำดอก | AB8: กะหล่ำดอก | AC8: กะหล่ำดอก | AD8: กะหล่ำดอก | AE8: กะหล่ำดอก | AF8: กะหล่ำดอก | AG8: กะหล่ำดอก | AH8: กะหล่ำดอก | AI8: กะหล่ำดอก | AJ8: กะหล่ำดอก | AK8: กะหล่ำดอก | AL8: กะหล่ำดอก | AM8: กะหล่ำดอก | AN8: กะหล่ำดอก | AO8: กะหล่ำดอก | AP8: กะหล่ำดอก | AQ8: กะหล่ำดอก
A9: =+A10-7 -> 2017-08-02 | B9: =+A9+6 -> 2017-08-08
A10: 2017-08-09 | B10: =+A10+6 -> 2017-08-15
A11: 2017-08-16 | B11: 2017-08-22
A12: 2017-08-23 | B12: 2017-08-29
A13: 2017-08-30 | B13: 2017-09-05
A14: 2017-09-06 | B14: 2017-09-12
A15: 2017-09-13 | B15: 2017-09-19
A16: 2017-09-20 | B16: 2017-09-26
A17: 2017-09-27 | B17: 2017-10-03
A18: 2017-10-04 | B18: 2017-10-10
A19: 2017-10-11 | B19: 2017-10-17
A20: 2017-10-18 | B20: 2017-10-24
A21: =+A22-7 -> 2017-10-25 | B21: 2017-10-31
A22: ='input ข้าว'!A22 -> 2017-11-01 | B22: 2017-11-07 | AM22: 348
A23: =+A22+7 -> 2017-11-08 | B23: 2017-11-14 | J23: 202 | Q23: 1530 | AC23: 1163 | AM23: =695-348 -> 347
A24: =+A23+7 -> 2017-11-15 | B24: 2017-11-21 | V24: 1220 | AM24: =1205-695 -> 510
A25: 2017-11-22 | B25: 2017-11-28 | AM25: =1843-1205 -> 638
A26: 2017-11-29 | B26: 2017-12-05 | V26: =1450-1220 -> 230 | W26: 3800 | AL26: 37 | AM26: =2720-1843 -> 877
A27: 2017-12-06 | B27: 2017-12-12 | O27: 2624 | Q27: =2960-1530 -> 1430 | V27: 100 | AL27: =241-37 -> 204 | AM27: =3667-2720 -> 947 | AP27: 200
A28: 2017-12-13 | B28: 2017-12-19 | V28: 450 | AM28: =4590-3667 -> 923 | AP28: =4300-200 -> 4100
A29: 2017-12-20 | B29: 2017-12-26 | M29: 327 | V29: 800 | X29: 1074 | AM29: =5967-4590 -> 1377 | AP29: =6000-4300 -> 1700
A30: 2017-12-27 | B30: 2018-01-02 | V30: 0
A31: 2018-01-03 | B31: 2018-01-09 | U31: 539 | V31: =4200-2800 -> 1400 | AE31: 9822 | AL31: =840-241 -> 599 | AM31: =6820-5967 -> 853
A32: 2018-01-10 | B32: 2018-01-16 | F32: 1171 | AG32: 1741 | AJ32: 15 | AL32: =1221-840 -> 381 | AM32: =7854-6820 -> 1034 | AN32: 3243
A33: 2018-01-17 | B33: 2018-01-23 | R33: 1671 | AN33: =6282-3243 -> 3039 | AP33: =6500-6000 -> 500
A34: 2018-01-24 | B34: 2018-01-30
A35: 2018-01-31 | B35: 2018-02-06
A36: 2018-02-07 | B36: 2018-02-13
A37: 2018-02-14 | B37: 2018-02-20 | AB37: 1100
A38: 2018-02-21 | B38: 2018-02-27
A39: 2018-02-28 | B39: 2018-03-06 | H39: 811
A40: 2018-03-07 | B40: 2018-03-13
A41: 2018-03-14 | B41: 2018-03-20
A42: 2018-03-21 | B42: 2018-03-27
A43: 2018-03-28 | B43: 2018-04-03
A44: 2018-04-04 | B44: 2018-04-10
A45: 2018-04-11 | B45: 2018-04-17
A46: 2018-04-18 | B46: 2018-04-24
A47: 2018-04-25 | B47: 2018-05-01 | AH47: 1774
A48: 2018-05-02 | B48: 2018-05-08 | M48: =654-327 -> 327 | P48: =14597-7316 -> 7281
A49: 2018-05-09 | B49: 2018-05-15 | F49: =2686-1714 -> 972 | M49: =846-654 -> 192 | Q49: =7080-2960 -> 4120 | R49: =3342-1671 -> 1671 | U49: 539 | AC49: =2026-1163 -> 863 | AE49: =16842-9822 -> 7020 | AM49: =8489-7854 -> 635
A50: 2018-05-16 | B50: 2018-05-22 | Q50: =7770-7080 -> 690 | V50: =7450-4200 -> 3250 | Z50: 30 | AM50: =9164-8489 -> 675
A51: 2018-05-23 | B51: 2018-05-29 | P51: =14632-14597 -> 35 | AE51: =17362-16842 -> 520
A52: 2018-05-30 | B52: 2018-06-05 | AM52: =9964-9164 -> 800
A53: 2018-06-06 | B53: 2018-06-12 | F53: =2806-2686 -> 120 | V53: =8610-7450 -> 1160 | X53: 1074 | AG53: 1741 | AM53: =12615-9964 -> 2651
A54: 2018-06-13 | B54: 2018-06-19 | AB54: =3127-1100 -> 2027 | AM54: =13079-12615 -> 464
A55: 2018-06-20 | B55: 2018-06-26 | AB55: =4927-3127 -> 1800 | AM55: =13543-13079 -> 464 | AO55: 1000 | AP55: =7500-6500 -> 1000
A56: 2018-06-27 | B56: 2018-07-03 | AB56: =7993-4927 -> 3066 | AE56: =18782-17947 -> 835
A57: 2018-07-04 | B57: 2018-07-10 | Q57: =7980-7770 -> 210 | AB57: =9793-7993 -> 1800 | AE57: =19644-18782 -> 862
A58: 2018-07-11 | B58: 2018-07-17 | AB58: =12162-9793 -> 2369 | AP58: =9000-7500 -> 1500
A59: 2018-07-18 | B59: 2018-07-24 | AB59: =13480-12162 -> 1318
A60: 2018-07-25 | B60: 2018-07-31
A61: 2018-08-01 | B61: 2018-08-07
A62: 2018-08-08 | B62: 2018-08-14
A63: 2018-08-15 | B63: 2018-08-21
A64: 2018-08-22 | B64: 2018-08-28 | AP64: =11500-9000 -> 2500
A65: 2018-08-29 | B65: 2018-09-04
A66: 2018-09-05 | B66: 2018-09-11
A67: 2018-09-12 | B67: 2018-09-18
A68: 2018-09-19 | B68: 2018-09-25
A69: 2018-09-26 | B69: 2018-10-02
A70: 2018-10-03 | B70: 2018-10-09
A71: 2018-10-10 | B71: 2018-10-16
A72: 2018-10-17 | B72: 2018-10-23
A73: 2018-10-24 | B73: 2018-10-30

Sheet input ไม้ผล
A1: ปี พ.ศ. | B1: ='input ข้าว'!B1 -> 2560 | D1: ฤดูแล้ง | E1: =RIGHT(B1,2)&"/"&RIGHT(B1+1,2) -> 60/61 | F1: ฤดูฝน | G1: =RIGHT(B1+1,2) -> 61
A2: โครงการชลประทาน | C2: ='input ข้าว'!C2 -> พลเทพ | D2: ='input ข้าว'!D2 -> ทุ่งวัดสิงห์ | E2: ='input ข้าว'!E2 -> ท่าโบสถ์ | F2: ='input ข้าว'!F2 -> สามชุก | G2: ='input ข้าว'!G2 -> ดอนเจดีย์ | H2: ='input ข้าว'!H2 -> โพธิ์พระยา | I2: ='input ข้าว'!I2 -> ชลประทานสุพรรณบุรี | J2: ='input ข้าว'!J2 -> บรมธาตุ | K2: ='input ข้าว'!K2 -> ชัณสูตร | L2: ='input ข้าว'!L2 -> ยางมณี | M2: ='input ข้าว'!M2 -> ผักไห่ | N2: ='input ข้าว'!N2 -> บางบาล | O2: ='input ข้าว'!O2 -> เจ้าเจ็ดบางยี่หน | P2: ='input ข้าว'!P2 -> พระยาบรรลือ | Q2: ='input ข้าว'!Q2 -> พระพิมล | R2: ='input ข้าว'!R2 -> ภาษีเจริญ | S2: ='input ข้าว'!S2 -> มโนรมย์ | T2: ='input ข้าว'!T2 -> ช่องแค | U2: ='input ข้าว'!U2 -> โคกกะเทียม | V2: ='input ข้าว'!V2 -> เริงราง | W2: ='input ข้าว'!W2 -> มหาราช | X2: ='input ข้าว'!X2 -> ป่าสักใต้ | Y2: ='input ข้าว'!Y2 -> นครหลวง | Z2: ='input ข้าว'!Z2 -> ชลประทานลพบุรี | AA2: ='input ข้าว'!AA2 -> คลองเพรียว-เสาไห้ | AB2: ='input ข้าว'!AB2 -> เขื่อนป่าสักชลสิทธิ์ | AC2: ='input ข้าว'!AC2 -> รังสิตเหนือ | AD2: ='input ข้าว'!AD2 -> รังสิตใต้ | AE2: ='input ข้าว'!AE2 -> ชลหารพิจิตร | AF2: ='input ข้าว'!AF2 -> พระองค์ไชยานุชิต | AG2: ='input ข้าว'!AG2 -> เขื่อนนเรศวร | AH2: ='input ข้าว'!AH2 -> เขื่อนแควน้อย | AI2: ='input ข้าว'!AI2 -> ยมน่าน | AJ2: ='input ข้าว'!AJ2 -> พลายชุมพล | AK2: ='input ข้าว'!AK2 -> ดงเศรษฐี | AL2: ='input ข้าว'!AL2 -> ท่าบัว | AM2: ='input ข้าว'!AM2 -> ท่อทองแดง | AN2: ='input ข้าว'!AN2 -> ชลประทานกำแพงเพชร | AO2: ='input ข้าว'!AO2 -> ชลประทานนครสวรรค์ | AP2: ='input ข้าว'!AP2 -> ชลประทานตาก | AQ2: ='input ข้าว'!AQ2 -> ชลประทานอุตรดิตถ์
A3: จังหวัด | C3: ='input ข้าว'!C3 -> ชัยนาท | D3: ='input ข้าว'!D3 -> ชัยนาท | E3: ='input ข้าว'!E3 -> ชัยนาท | F3: ='input ข้าว'!F3 -> สุพรรณบุรี | G3: ='input ข้าว'!G3 -> สุพรรณบุรี | H3: ='input ข้าว'!H3 -> สุพรรณบุรี | I3: ='input ข้าว'!I3 -> สุพรรณบุรี | J3: ='input ข้าว'!J3 -> ชัยนาท | K3: ='input ข้าว'!K3 -> สิงห์บุรี | L3: ='input ข้าว'!L3 -> อ่างทอง | M3: ='input ข้าว'!M3 -> พระนครศรีอยุธยา | N3: ='input ข้าว'!N3 -> พระนครศรีอยุธยา | O3: ='input ข้าว'!O3 -> พระนครศรีอยุธยา | P3: ='input ข้าว'!P3 -> นนทบุรี | Q3: ='input ข้าว'!Q3 -> นครปฐม | R3: ='input ข้าว'!R3 -> สมุทรสาคร | S3: ='input ข้าว'!S3 -> ชัยนาท | T3: ='input ข้าว'!T3 -> ชัยนาท | U3: ='input ข้าว'!U3 -> ลพบุรี | V3: ='input ข้าว'!V3 -> สระบุรี | W3: ='input ข้าว'!W3 -> สิงห์บุรี | X3: ='input ข้าว'!X3 -> พระนครศรีอยุธยา | Y3: ='input ข้าว'!Y3 -> พระนครศรีอยุธยา | Z3: ='input ข้าว'!Z3 -> ลพบุรี | AA3: ='input ข้าว'!AA3 -> สระบุรี | AB3: ='input ข้าว'!AB3 -> สระบุรี | AC3: ='input ข้าว'!AC3 -> พระนครศรีอยุธยา | AD3: ='input ข้าว'!AD3 -> พระนครศรีอยุธยา | AE3: ='input ข้าว'!AE3 -> สมุทรปราการ | AF3: ='input ข้าว'!AF3 -> ฉะเชิงเทรา | AG3: ='input ข้าว'!AG3 -> พิษณุโลก | AH3: ='input ข้าว'!AH3 -> พิษณุโลก | AI3: ='input ข้าว'!AI3 -> พิษณุโลก | AJ3: ='input ข้าว'!AJ3 -> พิษณุโลก | AK3: ='input ข้าว'!AK3 -> พิจิตร | AL3: ='input ข้าว'!AL3 -> พิจิตร | AM3: ='input ข้าว'!AM3 -> กำแพงเพชร | AN3: ='input ข้าว'!AN3 -> กำแพงเพชร | AO3: ='input ข้าว'!AO3 -> นครสวรรค์ | AP3: ='input ข้าว'!AP3 -> ตาก | AQ3: ='input ข้าว'!AQ3 -> อุตรดิตถ์
A4: รั่วซึม มม./สัปดาห์ | C4: ='input ข้าว'!C4 -> 7 | D4: =C4 -> 7 | E4: =D4 -> 7 | F4: 7 | G4: 7 | H4: 7 | I4: 7 | J4: 7 | K4: 7 | L4: 7 | M4: 7 | N4: 7 | O4: 7 | P4: 7 | Q4: 7 | R4: 7 | S4: 7 | T4: 7 | U4: 7 | V4: 7 | W4: 7 | X4: 7 | Y4: 7 | Z4: 7 | AA4: 7 | AB4: 7 | AC4: 7 | AD4: 7 | AE4: 7 | AF4: 7 | AG4: 7 | AH4: 7 | AI4: 7 | AJ4: 7 | AK4: 7 | AL4: 7 | AM4: 7 | AN4: 7 | AO4: 7 | AP4: 7 | AQ4: 7
A5: น้ำเตรียมแปลง มม./สัปดาห์ | C5: 30 | D5: 30 | E5: 30 | F5: 30 | G5: 30 | H5: 30 | I5: 30 | J5: 30 | K5: 30 | L5: 30 | M5: 30 | N5: 30 | O5: 30 | P5: 30 | Q5: 30 | R5: 30 | S5: 30 | T5: 30 | U5: 30 | V5: 30 | W5: 30 | X5: 30 | Y5: 30 | Z5: 30 | AA5: 30 | AB5: 30 | AC5: 30 | AD5: 30 | AE5: 30 | AF5: 30 | AG5: 30 | AH5: 30 | AI5: 30 | AJ5: 30 | AK5: 30 | AL5: 30 | AM5: 30 | AN5: 30 | AO5: 30 | AP5: 30 | AQ5: 30
A6: ประสิทธิ์ภาพโครงการ (%) | C6: ='input ข้าว'!C7 -> 90 | D6: ='input ข้าว'!D7 -> 90 | E6: ='input ข้าว'!E7 -> 90 | F6: ='input ข้าว'!F7 -> 90 | G6: ='input ข้าว'!G7 -> 90 | H6: ='input ข้าว'!H7 -> 90 | I6: ='input ข้าว'!I7 -> 90 | J6: ='input ข้าว'!J7 -> 90 | K6: ='input ข้าว'!K7 -> 90 | L6: ='input ข้าว'!L7 -> 90 | M6: ='input ข้าว'!M7 -> 90 | N6: ='input ข้าว'!N7 -> 77 | O6: ='input ข้าว'!O7 -> 77 | P6: ='input ข้าว'!P7 -> 77 | Q6: ='input ข้าว'!Q7 -> 77 | R6: ='input ข้าว'!R7 -> 77 | S6: ='input ข้าว'!S7 -> 85 | T6: ='input ข้าว'!T7 -> 85 | U6: ='input ข้าว'!U7 -> 85 | V6: ='input ข้าว'!V7 -> 85 | W6: ='input ข้าว'!W7 -> 85 | X6: ='input ข้าว'!X7 -> 85 | Y6: ='input ข้าว'!Y7 -> 85 | Z6: ='input ข้าว'!Z7 -> 85 | AA6: ='input ข้าว'!AA7 -> 100 | AB6: ='input ข้าว'!AB7 -> 100 | AC6: ='input ข้าว'!AC7 -> 100 | AD6: ='input ข้าว'!AD7 -> 100 | AE6: ='input ข้าว'!AE7 -> 100 | AF6: ='input ข้าว'!AF7 -> 100 | AG6: ='input ข้าว'!AG7 -> 77 | AH6: ='input ข้าว'!AH7 -> 77 | AI6: ='input ข้าว'!AI7 -> 77 | AJ6: ='input ข้าว'!AJ7 -> 77 | AK6: ='input ข้าว'!AK7 -> 77 | AL6: ='input ข้าว'!AL7 -> 77 | AM6: ='input ข้าว'!AM7 -> 65 | AN6: ='input ข้าว'!AN7 -> 65 | AO6: ='input ข้าว'!AO7 -> 85 | AP6: ='input ข้าว'!AP7 -> 85 | AQ6: ='input ข้าว'!AQ7 -> 85
A7: ชนิดไม้ผล | C7: มะม่วง | D7: มะม่วง | E7: มะม่วง | F7: มะม่วง | G7: มะม่วง | H7: มะม่วง | I7: มะม่วง | J7: มะม่วง | K7: มะม่วง | L7: มะม่วง | M7: มะม่วง | N7: มะม่วง | O7: มะม่วง | P7: มะม่วง | Q7: มะม่วง | R7: มะม่วง | S7: มะม่วง | T7: มะม่วง | U7: มะม่วง | V7: มะม่วง | W7: มะม่วง | X7: มะม่วง | Y7: มะม่วง | Z7: มะม่วง | AA7: มะม่วง | AB7: มะม่วง | AC7: มะม่วง | AD7: มะม่วง | AE7: มะม่วง | AF7: มะม่วง | AG7: มะม่วง | AH7: มะม่วง | AI7: มะม่วง | AJ7: มะม่วง | AK7: มะม่วง | AL7: มะม่วง | AM7: มะม่วง | AN7: มะม่วง | AO7: มะม่วง | AP7: มะม่วง | AQ7: มะม่วง
A8: วัน | C8: ไม้ยืนต้น (ไร่ พื้นที่สะสมรายสัปดาห์)
A9: =+'input ข้าว'!A22 -> 2017-11-01 | B9: =+A9+6 -> 2017-11-07 | C9: 1197 | D9: 1275 | E9: 0 | F9: 13408 | G9: 10007 | H9: 15805 | I9: 0 | J9: 1873 | K9: 7832 | L9: 9395 | M9: 0 | N9: 0 | O9: 7439 | P9: 16349 | Q9: 4850 | R9: 13000 | S9: 2315 | T9: 2294 | U9: 1293 | V9: 1362 | W9: 6008 | X9: 30002 | Y9: 0 | Z9: 969 | AA9: 0 | AB9: 2850 | AC9: 53273 | AD9: 11163 | AE9: 0 | AF9: 8531 | AG9: 0 | AH9: 0 | AI9: 0 | AJ9: 0 | AK9: 0 | AL9: 5684 | AM9: 8491 | AN9: 0 | AO9: 0 | AP9: 3900 | AQ9: 0
A10: =+A9+7 -> 2017-11-08 | B10: 2017-11-14 | C10: 1197 | D10: 1275 | E10: 0 | F10: 13408 | G10: 10007 | H10: 15805 | I10: 0 | J10: 1873 | K10: 7832 | L10: 9395 | M10: 0 | N10: 0 | O10: 7439 | P10: 16349 | Q10: 4850 | R10: 13000 | S10: 2315 | T10: 2294 | U10: 1293 | V10: 1362 | W10: 6008 | X10: 30002 | Y10: 0 | Z10: 969 | AA10: 0 | AB10: 2850 | AC10: 53273 | AD10: 11163 | AE10: 0 | AF10: 8531 | AG10: 0 | AH10: 0 | AI10: 0 | AJ10: 0 | AK10: 0 | AL10: 5684 | AM10: 8491 | AN10: 0 | AO10: 0 | AP10: 3900 | AQ10: 0
A11: =+A10+7 -> 2017-11-15 | B11: 2017-11-21 | C11: 1197 | D11: 1275 | E11: 0 | F11: 13408 | G11: 10007 | H11: 15805 | I11: 0 | J11: 1873 | K11: 7832 | L11: 9395 | M11: 0 | N11: 0 | O11: 7439 | P11: 16349 | Q11: 4850 | R11: 13000 | S11: 2315 | T11: 2294 | U11: 1293 | V11: 1362 | W11: 6008 | X11: 30002 | Y11: 0 | Z11: 969 | AA11: 0 | AB11: 2850 | AC11: 53273 | AD11: 11163 | AE11: 0 | AF11: 8531 | AG11: 0 | AH11: 0 | AI11: 0 | AJ11: 0 | AK11: 0 | AL11: 5684 | AM11: 8491 | AN11: 0 | AO11: 0 | AP11: 3900 | AQ11: 0
A12: 2017-11-22 | B12: 2017-11-28 | C12: 1197 | D12: 1275 | E12: 0 | F12: 13408 | G12: 10007 | H12: 15805 | I12: 0 | J12: 1873 | K12: 7832 | L12: 9395 | M12: 0 | N12: 0 | O12: 7439 | P12: 16349 | Q12: 4850 | R12: 13000 | S12: 2315 | T12: 2294 | U12: 1293 | V12: 1362 | W12: 6008 | X12: 30002 | Y12: 0 | Z12: 969 | AA12: 0 | AB12: 2850 | AC12: 53273 | AD12: 11163 | AE12: 0 | AF12: 8531 | AG12: 0 | AH12: 0 | AI12: 0 | AJ12: 0 | AK12: 0 | AL12: 5684 | AM12: 8491 | AN12: 0 | AO12: 0 | AP12: 0 | AQ12: 0
A13: 2017-11-29 | B13: 2017-12-05 | C13: 1197 | D13: 1275 | E13: 0 | F13: 13408 | G13: 10007 | H13: 15805 | I13: 0 | J13: 1873 | K13: 7832 | L13: 7320 | M13: 0 | N13: 0 | O13: 7439 | P13: 16349 | Q13: 4850 | R13: 13000 | S13: 2315 | T13: 2294 | U13: 1293 | V13: 1362 | W13: 6008 | X13: 30002 | Y13: 0 | Z13: 969 | AA13: 0 | AB13: 2850 | AC13: 53273 | AD13: 11163 | AE13: 0 | AF13: 8531 | AG13: 0 | AH13: 0 | AI13: 0 | AJ13: 0 | AK13: 0 | AL13: 733 | AM13: 8491 | AN13: 0 | AO13: 0 | AP13: 0 | AQ13: 0
A14: 2017-12-06 | B14: 2017-12-12 | C14: 1197 | D14: 1275 | E14: 0 | F14: 13408 | G14: 10007 | H14: 15805 | I14: 0 | J14: 1873 | K14: 7832 | L14: 7320 | M14: 0 | N14: 0 | O14: 7439 | P14: 16349 | Q14: 4850 | R14: 13000 | S14: 2315 | T14: 2294 | U14: 1293 | V14: 1362 | W14: 6008 | X14: 30002 | Y14: 0 | Z14: 969 | AA14: 0 | AB14: 2850 | AC14: 53273 | AD14: 11163 | AE14: 0 | AF14: 8531 | AG14: 0 | AH14: 0 | AI14: 0 | AJ14: 0 | AK14: 0 | AL14: 6604 | AM14: 8491 | AN14: 0 | AO14: 0 | AP14: 0 | AQ14: 0
A15: 2017-12-13 | B15: 2017-12-19 | C15: 1197 | D15: 1275 | E15: 0 | F15: 13408 | G15: 10007 | H15: 15805 | I15: 0 | J15: 1873 | K15: 7832 | L15: 7320 | M15: 0 | N15: 0 | O15: 7439 | P15: 16349 | Q15: 4850 | R15: 13000 | S15: 2719 | T15: 2294 | U15: 1293 | V15: 1362 | W15: 6008 | X15: 30002 | Y15: 0 | Z15: 0 | AA15: 0 | AB15: 2850 | AC15: 53273 | AD15: 11163 | AE15: 0 | AF15: 8531 | AG15: 0 | AH15: 0 | AI15: 0 | AJ15: 0 | AK15: 0 | AL15: 6604 | AM15: 8491 | AN15: 0 | AO15: 0 | AP15: 0 | AQ15: 0
A16: 2017-12-20 | B16: 2017-12-26 | C16: 1197 | D16: 1275 | E16: 0 | F16: 13408 | G16: 10007 | H16: 15805 | I16: 0 | J16: 1873 | K16: 7832 | L16: 7320 | M16: 0 | N16: 0 | O16: 7439 | P16: 16349 | Q16: 4850 | R16: 13000 | S16: 2719 | T16: 2294 | U16: 1293 | V16: 1362 | W16: 6008 | X16: 25098 | Y16: 0 | Z16: 0 | AA16: 0 | AB16: 2850 | AC16: 53273 | AD16: 11163 | AE16: 0 | AF16: 8531 | AG16: 0 | AH16: 0 | AI16: 0 | AJ16: 0 | AK16: 0 | AL16: 6604 | AM16: 8491 | AN16: 0 | AO16: 0 | AP16: 0 | AQ16: 0
A17: 2017-12-27 | B17: 2018-01-02 | C17: 1197 | D17: 1275 | E17: 0 | F17: 13408 | G17: 10007 | H17: 15805 | I17: 0 | J17: 1873 | K17: 7832 | L17: 7320 | M17: 0 | N17: 0 | O17: 7439 | P17: 16349 | Q17: 4850 | R17: 13000 | S17: 2315 | T17: 2294 | U17: 1293 | V17: 1362 | W17: 6008 | X17: 25098 | Y17: 0 | Z17: 0 | AA17: 0 | AB17: 2850 | AC17: 53273 | AD17: 11163 | AE17: 0 | AF17: 8531 | AG17: 0 | AH17: 0 | AI17: 0 | AJ17: 0 | AK17: 0 | AL17: 6604 | AM17: 8491 | AN17: 0 | AO17: 0 | AP17: 0 | AQ17: 0
A18: 2018-01-03 | B18: 2018-01-09 | C18: 1197 | D18: 1275 | E18: 0 | F18: 13408 | G18: 10007 | H18: 15805 | I18: 0 | J18: 1873 | K18: 7832 | L18: 7320 | M18: 0 | N18: 0 | O18: 7439 | P18: 16349 | Q18: 4850 | R18: 13000 | S18: 2315 | T18: 2294 | U18: 1293 | V18: 1362 | W18: 6008 | X18: 25098 | Y18: 0 | Z18: 0 | AA18: 0 | AB18: 2850 | AC18: 53273 | AD18: 11163 | AE18: 0 | AF18: 8531 | AG18: 0 | AH18: 0 | AI18: 0 | AJ18: 0 | AK18: 0 | AL18: 6604 | AM18: 8491 | AN18: 0 | AO18: 0 | AP18: 0 | AQ18: 0
A19: 2018-01-10 | B19: 2018-01-16 | C19: 1197 | D19: 1275 | E19: 0 | F19: 14043 | G19: 10007 | H19: 15805 | I19: 0 | J19: 1873 | K19: 7832 | L19: 7320 | M19: 0 | N19: 0 | O19: 7439 | P19: 16349 | Q19: 4850 | R19: 13000 | S19: 2315 | T19: 2294 | U19: 1293 | V19: 1362 | W19: 6008 | X19: 25098 | Y19: 0 | Z19: 0 | AA19: 0 | AB19: 2850 | AC19: 53273 | AD19: 11163 | AE19: 0 | AF19: 8531 | AG19: 0 | AH19: 0 | AI19: 0 | AJ19: 11 | AK19: 0 | AL19: 6604 | AM19: 8491 | AN19: 0 | AO19: 0 | AP19: 0 | AQ19: 0
A20: 2018-01-17 | B20: 2018-01-23 | C20: 1197 | D20: 1275 | E20: 0 | F20: 14043 | G20: 10007 | H20: 15805 | I20: 0 | J20: 1054 | K20: 7832 | L20: 7320 | M20: 0 | N20: 0 | O20: 7439 | P20: 16349 | Q20: 4850 | R20: 13000 | S20: 2315 | T20: 2294 | U20: 1293 | V20: 1362 | W20: 6008 | X20: 25098 | Y20: 0 | Z20: 0 | AA20: 0 | AB20: 2850 | AC20: 59673 | AD20: 11163 | AE20: 0 | AF20: 8531 | AG20: 0 | AH20: 0 | AI20: 0 | AJ20: 11 | AK20: 0 | AL20: 6604 | AM20: 8491 | AN20: 0 | AO20: 0 | AP20: 0 | AQ20: 0
A21: 2018-01-24 | B21: 2018-01-30 | C21: 1197 | D21: 1275 | E21: 0 | F21: 14043 | G21: 10007 | H21: 15805 | I21: 0 | J21: 1054 | K21: 7832 | L21: 7320 | M21: 0 | N21: 0 | O21: 7439 | P21: 16349 | Q21: 4850 | R21: 13000 | S21: 2315 | T21: 2294 | U21: 1293 | V21: 1362 | W21: 6008 | X21: 25098 | Y21: 0 | Z21: 0 | AA21: 0 | AB21: 2850 | AC21: 59673 | AD21: 11163 | AE21: 0 | AF21: 8531 | AG21: 0 | AH21: 0 | AI21: 0 | AJ21: 11 | AK21: 0 | AL21: 6604 | AM21: 8491 | AN21: 0 | AO21: 0 | AP21: 0 | AQ21: 0
A22: 2018-01-31 | B22: 2018-02-06 | C22: 1197 | D22: 1275 | E22: 0 | F22: 14043 | G22: 10007 | H22: 15805 | I22: 0 | J22: 1054 | K22: 7832 | L22: 7320 | M22: 0 | N22: 0 | O22: 7439 | P22: 16349 | Q22: 4850 | R22: 13000 | S22: 2315 | T22: 2294 | U22: 1293 | V22: 1362 | W22: 6008 | X22: 25098 | Y22: 0 | Z22: 0 | AA22: 0 | AB22: 2850 | AC22: 59673 | AD22: 11163 | AE22: 0 | AF22: 8531 | AG22: 0 | AH22: 0 | AI22: 0 | AJ22: 11 | AK22: 0 | AL22: 6604 | AM22: 8491 | AN22: 0 | AO22: 0 | AP22: 0 | AQ22: 0
A23: 2018-02-07 | B23: 2018-02-13 | C23: 1197 | D23: 1275 | E23: 0 | F23: 14043 | G23: 10007 | H23: 15805 | I23: 0 | J23: 1054 | K23: 7832 | L23: 7320 | M23: 0 | N23: 0 | O23: 7439 | P23: 16349 | Q23: 4850 | R23: 13000 | S23: 2315 | T23: 2294 | U23: 1293 | V23: 1362 | W23: 6008 | X23: 25098 | Y23: 0 | Z23: 0 | AA23: 0 | AB23: 2850 | AC23: 59673 | AD23: 11163 | AE23: 0 | AF23: 8531 | AG23: 0 | AH23: 0 | AI23: 0 | AJ23: 11 | AK23: 0 | AL23: 6604 | AM23: 8491 | AN23: 0 | AO23: 0 | AP23: 0 | AQ23: 0
A24: 2018-02-14 | B24: 2018-02-20 | C24: 1197 | D24: 1275 | E24: 0 | F24: 14043 | G24: 10007 | H24: 15805 | I24: 0 | J24: 1054 | K24: 7832 | L24: 4846 | M24: 0 | N24: 0 | O24: 7439 | P24: 16349 | Q24: 4850 | R24: 13000 | S24: 2315 | T24: 2294 | U24: 1293 | V24: 1362 | W24: 6008 | X24: 25098 | Y24: 0 | Z24: 0 | AA24: 0 | AB24: 2850 | AC24: 59673 | AD24: 11163 | AE24: 0 | AF24: 8531 | AG24: 0 | AH24: 0 | AI24: 0 | AJ24: 11 | AK24: 0 | AL24: 6604 | AM24: 8491 | AN24: 0 | AO24: 0 | AP24: 0 | AQ24: 0
A25: 2018-02-21 | B25: 2018-02-27 | C25: 1197 | D25: 1275 | E25: 0 | F25: 14043 | G25: 10007 | H25: 15805 | I25: 0 | J25: 1054 | K25: 7832 | L25: 4846 | M25: 0 | N25: 0 | O25: 7439 | P25: 16349 | Q25: 4850 | R25: 13000 | S25: 2315 | T25: 2294 | U25: 1293 | V25: 1362 | W25: 6008 | X25: 25098 | Y25: 0 | Z25: 0 | AA25: 0 | AB25: 2850 | AC25: 59673 | AD25: 11163 | AE25: 0 | AF25: 8531 | AG25: 0 | AH25: 0 | AI25: 0 | AJ25: 11 | AK25: 0 | AL25: 6604 | AM25: 8491 | AN25: 0 | AO25: 0 | AP25: 0 | AQ25: 0
A26: 2018-02-28 | B26: 2018-03-06 | C26: 1197 | D26: 1275 | E26: 0 | F26: 14043 | G26: 10007 | H26: 15805 | I26: 0 | J26: 1054 | K26: 7832 | L26: 4846 | M26: 0 | N26: 0 | O26: 7439 | P26: 16349 | Q26: 4150 | R26: 13000 | S26: 2315 | T26: 2294 | U26: 1293 | V26: 1362 | W26: 6008 | X26: 25098 | Y26: 0 | Z26: 0 | AA26: 0 | AB26: 2850 | AC26: 59673 | AD26: 11163 | AE26: 0 | AF26: 8531 | AG26: 0 | AH26: 0 | AI26: 0 | AJ26: 11 | AK26: 0 | AL26: 6604 | AM26: 8491 | AN26: 0 | AO26: 0 | AP26: 0 | AQ26: 0
A27: 2018-03-07 | B27: 2018-03-13 | C27: 1197 | D27: 1275 | E27: 0 | F27: 14043 | G27: 10007 | H27: 15805 | I27: 0 | J27: 1054 | K27: 7832 | L27: 4846 | M27: 0 | N27: 0 | O27: 7439 | P27: 16349 | Q27: 3160 | R27: 13000 | S27: 2315 | T27: 2294 | U27: 1293 | V27: 1362 | W27: 6008 | X27: 25098 | Y27: 0 | Z27: 0 | AA27: 0 | AB27: 2850 | AC27: 59673 | AD27: 11163 | AE27: 0 | AF27: 8531 | AG27: 0 | AH27: 0 | AI27: 0 | AJ27: 11 | AK27: 0 | AL27: 6604 | AM27: 8491 | AN27: 0 | AO27: 0 | AP27: 0 | AQ27: 0
A28: 2018-03-14 | B28: 2018-03-20 | C28: 1197 | D28: 1275 | E28: 0 | F28: 14043 | G28: 10007 | H28: 15805 | I28: 0 | J28: 1054 | K28: 7832 | L28: 7320 | M28: 0 | N28: 0 | O28: 7439 | P28: 16349 | Q28: 4850 | R28: 13000 | S28: 2315 | T28: 2294 | U28: 1293 | V28: 1362 | W28: 6008 | X28: 25098 | Y28: 0 | Z28: 0 | AA28: 0 | AB28: 2850 | AC28: 59673 | AD28: 11163 | AE28: 0 | AF28: 8531 | AG28: 0 | AH28: 0 | AI28: 0 | AJ28: 11 | AK28: 0 | AL28: 6604 | AM28: 8491 | AN28: 0 | AO28: 0 | AP28: 0 | AQ28: 0
A29: 2018-03-21 | B29: 2018-03-27 | C29: 1197 | D29: 1275 | E29: 0 | F29: 14043 | G29: 10007 | H29: 15805 | I29: 0 | J29: 1054 | K29: 7832 | L29: 7320 | M29: 0 | N29: 0 | O29: 7439 | P29: 16349 | Q29: 4850 | R29: 13000 | S29: 2315 | T29: 2294 | U29: 1293 | V29: 1362 | W29: 6008 | X29: 25098 | Y29: 0 | Z29: 0 | AA29: 0 | AB29: 2850 | AC29: 59673 | AD29: 11163 | AE29: 0 | AF29: 8531 | AG29: 0 | AH29: 0 | AI29: 0 | AJ29: 11 | AK29: 0 | AL29: 6604 | AM29: 8491 | AN29: 0 | AO29: 0 | AP29: 0 | AQ29: 0
A30: 2018-03-28 | B30: 2018-04-03 | C30: 1197 | D30: 1275 | E30: 0 | F30: 14043 | G30: 10007 | H30: 15805 | I30: 0 | J30: 1054 | K30: 7832 | L30: 7320 | M30: 0 | N30: 0 | O30: 7439 | P30: 16349 | Q30: 4850 | R30: 13000 | S30: 2315 | T30: 2294 | U30: 1293 | V30: 1362 | W30: 6008 | X30: 25098 | Y30: 0 | Z30: 0 | AA30: 0 | AB30: 2850 | AC30: 59673 | AD30: 11163 | AE30: 0 | AF30: 8531 | AG30: 0 | AH30: 0 | AI30: 0 | AJ30: 11 | AK30: 0 | AL30: 6604 | AM30: 8491 | AN30: 0 | AO30: 0 | AP30: 0 | AQ30: 0
A31: 2018-04-04 | B31: 2018-04-10 | C31: 1197 | D31: 1275 | E31: 0 | F31: 14043 | G31: 10007 | H31: 15805 | I31: 0 | J31: 1054 | K31: 7832 | L31: 7320 | M31: 0 | N31: 0 | O31: 7439 | P31: 16349 | Q31: 4850 | R31: 13000 | S31: 2315 | T31: 2294 | U31: 1293 | V31: 1362 | W31: 6008 | X31: 25098 | Y31: 0 | Z31: 0 | AA31: 0 | AB31: 2850 | AC31: 59673 | AD31: 11163 | AE31: 0 | AF31: 8531 | AG31: 0 | AH31: 0 | AI31: 0 | AJ31: 11 | AK31: 0 | AL31: 6604 | AM31: 8491 | AN31: 0 | AO31: 0 | AP31: 0 | AQ31: 0
A32: 2018-04-11 | B32: 2018-04-17 | C32: 1197 | D32: 1275 | E32: 0 | F32: 14043 | G32: 10007 | H32: 15805 | I32: 0 | J32: 1054 | K32: 7832 | L32: 7320 | M32: 0 | N32: 0 | O32: 7439 | P32: 16349 | Q32: 4850 | R32: 13000 | S32: 2315 | T32: 2294 | U32: 1293 | V32: 1362 | W32: 6008 | X32: 25098 | Y32: 0 | Z32: 0 | AA32: 0 | AB32: 2850 | AC32: 59673 | AD32: 11163 | AE32: 0 | AF32: 8531 | AG32: 0 | AH32: 0 | AI32: 0 | AJ32: 11 | AK32: 0 | AL32: 6604 | AM32: 8491 | AN32: 0 | AO32: 0 | AP32: 0 | AQ32: 0
A33: 2018-04-18 | B33: 2018-04-24 | C33: 1197 | D33: 1275 | E33: 0 | F33: 14043 | G33: 10007 | H33: 15805 | I33: 0 | J33: 1054 | K33: 7832 | L33: 7320 | M33: 0 | N33: 0 | O33: 7439 | P33: 16349 | Q33: 4850 | R33: 13000 | S33: 2315 | T33: 2294 | U33: 1293 | V33: 1362 | W33: 6008 | X33: 25098 | Y33: 0 | Z33: 0 | AA33: 0 | AB33: 2850 | AC33: 59673 | AD33: 11163 | AE33: 0 | AF33: 8531 | AG33: 0 | AH33: 0 | AI33: 0 | AJ33: 11 | AK33: 0 | AL33: 6604 | AM33: 8491 | AN33: 0 | AO33: 0 | AP33: 0 | AQ33: 0
A34: 2018-04-25 | B34: 2018-05-01 | C34: 1197 | D34: 1275 | E34: 0 | F34: 14043 | G34: 10007 | H34: 15805 | I34: 0 | J34: 1054 | K34: 7832 | L34: 7320 | M34: 0 | N34: 0 | O34: 7439 | P34: 16349 | Q34: 4850 | R34: 13000 | S34: 2315 | T34: 2294 | U34: 1293 | V34: 1362 | W34: 6011 | X34: 25098 | Y34: 0 | Z34: 0 | AA34: 0 | AB34: 2850 | AC34: 59673 | AD34: 11163 | AE34: 0 | AF34: 8531 | AG34: 0 | AH34: 0 | AI34: 0 | AJ34: 11 | AK34: 0 | AL34: 6604 | AM34: 8491 | AN34: 0 | AO34: 0 | AP34: 0 | AQ34: 0
A35: 2018-05-02 | B35: 2018-05-08 | C35: 1197 | D35: 1275 | E35: 0 | F35: 14043 | G35: 10007 | H35: 15805 | I35: 0 | J35: 1054 | K35: 7832 | L35: 7320 | M35: 0 | N35: 0 | O35: 7439 | P35: 16349 | Q35: 4850 | R35: 13000 | S35: 2315 | T35: 2294 | U35: 1293 | V35: 1362 | W35: 6011 | X35: 25098 | Y35: 0 | Z35: 0 | AA35: 0 | AB35: 2850 | AC35: 59673 | AD35: 11163 | AE35: 0 | AF35: 8531 | AG35: 0 | AH35: 0 | AI35: 0 | AJ35: 11 | AK35: 0 | AL35: 6604 | AM35: 8491 | AN35: 0 | AO35: 0 | AP35: 0 | AQ35: 0
A36: 2018-05-09 | B36: 2018-05-15 | C36: 1197 | D36: 1275 | E36: 0 | F36: 14043 | G36: 7999 | H36: 15805 | I36: 0 | J36: 1054 | K36: 7832 | L36: 7320 | M36: 0 | N36: 0 | O36: 7439 | P36: 16349 | Q36: 4850 | R36: 13000 | S36: 2315 | T36: 2294 | U36: 1293 | V36: 1362 | W36: 6011 | X36: 25098 | Y36: 0 | Z36: 0 | AA36: 0 | AB36: 2850 | AC36: 59673 | AD36: 11163 | AE36: 0 | AF36: 8531 | AG36: 0 | AH36: 0 | AI36: 0 | AJ36: 11 | AK36: 0 | AL36: 6604 | AM36: 7925 | AN36: 0 | AO36: 0 | AP36: 0 | AQ36: 0
A37: 2018-05-16 | B37: 2018-05-22 | C37: 1197 | D37: 1275 | E37: 0 | F37: 14043 | G37: 7999 | H37: 15805 | I37: 0 | J37: 1054 | K37: 7832 | L37: 7320 | M37: 0 | N37: 0 | O37: 7439 | P37: 16349 | Q37: 4850 | R37: 13000 | S37: 2315 | T37: 2294 | U37: 1293 | V37: 1362 | W37: 6011 | X37: 25098 | Y37: 0 | Z37: 0 | AA37: 0 | AB37: 2850 | AC37: 53273 | AD37: 11163 | AE37: 0 | AF37: 8531 | AG37: 0 | AH37: 0 | AI37: 0 | AJ37: 11 | AK37: 0 | AL37: 6604 | AM37: 7925 | AN37: 0 | AO37: 0 | AP37: 0 | AQ37: 0
A38: 2018-05-23 | B38: 2018-05-29 | C38: 1197 | D38: 1275 | E38: 0 | F38: 14043 | G38: 7999 | H38: 15805 | I38: 0 | J38: 1054 | K38: 7832 | L38: 7320 | M38: 0 | N38: 0 | O38: 7439 | P38: 16349 | Q38: 4850 | R38: 13000 | S38: 2315 | T38: 2294 | U38: 1293 | V38: 1362 | W38: 6011 | X38: 25098 | Y38: 0 | Z38: 0 | AA38: 0 | AB38: 2850 | AC38: 53273 | AD38: 11163 | AE38: 0 | AF38: 8531 | AG38: 0 | AH38: 0 | AI38: 0 | AJ38: 11 | AK38: 0 | AL38: 6597 | AM38: 7925 | AN38: 0 | AO38: 0 | AP38: 0 | AQ38: 0
A39: 2018-05-30 | B39: 2018-06-05 | C39: 1197 | D39: 1275 | E39: 0 | F39: 14043 | G39: 7999 | H39: 15805 | I39: 0 | J39: 1054 | K39: 7832 | L39: 7320 | M39: 0 | N39: 0 | O39: 7439 | P39: 16349 | Q39: 4850 | R39: 13000 | S39: 2315 | T39: 2294 | U39: 1293 | V39: 1362 | W39: 6011 | X39: 25098 | Y39: 0 | Z39: 0 | AA39: 0 | AB39: 2850 | AC39: 53273 | AD39: 11163 | AE39: 0 | AF39: 8531 | AG39: 0 | AH39: 0 | AI39: 0 | AJ39: 11 | AK39: 0 | AL39: 6597 | AM39: 7925 | AN39: 0 | AO39: 0 | AP39: 0 | AQ39: 0
A40: 2018-06-06 | B40: 2018-06-12 | C40: 1197 | D40: 5328 | E40: 0 | F40: 14043 | G40: 7999 | H40: 15805 | I40: 0 | J40: 1054 | K40: 7832 | L40: 7320 | M40: 0 | N40: 0 | O40: 7439 | P40: 16349 | Q40: 4850 | R40: 13000 | S40: 2315 | T40: 2294 | U40: 1293 | V40: 1362 | W40: 6011 | X40: 25098 | Y40: 0 | Z40: 0 | AA40: 0 | AB40: 2850 | AC40: 53273 | AD40: 11163 | AE40: 0 | AF40: 8531 | AG40: 0 | AH40: 0 | AI40: 0 | AJ40: 11 | AK40: 0 | AL40: 6597 | AM40: 7925 | AN40: 0 | AO40: 0 | AP40: 0 | AQ40: 0
A41: 2018-06-13 | B41: 2018-06-19 | C41: 1197 | D41: 5328 | E41: 0 | F41: 14043 | G41: 7999 | H41: 15805 | I41: 0 | J41: 1054 | K41: 7832 | L41: 7320 | M41: 0 | N41: 0 | O41: 7439 | P41: 16349 | Q41: 4850 | R41: 13000 | S41: 2315 | T41: 2294 | U41: 1293 | V41: 1362 | W41: 6011 | X41: 25098 | Y41: 0 | Z41: 0 | AA41: 0 | AB41: 530 | AC41: 53273 | AD41: 11163 | AE41: 0 | AF41: 11054 | AG41: 0 | AH41: 0 | AI41: 0 | AJ41: 11 | AK41: 0 | AL41: 6597 | AM41: 7925 | AN41: 0 | AO41: 0 | AP41: 0 | AQ41: 0
A42: 2018-06-20 | B42: 2018-06-26 | C42: 1197 | D42: 5328 | E42: 0 | F42: 14043 | G42: 7999 | H42: 15805 | I42: 0 | J42: 1054 | K42: 7832 | L42: 7320 | M42: 0 | N42: 0 | O42: 7439 | P42: 16349 | Q42: 4850 | R42: 13000 | S42: 2315 | T42: 2294 | U42: 1293 | V42: 1362 | W42: 6011 | X42: 25098 | Y42: 0 | Z42: 0 | AA42: 0 | AB42: 1140 | AC42: 53273 | AD42: 11163 | AE42: 0 | AF42: 11054 | AG42: 0 | AH42: 0 | AI42: 0 | AJ42: 532 | AK42: 0 | AL42: 6597 | AM42: 7925 | AN42: 0 | AO42: 0 | AP42: 2900 | AQ42: 0
A43: 2018-06-27 | B43: 2018-07-03 | C43: 1197 | D43: 5328 | E43: 0 | F43: 14043 | G43: 7999 | H43: 15805 | I43: 0 | J43: 1054 | K43: 7832 | L43: 7320 | M43: 451 | N43: 0 | O43: 7439 | P43: 16349 | Q43: 4850 | R43: 13000 | S43: 2315 | T43: 2294 | U43: 1293 | V43: 1362 | W43: 6011 | X43: 25098 | Y43: 0 | Z43: 0 | AA43: 0 | AB43: 1710 | AC43: 53273 | AD43: 11163 | AE43: 0 | AF43: 11054 | AG43: 0 | AH43: 0 | AI43: 0 | AJ43: 532 | AK43: 0 | AL43: 6597 | AM43: 7925 | AN43: 0 | AO43: 0 | AP43: 2900 | AQ43: 0
A44: 2018-07-04 | B44: 2018-07-10 | C44: 1197 | D44: 5328 | E44: 0 | F44: 14043 | G44: 7999 | H44: 15805 | I44: 0 | J44: 1054 | K44: 7832 | L44: 7320 | M44: 451 | N44: 0 | O44: 7439 | P44: 16349 | Q44: 4850 | R44: 13000 | S44: 2315 | T44: 2334 | U44: 1293 | V44: 1362 | W44: 6011 | X44: 25098 | Y44: 0 | Z44: 0 | AA44: 0 | AB44: 2280 | AC44: 53273 | AD44: 11163 | AE44: 0 | AF44: 11054 | AG44: 0 | AH44: 0 | AI44: 0 | AJ44: 532 | AK44: 0 | AL44: 6597 | AM44: 7925 | AN44: 0 | AO44: 0 | AP44: 2900 | AQ44: 0
A45: 2018-07-11 | B45: 2018-07-17 | C45: 1197 | D45: 5328 | E45: 0 | F45: 14043 | G45: 7999 | H45: 15805 | I45: 0 | J45: 1054 | K45: 7832 | L45: 7320 | M45: 451 | N45: 0 | O45: 7439 | P45: 16349 | Q45: 4850 | R45: 13000 | S45: 2719 | T45: 2334 | U45: 1293 | V45: 1362 | W45: 6011 | X45: 25098 | Y45: 0 | Z45: 0 | AA45: 0 | AB45: 2850 | AC45: 53273 | AD45: 7580 | AE45: 0 | AF45: 11054 | AG45: 0 | AH45: 0 | AI45: 0 | AJ45: 532 | AK45: 0 | AL45: 6597 | AM45: 7925 | AN45: 0 | AO45: 0 | AP45: 2900 | AQ45: 0
A46: 2018-07-18 | B46: 2018-07-24 | C46: 1197 | D46: 1275 | E46: 0 | F46: 14043 | G46: 7999 | H46: 15805 | I46: 0 | J46: 1054 | K46: 7832 | L46: 7320 | M46: 451 | N46: 0 | O46: 7439 | P46: 16349 | Q46: 4850 | R46: 13000 | S46: 2719 | T46: 2294 | U46: 1293 | V46: 1362 | W46: 6011 | X46: 25098 | Y46: 0 | Z46: 0 | AA46: 0 | AB46: 2850 | AC46: 53273 | AD46: 7580 | AE46: 0 | AF46: 11054 | AG46: 0 | AH46: 0 | AI46: 0 | AJ46: 532 | AK46: 0 | AL46: 6597 | AM46: 7925 | AN46: 0 | AO46: 0 | AP46: 2900 | AQ46: 0
A47: 2018-07-25 | B47: 2018-07-31 | C47: 1197 | D47: 5328 | E47: 0 | F47: 14043 | G47: 7999 | H47: 15805 | I47: 0 | J47: 1054 | K47: 7832 | L47: 7320 | M47: 451 | N47: 0 | O47: 7439 | P47: 16349 | Q47: 4850 | R47: 13000 | S47: 2719 | T47: 2294 | U47: 1293 | V47: 1362 | W47: 6008 | X47: 25098 | Y47: 0 | Z47: 0 | AA47: 0 | AB47: 2850 | AC47: 53273 | AD47: 7580 | AE47: 0 | AF47: 11054 | AG47: 0 | AH47: 0 | AI47: 0 | AJ47: 532 | AK47: 0 | AL47: 6597 | AM47: 7925 | AN47: 0 | AO47: 0 | AP47: 2900 | AQ47: 0
A48: 2018-08-01 | B48: 2018-08-07 | C48: 1197 | D48: 5328 | E48: 0 | F48: 14043 | G48: 7999 | H48: 15805 | I48: 0 | J48: 1054 | K48: 7832 | L48: 7320 | M48: 451 | N48: 0 | O48: 7439 | P48: 16349 | Q48: 4850 | R48: 13000 | S48: 2719 | T48: 2294 | U48: 1293 | V48: 1362 | W48: 6008 | X48: 25098 | Y48: 0 | Z48: 0 | AA48: 0 | AB48: 2850 | AC48: 53273 | AD48: 7580 | AE48: 0 | AF48: 10961 | AG48: 0 | AH48: 0 | AI48: 0 | AJ48: 532 | AK48: 0 | AL48: 6597 | AM48: 7925 | AN48: 0 | AO48: 0 | AP48: 2900 | AQ48: 0
A49: 2018-08-08 | B49: 2018-08-14 | C49: 1197 | D49: 5328 | E49: 0 | F49: 14043 | G49: 7999 | H49: 15805 | I49: 0 | J49: 1054 | K49: 7832 | L49: 7320 | M49: 451 | N49: 0 | O49: 7439 | P49: 16349 | Q49: 4850 | R49: 13000 | S49: 2719 | T49: 2294 | U49: 1293 | V49: 1362 | W49: 6008 | X49: 25098 | Y49: 0 | Z49: 0 | AA49: 0 | AB49: 2850 | AC49: 53273 | AD49: 7580 | AE49: 0 | AF49: 10961 | AG49: 0 | AH49: 0 | AI49: 0 | AJ49: 532 | AK49: 0 | AL49: 6597 | AM49: 7925 | AN49: 0 | AO49: 0 | AP49: 2900 | AQ49: 0
A50: 2018-08-15 | B50: 2018-08-21 | C50: 1197 | D50: 5328 | E50: 0 | F50: 14043 | G50: 7999 | H50: 15805 | I50: 0 | J50: 1054 | K50: 7832 | L50: 7320 | M50: 451 | N50: 0 | O50: 7439 | P50: 16349 | Q50: 4850 | R50: 13000 | S50: 2719 | T50: 2294 | U50: 1293 | V50: 1362 | W50: 6008 | X50: 25098 | Y50: 0 | Z50: 0 | AA50: 0 | AB50: 2850 | AC50: 53273 | AD50: 7580 | AE50: 0 | AF50: 10961 | AG50: 0 | AH50: 0 | AI50: 0 | AJ50: 532 | AK50: 0 | AL50: 6597 | AM50: 7925 | AN50: 0 | AO50: 0 | AP50: 2900 | AQ50: 0
A51: 2018-08-22 | B51: 2018-08-28 | C51: 1197 | D51: 5328 | E51: 0 | F51: 14043 | G51: 7999 | H51: 15805 | I51: 0 | J51: 1054 | K51: 7832 | L51: 7320 | M51: 451 | N51: 0 | O51: 7439 | P51: 16349 | Q51: 4850 | R51: 13000 | S51: 2719 | T51: 2294 | U51: 1293 | V51: 1362 | W51: 6008 | X51: 25098 | Y51: 0 | Z51: 0 | AA51: 0 | AB51: 2850 | AC51: 53273 | AD51: 11163 | AE51: 0 | AF51: 10961 | AG51: 0 | AH51: 0 | AI51: 0 | AJ51: 532 | AK51: 0 | AL51: 6597 | AM51: 7925 | AN51: 0 | AO51: 0 | AP51: 2900 | AQ51: 0
A52: 2018-08-29 | B52: 2018-09-04 | C52: 1197 | D52: 5328 | E52: 0 | F52: 14043 | G52: 7999 | H52: 15805 | I52: 0 | J52: 1054 | K52: 7832 | L52: 7320 | M52: 451 | N52: 0 | O52: 7439 | P52: 16349 | Q52: 4850 | R52: 13000 | S52: 2719 | T52: 2294 | U52: 1293 | V52: 1362 | W52: 6008 | X52: 25098 | Y52: 0 | Z52: 0 | AA52: 0 | AB52: 2850 | AC52: 53273 | AD52: 11163 | AE52: 0 | AF52: 10961 | AG52: 0 | AH52: 0 | AI52: 0 | AJ52: 532 | AK52: 0 | AL52: 6597 | AM52: 7925 | AN52: 0 | AO52: 0 | AP52: 2900 | AQ52: 0
A53: 2018-09-05 | B53: 2018-09-11 | C53: 1197 | D53: 5328 | E53: 0 | F53: 14043 | G53: 7999 | H53: 15805 | I53: 0 | J53: 1054 | K53: 7832 | L53: 7320 | M53: 451 | N53: 0 | O53: 7439 | P53: 16349 | Q53: 4850 | R53: 13000 | S53: 2719 | T53: 2294 | U53: 1293 | V53: 1362 | W53: 6008 | X53: 25098 | Y53: 0 | Z53: 0 | AA53: 0 | AB53: 2850 | AC53: 53273 | AD53: 11163 | AE53: 0 | AF53: 10961 | AG53: 0 | AH53: 0 | AI53: 0 | AJ53: 532 | AK53: 0 | AL53: 6597 | AM53: 7925 | AN53: 0 | AO53: 0 | AP53: 2900 | AQ53: 0
A54: 2018-09-12 | B54: 2018-09-18 | C54: 1197 | D54: 5328 | E54: 0 | F54: 14043 | G54: 7999 | H54: 15805 | I54: 0 | J54: 1054 | K54: 7832 | L54: 7320 | M54: 451 | N54: 0 | O54: 7439 | P54: 16349 | Q54: 4850 | R54: 13000 | S54: 2719 | T54: 2294 | U54: 1293 | V54: 1362 | W54: 6008 | X54: 25098 | Y54: 0 | Z54: 0 | AA54: 0 | AB54: 2850 | AC54: 53273 | AD54: 11163 | AE54: 0 | AF54: 10961 | AG54: 0 | AH54: 0 | AI54: 0 | AJ54: 532 | AK54: 0 | AL54: 6597 | AM54: 7925 | AN54: 0 | AO54: 0 | AP54: 2900 | AQ54: 0
A55: 2018-09-19 | B55: 2018-09-25 | C55: 1197 | D55: 5328 | E55: 0 | F55: 14043 | G55: 7999 | H55: 15805 | I55: 0 | J55: 1054 | K55: 7832 | L55: 7320 | M55: 451 | N55: 0 | O55: 7439 | P55: 16349 | Q55: 4850 | R55: 13000 | S55: 2719 | T55: 2294 | U55: 1293 | V55: 1362 | W55: 6008 | X55: 25098 | Y55: 0 | Z55: 0 | AA55: 0 | AB55: 2850 | AC55: 53273 | AD55: 11163 | AE55: 0 | AF55: 10961 | AG55: 0 | AH55: 0 | AI55: 0 | AJ55: 532 | AK55: 0 | AL55: 6597 | AM55: 7925 | AN55: 0 | AO55: 0 | AP55: 2900 | AQ55: 0
A56: 2018-09-26 | B56: 2018-10-02 | C56: 1197 | D56: 5328 | E56: 0 | F56: 14043 | G56: 7999 | H56: 15805 | I56: 0 | J56: 1054 | K56: 7832 | L56: 7320 | M56: 451 | N56: 0 | O56: 7439 | P56: 16349 | Q56: 4850 | R56: 13000 | S56: 2719 | T56: 2294 | U56: 1293 | V56: 1362 | W56: 6008 | X56: 25098 | Y56: 0 | Z56: 0 | AA56: 0 | AB56: 2850 | AC56: 53273 | AD56: 11163 | AE56: 0 | AF56: 10961 | AG56: 0 | AH56: 0 | AI56: 0 | AJ56: 532 | AK56: 0 | AL56: 6597 | AM56: 7925 | AN56: 0 | AO56: 0 | AP56: 2900 | AQ56: 0
A57: 2018-10-03 | B57: 2018-10-09 | C57: 1197 | D57: 5328 | E57: 0 | F57: 14043 | G57: 7999 | H57: 15805 | I57: 0 | J57: 1054 | K57: 7832 | L57: 7320 | M57: 451 | N57: 0 | O57: 7439 | P57: 16349 | Q57: 4850 | R57: 13000 | S57: 2719 | T57: 2294 | U57: 1293 | V57: 1362 | W57: 6008 | X57: 25098 | Y57: 0 | Z57: 0 | AA57: 0 | AB57: 2850 | AC57: 53273 | AD57: 11163 | AE57: 0 | AF57: 10961 | AG57: 0 | AH57: 0 | AI57: 0 | AJ57: 532 | AK57: 0 | AL57: 6597 | AM57: 7925 | AN57: 0 | AO57: 0 | AP57: 2900 | AQ57: 0
A58: 2018-10-10 | B58: 2018-10-16 | C58: 1197 | D58: 5328 | E58: 0 | F58: 14043 | G58: 7999 | H58: 15805 | I58: 0 | J58: 1054 | K58: 7832 | L58: 7320 | M58: 451 | N58: 0 | O58: 7439 | P58: 16349 | Q58: 4850 | R58: 13000 | S58: 2719 | T58: 2294 | U58: 1293 | V58: 1362 | W58: 6008 | X58: 25098 | Y58: 0 | Z58: 0 | AA58: 0 | AB58: 2850 | AC58: 53273 | AD58: 11163 | AE58: 0 | AF58: 10961 | AG58: 0 | AH58: 0 | AI58: 0 | AJ58: 532 | AK58: 0 | AL58: 6597 | AM58: 7925 | AN58: 0 | AO58: 0 | AP58: 2900 | AQ58: 0
A59: 2018-10-17 | B59: 2018-10-23 | C59: 1197 | D59: 5328 | E59: 0 | F59: 14043 | G59: 7999 | H59: 15805 | I59: 0 | J59: 1054 | K59: 7832 | L59: 7320 | M59: 451 | N59: 0 | O59: 7439 | P59: 16349 | Q59: 4850 | R59: 13000 | S59: 2719 | T59: 2294 | U59: 1293 | V59: 1362 | W59: 6008 | X59: 25098 | Y59: 0 | Z59: 0 | AA59: 0 | AB59: 2850 | AC59: 53273 | AD59: 11163 | AE59: 0 | AF59: 10961 | AG59: 0 | AH59: 0 | AI59: 0 | AJ59: 532 | AK59: 0 | AL59: 6597 | AM59: 7925 | AN59: 0 | AO59: 0 | AP59: 2900 | AQ59: 0
A60: 2018-10-24 | B60: 2018-10-30 | C60: 1197 | D60: 5328 | E60: 0 | F60: 14043 | G60: 7999 | H60: 15805 | I60: 0 | J60: 1054 | K60: 7832 | L60: 7320 | M60: 451 | N60: 0 | O60: 7439 | P60: 16349 | Q60: 4850 | R60: 13000 | S60: 2719 | T60: 2294 | U60: 1293 | V60: 1362 | W60: 6008 | X60: 25098 | Y60: 0 | Z60: 0 | AA60: 0 | AB60: 2850 | AC60: 53273 | AD60: 11163 | AE60: 0 | AF60: 10961 | AG60: 0 | AH60: 0 | AI60: 0 | AJ60: 532 | AK60: 0 | AL60: 6597 | AM60: 7925 | AN60: 0 | AO60: 0 | AP60: 2900 | AQ60: 0

Sheet input ไม้ยืนต้น
A1: ปี พ.ศ. | B1: ='input ข้าว'!B1 -> 2560 | D1: ฤดูแล้ง | E1: =RIGHT(B1,2)&"/"&RIGHT(B1+1,2) -> 60/61 | F1: ฤดูฝน | G1: =RIGHT(B1+1,2) -> 61
A2: โครงการชลประทาน | C2: ='input ข้าว'!C2 -> พลเทพ | D2: ='input ข้าว'!D2 -> ทุ่งวัดสิงห์ | E2: ='input ข้าว'!E2 -> ท่าโบสถ์ | F2: ='input ข้าว'!F2 -> สามชุก | G2: ='input ข้าว'!G2 -> ดอนเจดีย์ | H2: ='input ข้าว'!H2 -> โพธิ์พระยา | I2: ='input ข้าว'!I2 -> ชลประทานสุพรรณบุรี | J2: ='input ข้าว'!J2 -> บรมธาตุ | K2: ='input ข้าว'!K2 -> ชัณสูตร | L2: ='input ข้าว'!L2 -> ยางมณี | M2: ='input ข้าว'!M2 -> ผักไห่ | N2: ='input ข้าว'!N2 -> บางบาล | O2: ='input ข้าว'!O2 -> เจ้าเจ็ดบางยี่หน | P2: ='input ข้าว'!P2 -> พระยาบรรลือ | Q2: ='input ข้าว'!Q2 -> พระพิมล | R2: ='input ข้าว'!R2 -> ภาษีเจริญ | S2: ='input ข้าว'!S2 -> มโนรมย์ | T2: ='input ข้าว'!T2 -> ช่องแค | U2: ='input ข้าว'!U2 -> โคกกะเทียม | V2: ='input ข้าว'!V2 -> เริงราง | W2: ='input ข้าว'!W2 -> มหาราช | X2: ='input ข้าว'!X2 -> ป่าสักใต้ | Y2: ='input ข้าว'!Y2 -> นครหลวง | Z2: ='input ข้าว'!Z2 -> ชลประทานลพบุรี | AA2: ='input ข้าว'!AA2 -> คลองเพรียว-เสาไห้ | AB2: ='input ข้าว'!AB2 -> เขื่อนป่าสักชลสิทธิ์ | AC2: ='input ข้าว'!AC2 -> รังสิตเหนือ | AD2: ='input ข้าว'!AD2 -> รังสิตใต้ | AE2: ='input ข้าว'!AE2 -> ชลหารพิจิตร | AF2: ='input ข้าว'!AF2 -> พระองค์ไชยานุชิต | AG2: ='input ข้าว'!AG2 -> เขื่อนนเรศวร | AH2: ='input ข้าว'!AH2 -> เขื่อนแควน้อย | AI2: ='input ข้าว'!AI2 -> ยมน่าน | AJ2: ='input ข้าว'!AJ2 -> พลายชุมพล | AK2: ='input ข้าว'!AK2 -> ดงเศรษฐี | AL2: ='input ข้าว'!AL2 -> ท่าบัว | AM2: ='input ข้าว'!AM2 -> ท่อทองแดง | AN2: ='input ข้าว'!AN2 -> ชลประทานกำแพงเพชร | AO2: ='input ข้าว'!AO2 -> ชลประทานนครสวรรค์ | AP2: ='input ข้าว'!AP2 -> ชลประทานตาก | AQ2: ='input ข้าว'!AQ2 -> ชลประทานอุตรดิตถ์
A3: จังหวัด | C3: ='input ข้าว'!C3 -> ชัยนาท | D3: ='input ข้าว'!D3 -> ชัยนาท | E3: ='input ข้าว'!E3 -> ชัยนาท | F3: ='input ข้าว'!F3 -> สุพรรณบุรี | G3: ='input ข้าว'!G3 -> สุพรรณบุรี | H3: ='input ข้าว'!H3 -> สุพรรณบุรี | I3: ='input ข้าว'!I3 -> สุพรรณบุรี | J3: ='input ข้าว'!J3 -> ชัยนาท | K3: ='input ข้าว'!K3 -> สิงห์บุรี | L3: ='input ข้าว'!L3 -> อ่างทอง | M3: ='input ข้าว'!M3 -> พระนครศรีอยุธยา | N3: ='input ข้าว'!N3 -> พระนครศรีอยุธยา | O3: ='input ข้าว'!O3 -> พระนครศรีอยุธยา | P3: ='input ข้าว'!P3 -> นนทบุรี | Q3: ='input ข้าว'!Q3 -> นครปฐม | R3: ='input ข้าว'!R3 -> สมุทรสาคร | S3: ='input ข้าว'!S3 -> ชัยนาท | T3: ='input ข้าว'!T3 -> ชัยนาท | U3: ='input ข้าว'!U3 -> ลพบุรี | V3: ='input ข้าว'!V3 -> สระบุรี | W3: ='input ข้าว'!W3 -> สิงห์บุรี | X3: ='input ข้าว'!X3 -> พระนครศรีอยุธยา | Y3: ='input ข้าว'!Y3 -> พระนครศรีอยุธยา | Z3: ='input ข้าว'!Z3 -> ลพบุรี | AA3: ='input ข้าว'!AA3 -> สระบุรี | AB3: ='input ข้าว'!AB3 -> สระบุรี | AC3: ='input ข้าว'!AC3 -> พระนครศรีอยุธยา | AD3: ='input ข้าว'!AD3 -> พระนครศรีอยุธยา | AE3: ='input ข้าว'!AE3 -> สมุทรปราการ | AF3: ='input ข้าว'!AF3 -> ฉะเชิงเทรา | AG3: ='input ข้าว'!AG3 -> พิษณุโลก | AH3: ='input ข้าว'!AH3 -> พิษณุโลก | AI3: ='input ข้าว'!AI3 -> พิษณุโลก | AJ3: ='input ข้าว'!AJ3 -> พิษณุโลก | AK3: ='input ข้าว'!AK3 -> พิจิตร | AL3: ='input ข้าว'!AL3 -> พิจิตร | AM3: ='input ข้าว'!AM3 -> กำแพงเพชร | AN3: ='input ข้าว'!AN3 -> กำแพงเพชร | AO3: ='input ข้าว'!AO3 -> นครสวรรค์ | AP3: ='input ข้าว'!AP3 -> ตาก | AQ3: ='input ข้าว'!AQ3 -> อุตรดิตถ์
A4: รั่วซึม มม./สัปดาห์ | C4: ='input ข้าว'!C4 -> 7 | D4: ='input ข้าว'!D4 -> 7 | E4: ='input ข้าว'!E4 -> 7 | F4: ='input ข้าว'!F4 -> 7 | G4: ='input ข้าว'!G4 -> 7 | H4: ='input ข้าว'!H4 -> 7 | I4: ='input ข้าว'!I4 -> 7 | J4: ='input ข้าว'!J4 -> 7 | K4: ='input ข้าว'!K4 -> 7 | L4: ='input ข้าว'!L4 -> 7 | M4: ='input ข้าว'!M4 -> 7 | N4: ='input ข้าว'!N4 -> 7 | O4: ='input ข้าว'!O4 -> 7 | P4: ='input ข้าว'!P4 -> 7 | Q4: ='input ข้าว'!Q4 -> 7 | R4: ='input ข้าว'!R4 -> 7 | S4: ='input ข้าว'!S4 -> 7 | T4: ='input ข้าว'!T4 -> 7 | U4: ='input ข้าว'!U4 -> 7 | V4: ='input ข้าว'!V4 -> 7 | W4: ='input ข้าว'!W4 -> 7 | X4: ='input ข้าว'!X4 -> 7 | Y4: ='input ข้าว'!Y4 -> 7 | Z4: ='input ข้าว'!Z4 -> 7 | AA4: ='input ข้าว'!AA4 -> 7 | AB4: ='input ข้าว'!AB4 -> 7 | AC4: ='input ข้าว'!AC4 -> 7 | AD4: ='input ข้าว'!AD4 -> 7 | AE4: ='input ข้าว'!AE4 -> 7 | AF4: ='input ข้าว'!AF4 -> 7 | AG4: ='input ข้าว'!AG4 -> 7 | AH4: ='input ข้าว'!AH4 -> 7 | AI4: ='input ข้าว'!AI4 -> 7 | AJ4: ='input ข้าว'!AJ4 -> 7 | AK4: ='input ข้าว'!AK4 -> 7 | AL4: ='input ข้าว'!AL4 -> 7 | AM4: ='input ข้าว'!AM4 -> 7 | AN4: ='input ข้าว'!AN4 -> 7 | AO4: ='input ข้าว'!AO4 -> 7 | AP4: ='input ข้าว'!AP4 -> 7 | AQ4: ='input ข้าว'!AQ4 -> 7
A5: น้ำเตรียมแปลง มม./สัปดาห์ | C5: 30 | D5: 30 | E5: 30 | F5: 30 | G5: 30 | H5: 30 | I5: 30 | J5: 30 | K5: 30 | L5: 30 | M5: 30 | N5: 30 | O5: 30 | P5: 30 | Q5: 30 | R5: 30 | S5: 30 | T5: 30 | U5: 30 | V5: 30 | W5: 30 | X5: 30 | Y5: 30 | Z5: 30 | AA5: 30 | AB5: 30 | AC5: 30 | AD5: 30 | AE5: 30 | AF5: 30 | AG5: 30 | AH5: 30 | AI5: 30 | AJ5: 30 | AK5: 30 | AL5: 30 | AM5: 30 | AN5: 30 | AO5: 30 | AP5: 31 | AQ5: 32
A6: ประสิทธิ์ภาพโครงการ (%) | C6: ='input ข้าว'!C7 -> 90 | D6: ='input ข้าว'!D7 -> 90 | E6: ='input ข้าว'!E7 -> 90 | F6: ='input ข้าว'!F7 -> 90 | G6: ='input ข้าว'!G7 -> 90 | H6: ='input ข้าว'!H7 -> 90 | I6: ='input ข้าว'!I7 -> 90 | J6: ='input ข้าว'!J7 -> 90 | K6: ='input ข้าว'!K7 -> 90 | L6: ='input ข้าว'!L7 -> 90 | M6: ='input ข้าว'!M7 -> 90 | N6: ='input ข้าว'!N7 -> 77 | O6: ='input ข้าว'!O7 -> 77 | P6: ='input ข้าว'!P7 -> 77 | Q6: ='input ข้าว'!Q7 -> 77 | R6: ='input ข้าว'!R7 -> 77 | S6: ='input ข้าว'!S7 -> 85 | T6: ='input ข้าว'!T7 -> 85 | U6: ='input ข้าว'!U7 -> 85 | V6: ='input ข้าว'!V7 -> 85 | W6: ='input ข้าว'!W7 -> 85 | X6: ='input ข้าว'!X7 -> 85 | Y6: ='input ข้าว'!Y7 -> 85 | Z6: ='input ข้าว'!Z7 -> 85 | AA6: ='input ข้าว'!AA7 -> 100 | AB6: ='input ข้าว'!AB7 -> 100 | AC6: ='input ข้าว'!AC7 -> 100 | AD6: ='input ข้าว'!AD7 -> 100 | AE6: ='input ข้าว'!AE7 -> 100 | AF6: ='input ข้าว'!AF7 -> 100 | AG6: ='input ข้าว'!AG7 -> 77 | AH6: ='input ข้าว'!AH7 -> 77 | AI6: ='input ข้าว'!AI7 -> 77 | AJ6: ='input ข้าว'!AJ7 -> 77 | AK6: ='input ข้าว'!AK7 -> 77 | AL6: ='input ข้าว'!AL7 -> 77 | AM6: ='input ข้าว'!AM7 -> 65 | AN6: ='input ข้าว'!AN7 -> 65 | AO6: ='input ข้าว'!AO7 -> 85 | AP6: ='input ข้าว'!AP7 -> 85 | AQ6: ='input ข้าว'!AQ7 -> 85
A7: ชนิดไม้ยืนต้น | C7: มะม่วง | D7: มะม่วง | E7: มะม่วง | F7: มะม่วง | G7: มะม่วง | H7: มะม่วง | I7: มะม่วง | J7: มะม่วง | K7: มะม่วง | L7: มะม่วง | M7: มะม่วง | N7: มะม่วง | O7: มะม่วง | P7: มะม่วง | Q7: มะม่วง | R7: มะม่วง | S7: มะม่วง | T7: มะม่วง | U7: มะม่วง | V7: มะม่วง | W7: มะม่วง | X7: มะม่วง | Y7: มะม่วง | Z7: มะม่วง | AA7: มะม่วง | AB7: มะม่วง | AC7: มะม่วง | AD7: มะม่วง | AE7: มะม่วง | AF7: มะม่วง | AG7: มะม่วง | AH7: มะม่วง | AI7: มะม่วง | AJ7: มะม่วง | AK7: มะม่วง | AL7: มะม่วง | AM7: มะม่วง | AN7: มะม่วง | AO7: มะม่วง | AP7: มะม่วง | AQ7: มะม่วง
A8: วัน | C8: ไม้ยืนต้น (ไร่ พื้นที่สะสมรายสัปดาห์)
A9: =+'input ข้าว'!A22 -> 2017-11-01 | B9: =+A9+6 -> 2017-11-07 | C9: 0 | D9: 0 | E9: 4208 | F9: 3458 | G9: 0 | H9: 0 | I9: 0 | J9: 0 | K9: 0 | L9: 0 | M9: 0 | N9: 0 | O9: 107 | P9: 3118 | Q9: 0 | R9: 0 | S9: 7 | T9: 120 | U9: 0 | V9: 100 | W9: 0 | X9: 0 | Y9: 0 | Z9: 0 | AA9: 0 | AB9: 4151 | AC9: 20009 | AD9: 0 | AE9: 0 | AF9: 0 | AG9: 0 | AH9: 0 | AI9: 0 | AJ9: 14 | AK9: 0 | AL9: 115 | AM9: 0 | AN9: 0 | AO9: 0 | AP9: 3719 | AQ9: 0
A10: =+A9+7 -> 2017-11-08 | B10: 2017-11-14 | C10: 0 | D10: 0 | E10: 4208 | F10: 3458 | G10: 0 | H10: 0 | I10: 0 | J10: 0 | K10: 0 | L10: 0 | M10: 0 | N10: 0 | O10: 107 | P10: 3118 | Q10: 0 | R10: 0 | S10: 7 | T10: 120 | U10: 0 | V10: 100 | W10: 0 | X10: 0 | Y10: 0 | Z10: 0 | AA10: 0 | AB10: 4151 | AC10: 20509 | AD10: 0 | AE10: 0 | AF10: 0 | AG10: 0 | AH10: 0 | AI10: 0 | AJ10: 14 | AK10: 0 | AL10: 115 | AM10: 0 | AN10: 0 | AO10: 0 | AP10: 3719 | AQ10: 0
A11: =+A10+7 -> 2017-11-15 | B11: 2017-11-21 | C11: 0 | D11: 0 | E11: 4208 | F11: 3458 | G11: 0 | H11: 0 | I11: 0 | J11: 0 | K11: 0 | L11: 0 | M11: 0 | N11: 0 | O11: 107 | P11: 3118 | Q11: 0 | R11: 0 | S11: 7 | T11: 120 | U11: 0 | V11: 100 | W11: 0 | X11: 0 | Y11: 0 | Z11: 0 | AA11: 0 | AB11: 4151 | AC11: 20509 | AD11: 0 | AE11: 0 | AF11: 0 | AG11: 0 | AH11: 0 | AI11: 0 | AJ11: 14 | AK11: 0 | AL11: 115 | AM11: 0 | AN11: 0 | AO11: 0 | AP11: 3719 | AQ11: 0
A12: 2017-11-22 | B12: 2017-11-28 | C12: 0 | D12: 0 | E12: 4208 | F12: 3458 | G12: 0 | H12: 0 | I12: 0 | J12: 0 | K12: 0 | L12: 0 | M12: 0 | N12: 0 | O12: 107 | P12: 3118 | Q12: 0 | R12: 0 | S12: 7 | T12: 120 | U12: 0 | V12: 100 | W12: 0 | X12: 0 | Y12: 0 | Z12: 0 | AA12: 0 | AB12: 4151 | AC12: 20509 | AD12: 0 | AE12: 0 | AF12: 0 | AG12: 0 | AH12: 0 | AI12: 0 | AJ12: 14 | AK12: 0 | AL12: 115 | AM12: 0 | AN12: 0 | AO12: 0 | AP12: 3719 | AQ12: 0
A13: 2017-11-29 | B13: 2017-12-05 | C13: 0 | D13: 0 | E13: 4208 | F13: 3458 | G13: 0 | H13: 0 | I13: 0 | J13: 0 | K13: 0 | L13: 0 | M13: 0 | N13: 0 | O13: 107 | P13: 3118 | Q13: 0 | R13: 0 | S13: 7 | T13: 120 | U13: 0 | V13: 100 | W13: 0 | X13: 0 | Y13: 0 | Z13: 0 | AA13: 0 | AB13: 4151 | AC13: 20509 | AD13: 0 | AE13: 0 | AF13: 0 | AG13: 0 | AH13: 0 | AI13: 0 | AJ13: 14 | AK13: 0 | AL13: 38 | AM13: 0 | AN13: 0 | AO13: 0 | AP13: 3719 | AQ13: 0
A14: 2017-12-06 | B14: 2017-12-12 | C14: 0 | D14: 0 | E14: 4208 | F14: 3458 | G14: 0 | H14: 0 | I14: 0 | J14: 0 | K14: 0 | L14: 0 | M14: 0 | N14: 0 | O14: 107 | P14: 3118 | Q14: 0 | R14: 0 | S14: 7 | T14: 120 | U14: 0 | V14: 100 | W14: 0 | X14: 0 | Y14: 0 | Z14: 0 | AA14: 0 | AB14: 4151 | AC14: 20509 | AD14: 0 | AE14: 0 | AF14: 0 | AG14: 0 | AH14: 0 | AI14: 0 | AJ14: 14 | AK14: 0 | AL14: 63 | AM14: 0 | AN14: 0 | AO14: 0 | AP14: 3719 | AQ14: 0
A15: 2017-12-13 | B15: 2017-12-19 | C15: 0 | D15: 0 | E15: 4208 | F15: 3458 | G15: 0 | H15: 0 | I15: 0 | J15: 0 | K15: 0 | L15: 0 | M15: 0 | N15: 0 | O15: 107 | P15: 3118 | Q15: 0 | R15: 0 | S15: 7 | T15: 120 | U15: 0 | V15: 100 | W15: 0 | X15: 0 | Y15: 0 | Z15: 0 | AA15: 0 | AB15: 4151 | AC15: 20509 | AD15: 0 | AE15: 0 | AF15: 0 | AG15: 0 | AH15: 0 | AI15: 0 | AJ15: 14 | AK15: 0 | AL15: 63 | AM15: 0 | AN15: 0 | AO15: 0 | AP15: 3719 | AQ15: 0
A16: 2017-12-20 | B16: 2017-12-26 | C16: 0 | D16: 0 | E16: 4208 | F16: 3458 | G16: 0 | H16: 0 | I16: 0 | J16: 0 | K16: 0 | L16: 0 | M16: 0 | N16: 0 | O16: 107 | P16: 3118 | Q16: 0 | R16: 0 | S16: 7 | T16: 120 | U16: 0 | V16: 100 | W16: 0 | X16: 0 | Y16: 0 | Z16: 0 | AA16: 0 | AB16: 4151 | AC16: 20509 | AD16: 0 | AE16: 0 | AF16: 0 | AG16: 0 | AH16: 0 | AI16: 0 | AJ16: 14 | AK16: 0 | AL16: 140 | AM16: 0 | AN16: 0 | AO16: 0 | AP16: 3719 | AQ16: 0
A17: 2017-12-27 | B17: 2018-01-02 | C17: 0 | D17: 0 | E17: 4208 | F17: 3458 | G17: 0 | H17: 0 | I17: 0 | J17: 0 | K17: 0 | L17: 0 | M17: 0 | N17: 0 | O17: 107 | P17: 3118 | Q17: 0 | R17: 0 | S17: 7 | T17: 120 | U17: 0 | V17: 100 | W17: 0 | X17: 0 | Y17: 0 | Z17: 0 | AA17: 0 | AB17: 4151 | AC17: 20509 | AD17: 0 | AE17: 0 | AF17: 0 | AG17: 0 | AH17: 0 | AI17: 0 | AJ17: 14 | AK17: 0 | AL17: 140 | AM17: 0 | AN17: 0 | AO17: 0 | AP17: 3719 | AQ17: 0
A18: 2018-01-03 | B18: 2018-01-09 | C18: 0 | D18: 0 | E18: 4208 | F18: 3458 | G18: 0 | H18: 0 | I18: 0 | J18: 0 | K18: 0 | L18: 0 | M18: 0 | N18: 0 | O18: 107 | P18: 5625 | Q18: 0 | R18: 0 | S18: 7 | T18: 120 | U18: 0 | V18: 100 | W18: 0 | X18: 0 | Y18: 0 | Z18: 0 | AA18: 0 | AB18: 4151 | AC18: 20509 | AD18: 0 | AE18: 0 | AF18: 0 | AG18: 0 | AH18: 0 | AI18: 0 | AJ18: 14 | AK18: 0 | AL18: 140 | AM18: 0 | AN18: 0 | AO18: 0 | AP18: 3719 | AQ18: 0
A19: 2018-01-10 | B19: 2018-01-16 | C19: 0 | D19: 0 | E19: 4208 | F19: 3061 | G19: 0 | H19: 0 | I19: 0 | J19: 0 | K19: 0 | L19: 0 | M19: 0 | N19: 0 | O19: 107 | P19: 5625 | Q19: 0 | R19: 0 | S19: 7 | T19: 120 | U19: 0 | V19: 100 | W19: 0 | X19: 0 | Y19: 0 | Z19: 0 | AA19: 0 | AB19: 4151 | AC19: 20509 | AD19: 0 | AE19: 0 | AF19: 0 | AG19: 0 | AH19: 0 | AI19: 0 | AJ19: 538 | AK19: 0 | AL19: 140 | AM19: 0 | AN19: 0 | AO19: 0 | AP19: 3719 | AQ19: 0
A20: 2018-01-17 | B20: 2018-01-23 | C20: 0 | D20: 0 | E20: 4208 | F20: 3061 | G20: 0 | H20: 0 | I20: 0 | J20: 0 | K20: 0 | L20: 0 | M20: 0 | N20: 0 | O20: 107 | P20: 5625 | Q20: 0 | R20: 0 | S20: 7 | T20: 120 | U20: 0 | V20: 100 | W20: 0 | X20: 0 | Y20: 0 | Z20: 0 | AA20: 0 | AB20: 4151 | AC20: 20509 | AD20: 0 | AE20: 0 | AF20: 0 | AG20: 0 | AH20: 0 | AI20: 0 | AJ20: 538 | AK20: 0 | AL20: 140 | AM20: 0 | AN20: 6007 | AO20: 0 | AP20: 3719 | AQ20: 0
A21: 2018-01-24 | B21: 2018-01-30 | C21: 0 | D21: 0 | E21: 4208 | F21: 3061 | G21: 0 | H21: 0 | I21: 0 | J21: 0 | K21: 0 | L21: 0 | M21: 0 | N21: 0 | O21: 107 | P21: 5625 | Q21: 0 | R21: 0 | S21: 7 | T21: 120 | U21: 0 | V21: 100 | W21: 0 | X21: 0 | Y21: 0 | Z21: 0 | AA21: 0 | AB21: 4151 | AC21: 20509 | AD21: 0 | AE21: 0 | AF21: 0 | AG21: 0 | AH21: 0 | AI21: 0 | AJ21: 538 | AK21: 0 | AL21: 140 | AM21: 0 | AN21: 6007 | AO21: 0 | AP21: 3719 | AQ21: 0
A22: 2018-01-31 | B22: 2018-02-06 | C22: 0 | D22: 0 | E22: 4208 | F22: 3061 | G22: 0 | H22: 0 | I22: 0 | J22: 0 | K22: 0 | L22: 0 | M22: 0 | N22: 0 | O22: 107 | P22: 5625 | Q22: 0 | R22: 0 | S22: 7 | T22: 120 | U22: 0 | V22: 100 | W22: 0 | X22: 0 | Y22: 0 | Z22: 0 | AA22: 0 | AB22: 4151 | AC22: 20509 | AD22: 0 | AE22: 0 | AF22: 0 | AG22: 0 | AH22: 0 | AI22: 0 | AJ22: 538 | AK22: 0 | AL22: 140 | AM22: 0 | AN22: 6007 | AO22: 0 | AP22: 3719 | AQ22: 0
A23: 2018-02-07 | B23: 2018-02-13 | C23: 0 | D23: 0 | E23: 4208 | F23: 3061 | G23: 0 | H23: 0 | I23: 0 | J23: 0 | K23: 0 | L23: 0 | M23: 0 | N23: 0 | O23: 107 | P23: 5625 | Q23: 0 | R23: 0 | S23: 7 | T23: 120 | U23: 0 | V23: 100 | W23: 0 | X23: 0 | Y23: 0 | Z23: 0 | AA23: 0 | AB23: 4151 | AC23: 20509 | AD23: 0 | AE23: 0 | AF23: 0 | AG23: 0 | AH23: 0 | AI23: 0 | AJ23: 538 | AK23: 0 | AL23: 140 | AM23: 0 | AN23: 6007 | AO23: 0 | AP23: 3719 | AQ23: 0
A24: 2018-02-14 | B24: 2018-02-20 | C24: 0 | D24: 0 | E24: 4208 | F24: 3061 | G24: 0 | H24: 0 | I24: 0 | J24: 0 | K24: 0 | L24: 0 | M24: 0 | N24: 0 | O24: 107 | P24: 5625 | Q24: 0 | R24: 0 | S24: 7 | T24: 120 | U24: 0 | V24: 100 | W24: 0 | X24: 0 | Y24: 0 | Z24: 0 | AA24: 0 | AB24: 4125 | AC24: 20509 | AD24: 0 | AE24: 0 | AF24: 0 | AG24: 0 | AH24: 0 | AI24: 0 | AJ24: 538 | AK24: 0 | AL24: 140 | AM24: 0 | AN24: 6007 | AO24: 0 | AP24: 3719 | AQ24: 0
A25: 2018-02-21 | B25: 2018-02-27 | C25: 0 | D25: 0 | E25: 4208 | F25: 3061 | G25: 0 | H25: 0 | I25: 0 | J25: 0 | K25: 0 | L25: 0 | M25: 0 | N25: 0 | O25: 107 | P25: 5625 | Q25: 0 | R25: 0 | S25: 7 | T25: 120 | U25: 0 | V25: 100 | W25: 0 | X25: 0 | Y25: 0 | Z25: 0 | AA25: 0 | AB25: 4125 | AC25: 20509 | AD25: 0 | AE25: 0 | AF25: 0 | AG25: 0 | AH25: 0 | AI25: 0 | AJ25: 538 | AK25: 0 | AL25: 140 | AM25: 0 | AN25: 6007 | AO25: 0 | AP25: 3719 | AQ25: 0
A26: 2018-02-28 | B26: 2018-03-06 | C26: 0 | D26: 0 | E26: 4208 | F26: 3061 | G26: 0 | H26: 0 | I26: 0 | J26: 0 | K26: 0 | L26: 0 | M26: 0 | N26: 0 | O26: 107 | P26: 5625 | Q26: 0 | R26: 0 | S26: 7 | T26: 120 | U26: 0 | V26: 100 | W26: 0 | X26: 0 | Y26: 0 | Z26: 0 | AA26: 0 | AB26: 4125 | AC26: 20509 | AD26: 0 | AE26: 0 | AF26: 0 | AG26: 0 | AH26: 0 | AI26: 0 | AJ26: 538 | AK26: 0 | AL26: 140 | AM26: 0 | AN26: 6007 | AO26: 0 | AP26: 3719 | AQ26: 0
A27: 2018-03-07 | B27: 2018-03-13 | C27: 0 | D27: 0 | E27: 4208 | F27: 3061 | G27: 0 | H27: 0 | I27: 0 | J27: 0 | K27: 0 | L27: 0 | M27: 0 | N27: 0 | O27: 107 | P27: 5625 | Q27: 0 | R27: 0 | S27: 7 | T27: 120 | U27: 0 | V27: 100 | W27: 0 | X27: 0 | Y27: 0 | Z27: 0 | AA27: 0 | AB27: 4125 | AC27: 20509 | AD27: 0 | AE27: 0 | AF27: 0 | AG27: 0 | AH27: 0 | AI27: 0 | AJ27: 538 | AK27: 0 | AL27: 140 | AM27: 0 | AN27: 6007 | AO27: 0 | AP27: 3719 | AQ27: 0
A28: 2018-03-14 | B28: 2018-03-20 | C28: 0 | D28: 0 | E28: 4208 | F28: 3061 | G28: 0 | H28: 0 | I28: 0 | J28: 0 | K28: 0 | L28: 0 | M28: 0 | N28: 0 | O28: 107 | P28: 5625 | Q28: 0 | R28: 0 | S28: 7 | T28: 120 | U28: 0 | V28: 100 | W28: 0 | X28: 0 | Y28: 0 | Z28: 0 | AA28: 0 | AB28: 4125 | AC28: 20509 | AD28: 0 | AE28: 0 | AF28: 0 | AG28: 0 | AH28: 0 | AI28: 0 | AJ28: 538 | AK28: 0 | AL28: 140 | AM28: 0 | AN28: 6007 | AO28: 0 | AP28: 3719 | AQ28: 0
A29: 2018-03-21 | B29: 2018-03-27 | C29: 0 | D29: 0 | E29: 4208 | F29: 3061 | G29: 0 | H29: 0 | I29: 0 | J29: 0 | K29: 0 | L29: 0 | M29: 0 | N29: 0 | O29: 107 | P29: 5625 | Q29: 0 | R29: 0 | S29: 64 | T29: 120 | U29: 0 | V29: 100 | W29: 0 | X29: 0 | Y29: 0 | Z29: 0 | AA29: 0 | AB29: 4125 | AC29: 20509 | AD29: 0 | AE29: 0 | AF29: 0 | AG29: 0 | AH29: 0 | AI29: 0 | AJ29: 538 | AK29: 0 | AL29: 140 | AM29: 0 | AN29: 6007 | AO29: 0 | AP29: 3719 | AQ29: 0
A30: 2018-03-28 | B30: 2018-04-03 | C30: 0 | D30: 0 | E30: 4208 | F30: 3061 | G30: 0 | H30: 0 | I30: 0 | J30: 0 | K30: 0 | L30: 0 | M30: 0 | N30: 0 | O30: 107 | P30: 5625 | Q30: 0 | R30: 0 | S30: 64 | T30: 120 | U30: 0 | V30: 100 | W30: 0 | X30: 0 | Y30: 0 | Z30: 0 | AA30: 0 | AB30: 4125 | AC30: 20509 | AD30: 0 | AE30: 0 | AF30: 0 | AG30: 0 | AH30: 0 | AI30: 0 | AJ30: 538 | AK30: 0 | AL30: 140 | AM30: 0 | AN30: 6007 | AO30: 0 | AP30: 3719 | AQ30: 0
A31: 2018-04-04 | B31: 2018-04-10 | C31: 0 | D31: 0 | E31: 4208 | F31: 3061 | G31: 0 | H31: 0 | I31: 0 | J31: 0 | K31: 0 | L31: 0 | M31: 0 | N31: 0 | O31: 107 | P31: 5625 | Q31: 0 | R31: 0 | S31: 64 | T31: 120 | U31: 0 | V31: 100 | W31: 0 | X31: 0 | Y31: 0 | Z31: 0 | AA31: 0 | AB31: 4125 | AC31: 20509 | AD31: 0 | AE31: 0 | AF31: 0 | AG31: 0 | AH31: 0 | AI31: 0 | AJ31: 538 | AK31: 0 | AL31: 140 | AM31: 0 | AN31: 6007 | AO31: 0 | AP31: 3719 | AQ31: 0
A32: 2018-04-11 | B32: 2018-04-17 | C32: 0 | D32: 0 | E32: 4208 | F32: 3061 | G32: 0 | H32: 0 | I32: 0 | J32: 0 | K32: 0 | L32: 0 | M32: 0 | N32: 0 | O32: 107 | P32: 5625 | Q32: 0 | R32: 0 | S32: 64 | T32: 120 | U32: 0 | V32: 100 | W32: 0 | X32: 0 | Y32: 0 | Z32: 0 | AA32: 0 | AB32: 4125 | AC32: 20509 | AD32: 0 | AE32: 0 | AF32: 0 | AG32: 0 | AH32: 0 | AI32: 0 | AJ32: 538 | AK32: 0 | AL32: 140 | AM32: 0 | AN32: 6007 | AO32: 0 | AP32: 3719 | AQ32: 0
A33: 2018-04-18 | B33: 2018-04-24 | C33: 0 | D33: 0 | E33: 4208 | F33: 3061 | G33: 0 | H33: 0 | I33: 0 | J33: 0 | K33: 0 | L33: 0 | M33: 0 | N33: 0 | O33: 107 | P33: 5625 | Q33: 0 | R33: 0 | S33: 64 | T33: 120 | U33: 0 | V33: 100 | W33: 0 | X33: 0 | Y33: 0 | Z33: 0 | AA33: 0 | AB33: 4125 | AC33: 20509 | AD33: 0 | AE33: 0 | AF33: 0 | AG33: 0 | AH33: 0 | AI33: 0 | AJ33: 538 | AK33: 0 | AL33: 140 | AM33: 0 | AN33: 6007 | AO33: 0 | AP33: 3719 | AQ33: 0
A34: 2018-04-25 | B34: 2018-05-01 | C34: 0 | D34: 0 | E34: 4208 | F34: 3061 | G34: 0 | H34: 0 | I34: 0 | J34: 0 | K34: 0 | L34: 0 | M34: 0 | N34: 0 | O34: 107 | P34: 5625 | Q34: 0 | R34: 0 | S34: 64 | T34: 120 | U34: 0 | V34: 100 | W34: 0 | X34: 0 | Y34: 0 | Z34: 0 | AA34: 0 | AB34: 4125 | AC34: 20509 | AD34: 0 | AE34: 0 | AF34: 0 | AG34: 0 | AH34: 0 | AI34: 0 | AJ34: 538 | AK34: 0 | AL34: 140 | AM34: 0 | AN34: 6007 | AO34: 0 | AP34: 3719 | AQ34: 0
A35: 2018-05-02 | B35: 2018-05-08 | C35: 0 | D35: 0 | E35: 4208 | F35: 3061 | G35: 0 | H35: 0 | I35: 0 | J35: 0 | K35: 0 | L35: 0 | M35: 0 | N35: 0 | O35: 107 | P35: 5625 | Q35: 0 | R35: 0 | S35: 64 | T35: 120 | U35: 0 | V35: 100 | W35: 0 | X35: 0 | Y35: 0 | Z35: 0 | AA35: 0 | AB35: 4125 | AC35: 20509 | AD35: 0 | AE35: 0 | AF35: 0 | AG35: 0 | AH35: 0 | AI35: 0 | AJ35: 538 | AK35: 0 | AL35: 140 | AM35: 0 | AN35: 6007 | AO35: 0 | AP35: 3719 | AQ35: 0
A36: 2018-05-09 | B36: 2018-05-15 | C36: 0 | D36: 0 | E36: 4208 | F36: 3061 | G36: 0 | H36: 0 | I36: 0 | J36: 0 | K36: 0 | L36: 0 | M36: 0 | N36: 0 | O36: 107 | P36: 5625 | Q36: 0 | R36: 0 | S36: 64 | T36: 120 | U36: 0 | V36: 100 | W36: 0 | X36: 0 | Y36: 0 | Z36: 0 | AA36: 0 | AB36: 4125 | AC36: 20509 | AD36: 0 | AE36: 0 | AF36: 0 | AG36: 0 | AH36: 0 | AI36: 0 | AJ36: 538 | AK36: 0 | AL36: 140 | AM36: 0 | AN36: 6007 | AO36: 0 | AP36: 3719 | AQ36: 0
A37: 2018-05-16 | B37: 2018-05-22 | C37: 0 | D37: 0 | E37: 4208 | F37: 3061 | G37: 0 | H37: 0 | I37: 0 | J37: 0 | K37: 0 | L37: 0 | M37: 0 | N37: 0 | O37: 107 | P37: 5625 | Q37: 0 | R37: 0 | S37: 64 | T37: 120 | U37: 0 | V37: 100 | W37: 0 | X37: 0 | Y37: 0 | Z37: 0 | AA37: 0 | AB37: 4125 | AC37: 20509 | AD37: 0 | AE37: 0 | AF37: 0 | AG37: 0 | AH37: 0 | AI37: 0 | AJ37: 538 | AK37: 0 | AL37: 140 | AM37: 0 | AN37: 6007 | AO37: 0 | AP37: 3719 | AQ37: 0
A38: 2018-05-23 | B38: 2018-05-29 | C38: 0 | D38: 0 | E38: 4208 | F38: 3061 | G38: 0 | H38: 0 | I38: 0 | J38: 0 | K38: 0 | L38: 0 | M38: 0 | N38: 0 | O38: 107 | P38: 5625 | Q38: 0 | R38: 0 | S38: 64 | T38: 120 | U38: 0 | V38: 100 | W38: 0 | X38: 0 | Y38: 0 | Z38: 0 | AA38: 0 | AB38: 4125 | AC38: 20509 | AD38: 0 | AE38: 0 | AF38: 0 | AG38: 0 | AH38: 0 | AI38: 0 | AJ38: 538 | AK38: 0 | AL38: 140 | AM38: 0 | AN38: 6007 | AO38: 0 | AP38: 3719 | AQ38: 0
A39: 2018-05-30 | B39: 2018-06-05 | C39: 0 | D39: 0 | E39: 4208 | F39: 3061 | G39: 0 | H39: 0 | I39: 0 | J39: 0 | K39: 0 | L39: 0 | M39: 0 | N39: 0 | O39: 107 | P39: 5625 | Q39: 0 | R39: 0 | S39: 64 | T39: 120 | U39: 0 | V39: 100 | W39: 0 | X39: 0 | Y39: 0 | Z39: 0 | AA39: 0 | AB39: 4125 | AC39: 20509 | AD39: 0 | AE39: 0 | AF39: 0 | AG39: 0 | AH39: 0 | AI39: 0 | AJ39: 538 | AK39: 0 | AL39: 140 | AM39: 0 | AN39: 6007 | AO39: 0 | AP39: 3719 | AQ39: 0
A40: 2018-06-06 | B40: 2018-06-12 | C40: 0 | D40: 0 | E40: 4208 | F40: 3061 | G40: 0 | H40: 0 | I40: 0 | J40: 0 | K40: 0 | L40: 0 | M40: 0 | N40: 0 | O40: 107 | P40: 5625 | Q40: 0 | R40: 0 | S40: 64 | T40: 120 | U40: 0 | V40: 100 | W40: 0 | X40: 0 | Y40: 0 | Z40: 0 | AA40: 0 | AB40: 4125 | AC40: 20509 | AD40: 0 | AE40: 0 | AF40: 0 | AG40: 0 | AH40: 0 | AI40: 0 | AJ40: 538 | AK40: 0 | AL40: 140 | AM40: 0 | AN40: 6007 | AO40: 0 | AP40: 3719 | AQ40: 0
A41: 2018-06-13 | B41: 2018-06-19 | C41: 0 | D41: 0 | E41: 4208 | F41: 3061 | G41: 0 | H41: 0 | I41: 0 | J41: 0 | K41: 0 | L41: 0 | M41: 0 | N41: 0 | O41: 107 | P41: 5625 | Q41: 0 | R41: 0 | S41: 64 | T41: 120 | U41: 0 | V41: 100 | W41: 0 | X41: 0 | Y41: 0 | Z41: 0 | AA41: 0 | AB41: 738 | AC41: 19009 | AD41: 0 | AE41: 0 | AF41: 8181 | AG41: 0 | AH41: 0 | AI41: 0 | AJ41: 538 | AK41: 0 | AL41: 140 | AM41: 0 | AN41: 6007 | AO41: 0 | AP41: 3719 | AQ41: 0
A42: 2018-06-20 | B42: 2018-06-26 | C42: 0 | D42: 0 | E42: 4208 | F42: 3061 | G42: 0 | H42: 0 | I42: 0 | J42: 0 | K42: 0 | L42: 0 | M42: 0 | N42: 0 | O42: 107 | P42: 5625 | Q42: 0 | R42: 0 | S42: 64 | T42: 120 | U42: 0 | V42: 100 | W42: 0 | X42: 0 | Y42: 0 | Z42: 0 | AA42: 0 | AB42: 1476 | AC42: 19009 | AD42: 0 | AE42: 0 | AF42: 8181 | AG42: 0 | AH42: 0 | AI42: 0 | AJ42: 14 | AK42: 0 | AL42: 140 | AM42: 0 | AN42: 6007 | AO42: 0 | AP42: 3719 | AQ42: 0
A43: 2018-06-27 | B43: 2018-07-03 | C43: 0 | D43: 0 | E43: 4208 | F43: 3061 | G43: 0 | H43: 0 | I43: 0 | J43: 0 | K43: 0 | L43: 0 | M43: 0 | N43: 0 | O43: 107 | P43: 5625 | Q43: 0 | R43: 0 | S43: 64 | T43: 120 | U43: 0 | V43: 100 | W43: 0 | X43: 0 | Y43: 0 | Z43: 0 | AA43: 0 | AB43: 2213 | AC43: 19009 | AD43: 0 | AE43: 0 | AF43: 8181 | AG43: 0 | AH43: 0 | AI43: 0 | AJ43: 14 | AK43: 0 | AL43: 140 | AM43: 0 | AN43: 6007 | AO43: 0 | AP43: 3719 | AQ43: 0
A44: 2018-07-04 | B44: 2018-07-10 | C44: 0 | D44: 0 | E44: 4208 | F44: 3061 | G44: 0 | H44: 0 | I44: 0 | J44: 0 | K44: 0 | L44: 0 | M44: 0 | N44: 0 | O44: 107 | P44: 5625 | Q44: 0 | R44: 0 | S44: 64 | T44: 120 | U44: 0 | V44: 100 | W44: 0 | X44: 0 | Y44: 0 | Z44: 0 | AA44: 0 | AB44: 2951 | AC44: 19009 | AD44: 0 | AE44: 0 | AF44: 8181 | AG44: 0 | AH44: 0 | AI44: 0 | AJ44: 14 | AK44: 0 | AL44: 140 | AM44: 0 | AN44: 6007 | AO44: 0 | AP44: 3719 | AQ44: 0
A45: 2018-07-11 | B45: 2018-07-17 | C45: 0 | D45: 0 | E45: 4208 | F45: 3061 | G45: 0 | H45: 0 | I45: 0 | J45: 0 | K45: 0 | L45: 0 | M45: 0 | N45: 0 | O45: 107 | P45: 5625 | Q45: 0 | R45: 0 | S45: 7 | T45: 120 | U45: 0 | V45: 100 | W45: 0 | X45: 0 | Y45: 0 | Z45: 0 | AA45: 0 | AB45: 3689 | AC45: 19009 | AD45: 0 | AE45: 0 | AF45: 8181 | AG45: 0 | AH45: 0 | AI45: 0 | AJ45: 14 | AK45: 0 | AL45: 140 | AM45: 0 | AN45: 6007 | AO45: 0 | AP45: 3719 | AQ45: 0
A46: 2018-07-18 | B46: 2018-07-24 | C46: 0 | D46: 0 | E46: 4208 | F46: 3061 | G46: 0 | H46: 0 | I46: 0 | J46: 0 | K46: 0 | L46: 0 | M46: 0 | N46: 0 | O46: 107 | P46: 5625 | Q46: 0 | R46: 0 | S46: 7 | T46: 120 | U46: 0 | V46: 100 | W46: 0 | X46: 0 | Y46: 0 | Z46: 0 | AA46: 0 | AB46: 4151 | AC46: 19009 | AD46: 0 | AE46: 0 | AF46: 8181 | AG46: 0 | AH46: 0 | AI46: 0 | AJ46: 14 | AK46: 0 | AL46: 140 | AM46: 0 | AN46: 6007 | AO46: 0 | AP46: 3719 | AQ46: 0
A47: 2018-07-25 | B47: 2018-07-31 | C47: 0 | D47: 0 | E47: 4208 | F47: 3061 | G47: 0 | H47: 0 | I47: 0 | J47: 0 | K47: 0 | L47: 0 | M47: 0 | N47: 0 | O47: 107 | P47: 5625 | Q47: 0 | R47: 0 | S47: 7 | T47: 120 | U47: 0 | V47: 100 | W47: 0 | X47: 0 | Y47: 0 | Z47: 0 | AA47: 0 | AB47: 4151 | AC47: 19009 | AD47: 0 | AE47: 0 | AF47: 8181 | AG47: 0 | AH47: 0 | AI47: 0 | AJ47: 14 | AK47: 0 | AL47: 140 | AM47: 0 | AN47: 6007 | AO47: 0 | AP47: 3719 | AQ47: 0
A48: 2018-08-01 | B48: 2018-08-07 | C48: 0 | D48: 0 | E48: 4208 | F48: 3061 | G48: 0 | H48: 0 | I48: 0 | J48: 0 | K48: 0 | L48: 0 | M48: 0 | N48: 0 | O48: 107 | P48: 5625 | Q48: 0 | R48: 0 | S48: 7 | T48: 120 | U48: 0 | V48: 100 | W48: 0 | X48: 0 | Y48: 0 | Z48: 0 | AA48: 0 | AB48: 4151 | AC48: 19009 | AD48: 0 | AE48: 0 | AF48: 8181 | AG48: 0 | AH48: 0 | AI48: 0 | AJ48: 14 | AK48: 0 | AL48: 140 | AM48: 0 | AN48: 6007 | AO48: 0 | AP48: 3719 | AQ48: 0
A49: 2018-08-08 | B49: 2018-08-14 | C49: 0 | D49: 0 | E49: 4208 | F49: 3061 | G49: 0 | H49: 0 | I49: 0 | J49: 0 | K49: 0 | L49: 0 | M49: 0 | N49: 0 | O49: 107 | P49: 5625 | Q49: 0 | R49: 0 | S49: 7 | T49: 120 | U49: 0 | V49: 100 | W49: 0 | X49: 0 | Y49: 0 | Z49: 0 | AA49: 0 | AB49: 4151 | AC49: 19009 | AD49: 0 | AE49: 0 | AF49: 8181 | AG49: 0 | AH49: 0 | AI49: 0 | AJ49: 14 | AK49: 0 | AL49: 140 | AM49: 0 | AN49: 6007 | AO49: 0 | AP49: 3719 | AQ49: 0
A50: 2018-08-15 | B50: 2018-08-21 | C50: 0 | D50: 0 | E50: 4208 | F50: 3061 | G50: 0 | H50: 0 | I50: 0 | J50: 0 | K50: 0 | L50: 0 | M50: 0 | N50: 0 | O50: 107 | P50: 5625 | Q50: 0 | R50: 0 | S50: 7 | T50: 120 | U50: 0 | V50: 100 | W50: 0 | X50: 0 | Y50: 0 | Z50: 0 | AA50: 0 | AB50: 4151 | AC50: 19009 | AD50: 0 | AE50: 0 | AF50: 8181 | AG50: 0 | AH50: 0 | AI50: 0 | AJ50: 14 | AK50: 0 | AL50: 140 | AM50: 0 | AN50: 6007 | AO50: 0 | AP50: 3719 | AQ50: 0
A51: 2018-08-22 | B51: 2018-08-28 | C51: 0 | D51: 0 | E51: 4208 | F51: 3061 | G51: 0 | H51: 0 | I51: 0 | J51: 0 | K51: 0 | L51: 0 | M51: 0 | N51: 0 | O51: 107 | P51: 5625 | Q51: 0 | R51: 0 | S51: 7 | T51: 120 | U51: 0 | V51: 100 | W51: 0 | X51: 0 | Y51: 0 | Z51: 0 | AA51: 0 | AB51: 4151 | AC51: 19009 | AD51: 0 | AE51: 0 | AF51: 8181 | AG51: 0 | AH51: 0 | AI51: 0 | AJ51: 14 | AK51: 0 | AL51: 140 | AM51: 0 | AN51: 6007 | AO51: 0 | AP51: 3719 | AQ51: 0
A52: 2018-08-29 | B52: 2018-09-04 | C52: 0 | D52: 0 | E52: 4208 | F52: 3061 | G52: 0 | H52: 0 | I52: 0 | J52: 0 | K52: 0 | L52: 0 | M52: 0 | N52: 0 | O52: 107 | P52: 5625 | Q52: 0 | R52: 0 | S52: 7 | T52: 120 | U52: 0 | V52: 100 | W52: 0 | X52: 0 | Y52: 0 | Z52: 0 | AA52: 0 | AB52: 4151 | AC52: 19009 | AD52: 0 | AE52: 0 | AF52: 8181 | AG52: 0 | AH52: 0 | AI52: 0 | AJ52: 14 | AK52: 0 | AL52: 140 | AM52: 0 | AN52: 6007 | AO52: 0 | AP52: 3719 | AQ52: 0
A53: 2018-09-05 | B53: 2018-09-11 | C53: 0 | D53: 0 | E53: 4208 | F53: 3061 | G53: 0 | H53: 0 | I53: 0 | J53: 0 | K53: 0 | L53: 0 | M53: 0 | N53: 0 | O53: 107 | P53: 5625 | Q53: 0 | R53: 0 | S53: 7 | T53: 120 | U53: 0 | V53: 100 | W53: 0 | X53: 0 | Y53: 0 | Z53: 0 | AA53: 0 | AB53: 4151 | AC53: 19009 | AD53: 0 | AE53: 0 | AF53: 8181 | AG53: 0 | AH53: 0 | AI53: 0 | AJ53: 14 | AK53: 0 | AL53: 140 | AM53: 0 | AN53: 6007 | AO53: 0 | AP53: 3719 | AQ53: 0
A54: 2018-09-12 | B54: 2018-09-18 | C54: 0 | D54: 0 | E54: 4208 | F54: 3061 | G54: 0 | H54: 0 | I54: 0 | J54: 0 | K54: 0 | L54: 0 | M54: 0 | N54: 0 | O54: 107 | P54: 5625 | Q54: 0 | R54: 0 | S54: 7 | T54: 120 | U54: 0 | V54: 100 | W54: 0 | X54: 0 | Y54: 0 | Z54: 0 | AA54: 0 | AB54: 4151 | AC54: 19009 | AD54: 0 | AE54: 0 | AF54: 8181 | AG54: 0 | AH54: 0 | AI54: 0 | AJ54: 14 | AK54: 0 | AL54: 140 | AM54: 0 | AN54: 6007 | AO54: 0 | AP54: 3719 | AQ54: 0
A55: 2018-09-19 | B55: 2018-09-25 | C55: 0 | D55: 0 | E55: 4208 | F55: 3061 | G55: 0 | H55: 0 | I55: 0 | J55: 0 | K55: 0 | L55: 0 | M55: 0 | N55: 0 | O55: 107 | P55: 5625 | Q55: 0 | R55: 0 | S55: 7 | T55: 120 | U55: 0 | V55: 100 | W55: 0 | X55: 0 | Y55: 0 | Z55: 0 | AA55: 0 | AB55: 4151 | AC55: 19009 | AD55: 0 | AE55: 0 | AF55: 8181 | AG55: 0 | AH55: 0 | AI55: 0 | AJ55: 14 | AK55: 0 | AL55: 140 | AM55: 0 | AN55: 6007 | AO55: 0 | AP55: 3719 | AQ55: 0
A56: 2018-09-26 | B56: 2018-10-02 | C56: 0 | D56: 0 | E56: 4208 | F56: 3061 | G56: 0 | H56: 0 | I56: 0 | J56: 0 | K56: 0 | L56: 0 | M56: 0 | N56: 0 | O56: 107 | P56: 5625 | Q56: 0 | R56: 0 | S56: 7 | T56: 120 | U56: 0 | V56: 100 | W56: 0 | X56: 0 | Y56: 0 | Z56: 0 | AA56: 0 | AB56: 4151 | AC56: 19009 | AD56: 0 | AE56: 0 | AF56: 8181 | AG56: 0 | AH56: 0 | AI56: 0 | AJ56: 14 | AK56: 0 | AL56: 140 | AM56: 0 | AN56: 6007 | AO56: 0 | AP56: 3719 | AQ56: 0
A57: 2018-10-03 | B57: 2018-10-09 | C57: 0 | D57: 0 | E57: 4208 | F57: 3061 | G57: 0 | H57: 0 | I57: 0 | J57: 0 | K57: 0 | L57: 0 | M57: 0 | N57: 0 | O57: 107 | P57: 5625 | Q57: 0 | R57: 0 | S57: 7 | T57: 120 | U57: 0 | V57: 100 | W57: 0 | X57: 0 | Y57: 0 | Z57: 0 | AA57: 0 | AB57: 4151 | AC57: 19009 | AD57: 0 | AE57: 0 | AF57: 8181 | AG57: 0 | AH57: 0 | AI57: 0 | AJ57: 14 | AK57: 0 | AL57: 140 | AM57: 0 | AN57: 6007 | AO57: 0 | AP57: 3719 | AQ57: 0
A58: 2018-10-10 | B58: 2018-10-16 | C58: 0 | D58: 0 | E58: 4208 | F58: 3061 | G58: 0 | H58: 0 | I58: 0 | J58: 0 | K58: 0 | L58: 0 | M58: 0 | N58: 0 | O58: 107 | P58: 5625 | Q58: 0 | R58: 0 | S58: 7 | T58: 120 | U58: 0 | V58: 100 | W58: 0 | X58: 0 | Y58: 0 | Z58: 0 | AA58: 0 | AB58: 4151 | AC58: 19009 | AD58: 0 | AE58: 0 | AF58: 8181 | AG58: 0 | AH58: 0 | AI58: 0 | AJ58: 14 | AK58: 0 | AL58: 140 | AM58: 0 | AN58: 6007 | AO58: 0 | AP58: 3719 | AQ58: 0
A59: 2018-10-17 | B59: 2018-10-23 | C59: 0 | D59: 0 | E59: 4208 | F59: 3061 | G59: 0 | H59: 0 | I59: 0 | J59: 0 | K59: 0 | L59: 0 | M59: 0 | N59: 0 | O59: 107 | P59: 5625 | Q59: 0 | R59: 0 | S59: 7 | T59: 120 | U59: 0 | V59: 100 | W59: 0 | X59: 0 | Y59: 0 | Z59: 0 | AA59: 0 | AB59: 4151 | AC59: 19009 | AD59: 0 | AE59: 0 | AF59: 8181 | AG59: 0 | AH59: 0 | AI59: 0 | AJ59: 14 | AK59: 0 | AL59: 140 | AM59: 0 | AN59: 6007 | AO59: 0 | AP59: 3719 | AQ59: 0
A60: 2018-10-24 | B60: 2018-10-30 | C60: 0 | D60: 0 | E60: 4208 | F60: 3061 | G60: 0 | H60: 0 | I60: 0 | J60: 0 | K60: 0 | L60: 0 | M60: 0 | N60: 0 | O60: 107 | P60: 5625 | Q60: 0 | R60: 0 | S60: 7 | T60: 120 | U60: 0 | V60: 100 | W60: 0 | X60: 0 | Y60: 0 | Z60: 0 | AA60: 0 | AB60: 4151 | AC60: 19009 | AD60: 0 | AE60: 0 | AF60: 8181 | AG60: 0 | AH60: 0 | AI60: 0 | AJ60: 14 | AK60: 0 | AL60: 140 | AM60: 0 | AN60: 6007 | AO60: 0 | AP60: 3719 | AQ60: 0

Sheet input พืชอื่น
A1: ปี พ.ศ. | B1: ='input ข้าว'!B1 -> 2560 | D1: ฤดูแล้ง | E1: =RIGHT(B1,2)&"/"&RIGHT(B1+1,2) -> 60/61 | F1: ฤดูฝน | G1: =RIGHT(B1+1,2) -> 61
A2: โครงการชลประทาน | C2: ='input ข้าว'!C2 -> พลเทพ | D2: ='input ข้าว'!D2 -> ทุ่งวัดสิงห์ | E2: ='input ข้าว'!E2 -> ท่าโบสถ์ | F2: ='input ข้าว'!F2 -> สามชุก | G2: ='input ข้าว'!G2 -> ดอนเจดีย์ | H2: ='input ข้าว'!H2 -> โพธิ์พระยา | I2: ='input ข้าว'!I2 -> ชลประทานสุพรรณบุรี | J2: ='input ข้าว'!J2 -> บรมธาตุ | K2: ='input ข้าว'!K2 -> ชัณสูตร | L2: ='input ข้าว'!L2 -> ยางมณี | M2: ='input ข้าว'!M2 -> ผักไห่ | N2: ='input ข้าว'!N2 -> บางบาล | O2: ='input ข้าว'!O2 -> เจ้าเจ็ดบางยี่หน | P2: ='input ข้าว'!P2 -> พระยาบรรลือ | Q2: ='input ข้าว'!Q2 -> พระพิมล | R2: ='input ข้าว'!R2 -> ภาษีเจริญ | S2: ='input ข้าว'!S2 -> มโนรมย์ | T2: ='input ข้าว'!T2 -> ช่องแค | U2: ='input ข้าว'!U2 -> โคกกะเทียม | V2: ='input ข้าว'!V2 -> เริงราง | W2: ='input ข้าว'!W2 -> มหาราช | X2: ='input ข้าว'!X2 -> ป่าสักใต้ | Y2: ='input ข้าว'!Y2 -> นครหลวง | Z2: ='input ข้าว'!Z2 -> ชลประทานลพบุรี | AA2: ='input ข้าว'!AA2 -> คลองเพรียว-เสาไห้ | AB2: ='input ข้าว'!AB2 -> เขื่อนป่าสักชลสิทธิ์ | AC2: ='input ข้าว'!AC2 -> รังสิตเหนือ | AD2: ='input ข้าว'!AD2 -> รังสิตใต้ | AE2: ='input ข้าว'!AE2 -> ชลหารพิจิตร | AF2: ='input ข้าว'!AF2 -> พระองค์ไชยานุชิต | AG2: ='input ข้าว'!AG2 -> เขื่อนนเรศวร | AH2: ='input ข้าว'!AH2 -> เขื่อนแควน้อย | AI2: ='input ข้าว'!AI2 -> ยมน่าน | AJ2: ='input ข้าว'!AJ2 -> พลายชุมพล | AK2: ='input ข้าว'!AK2 -> ดงเศรษฐี | AL2: ='input ข้าว'!AL2 -> ท่าบัว | AM2: ='input ข้าว'!AM2 -> ท่อทองแดง | AN2: ='input ข้าว'!AN2 -> ชลประทานกำแพงเพชร | AO2: ='input ข้าว'!AO2 -> ชลประทานนครสวรรค์ | AP2: ='input ข้าว'!AP2 -> ชลประทานตาก | AQ2: ='input ข้าว'!AQ2 -> ชลประทานอุตรดิตถ์
A3: จังหวัด | C3: ='input ข้าว'!C3 -> ชัยนาท | D3: ='input ข้าว'!D3 -> ชัยนาท | E3: ='input ข้าว'!E3 -> ชัยนาท | F3: ='input ข้าว'!F3 -> สุพรรณบุรี | G3: ='input ข้าว'!G3 -> สุพรรณบุรี | H3: ='input ข้าว'!H3 -> สุพรรณบุรี | I3: ='input ข้าว'!I3 -> สุพรรณบุรี | J3: ='input ข้าว'!J3 -> ชัยนาท | K3: ='input ข้าว'!K3 -> สิงห์บุรี | L3: ='input ข้าว'!L3 -> อ่างทอง | M3: ='input ข้าว'!M3 -> พระนครศรีอยุธยา | N3: ='input ข้าว'!N3 -> พระนครศรีอยุธยา | O3: ='input ข้าว'!O3 -> พระนครศรีอยุธยา | P3: ='input ข้าว'!P3 -> นนทบุรี | Q3: ='input ข้าว'!Q3 -> นครปฐม | R3: ='input ข้าว'!R3 -> สมุทรสาคร | S3: ='input ข้าว'!S3 -> ชัยนาท | T3: ='input ข้าว'!T3 -> ชัยนาท | U3: ='input ข้าว'!U3 -> ลพบุรี | V3: ='input ข้าว'!V3 -> สระบุรี | W3: ='input ข้าว'!W3 -> สิงห์บุรี | X3: ='input ข้าว'!X3 -> พระนครศรีอยุธยา | Y3: ='input ข้าว'!Y3 -> พระนครศรีอยุธยา | Z3: ='input ข้าว'!Z3 -> ลพบุรี | AA3: ='input ข้าว'!AA3 -> สระบุรี | AB3: ='input ข้าว'!AB3 -> สระบุรี | AC3: ='input ข้าว'!AC3 -> พระนครศรีอยุธยา | AD3: ='input ข้าว'!AD3 -> พระนครศรีอยุธยา | AE3: ='input ข้าว'!AE3 -> สมุทรปราการ | AF3: ='input ข้าว'!AF3 -> ฉะเชิงเทรา | AG3: ='input ข้าว'!AG3 -> พิษณุโลก | AH3: ='input ข้าว'!AH3 -> พิษณุโลก | AI3: ='input ข้าว'!AI3 -> พิษณุโลก | AJ3: ='input ข้าว'!AJ3 -> พิษณุโลก | AK3: ='input ข้าว'!AK3 -> พิจิตร | AL3: ='input ข้าว'!AL3 -> พิจิตร | AM3: ='input ข้าว'!AM3 -> กำแพงเพชร | AN3: ='input ข้าว'!AN3 -> กำแพงเพชร | AO3: ='input ข้าว'!AO3 -> นครสวรรค์ | AP3: ='input ข้าว'!AP3 -> ตาก | AQ3: ='input ข้าว'!AQ3 -> อุตรดิตถ์
A4: รั่วซึม มม./สัปดาห์ | C4: ='input ข้าว'!C4 -> 7 | D4: ='input ข้าว'!D4 -> 7 | E4: ='input ข้าว'!E4 -> 7 | F4: ='input ข้าว'!F4 -> 7 | G4: ='input ข้าว'!G4 -> 7 | H4: ='input ข้าว'!H4 -> 7 | I4: ='input ข้าว'!I4 -> 7 | J4: ='input ข้าว'!J4 -> 7 | K4: ='input ข้าว'!K4 -> 7 | L4: ='input ข้าว'!L4 -> 7 | M4: ='input ข้าว'!M4 -> 7 | N4: ='input ข้าว'!N4 -> 7 | O4: ='input ข้าว'!O4 -> 7 | P4: ='input ข้าว'!P4 -> 7 | Q4: ='input ข้าว'!Q4 -> 7 | R4: ='input ข้าว'!R4 -> 7 | S4: ='input ข้าว'!S4 -> 7 | T4: ='input ข้าว'!T4 -> 7 | U4: ='input ข้าว'!U4 -> 7 | V4: ='input ข้าว'!V4 -> 7 | W4: ='input ข้าว'!W4 -> 7 | X4: ='input ข้าว'!X4 -> 7 | Y4: ='input ข้าว'!Y4 -> 7 | Z4: ='input ข้าว'!Z4 -> 7 | AA4: ='input ข้าว'!AA4 -> 7 | AB4: ='input ข้าว'!AB4 -> 7 | AC4: ='input ข้าว'!AC4 -> 7 | AD4: ='input ข้าว'!AD4 -> 7 | AE4: ='input ข้าว'!AE4 -> 7 | AF4: ='input ข้าว'!AF4 -> 7 | AG4: ='input ข้าว'!AG4 -> 7 | AH4: ='input ข้าว'!AH4 -> 7 | AI4: ='input ข้าว'!AI4 -> 7 | AJ4: ='input ข้าว'!AJ4 -> 7 | AK4: ='input ข้าว'!AK4 -> 7 | AL4: ='input ข้าว'!AL4 -> 7 | AM4: ='input ข้าว'!AM4 -> 7 | AN4: ='input ข้าว'!AN4 -> 7 | AO4: ='input ข้าว'!AO4 -> 7 | AP4: ='input ข้าว'!AP4 -> 7 | AQ4: ='input ข้าว'!AQ4 -> 7
A5: น้ำเตรียมแปลงฤดูแล้ง มม./สัปดาห์ | C5: 20 | D5: 20 | E5: 20 | F5: 20 | G5: 20 | H5: 20 | I5: 20 | J5: 20 | K5: 20 | L5: 20 | M5: 20 | N5: 20 | O5: 20 | P5: 20 | Q5: 20 | R5: 20 | S5: 20 | T5: 20 | U5: 20 | V5: 20 | W5: 20 | X5: 20 | Y5: 20 | Z5: 20 | AA5: 20 | AB5: 20 | AC5: 20 | AD5: 20 | AE5: 20 | AF5: 20 | AG5: 20 | AH5: 20 | AI5: 20 | AJ5: 20 | AK5: 20 | AL5: 20 | AM5: 20 | AN5: 20 | AO5: 20 | AP5: 20 | AQ5: 20
A6: น้ำเตรียมแปลงฤดูฝน มม./สัปดาห์ | C6: 10 | D6: 10 | E6: 10 | F6: 10 | G6: 10 | H6: 10 | I6: 10 | J6: 10 | K6: 10 | L6: 10 | M6: 10 | N6: 10 | O6: 10 | P6: 10 | Q6: 10 | R6: 10 | S6: 10 | T6: 10 | U6: 10 | V6: 10 | W6: 10 | X6: 10 | Y6: 10 | Z6: 10 | AA6: 10 | AB6: 10 | AC6: 10 | AD6: 10 | AE6: 10 | AF6: 10 | AG6: 10 | AH6: 10 | AI6: 10 | AJ6: 10 | AK6: 10 | AL6: 10 | AM6: 10 | AN6: 10 | AO6: 10 | AP6: 10 | AQ6: 10
A7: ประสิทธิ์ภาพโครงการ (%) | C7: ='input ข้าว'!C7 -> 90 | D7: ='input ข้าว'!D7 -> 90 | E7: ='input ข้าว'!E7 -> 90 | F7: ='input ข้าว'!F7 -> 90 | G7: ='input ข้าว'!G7 -> 90 | H7: ='input ข้าว'!H7 -> 90 | I7: ='input ข้าว'!I7 -> 90 | J7: ='input ข้าว'!J7 -> 90 | K7: ='input ข้าว'!K7 -> 90 | L7: ='input ข้าว'!L7 -> 90 | M7: ='input ข้าว'!M7 -> 90 | N7: ='input ข้าว'!N7 -> 77 | O7: ='input ข้าว'!O7 -> 77 | P7: ='input ข้าว'!P7 -> 77 | Q7: ='input ข้าว'!Q7 -> 77 | R7: ='input ข้าว'!R7 -> 77 | S7: ='input ข้าว'!S7 -> 85 | T7: ='input ข้าว'!T7 -> 85 | U7: ='input ข้าว'!U7 -> 85 | V7: ='input ข้าว'!V7 -> 85 | W7: ='input ข้าว'!W7 -> 85 | X7: ='input ข้าว'!X7 -> 85 | Y7: ='input ข้าว'!Y7 -> 85 | Z7: ='input ข้าว'!Z7 -> 85 | AA7: ='input ข้าว'!AA7 -> 100 | AB7: ='input ข้าว'!AB7 -> 100 | AC7: ='input ข้าว'!AC7 -> 100 | AD7: ='input ข้าว'!AD7 -> 100 | AE7: ='input ข้าว'!AE7 -> 100 | AF7: ='input ข้าว'!AF7 -> 100 | AG7: ='input ข้าว'!AG7 -> 77 | AH7: ='input ข้าว'!AH7 -> 77 | AI7: ='input ข้าว'!AI7 -> 77 | AJ7: ='input ข้าว'!AJ7 -> 77 | AK7: ='input ข้าว'!AK7 -> 77 | AL7: ='input ข้าว'!AL7 -> 77 | AM7: ='input ข้าว'!AM7 -> 65 | AN7: ='input ข้าว'!AN7 -> 65 | AO7: ='input ข้าว'!AO7 -> 85 | AP7: ='input ข้าว'!AP7 -> 85 | AQ7: ='input ข้าว'!AQ7 -> 85
A8: วัน | B8: ชนิดพืช | C8: ไม้ดอก (บานชื่น) | D8: ไม้ดอก (บานชื่น) | E8: ไม้ดอก (บานชื่น) | F8: ไม้ดอก (บานชื่น) | G8: ไม้ดอก (บานชื่น) | H8: ไม้ดอก (บานชื่น) | I8: ไม้ดอก (บานชื่น) | J8: ไม้ดอก (บานชื่น) | K8: ไม้ดอก (บานชื่น) | L8: ไม้ดอก (บานชื่น) | M8: ไม้ดอก (บานชื่น) | N8: ไม้ดอก (บานชื่น) | O8: ไม้ดอก (บานชื่น) | P8: ไม้ดอก (บานชื่น) | Q8: ไม้ดอก (บานชื่น) | R8: ไม้ดอก (บานชื่น) | S8: ไม้ดอก (บานชื่น) | T8: ไม้ดอก (บานชื่น) | U8: ไม้ดอก (บานชื่น) | V8: ไม้ดอก (บานชื่น) | W8: ไม้ดอก (บานชื่น) | X8: ไม้ดอก (บานชื่น) | Y8: ไม้ดอก (บานชื่น) | Z8: ไม้ดอก (บานชื่น) | AA8: ไม้ดอก (บานชื่น) | AB8: ไม้ดอก (บานชื่น) | AC8: ไม้ดอก (บานชื่น) | AD8: ไม้ดอก (บานชื่น) | AE8: ไม้ดอก (บานชื่น) | AF8: ไม้ดอก (บานชื่น) | AG8: ไม้ดอก (บานชื่น) | AH8: ไม้ดอก (บานชื่น) | AI8: ไม้ดอก (บานชื่น) | AJ8: ไม้ดอก (บานชื่น) | AK8: ไม้ดอก (บานชื่น) | AL8: ไม้ดอก (บานชื่น) | AM8: ไม้ดอก (บานชื่น) | AN8: ไม้ดอก (บานชื่น) | AO8: ไม้ดอก (บานชื่น) | AP8: ไม้ดอก (บานชื่น) | AQ8: ไม้ดอก (บานชื่น)
A9: =+A10-7 -> 2017-08-02 | B9: =+A9+6 -> 2017-08-08
A10: 2017-08-09 | B10: =+A10+6 -> 2017-08-15
A11: 2017-08-16 | B11: 2017-08-22
A12: 2017-08-23 | B12: 2017-08-29
A13: 2017-08-30 | B13: 2017-09-05
A14: 2017-09-06 | B14: 2017-09-12
A15: 2017-09-13 | B15: 2017-09-19
A16: 2017-09-20 | B16: 2017-09-26
A17: 2017-09-27 | B17: 2017-10-03
A18: 2017-10-04 | B18: 2017-10-10
A19: 2017-10-11 | B19: 2017-10-17
A20: 2017-10-18 | B20: 2017-10-24
A21: =+A22-7 -> 2017-10-25 | B21: 2017-10-31
A22: =+'input ข้าว'!A22 -> 2017-11-01 | B22: 2017-11-07 | O22: 1398 | P22: 1628 | Q22: 6270 | R22: 3043 | S22: 1536 | T22: 475 | V22: 5480 | AB22: 58 | AD22: 4001 | AE22: 1435 | AF22: 8241 | AM22: 639 | AN22: 2902 | AO22: 2500
A23: =+A22+7 -> 2017-11-08 | B23: 2017-11-14
A24: =+A23+7 -> 2017-11-15 | B24: 2017-11-21 | AM24: =1464-639 -> 825
A25: 2017-11-22 | B25: 2017-11-28
A26: 2017-11-29 | B26: 2017-12-05
A27: 2017-12-06 | B27: 2017-12-12
A28: 2017-12-13 | B28: 2017-12-19
A29: 2017-12-20 | B29: 2017-12-26
A30: 2017-12-27 | B30: 2018-01-02
A31: 2018-01-03 | B31: 2018-01-09 | AL31: 194
A32: 2018-01-10 | B32: 2018-01-16 | F32: 42380
A33: 2018-01-17 | B33: 2018-01-23
A34: 2018-01-24 | B34: 2018-01-30
A35: 2018-01-31 | B35: 2018-02-06
A36: 2018-02-07 | B36: 2018-02-13
A37: 2018-02-14 | B37: 2018-02-20
A38: 2018-02-21 | B38: 2018-02-27
A39: 2018-02-28 | B39: 2018-03-06
A40: 2018-03-07 | B40: 2018-03-13
A41: 2018-03-14 | B41: 2018-03-20
A42: 2018-03-21 | B42: 2018-03-27
A43: 2018-03-28 | B43: 2018-04-03
A44: 2018-04-04 | B44: 2018-04-10
A45: 2018-04-11 | B45: 2018-04-17
A46: 2018-04-18 | B46: 2018-04-24
A47: 2018-04-25 | B47: 2018-05-01
A48: 2018-05-02 | B48: 2018-05-08
A49: 2018-05-09 | B49: 2018-05-15
A50: 2018-05-16 | B50: 2018-05-22
A51: 2018-05-23 | B51: 2018-05-29
A52: 2018-05-30 | B52: 2018-06-05
A53: 2018-06-06 | B53: 2018-06-12
A54: 2018-06-13 | B54: 2018-06-19
A55: 2018-06-20 | B55: 2018-06-26
A56: 2018-06-27 | B56: 2018-07-03
A57: 2018-07-04 | B57: 2018-07-10
A58: 2018-07-11 | B58: 2018-07-17 | S58: 1536
A59: 2018-07-18 | B59: 2018-07-24
A60: 2018-07-25 | B60: 2018-07-31 | V60: 5480
A61: 2018-08-01 | B61: 2018-08-07
A62: 2018-08-08 | B62: 2018-08-14
A63: 2018-08-15 | B63: 2018-08-21
A64: 2018-08-22 | B64: 2018-08-28 | AB64: 29 | AC64: 0 | AD64: 4001 | AE64: 1435
A65: 2018-08-29 | B65: 2018-09-04
A66: 2018-09-05 | B66: 2018-09-11
A67: 2018-09-12 | B67: 2018-09-18
A68: 2018-09-19 | B68: 2018-09-25
A69: 2018-09-26 | B69: 2018-10-02
A70: 2018-10-03 | B70: 2018-10-09
A71: 2018-10-10 | B71: 2018-10-16
A72: 2018-10-17 | B72: 2018-10-23
A73: 2018-10-24 | B73: 2018-10-30

Sheet input บ่อปลา
A1: ปี พ.ศ. | B1: ='input ข้าว'!B1 -> 2560 | D1: ฤดูแล้ง | E1: =RIGHT(B1,2)&"/"&RIGHT(B1+1,2) -> 60/61 | F1: ฤดูฝน | G1: =RIGHT(B1+1,2) -> 61
A2: โครงการชลประทาน | C2: ='input ข้าว'!C2 -> พลเทพ | D2: ='input ข้าว'!D2 -> ทุ่งวัดสิงห์ | E2: ='input ข้าว'!E2 -> ท่าโบสถ์ | F2: ='input ข้าว'!F2 -> สามชุก | G2: ='input ข้าว'!G2 -> ดอนเจดีย์ | H2: ='input ข้าว'!H2 -> โพธิ์พระยา | I2: ='input ข้าว'!I2 -> ชลประทานสุพรรณบุรี | J2: ='input ข้าว'!J2 -> บรมธาตุ | K2: ='input ข้าว'!K2 -> ชัณสูตร | L2: ='input ข้าว'!L2 -> ยางมณี | M2: ='input ข้าว'!M2 -> ผักไห่ | N2: ='input ข้าว'!N2 -> บางบาล | O2: ='input ข้าว'!O2 -> เจ้าเจ็ดบางยี่หน | P2: ='input ข้าว'!P2 -> พระยาบรรลือ | Q2: ='input ข้าว'!Q2 -> พระพิมล | R2: ='input ข้าว'!R2 -> ภาษีเจริญ | S2: ='input ข้าว'!S2 -> มโนรมย์ | T2: ='input ข้าว'!T2 -> ช่องแค | U2: ='input ข้าว'!U2 -> โคกกะเทียม | V2: ='input ข้าว'!V2 -> เริงราง | W2: ='input ข้าว'!W2 -> มหาราช | X2: ='input ข้าว'!X2 -> ป่าสักใต้ | Y2: ='input ข้าว'!Y2 -> นครหลวง | Z2: ='input ข้าว'!Z2 -> ชลประทานลพบุรี | AA2: ='input ข้าว'!AA2 -> คลองเพรียว-เสาไห้ | AB2: ='input ข้าว'!AB2 -> เขื่อนป่าสักชลสิทธิ์ | AC2: ='input ข้าว'!AC2 -> รังสิตเหนือ | AD2: ='input ข้าว'!AD2 -> รังสิตใต้ | AE2: ='input ข้าว'!AE2 -> ชลหารพิจิตร | AF2: ='input ข้าว'!AF2 -> พระองค์ไชยานุชิต | AG2: ='input ข้าว'!AG2 -> เขื่อนนเรศวร | AH2: ='input ข้าว'!AH2 -> เขื่อนแควน้อย | AI2: ='input ข้าว'!AI2 -> ยมน่าน | AJ2: ='input ข้าว'!AJ2 -> พลายชุมพล | AK2: ='input ข้าว'!AK2 -> ดงเศรษฐี | AL2: ='input ข้าว'!AL2 -> ท่าบัว | AM2: ='input ข้าว'!AM2 -> ท่อทองแดง | AN2: ='input ข้าว'!AN2 -> ชลประทานกำแพงเพชร | AO2: ='input ข้าว'!AO2 -> ชลประทานนครสวรรค์ | AP2: ='input ข้าว'!AP2 -> ชลประทานตาก | AQ2: ='input ข้าว'!AQ2 -> ชลประทานอุตรดิตถ์
A3: จังหวัด | C3: ='input ข้าว'!C3 -> ชัยนาท | D3: ='input ข้าว'!D3 -> ชัยนาท | E3: ='input ข้าว'!E3 -> ชัยนาท | F3: ='input ข้าว'!F3 -> สุพรรณบุรี | G3: ='input ข้าว'!G3 -> สุพรรณบุรี | H3: ='input ข้าว'!H3 -> สุพรรณบุรี | I3: ='input ข้าว'!I3 -> สุพรรณบุรี | J3: ='input ข้าว'!J3 -> ชัยนาท | K3: ='input ข้าว'!K3 -> สิงห์บุรี | L3: ='input ข้าว'!L3 -> อ่างทอง | M3: ='input ข้าว'!M3 -> พระนครศรีอยุธยา | N3: ='input ข้าว'!N3 -> พระนครศรีอยุธยา | O3: ='input ข้าว'!O3 -> พระนครศรีอยุธยา | P3: ='input ข้าว'!P3 -> นนทบุรี | Q3: ='input ข้าว'!Q3 -> นครปฐม | R3: ='input ข้าว'!R3 -> สมุทรสาคร | S3: ='input ข้าว'!S3 -> ชัยนาท | T3: ='input ข้าว'!T3 -> ชัยนาท | U3: ='input ข้าว'!U3 -> ลพบุรี | V3: ='input ข้าว'!V3 -> สระบุรี | W3: ='input ข้าว'!W3 -> สิงห์บุรี | X3: ='input ข้าว'!X3 -> พระนครศรีอยุธยา | Y3: ='input ข้าว'!Y3 -> พระนครศรีอยุธยา | Z3: ='input ข้าว'!Z3 -> ลพบุรี | AA3: ='input ข้าว'!AA3 -> สระบุรี | AB3: ='input ข้าว'!AB3 -> สระบุรี | AC3: ='input ข้าว'!AC3 -> พระนครศรีอยุธยา | AD3: ='input ข้าว'!AD3 -> พระนครศรีอยุธยา | AE3: ='input ข้าว'!AE3 -> สมุทรปราการ | AF3: ='input ข้าว'!AF3 -> ฉะเชิงเทรา | AG3: ='input ข้าว'!AG3 -> พิษณุโลก | AH3: ='input ข้าว'!AH3 -> พิษณุโลก | AI3: ='input ข้าว'!AI3 -> พิษณุโลก | AJ3: ='input ข้าว'!AJ3 -> พิษณุโลก | AK3: ='input ข้าว'!AK3 -> พิจิตร | AL3: ='input ข้าว'!AL3 -> พิจิตร | AM3: ='input ข้าว'!AM3 -> กำแพงเพชร | AN3: ='input ข้าว'!AN3 -> กำแพงเพชร | AO3: ='input ข้าว'!AO3 -> นครสวรรค์ | AP3: ='input ข้าว'!AP3 -> ตาก | AQ3: ='input ข้าว'!AQ3 -> อุตรดิตถ์
A4: รั่วซึม มม./สัปดาห์ | C4: ='input ข้าว'!C4 -> 7 | D4: ='input ข้าว'!D4 -> 7 | E4: ='input ข้าว'!E4 -> 7 | F4: ='input ข้าว'!F4 -> 7 | G4: ='input ข้าว'!G4 -> 7 | H4: ='input ข้าว'!H4 -> 7 | I4: ='input ข้าว'!I4 -> 7 | J4: ='input ข้าว'!J4 -> 7 | K4: ='input ข้าว'!K4 -> 7 | L4: ='input ข้าว'!L4 -> 7 | M4: ='input ข้าว'!M4 -> 7 | N4: ='input ข้าว'!N4 -> 7 | O4: ='input ข้าว'!O4 -> 7 | P4: ='input ข้าว'!P4 -> 7 | Q4: ='input ข้าว'!Q4 -> 7 | R4: ='input ข้าว'!R4 -> 7 | S4: ='input ข้าว'!S4 -> 7 | T4: ='input ข้าว'!T4 -> 7 | U4: ='input ข้าว'!U4 -> 7 | V4: ='input ข้าว'!V4 -> 7 | W4: ='input ข้าว'!W4 -> 7 | X4: ='input ข้าว'!X4 -> 7 | Y4: ='input ข้าว'!Y4 -> 7 | Z4: ='input ข้าว'!Z4 -> 7 | AA4: ='input ข้าว'!AA4 -> 7 | AB4: ='input ข้าว'!AB4 -> 7 | AC4: ='input ข้าว'!AC4 -> 7 | AD4: ='input ข้าว'!AD4 -> 7 | AE4: ='input ข้าว'!AE4 -> 7 | AF4: ='input ข้าว'!AF4 -> 7 | AG4: ='input ข้าว'!AG4 -> 7 | AH4: ='input ข้าว'!AH4 -> 7 | AI4: ='input ข้าว'!AI4 -> 7 | AJ4: ='input ข้าว'!AJ4 -> 7 | AK4: ='input ข้าว'!AK4 -> 7 | AL4: ='input ข้าว'!AL4 -> 7 | AM4: ='input ข้าว'!AM4 -> 7 | AN4: ='input ข้าว'!AN4 -> 7 | AO4: ='input ข้าว'!AO4 -> 7 | AP4: ='input ข้าว'!AP4 -> 7 | AQ4: ='input ข้าว'!AQ4 -> 7
A5: ประสิทธิ์ภาพโครงการ (%) | C5: ='input ข้าว'!C7 -> 90 | D5: ='input ข้าว'!D7 -> 90 | E5: ='input ข้าว'!E7 -> 90 | F5: ='input ข้าว'!F7 -> 90 | G5: ='input ข้าว'!G7 -> 90 | H5: ='input ข้าว'!H7 -> 90 | I5: ='input ข้าว'!I7 -> 90 | J5: ='input ข้าว'!J7 -> 90 | K5: ='input ข้าว'!K7 -> 90 | L5: ='input ข้าว'!L7 -> 90 | M5: ='input ข้าว'!M7 -> 90 | N5: ='input ข้าว'!N7 -> 77 | O5: ='input ข้าว'!O7 -> 77 | P5: ='input ข้าว'!P7 -> 77 | Q5: ='input ข้าว'!Q7 -> 77 | R5: ='input ข้าว'!R7 -> 77 | S5: ='input ข้าว'!S7 -> 85 | T5: ='input ข้าว'!T7 -> 85 | U5: ='input ข้าว'!U7 -> 85 | V5: ='input ข้าว'!V7 -> 85 | W5: ='input ข้าว'!W7 -> 85 | X5: ='input ข้าว'!X7 -> 85 | Y5: ='input ข้าว'!Y7 -> 85 | Z5: ='input ข้าว'!Z7 -> 85 | AA5: ='input ข้าว'!AA7 -> 100 | AB5: ='input ข้าว'!AB7 -> 100 | AC5: ='input ข้าว'!AC7 -> 100 | AD5: ='input ข้าว'!AD7 -> 100 | AE5: ='input ข้าว'!AE7 -> 100 | AF5: ='input ข้าว'!AF7 -> 100 | AG5: ='input ข้าว'!AG7 -> 77 | AH5: ='input ข้าว'!AH7 -> 77 | AI5: ='input ข้าว'!AI7 -> 77 | AJ5: ='input ข้าว'!AJ7 -> 77 | AK5: ='input ข้าว'!AK7 -> 77 | AL5: ='input ข้าว'!AL7 -> 77 | AM5: ='input ข้าว'!AM7 -> 65 | AN5: ='input ข้าว'!AN7 -> 65 | AO5: ='input ข้าว'!AO7 -> 85 | AP5: ='input ข้าว'!AP7 -> 85 | AQ5: ='input ข้าว'!AQ7 -> 85
A6: วัน | C6: บ่อปลา (ไร่ พื้นที่สะสมรายสัปดาห์)
A7: =+'input ข้าว'!A22 -> 2017-11-01 | B7: =+A7+6 -> 2017-11-07 | C7: 0 | D7: 294 | E7: 119 | F7: 6008 | G7: 150 | H7: 18704 | I7: 0 | J7: 0 | K7: 2072 | L7: 2052 | M7: 0 | N7: 0 | O7: 5762 | P7: 4194 | Q7: 3070 | R7: 3343 | S7: 245 | T7: 1299 | U7: 1163 | V7: 1712 | W7: 1159 | X7: 1785 | Y7: 0 | Z7: 70 | AA7: 0 | AB7: 891 | AC7: 2857 | AD7: 10873 | AE7: 99635 | AF7: 57600 | AG7: 0 | AH7: 0 | AI7: 0 | AJ7: 99 | AK7: 0 | AL7: 149 | AM7: 0 | AN7: 0 | AO7: 0 | AP7: 0 | AQ7: 0
A8: =+A7+7 -> 2017-11-08 | B8: 2017-11-14 | C8: 0 | D8: 294 | E8: 119 | F8: 6008 | G8: 150 | H8: 18704 | I8: 0 | J8: 97 | K8: 2072 | L8: 2052 | M8: 0 | N8: 0 | O8: 5762 | P8: 4194 | Q8: 3070 | R8: 3343 | S8: 245 | T8: 1299 | U8: 1163 | V8: 1712 | W8: 1159 | X8: 1785 | Y8: 0 | Z8: 70 | AA8: 0 | AB8: 891 | AC8: 2856 | AD8: 10873 | AE8: 99635 | AF8: 57600 | AG8: 0 | AH8: 0 | AI8: 0 | AJ8: 99 | AK8: 0 | AL8: 149 | AM8: 0 | AN8: 0 | AO8: 0 | AP8: 0 | AQ8: 0
A9: =+A8+7 -> 2017-11-15 | B9: 2017-11-21 | C9: 0 | D9: 294 | E9: 119 | F9: 6008 | G9: 150 | H9: 18704 | I9: 0 | J9: 97 | K9: 2072 | L9: 2052 | M9: 0 | N9: 0 | O9: 5762 | P9: 4194 | Q9: 3070 | R9: 3343 | S9: 245 | T9: 1299 | U9: 1163 | V9: 1712 | W9: 1159 | X9: 1785 | Y9: 0 | Z9: 70 | AA9: 0 | AB9: 891 | AC9: 2856 | AD9: 10873 | AE9: 99635 | AF9: 57600 | AG9: 0 | AH9: 0 | AI9: 0 | AJ9: 99 | AK9: 0 | AL9: 149 | AM9: 0 | AN9: 0 | AO9: 0 | AP9: 0 | AQ9: 0
A10: 2017-11-22 | B10: 2017-11-28 | C10: 0 | D10: 294 | E10: 119 | F10: 6008 | G10: 150 | H10: 18704 | I10: 0 | J10: 97 | K10: 2072 | L10: 2052 | M10: 0 | N10: 0 | O10: 5762 | P10: 4194 | Q10: 3070 | R10: 3343 | S10: 245 | T10: 1299 | U10: 1163 | V10: 1712 | W10: 1159 | X10: 1785 | Y10: 0 | Z10: 70 | AA10: 0 | AB10: 891 | AC10: 2856 | AD10: 10873 | AE10: 99635 | AF10: 57600 | AG10: 0 | AH10: 0 | AI10: 0 | AJ10: 99 | AK10: 0 | AL10: 149 | AM10: 0 | AN10: 0 | AO10: 0 | AP10: 0 | AQ10: 0
A11: 2017-11-29 | B11: 2017-12-05 | C11: 0 | D11: 294 | E11: 119 | F11: 6008 | G11: 150 | H11: 18704 | I11: 0 | J11: 97 | K11: 2072 | L11: 2052 | M11: 0 | N11: 0 | O11: 5762 | P11: 4194 | Q11: 3070 | R11: 3343 | S11: 245 | T11: 1299 | U11: 1163 | V11: 1712 | W11: 1159 | X11: 1785 | Y11: 0 | Z11: 70 | AA11: 0 | AB11: 891 | AC11: 2856 | AD11: 10873 | AE11: 99635 | AF11: 57600 | AG11: 0 | AH11: 0 | AI11: 0 | AJ11: 99 | AK11: 0 | AL11: 99 | AM11: 0 | AN11: 0 | AO11: 0 | AP11: 0 | AQ11: 0
A12: 2017-12-06 | B12: 2017-12-12 | C12: 0 | D12: 294 | E12: 119 | F12: 6008 | G12: 150 | H12: 18704 | I12: 0 | J12: 97 | K12: 2072 | L12: 2052 | M12: 0 | N12: 0 | O12: 5762 | P12: 4194 | Q12: 3070 | R12: 3343 | S12: 245 | T12: 1299 | U12: 1163 | V12: 1712 | W12: 1159 | X12: 1785 | Y12: 0 | Z12: 70 | AA12: 0 | AB12: 891 | AC12: 2856 | AD12: 10873 | AE12: 99635 | AF12: 57600 | AG12: 0 | AH12: 0 | AI12: 0 | AJ12: 99 | AK12: 0 | AL12: 149 | AM12: 0 | AN12: 0 | AO12: 0 | AP12: 0 | AQ12: 0
A13: 2017-12-13 | B13: 2017-12-19 | C13: 0 | D13: 294 | E13: 119 | F13: 6008 | G13: 150 | H13: 18704 | I13: 0 | J13: 97 | K13: 2072 | L13: 2052 | M13: 0 | N13: 0 | O13: 5762 | P13: 4194 | Q13: 3070 | R13: 3343 | S13: 245 | T13: 1299 | U13: 1163 | V13: 1712 | W13: 1159 | X13: 1785 | Y13: 0 | Z13: 0 | AA13: 0 | AB13: 891 | AC13: 2856 | AD13: 10873 | AE13: 99635 | AF13: 57600 | AG13: 0 | AH13: 0 | AI13: 0 | AJ13: 99 | AK13: 0 | AL13: 149 | AM13: 0 | AN13: 0 | AO13: 0 | AP13: 0 | AQ13: 0
A14: 2017-12-20 | B14: 2017-12-26 | C14: 0 | D14: 294 | E14: 119 | F14: 6008 | G14: 150 | H14: 18704 | I14: 0 | J14: 97 | K14: 2072 | L14: 2052 | M14: 0 | N14: 0 | O14: 5762 | P14: 4194 | Q14: 3230 | R14: 3343 | S14: 245 | T14: 1299 | U14: 1163 | V14: 1712 | W14: 1159 | X14: 5432 | Y14: 0 | Z14: 0 | AA14: 0 | AB14: 891 | AC14: 2856 | AD14: 10873 | AE14: 99635 | AF14: 57600 | AG14: 0 | AH14: 0 | AI14: 0 | AJ14: 99 | AK14: 0 | AL14: 149 | AM14: 0 | AN14: 0 | AO14: 0 | AP14: 0 | AQ14: 0
A15: 2017-12-27 | B15: 2018-01-02 | C15: 0 | D15: 294 | E15: 119 | F15: 6008 | G15: 150 | H15: 18704 | I15: 0 | J15: 97 | K15: 2072 | L15: 2052 | M15: 0 | N15: 0 | O15: 5762 | P15: 4194 | Q15: 3230 | R15: 3343 | S15: 245 | T15: 1299 | U15: 1163 | V15: 1712 | W15: 1159 | X15: 5432 | Y15: 0 | Z15: 0 | AA15: 0 | AB15: 891 | AC15: 2856 | AD15: 10873 | AE15: 99635 | AF15: 57600 | AG15: 0 | AH15: 0 | AI15: 0 | AJ15: 99 | AK15: 0 | AL15: 149 | AM15: 0 | AN15: 0 | AO15: 0 | AP15: 0 | AQ15: 0
A16: 2018-01-03 | B16: 2018-01-09 | C16: 0 | D16: 294 | E16: 119 | F16: 6008 | G16: 150 | H16: 18704 | I16: 0 | J16: 97 | K16: 2072 | L16: 2052 | M16: 0 | N16: 0 | O16: 5762 | P16: 4649 | Q16: 3230 | R16: 3343 | S16: 245 | T16: 1299 | U16: 1163 | V16: 1712 | W16: 1159 | X16: 5432 | Y16: 0 | Z16: 0 | AA16: 0 | AB16: 891 | AC16: 2856 | AD16: 10873 | AE16: 99635 | AF16: 57600 | AG16: 0 | AH16: 0 | AI16: 0 | AJ16: 99 | AK16: 0 | AL16: 149 | AM16: 0 | AN16: 0 | AO16: 0 | AP16: 0 | AQ16: 0
A17: 2018-01-10 | B17: 2018-01-16 | C17: 0 | D17: 294 | E17: 119 | F17: 6011 | G17: 150 | H17: 18704 | I17: 0 | J17: 97 | K17: 2072 | L17: 2052 | M17: 0 | N17: 0 | O17: 5762 | P17: 4649 | Q17: 3230 | R17: 3343 | S17: 245 | T17: 1299 | U17: 1163 | V17: 1712 | W17: 1159 | X17: 5432 | Y17: 0 | Z17: 0 | AA17: 0 | AB17: 891 | AC17: 2856 | AD17: 10873 | AE17: 99635 | AF17: 0 | AG17: 0 | AH17: 0 | AI17: 0 | AJ17: 629 | AK17: 0 | AL17: 149 | AM17: 0 | AN17: 0 | AO17: 0 | AP17: 0 | AQ17: 0
A18: 2018-01-17 | B18: 2018-01-23 | C18: 0 | D18: 294 | E18: 119 | F18: 6011 | G18: 150 | H18: 18704 | I18: 0 | J18: 97 | K18: 2072 | L18: 2052 | M18: 0 | N18: 0 | O18: 5762 | P18: 4649 | Q18: 3230 | R18: 3273 | S18: 245 | T18: 1299 | U18: 1163 | V18: 1712 | W18: 1159 | X18: 5432 | Y18: 0 | Z18: 0 | AA18: 0 | AB18: 891 | AC18: 2856 | AD18: 10873 | AE18: 99635 | AF18: 0 | AG18: 0 | AH18: 0 | AI18: 0 | AJ18: 629 | AK18: 0 | AL18: 149 | AM18: 0 | AN18: 0 | AO18: 0 | AP18: 0 | AQ18: 0
A19: 2018-01-24 | B19: 2018-01-30 | C19: 0 | D19: 294 | E19: 119 | F19: 6011 | G19: 150 | H19: 18704 | I19: 0 | J19: 97 | K19: 2072 | L19: 2052 | M19: 0 | N19: 0 | O19: 5762 | P19: 4649 | Q19: 3230 | R19: 3273 | S19: 245 | T19: 1299 | U19: 1163 | V19: 1712 | W19: 1159 | X19: 5432 | Y19: 0 | Z19: 0 | AA19: 0 | AB19: 891 | AC19: 2856 | AD19: 10873 | AE19: 99635 | AF19: 0 | AG19: 0 | AH19: 0 | AI19: 0 | AJ19: 629 | AK19: 0 | AL19: 149 | AM19: 0 | AN19: 0 | AO19: 0 | AP19: 0 | AQ19: 0
A20: 2018-01-31 | B20: 2018-02-06 | C20: 0 | D20: 294 | E20: 119 | F20: 6011 | G20: 150 | H20: 18704 | I20: 0 | J20: 97 | K20: 2072 | L20: 2052 | M20: 0 | N20: 0 | O20: 5762 | P20: 4649 | Q20: 3230 | R20: 3273 | S20: 245 | T20: 1299 | U20: 1163 | V20: 1712 | W20: 1159 | X20: 5432 | Y20: 0 | Z20: 0 | AA20: 0 | AB20: 891 | AC20: 2856 | AD20: 10873 | AE20: 99635 | AF20: 0 | AG20: 0 | AH20: 0 | AI20: 0 | AJ20: 629 | AK20: 0 | AL20: 149 | AM20: 0 | AN20: 0 | AO20: 0 | AP20: 0 | AQ20: 0
A21: 2018-02-07 | B21: 2018-02-13 | C21: 0 | D21: 294 | E21: 119 | F21: 6011 | G21: 150 | H21: 18704 | I21: 0 | J21: 97 | K21: 2072 | L21: 2052 | M21: 0 | N21: 0 | O21: 5762 | P21: 4649 | Q21: 3230 | R21: 3273 | S21: 245 | T21: 1299 | U21: 1163 | V21: 1712 | W21: 1159 | X21: 5432 | Y21: 0 | Z21: 0 | AA21: 0 | AB21: 891 | AC21: 2856 | AD21: 10873 | AE21: 99635 | AF21: 0 | AG21: 0 | AH21: 0 | AI21: 0 | AJ21: 629 | AK21: 0 | AL21: 149 | AM21: 0 | AN21: 0 | AO21: 0 | AP21: 0 | AQ21: 0
A22: 2018-02-14 | B22: 2018-02-20 | C22: 0 | D22: 294 | E22: 119 | F22: 6011 | G22: 150 | H22: 18704 | I22: 0 | J22: 97 | K22: 2072 | L22: 1982 | M22: 0 | N22: 0 | O22: 5762 | P22: 4649 | Q22: 3230 | R22: 3273 | S22: 245 | T22: 1299 | U22: 1163 | V22: 1712 | W22: 1159 | X22: 5432 | Y22: 0 | Z22: 0 | AA22: 0 | AB22: 686 | AC22: 2856 | AD22: 10873 | AE22: 99635 | AF22: 0 | AG22: 0 | AH22: 0 | AI22: 0 | AJ22: 629 | AK22: 0 | AL22: 149 | AM22: 0 | AN22: 0 | AO22: 0 | AP22: 0 | AQ22: 0
A23: 2018-02-21 | B23: 2018-02-27 | C23: 0 | D23: 294 | E23: 119 | F23: 6011 | G23: 150 | H23: 18704 | I23: 0 | J23: 97 | K23: 2072 | L23: 1982 | M23: 0 | N23: 0 | O23: 5762 | P23: 4649 | Q23: 3230 | R23: 3273 | S23: 245 | T23: 1299 | U23: 1163 | V23: 1712 | W23: 1159 | X23: 5432 | Y23: 0 | Z23: 0 | AA23: 0 | AB23: 686 | AC23: 2856 | AD23: 10873 | AE23: 99635 | AF23: 0 | AG23: 0 | AH23: 0 | AI23: 0 | AJ23: 629 | AK23: 0 | AL23: 149 | AM23: 0 | AN23: 0 | AO23: 0 | AP23: 0 | AQ23: 0
A24: 2018-02-28 | B24: 2018-03-06 | C24: 0 | D24: 294 | E24: 119 | F24: 6011 | G24: 150 | H24: 18704 | I24: 0 | J24: 97 | K24: 2072 | L24: 1982 | M24: 0 | N24: 0 | O24: 5762 | P24: 4649 | Q24: 3230 | R24: 3273 | S24: 245 | T24: 1299 | U24: 1163 | V24: 1712 | W24: 1159 | X24: 5432 | Y24: 0 | Z24: 0 | AA24: 0 | AB24: 686 | AC24: 2856 | AD24: 10873 | AE24: 99635 | AF24: 0 | AG24: 0 | AH24: 0 | AI24: 0 | AJ24: 629 | AK24: 0 | AL24: 149 | AM24: 0 | AN24: 0 | AO24: 0 | AP24: 0 | AQ24: 0
A25: 2018-03-07 | B25: 2018-03-13 | C25: 0 | D25: 294 | E25: 119 | F25: 6011 | G25: 150 | H25: 18704 | I25: 0 | J25: 97 | K25: 2072 | L25: 1982 | M25: 0 | N25: 0 | O25: 5762 | P25: 4649 | Q25: 2210 | R25: 3273 | S25: 245 | T25: 1299 | U25: 1163 | V25: 1712 | W25: 1159 | X25: 5432 | Y25: 0 | Z25: 0 | AA25: 0 | AB25: 686 | AC25: 2856 | AD25: 10873 | AE25: 99635 | AF25: 0 | AG25: 0 | AH25: 0 | AI25: 0 | AJ25: 629 | AK25: 0 | AL25: 149 | AM25: 0 | AN25: 0 | AO25: 0 | AP25: 0 | AQ25: 0
A26: 2018-03-14 | B26: 2018-03-20 | C26: 0 | D26: 294 | E26: 119 | F26: 6011 | G26: 150 | H26: 18704 | I26: 0 | J26: 97 | K26: 2072 | L26: 2052 | M26: 0 | N26: 0 | O26: 5762 | P26: 4649 | Q26: 3230 | R26: 3273 | S26: 245 | T26: 1299 | U26: 1163 | V26: 1712 | W26: 1159 | X26: 5432 | Y26: 0 | Z26: 0 | AA26: 0 | AB26: 686 | AC26: 2856 | AD26: 10873 | AE26: 99635 | AF26: 0 | AG26: 0 | AH26: 0 | AI26: 0 | AJ26: 629 | AK26: 0 | AL26: 149 | AM26: 0 | AN26: 0 | AO26: 0 | AP26: 0 | AQ26: 0
A27: 2018-03-21 | B27: 2018-03-27 | C27: 0 | D27: 294 | E27: 119 | F27: 6011 | G27: 150 | H27: 18704 | I27: 0 | J27: 97 | K27: 2072 | L27: 2052 | M27: 0 | N27: 0 | O27: 5762 | P27: 4649 | Q27: 3230 | R27: 3273 | S27: 245 | T27: 1299 | U27: 1163 | V27: 1712 | W27: 1159 | X27: 5432 | Y27: 0 | Z27: 0 | AA27: 0 | AB27: 686 | AC27: 2856 | AD27: 10873 | AE27: 99635 | AF27: 0 | AG27: 0 | AH27: 0 | AI27: 0 | AJ27: 629 | AK27: 0 | AL27: 149 | AM27: 0 | AN27: 0 | AO27: 0 | AP27: 0 | AQ27: 0
A28: 2018-03-28 | B28: 2018-04-03 | C28: 0 | D28: 294 | E28: 119 | F28: 6011 | G28: 150 | H28: 18704 | I28: 0 | J28: 97 | K28: 2072 | L28: 2052 | M28: 0 | N28: 0 | O28: 5762 | P28: 4649 | Q28: 3230 | R28: 3273 | S28: 245 | T28: 1299 | U28: 1163 | V28: 1712 | W28: 1159 | X28: 5432 | Y28: 0 | Z28: 0 | AA28: 0 | AB28: 686 | AC28: 2856 | AD28: 10873 | AE28: 99635 | AF28: 0 | AG28: 0 | AH28: 0 | AI28: 0 | AJ28: 629 | AK28: 0 | AL28: 149 | AM28: 0 | AN28: 0 | AO28: 0 | AP28: 0 | AQ28: 0
A29: 2018-04-04 | B29: 2018-04-10 | C29: 0 | D29: 294 | E29: 119 | F29: 6011 | G29: 150 | H29: 18704 | I29: 0 | J29: 97 | K29: 2072 | L29: 2052 | M29: 0 | N29: 0 | O29: 5762 | P29: 4649 | Q29: 3230 | R29: 3273 | S29: 245 | T29: 1299 | U29: 1163 | V29: 1712 | W29: 1159 | X29: 5432 | Y29: 0 | Z29: 0 | AA29: 0 | AB29: 686 | AC29: 2856 | AD29: 10873 | AE29: 99635 | AF29: 0 | AG29: 0 | AH29: 0 | AI29: 0 | AJ29: 629 | AK29: 0 | AL29: 149 | AM29: 0 | AN29: 0 | AO29: 0 | AP29: 0 | AQ29: 0
A30: 2018-04-11 | B30: 2018-04-17 | C30: 0 | D30: 294 | E30: 119 | F30: 6011 | G30: 150 | H30: 18704 | I30: 0 | J30: 97 | K30: 2072 | L30: 2052 | M30: 0 | N30: 0 | O30: 5762 | P30: 4649 | Q30: 3230 | R30: 3273 | S30: 245 | T30: 1299 | U30: 1163 | V30: 1712 | W30: 1159 | X30: 5432 | Y30: 0 | Z30: 0 | AA30: 0 | AB30: 686 | AC30: 2856 | AD30: 10873 | AE30: 99635 | AF30: 0 | AG30: 0 | AH30: 0 | AI30: 0 | AJ30: 629 | AK30: 0 | AL30: 149 | AM30: 0 | AN30: 0 | AO30: 0 | AP30: 0 | AQ30: 0
A31: 2018-04-18 | B31: 2018-04-24 | C31: 0 | D31: 294 | E31: 119 | F31: 6011 | G31: 150 | H31: 18704 | I31: 0 | J31: 97 | K31: 2072 | L31: 2052 | M31: 0 | N31: 0 | O31: 5762 | P31: 4649 | Q31: 3230 | R31: 3273 | S31: 245 | T31: 1299 | U31: 1163 | V31: 1712 | W31: 1159 | X31: 5432 | Y31: 0 | Z31: 0 | AA31: 0 | AB31: 686 | AC31: 2856 | AD31: 10873 | AE31: 99635 | AF31: 0 | AG31: 0 | AH31: 0 | AI31: 0 | AJ31: 629 | AK31: 0 | AL31: 149 | AM31: 0 | AN31: 0 | AO31: 0 | AP31: 0 | AQ31: 0
A32: 2018-04-25 | B32: 2018-05-01 | C32: 0 | D32: 294 | E32: 119 | F32: 6011 | G32: 150 | H32: 18704 | I32: 0 | J32: 97 | K32: 2072 | L32: 2052 | M32: 0 | N32: 0 | O32: 5762 | P32: 4649 | Q32: 3230 | R32: 3273 | S32: 245 | T32: 1299 | U32: 1163 | V32: 1712 | W32: 1159 | X32: 5432 | Y32: 0 | Z32: 0 | AA32: 0 | AB32: 686 | AC32: 2856 | AD32: 10873 | AE32: 99635 | AF32: 0 | AG32: 0 | AH32: 0 | AI32: 0 | AJ32: 629 | AK32: 0 | AL32: 149 | AM32: 0 | AN32: 0 | AO32: 0 | AP32: 0 | AQ32: 0
A33: 2018-05-02 | B33: 2018-05-08 | C33: 0 | D33: 294 | E33: 119 | F33: 6011 | G33: 150 | H33: 18704 | I33: 0 | J33: 97 | K33: 2072 | L33: 2052 | M33: 0 | N33: 0 | O33: 5762 | P33: 4649 | Q33: 3230 | R33: 3273 | S33: 245 | T33: 1299 | U33: 1163 | V33: 1712 | W33: 1159 | X33: 5432 | Y33: 0 | Z33: 0 | AA33: 0 | AB33: 686 | AC33: 2856 | AD33: 10873 | AE33: 99635 | AF33: 0 | AG33: 0 | AH33: 0 | AI33: 0 | AJ33: 629 | AK33: 0 | AL33: 149 | AM33: 0 | AN33: 0 | AO33: 0 | AP33: 0 | AQ33: 0
A34: 2018-05-09 | B34: 2018-05-15 | C34: 0 | D34: 294 | E34: 119 | F34: 6011 | G34: 194 | H34: 18704 | I34: 0 | J34: 97 | K34: 2072 | L34: 2052 | M34: 0 | N34: 0 | O34: 5762 | P34: 4649 | Q34: 3230 | R34: 3273 | S34: 245 | T34: 1299 | U34: 1163 | V34: 1712 | W34: 1159 | X34: 5432 | Y34: 0 | Z34: 0 | AA34: 0 | AB34: 686 | AC34: 2857 | AD34: 10873 | AE34: 99635 | AF34: 0 | AG34: 0 | AH34: 0 | AI34: 0 | AJ34: 629 | AK34: 0 | AL34: 149 | AM34: 0 | AN34: 0 | AO34: 0 | AP34: 0 | AQ34: 0
A35: 2018-05-16 | B35: 2018-05-22 | C35: 0 | D35: 294 | E35: 119 | F35: 6011 | G35: 194 | H35: 18704 | I35: 0 | J35: 97 | K35: 2072 | L35: 2052 | M35: 0 | N35: 0 | O35: 5762 | P35: 4318 | Q35: 3070 | R35: 3273 | S35: 245 | T35: 1299 | U35: 1163 | V35: 1712 | W35: 1159 | X35: 5432 | Y35: 0 | Z35: 0 | AA35: 0 | AB35: 686 | AC35: 2857 | AD35: 10873 | AE35: 99635 | AF35: 0 | AG35: 0 | AH35: 0 | AI35: 0 | AJ35: 629 | AK35: 0 | AL35: 149 | AM35: 0 | AN35: 0 | AO35: 0 | AP35: 0 | AQ35: 0
A36: 2018-05-23 | B36: 2018-05-29 | C36: 0 | D36: 294 | E36: 119 | F36: 6011 | G36: 194 | H36: 18704 | I36: 0 | J36: 97 | K36: 2072 | L36: 2052 | M36: 0 | N36: 0 | O36: 5762 | P36: 4318 | Q36: 3070 | R36: 3273 | S36: 245 | T36: 1299 | U36: 1163 | V36: 1712 | W36: 1159 | X36: 5432 | Y36: 0 | Z36: 0 | AA36: 0 | AB36: 686 | AC36: 2857 | AD36: 10873 | AE36: 99635 | AF36: 0 | AG36: 0 | AH36: 0 | AI36: 0 | AJ36: 629 | AK36: 0 | AL36: 149 | AM36: 0 | AN36: 0 | AO36: 0 | AP36: 0 | AQ36: 0
A37: 2018-05-30 | B37: 2018-06-05 | C37: 0 | D37: 294 | E37: 119 | F37: 6011 | G37: 194 | H37: 18704 | I37: 0 | J37: 97 | K37: 2072 | L37: 2052 | M37: 0 | N37: 0 | O37: 5762 | P37: 4318 | Q37: 3070 | R37: 3273 | S37: 245 | T37: 1299 | U37: 1163 | V37: 1712 | W37: 1159 | X37: 5432 | Y37: 0 | Z37: 0 | AA37: 0 | AB37: 686 | AC37: 2857 | AD37: 10873 | AE37: 99635 | AF37: 0 | AG37: 0 | AH37: 0 | AI37: 0 | AJ37: 629 | AK37: 0 | AL37: 149 | AM37: 0 | AN37: 0 | AO37: 0 | AP37: 0 | AQ37: 0
A38: 2018-06-06 | B38: 2018-06-12 | C38: 0 | D38: 326 | E38: 119 | F38: 6011 | G38: 194 | H38: 18704 | I38: 0 | J38: 97 | K38: 2072 | L38: 2052 | M38: 0 | N38: 0 | O38: 5762 | P38: 4318 | Q38: 3070 | R38: 3273 | S38: 245 | T38: 1299 | U38: 1163 | V38: 1712 | W38: 1159 | X38: 5432 | Y38: 0 | Z38: 0 | AA38: 0 | AB38: 686 | AC38: 2857 | AD38: 10873 | AE38: 99635 | AF38: 0 | AG38: 0 | AH38: 0 | AI38: 0 | AJ38: 629 | AK38: 0 | AL38: 149 | AM38: 0 | AN38: 0 | AO38: 0 | AP38: 0 | AQ38: 0
A39: 2018-06-13 | B39: 2018-06-19 | C39: 0 | D39: 326 | E39: 119 | F39: 6011 | G39: 194 | H39: 18704 | I39: 0 | J39: 97 | K39: 2072 | L39: 2052 | M39: 0 | N39: 0 | O39: 5762 | P39: 4318 | Q39: 3070 | R39: 3273 | S39: 245 | T39: 1299 | U39: 1163 | V39: 1712 | W39: 1159 | X39: 5432 | Y39: 0 | Z39: 0 | AA39: 0 | AB39: 3 | AC39: 2857 | AD39: 10873 | AE39: 99635 | AF39: 127940 | AG39: 0 | AH39: 0 | AI39: 0 | AJ39: 629 | AK39: 0 | AL39: 149 | AM39: 0 | AN39: 0 | AO39: 0 | AP39: 0 | AQ39: 0
A40: 2018-06-20 | B40: 2018-06-26 | C40: 0 | D40: 326 | E40: 119 | F40: 6011 | G40: 194 | H40: 18704 | I40: 0 | J40: 97 | K40: 2072 | L40: 2052 | M40: 0 | N40: 0 | O40: 5762 | P40: 4318 | Q40: 3070 | R40: 3273 | S40: 245 | T40: 1299 | U40: 1163 | V40: 1712 | W40: 1159 | X40: 5432 | Y40: 0 | Z40: 0 | AA40: 0 | AB40: 15 | AC40: 2857 | AD40: 10873 | AE40: 99635 | AF40: 127940 | AG40: 0 | AH40: 0 | AI40: 0 | AJ40: 533 | AK40: 0 | AL40: 149 | AM40: 0 | AN40: 0 | AO40: 0 | AP40: 0 | AQ40: 0
A41: 2018-06-27 | B41: 2018-07-03 | C41: 0 | D41: 326 | E41: 119 | F41: 6011 | G41: 194 | H41: 18704 | I41: 0 | J41: 97 | K41: 2072 | L41: 2052 | M41: 0 | N41: 0 | O41: 5762 | P41: 4318 | Q41: 3070 | R41: 3273 | S41: 245 | T41: 1299 | U41: 1163 | V41: 1712 | W41: 1159 | X41: 5432 | Y41: 0 | Z41: 0 | AA41: 0 | AB41: 15 | AC41: 2857 | AD41: 10873 | AE41: 99635 | AF41: 127940 | AG41: 0 | AH41: 0 | AI41: 0 | AJ41: 533 | AK41: 0 | AL41: 149 | AM41: 0 | AN41: 0 | AO41: 0 | AP41: 0 | AQ41: 0
A42: 2018-07-04 | B42: 2018-07-10 | C42: 0 | D42: 326 | E42: 119 | F42: 6011 | G42: 194 | H42: 18704 | I42: 0 | J42: 97 | K42: 2072 | L42: 2052 | M42: 0 | N42: 0 | O42: 5762 | P42: 4318 | Q42: 3070 | R42: 3273 | S42: 245 | T42: 1299 | U42: 1163 | V42: 1712 | W42: 1159 | X42: 5432 | Y42: 0 | Z42: 0 | AA42: 0 | AB42: 69 | AC42: 2857 | AD42: 10873 | AE42: 99635 | AF42: 127940 | AG42: 0 | AH42: 0 | AI42: 0 | AJ42: 533 | AK42: 0 | AL42: 149 | AM42: 0 | AN42: 0 | AO42: 0 | AP42: 0 | AQ42: 0
A43: 2018-07-11 | B43: 2018-07-17 | C43: 0 | D43: 326 | E43: 119 | F43: 6011 | G43: 194 | H43: 18704 | I43: 0 | J43: 97 | K43: 2072 | L43: 2052 | M43: 0 | N43: 0 | O43: 5762 | P43: 4318 | Q43: 3070 | R43: 3273 | S43: 245 | T43: 1299 | U43: 1163 | V43: 1712 | W43: 1159 | X43: 5432 | Y43: 0 | Z43: 0 | AA43: 0 | AB43: 90 | AC43: 2857 | AD43: 5990 | AE43: 99635 | AF43: 127940 | AG43: 0 | AH43: 0 | AI43: 0 | AJ43: 533 | AK43: 0 | AL43: 149 | AM43: 0 | AN43: 0 | AO43: 0 | AP43: 0 | AQ43: 0
A44: 2018-07-18 | B44: 2018-07-24 | C44: 0 | D44: 294 | E44: 119 | F44: 6011 | G44: 194 | H44: 18704 | I44: 0 | J44: 97 | K44: 2072 | L44: 2052 | M44: 0 | N44: 0 | O44: 5762 | P44: 4318 | Q44: 3070 | R44: 3273 | S44: 245 | T44: 1299 | U44: 1163 | V44: 6742 | W44: 1159 | X44: 5432 | Y44: 0 | Z44: 0 | AA44: 0 | AB44: 891 | AC44: 2857 | AD44: 5990 | AE44: 99635 | AF44: 127940 | AG44: 0 | AH44: 0 | AI44: 0 | AJ44: 533 | AK44: 0 | AL44: 149 | AM44: 0 | AN44: 0 | AO44: 0 | AP44: 0 | AQ44: 0
A45: 2018-07-25 | B45: 2018-07-31 | C45: 0 | D45: 326 | E45: 119 | F45: 6011 | G45: 194 | H45: 18704 | I45: 0 | J45: 97 | K45: 2072 | L45: 2052 | M45: 0 | N45: 0 | O45: 5762 | P45: 4318 | Q45: 3070 | R45: 3273 | S45: 245 | T45: 1299 | U45: 1163 | V45: 6742 | W45: 1159 | X45: 5432 | Y45: 0 | Z45: 0 | AA45: 0 | AB45: 891 | AC45: 2857 | AD45: 5990 | AE45: 99635 | AF45: 127940 | AG45: 0 | AH45: 0 | AI45: 0 | AJ45: 533 | AK45: 0 | AL45: 149 | AM45: 0 | AN45: 0 | AO45: 0 | AP45: 0 | AQ45: 0
A46: 2018-08-01 | B46: 2018-08-07 | C46: 0 | D46: 326 | E46: 119 | F46: 6011 | G46: 194 | H46: 18704 | I46: 0 | J46: 97 | K46: 2072 | L46: 2052 | M46: 0 | N46: 0 | O46: 5762 | P46: 4318 | Q46: 3070 | R46: 3273 | S46: 245 | T46: 1299 | U46: 1163 | V46: 6742 | W46: 1159 | X46: 5432 | Y46: 0 | Z46: 0 | AA46: 0 | AB46: 891 | AC46: 2857 | AD46: 5990 | AE46: 99635 | AF46: 127940 | AG46: 0 | AH46: 0 | AI46: 0 | AJ46: 533 | AK46: 0 | AL46: 149 | AM46: 0 | AN46: 0 | AO46: 0 | AP46: 0 | AQ46: 0
A47: 2018-08-08 | B47: 2018-08-14 | C47: 0 | D47: 326 | E47: 119 | F47: 6011 | G47: 194 | H47: 18704 | I47: 0 | J47: 97 | K47: 2072 | L47: 2052 | M47: 0 | N47: 0 | O47: 5762 | P47: 4318 | Q47: 3070 | R47: 3273 | S47: 245 | T47: 1299 | U47: 1163 | V47: 6742 | W47: 1159 | X47: 5432 | Y47: 0 | Z47: 0 | AA47: 0 | AB47: 891 | AC47: 2857 | AD47: 5990 | AE47: 99635 | AF47: 127940 | AG47: 0 | AH47: 0 | AI47: 0 | AJ47: 533 | AK47: 0 | AL47: 149 | AM47: 0 | AN47: 0 | AO47: 0 | AP47: 0 | AQ47: 0
A48: 2018-08-15 | B48: 2018-08-21 | C48: 0 | D48: 326 | E48: 119 | F48: 6011 | G48: 194 | H48: 18704 | I48: 0 | J48: 97 | K48: 2072 | L48: 2052 | M48: 0 | N48: 0 | O48: 5762 | P48: 4318 | Q48: 3070 | R48: 3273 | S48: 245 | T48: 1299 | U48: 1163 | V48: 6742 | W48: 1159 | X48: 5432 | Y48: 0 | Z48: 0 | AA48: 0 | AB48: 891 | AC48: 2857 | AD48: 5990 | AE48: 99635 | AF48: 127940 | AG48: 0 | AH48: 0 | AI48: 0 | AJ48: 533 | AK48: 0 | AL48: 149 | AM48: 0 | AN48: 0 | AO48: 0 | AP48: 0 | AQ48: 0
A49: 2018-08-22 | B49: 2018-08-28 | C49: 0 | D49: 326 | E49: 119 | F49: 6011 | G49: 194 | H49: 18704 | I49: 0 | J49: 97 | K49: 2072 | L49: 2052 | M49: 0 | N49: 0 | O49: 5762 | P49: 4318 | Q49: 3070 | R49: 3273 | S49: 245 | T49: 1299 | U49: 1163 | V49: 6742 | W49: 1159 | X49: 5432 | Y49: 0 | Z49: 0 | AA49: 0 | AB49: 891 | AC49: 2857 | AD49: 10873 | AE49: 99635 | AF49: 127940 | AG49: 0 | AH49: 0 | AI49: 0 | AJ49: 533 | AK49: 0 | AL49: 149 | AM49: 0 | AN49: 0 | AO49: 0 | AP49: 0 | AQ49: 0
A50: 2018-08-29 | B50: 2018-09-04 | C50: 0 | D50: 326 | E50: 119 | F50: 6011 | G50: 194 | H50: 18704 | I50: 0 | J50: 97 | K50: 2072 | L50: 2052 | M50: 0 | N50: 0 | O50: 5762 | P50: 4318 | Q50: 3070 | R50: 3273 | S50: 245 | T50: 1299 | U50: 1163 | V50: 6742 | W50: 1159 | X50: 5432 | Y50: 0 | Z50: 0 | AA50: 0 | AB50: 891 | AC50: 2857 | AD50: 10873 | AE50: 99635 | AF50: 127940 | AG50: 0 | AH50: 0 | AI50: 0 | AJ50: 533 | AK50: 0 | AL50: 149 | AM50: 0 | AN50: 0 | AO50: 0 | AP50: 0 | AQ50: 0
A51: 2018-09-05 | B51: 2018-09-11 | C51: 0 | D51: 326 | E51: 119 | F51: 6011 | G51: 194 | H51: 18704 | I51: 0 | J51: 97 | K51: 2072 | L51: 2052 | M51: 0 | N51: 0 | O51: 5762 | P51: 4318 | Q51: 3070 | R51: 3273 | S51: 245 | T51: 1299 | U51: 1163 | V51: 6742 | W51: 1159 | X51: 5432 | Y51: 0 | Z51: 0 | AA51: 0 | AB51: 891 | AC51: 2857 | AD51: 10873 | AE51: 99635 | AF51: 127940 | AG51: 0 | AH51: 0 | AI51: 0 | AJ51: 533 | AK51: 0 | AL51: 149 | AM51: 0 | AN51: 0 | AO51: 0 | AP51: 0 | AQ51: 0
A52: 2018-09-12 | B52: 2018-09-18 | C52: 0 | D52: 326 | E52: 119 | F52: 6011 | G52: 194 | H52: 18704 | I52: 0 | J52: 97 | K52: 2072 | L52: 2052 | M52: 0 | N52: 0 | O52: 5762 | P52: 4318 | Q52: 3070 | R52: 3273 | S52: 245 | T52: 1299 | U52: 1163 | V52: 6742 | W52: 1159 | X52: 5432 | Y52: 0 | Z52: 0 | AA52: 0 | AB52: 891 | AC52: 2857 | AD52: 10873 | AE52: 99635 | AF52: 127940 | AG52: 0 | AH52: 0 | AI52: 0 | AJ52: 533 | AK52: 0 | AL52: 149 | AM52: 0 | AN52: 0 | AO52: 0 | AP52: 0 | AQ52: 0
A53: 2018-09-19 | B53: 2018-09-25 | C53: 0 | D53: 326 | E53: 119 | F53: 6011 | G53: 194 | H53: 18704 | I53: 0 | J53: 97 | K53: 2072 | L53: 2052 | M53: 0 | N53: 0 | O53: 5762 | P53: 4318 | Q53: 3070 | R53: 3273 | S53: 245 | T53: 1299 | U53: 1163 | V53: 6742 | W53: 1159 | X53: 5432 | Y53: 0 | Z53: 0 | AA53: 0 | AB53: 891 | AC53: 2857 | AD53: 10873 | AE53: 99635 | AF53: 127940 | AG53: 0 | AH53: 0 | AI53: 0 | AJ53: 533 | AK53: 0 | AL53: 149 | AM53: 0 | AN53: 0 | AO53: 0 | AP53: 0 | AQ53: 0
A54: 2018-09-26 | B54: 2018-10-02 | C54: 0 | D54: 326 | E54: 119 | F54: 6011 | G54: 194 | H54: 18704 | I54: 0 | J54: 97 | K54: 2072 | L54: 2052 | M54: 0 | N54: 0 | O54: 5762 | P54: 4318 | Q54: 3070 | R54: 3273 | S54: 245 | T54: 1299 | U54: 1163 | V54: 6742 | W54: 1159 | X54: 5432 | Y54: 0 | Z54: 0 | AA54: 0 | AB54: 891 | AC54: 2857 | AD54: 10873 | AE54: 99635 | AF54: 127940 | AG54: 0 | AH54: 0 | AI54: 0 | AJ54: 533 | AK54: 0 | AL54: 149 | AM54: 0 | AN54: 0 | AO54: 0 | AP54: 0 | AQ54: 0
A55: 2018-10-03 | B55: 2018-10-09 | C55: 0 | D55: 326 | E55: 119 | F55: 6011 | G55: 194 | H55: 18704 | I55: 0 | J55: 97 | K55: 2072 | L55: 2052 | M55: 0 | N55: 0 | O55: 5762 | P55: 4318 | Q55: 3070 | R55: 3273 | S55: 245 | T55: 1299 | U55: 1163 | V55: 6742 | W55: 1159 | X55: 5432 | Y55: 0 | Z55: 0 | AA55: 0 | AB55: 891 | AC55: 2857 | AD55: 10873 | AE55: 99635 | AF55: 127940 | AG55: 0 | AH55: 0 | AI55: 0 | AJ55: 533 | AK55: 0 | AL55: 149 | AM55: 0 | AN55: 0 | AO55: 0 | AP55: 0 | AQ55: 0
A56: 2018-10-10 | B56: 2018-10-16 | C56: 0 | D56: 326 | E56: 119 | F56: 6011 | G56: 194 | H56: 18704 | I56: 0 | J56: 97 | K56: 2072 | L56: 2052 | M56: 0 | N56: 0 | O56: 5762 | P56: 4318 | Q56: 3070 | R56: 3273 | S56: 245 | T56: 1299 | U56: 1163 | V56: 6742 | W56: 1159 | X56: 5432 | Y56: 0 | Z56: 0 | AA56: 0 | AB56: 891 | AC56: 2857 | AD56: 10873 | AE56: 99635 | AF56: 127940 | AG56: 0 | AH56: 0 | AI56: 0 | AJ56: 533 | AK56: 0 | AL56: 149 | AM56: 0 | AN56: 0 | AO56: 0 | AP56: 0 | AQ56: 0
A57: 2018-10-17 | B57: 2018-10-23 | C57: 0 | D57: 326 | E57: 119 | F57: 6011 | G57: 194 | H57: 18704 | I57: 0 | J57: 97 | K57: 2072 | L57: 2052 | M57: 0 | N57: 0 | O57: 5762 | P57: 4318 | Q57: 3070 | R57: 3273 | S57: 245 | T57: 1299 | U57: 1163 | V57: 6742 | W57: 1159 | X57: 5432 | Y57: 0 | Z57: 0 | AA57: 0 | AB57: 891 | AC57: 2857 | AD57: 10873 | AE57: 99635 | AF57: 127940 | AG57: 0 | AH57: 0 | AI57: 0 | AJ57: 533 | AK57: 0 | AL57: 149 | AM57: 0 | AN57: 0 | AO57: 0 | AP57: 0 | AQ57: 0
A58: 2018-10-24 | B58: 2018-10-30 | C58: 0 | D58: 326 | E58: 119 | F58: 6011 | G58: 194 | H58: 18704 | I58: 0 | J58: 97 | K58: 2072 | L58: 2052 | M58: 0 | N58: 0 | O58: 5762 | P58: 4318 | Q58: 3070 | R58: 3273 | S58: 245 | T58: 1299 | U58: 1163 | V58: 6742 | W58: 1159 | X58: 5432 | Y58: 0 | Z58: 0 | AA58: 0 | AB58: 891 | AC58: 2857 | AD58: 10873 | AE58: 99635 | AF58: 127940 | AG58: 0 | AH58: 0 | AI58: 0 | AJ58: 533 | AK58: 0 | AL58: 149 | AM58: 0 | AN58: 0 | AO58: 0 | AP58: 0 | AQ58: 0

Sheet input บ่อกุ้ง
A1: ปี พ.ศ. | B1: ='input ข้าว'!B1 -> 2560 | D1: ฤดูแล้ง | E1: =RIGHT(B1,2)&"/"&RIGHT(B1+1,2) -> 60/61 | F1: ฤดูฝน | G1: =RIGHT(B1+1,2) -> 61
A2: โครงการชลประทาน | C2: ='input ข้าว'!C2 -> พลเทพ | D2: ='input ข้าว'!D2 -> ทุ่งวัดสิงห์ | E2: ='input ข้าว'!E2 -> ท่าโบสถ์ | F2: ='input ข้าว'!F2 -> สามชุก | G2: ='input ข้าว'!G2 -> ดอนเจดีย์ | H2: ='input ข้าว'!H2 -> โพธิ์พระยา | I2: ='input ข้าว'!I2 -> ชลประทานสุพรรณบุรี | J2: ='input ข้าว'!J2 -> บรมธาตุ | K2: ='input ข้าว'!K2 -> ชัณสูตร | L2: ='input ข้าว'!L2 -> ยางมณี | M2: ='input ข้าว'!M2 -> ผักไห่ | N2: ='input ข้าว'!N2 -> บางบาล | O2: ='input ข้าว'!O2 -> เจ้าเจ็ดบางยี่หน | P2: ='input ข้าว'!P2 -> พระยาบรรลือ | Q2: ='input ข้าว'!Q2 -> พระพิมล | R2: ='input ข้าว'!R2 -> ภาษีเจริญ | S2: ='input ข้าว'!S2 -> มโนรมย์ | T2: ='input ข้าว'!T2 -> ช่องแค | U2: ='input ข้าว'!U2 -> โคกกะเทียม | V2: ='input ข้าว'!V2 -> เริงราง | W2: ='input ข้าว'!W2 -> มหาราช | X2: ='input ข้าว'!X2 -> ป่าสักใต้ | Y2: ='input ข้าว'!Y2 -> นครหลวง | Z2: ='input ข้าว'!Z2 -> ชลประทานลพบุรี | AA2: ='input ข้าว'!AA2 -> คลองเพรียว-เสาไห้ | AB2: ='input ข้าว'!AB2 -> เขื่อนป่าสักชลสิทธิ์ | AC2: ='input ข้าว'!AC2 -> รังสิตเหนือ | AD2: ='input ข้าว'!AD2 -> รังสิตใต้ | AE2: ='input ข้าว'!AE2 -> ชลหารพิจิตร | AF2: ='input ข้าว'!AF2 -> พระองค์ไชยานุชิต | AG2: ='input ข้าว'!AG2 -> เขื่อนนเรศวร | AH2: ='input ข้าว'!AH2 -> เขื่อนแควน้อย | AI2: ='input ข้าว'!AI2 -> ยมน่าน | AJ2: ='input ข้าว'!AJ2 -> พลายชุมพล | AK2: ='input ข้าว'!AK2 -> ดงเศรษฐี | AL2: ='input ข้าว'!AL2 -> ท่าบัว | AM2: ='input ข้าว'!AM2 -> ท่อทองแดง | AN2: ='input ข้าว'!AN2 -> ชลประทานกำแพงเพชร | AO2: ='input ข้าว'!AO2 -> ชลประทานนครสวรรค์ | AP2: ='input ข้าว'!AP2 -> ชลประทานตาก | AQ2: ='input ข้าว'!AQ2 -> ชลประทานอุตรดิตถ์
A3: จังหวัด | C3: ='input ข้าว'!C3 -> ชัยนาท | D3: ='input ข้าว'!D3 -> ชัยนาท | E3: ='input ข้าว'!E3 -> ชัยนาท | F3: ='input ข้าว'!F3 -> สุพรรณบุรี | G3: ='input ข้าว'!G3 -> สุพรรณบุรี | H3: ='input ข้าว'!H3 -> สุพรรณบุรี | I3: ='input ข้าว'!I3 -> สุพรรณบุรี | J3: ='input ข้าว'!J3 -> ชัยนาท | K3: ='input ข้าว'!K3 -> สิงห์บุรี | L3: ='input ข้าว'!L3 -> อ่างทอง | M3: ='input ข้าว'!M3 -> พระนครศรีอยุธยา | N3: ='input ข้าว'!N3 -> พระนครศรีอยุธยา | O3: ='input ข้าว'!O3 -> พระนครศรีอยุธยา | P3: ='input ข้าว'!P3 -> นนทบุรี | Q3: ='input ข้าว'!Q3 -> นครปฐม | R3: ='input ข้าว'!R3 -> สมุทรสาคร | S3: ='input ข้าว'!S3 -> ชัยนาท | T3: ='input ข้าว'!T3 -> ชัยนาท | U3: ='input ข้าว'!U3 -> ลพบุรี | V3: ='input ข้าว'!V3 -> สระบุรี | W3: ='input ข้าว'!W3 -> สิงห์บุรี | X3: ='input ข้าว'!X3 -> พระนครศรีอยุธยา | Y3: ='input ข้าว'!Y3 -> พระนครศรีอยุธยา | Z3: ='input ข้าว'!Z3 -> ลพบุรี | AA3: ='input ข้าว'!AA3 -> สระบุรี | AB3: ='input ข้าว'!AB3 -> สระบุรี | AC3: ='input ข้าว'!AC3 -> พระนครศรีอยุธยา | AD3: ='input ข้าว'!AD3 -> พระนครศรีอยุธยา | AE3: ='input ข้าว'!AE3 -> สมุทรปราการ | AF3: ='input ข้าว'!AF3 -> ฉะเชิงเทรา | AG3: ='input ข้าว'!AG3 -> พิษณุโลก | AH3: ='input ข้าว'!AH3 -> พิษณุโลก | AI3: ='input ข้าว'!AI3 -> พิษณุโลก | AJ3: ='input ข้าว'!AJ3 -> พิษณุโลก | AK3: ='input ข้าว'!AK3 -> พิจิตร | AL3: ='input ข้าว'!AL3 -> พิจิตร | AM3: ='input ข้าว'!AM3 -> กำแพงเพชร | AN3: ='input ข้าว'!AN3 -> กำแพงเพชร | AO3: ='input ข้าว'!AO3 -> นครสวรรค์ | AP3: ='input ข้าว'!AP3 -> ตาก | AQ3: ='input ข้าว'!AQ3 -> อุตรดิตถ์
A4: รั่วซึม มม./สัปดาห์ | C4: ='input ข้าว'!C4 -> 7 | D4: ='input ข้าว'!D4 -> 7 | E4: ='input ข้าว'!E4 -> 7 | F4: ='input ข้าว'!F4 -> 7 | G4: ='input ข้าว'!G4 -> 7 | H4: ='input ข้าว'!H4 -> 7 | I4: ='input ข้าว'!I4 -> 7 | J4: ='input ข้าว'!J4 -> 7 | K4: ='input ข้าว'!K4 -> 7 | L4: ='input ข้าว'!L4 -> 7 | M4: ='input ข้าว'!M4 -> 7 | N4: ='input ข้าว'!N4 -> 7 | O4: ='input ข้าว'!O4 -> 7 | P4: ='input ข้าว'!P4 -> 7 | Q4: ='input ข้าว'!Q4 -> 7 | R4: ='input ข้าว'!R4 -> 7 | S4: ='input ข้าว'!S4 -> 7 | T4: ='input ข้าว'!T4 -> 7 | U4: ='input ข้าว'!U4 -> 7 | V4: ='input ข้าว'!V4 -> 7 | W4: ='input ข้าว'!W4 -> 7 | X4: ='input ข้าว'!X4 -> 7 | Y4: ='input ข้าว'!Y4 -> 7 | Z4: ='input ข้าว'!Z4 -> 7 | AA4: ='input ข้าว'!AA4 -> 7 | AB4: ='input ข้าว'!AB4 -> 7 | AC4: ='input ข้าว'!AC4 -> 7 | AD4: ='input ข้าว'!AD4 -> 7 | AE4: ='input ข้าว'!AE4 -> 7 | AF4: ='input ข้าว'!AF4 -> 7 | AG4: ='input ข้าว'!AG4 -> 7 | AH4: ='input ข้าว'!AH4 -> 7 | AI4: ='input ข้าว'!AI4 -> 7 | AJ4: ='input ข้าว'!AJ4 -> 7 | AK4: ='input ข้าว'!AK4 -> 7 | AL4: ='input ข้าว'!AL4 -> 7 | AM4: ='input ข้าว'!AM4 -> 7 | AN4: ='input ข้าว'!AN4 -> 7 | AO4: ='input ข้าว'!AO4 -> 7 | AP4: ='input ข้าว'!AP4 -> 7 | AQ4: ='input ข้าว'!AQ4 -> 7
A5: ประสิทธิ์ภาพโครงการ (%) | C5: ='input ข้าว'!C7 -> 90 | D5: ='input ข้าว'!D7 -> 90 | E5: ='input ข้าว'!E7 -> 90 | F5: ='input ข้าว'!F7 -> 90 | G5: ='input ข้าว'!G7 -> 90 | H5: ='input ข้าว'!H7 -> 90 | I5: ='input ข้าว'!I7 -> 90 | J5: ='input ข้าว'!J7 -> 90 | K5: ='input ข้าว'!K7 -> 90 | L5: ='input ข้าว'!L7 -> 90 | M5: ='input ข้าว'!M7 -> 90 | N5: ='input ข้าว'!N7 -> 77 | O5: ='input ข้าว'!O7 -> 77 | P5: ='input ข้าว'!P7 -> 77 | Q5: ='input ข้าว'!Q7 -> 77 | R5: ='input ข้าว'!R7 -> 77 | S5: ='input ข้าว'!S7 -> 85 | T5: ='input ข้าว'!T7 -> 85 | U5: ='input ข้าว'!U7 -> 85 | V5: ='input ข้าว'!V7 -> 85 | W5: ='input ข้าว'!W7 -> 85 | X5: ='input ข้าว'!X7 -> 85 | Y5: ='input ข้าว'!Y7 -> 85 | Z5: ='input ข้าว'!Z7 -> 85 | AA5: ='input ข้าว'!AA7 -> 100 | AB5: ='input ข้าว'!AB7 -> 100 | AC5: ='input ข้าว'!AC7 -> 100 | AD5: ='input ข้าว'!AD7 -> 100 | AE5: ='input ข้าว'!AE7 -> 100 | AF5: ='input ข้าว'!AF7 -> 100 | AG5: ='input ข้าว'!AG7 -> 77 | AH5: ='input ข้าว'!AH7 -> 77 | AI5: ='input ข้าว'!AI7 -> 77 | AJ5: ='input ข้าว'!AJ7 -> 77 | AK5: ='input ข้าว'!AK7 -> 77 | AL5: ='input ข้าว'!AL7 -> 77 | AM5: ='input ข้าว'!AM7 -> 65 | AN5: ='input ข้าว'!AN7 -> 65 | AO5: ='input ข้าว'!AO7 -> 85 | AP5: ='input ข้าว'!AP7 -> 85 | AQ5: ='input ข้าว'!AQ7 -> 85
A6: วัน | C6: บ่อกุ้ง (ไร่ พื้นที่สะสมรายสัปดาห์)
A7: =+'input ข้าว'!A22 -> 2017-11-01 | B7: =+A7+6 -> 2017-11-07 | C7: 0 | D7: 0 | E7: 152 | F7: 497 | G7: 1215 | H7: 2136 | I7: 0 | J7: 0 | K7: 0 | L7: 0 | M7: 6615 | N7: 0 | O7: 4993 | P7: 1420 | Q7: 490 | R7: 188 | S7: 0 | T7: 0 | U7: 0 | V7: 0 | W7: 0 | X7: 0 | Y7: 0 | Z7: 0 | AA7: 0 | AB7: 0 | AC7: 0 | AD7: 155 | AE7: 4700 | AF7: 22350 | AG7: 0 | AH7: 0 | AI7: 0 | AJ7: 0 | AK7: 0 | AL7: 0 | AM7: 0 | AN7: 0 | AO7: 0 | AP7: 0 | AQ7: 0
A8: =+A7+7 -> 2017-11-08 | B8: 2017-11-14 | C8: 0 | D8: 0 | E8: 152 | F8: 497 | G8: 1215 | H8: 2136 | I8: 0 | J8: 0 | K8: 0 | L8: 0 | M8: 6615 | N8: 0 | O8: 4993 | P8: 1420 | Q8: 110 | R8: 188 | S8: 0 | T8: 0 | U8: 0 | V8: 0 | W8: 0 | X8: 0 | Y8: 0 | Z8: 0 | AA8: 0 | AB8: 0 | AC8: 0 | AD8: 155 | AE8: 4700 | AF8: 22350 | AG8: 0 | AH8: 0 | AI8: 0 | AJ8: 0 | AK8: 0 | AL8: 0 | AM8: 0 | AN8: 0 | AO8: 0 | AP8: 0 | AQ8: 0
A9: =+A8+7 -> 2017-11-15 | B9: 2017-11-21 | C9: 0 | D9: 0 | E9: 152 | F9: 497 | G9: 1215 | H9: 2136 | I9: 0 | J9: 0 | K9: 0 | L9: 0 | M9: 6615 | N9: 0 | O9: 4993 | P9: 1420 | Q9: 110 | R9: 188 | S9: 0 | T9: 0 | U9: 0 | V9: 0 | W9: 0 | X9: 0 | Y9: 0 | Z9: 0 | AA9: 0 | AB9: 0 | AC9: 0 | AD9: 155 | AE9: 4700 | AF9: 22350 | AG9: 0 | AH9: 0 | AI9: 0 | AJ9: 0 | AK9: 0 | AL9: 0 | AM9: 0 | AN9: 0 | AO9: 0 | AP9: 0 | AQ9: 0
A10: 2017-11-22 | B10: 2017-11-28 | C10: 0 | D10: 0 | E10: 152 | F10: 497 | G10: 1215 | H10: 2136 | I10: 0 | J10: 0 | K10: 0 | L10: 0 | M10: 6615 | N10: 0 | O10: 4993 | P10: 1420 | Q10: 110 | R10: 188 | S10: 0 | T10: 0 | U10: 0 | V10: 0 | W10: 0 | X10: 0 | Y10: 0 | Z10: 0 | AA10: 0 | AB10: 0 | AC10: 0 | AD10: 155 | AE10: 4700 | AF10: 22350 | AG10: 0 | AH10: 0 | AI10: 0 | AJ10: 0 | AK10: 0 | AL10: 0 | AM10: 0 | AN10: 0 | AO10: 0 | AP10: 0 | AQ10: 0
A11: 2017-11-29 | B11: 2017-12-05 | C11: 0 | D11: 0 | E11: 152 | F11: 497 | G11: 1215 | H11: 2136 | I11: 0 | J11: 0 | K11: 0 | L11: 0 | M11: 6615 | N11: 0 | O11: 4993 | P11: 1420 | Q11: 110 | R11: 188 | S11: 0 | T11: 0 | U11: 0 | V11: 0 | W11: 0 | X11: 0 | Y11: 0 | Z11: 0 | AA11: 0 | AB11: 0 | AC11: 0 | AD11: 155 | AE11: 4700 | AF11: 22350 | AG11: 0 | AH11: 0 | AI11: 0 | AJ11: 0 | AK11: 0 | AL11: 0 | AM11: 0 | AN11: 0 | AO11: 0 | AP11: 0 | AQ11: 0
A12: 2017-12-06 | B12: 2017-12-12 | C12: 0 | D12: 0 | E12: 152 | F12: 497 | G12: 1215 | H12: 2136 | I12: 0 | J12: 0 | K12: 0 | L12: 0 | M12: 6615 | N12: 0 | O12: 4993 | P12: 1420 | Q12: 110 | R12: 188 | S12: 0 | T12: 0 | U12: 0 | V12: 0 | W12: 0 | X12: 0 | Y12: 0 | Z12: 0 | AA12: 0 | AB12: 0 | AC12: 0 | AD12: 155 | AE12: 4700 | AF12: 22350 | AG12: 0 | AH12: 0 | AI12: 0 | AJ12: 0 | AK12: 0 | AL12: 0 | AM12: 0 | AN12: 0 | AO12: 0 | AP12: 0 | AQ12: 0
A13: 2017-12-13 | B13: 2017-12-19 | C13: 0 | D13: 0 | E13: 152 | F13: 497 | G13: 1215 | H13: 2136 | I13: 0 | J13: 0 | K13: 0 | L13: 0 | M13: 6615 | N13: 0 | O13: 4993 | P13: 1420 | Q13: 110 | R13: 188 | S13: 0 | T13: 0 | U13: 0 | V13: 0 | W13: 0 | X13: 0 | Y13: 0 | Z13: 0 | AA13: 0 | AB13: 0 | AC13: 0 | AD13: 155 | AE13: 4700 | AF13: 22350 | AG13: 0 | AH13: 0 | AI13: 0 | AJ13: 0 | AK13: 0 | AL13: 0 | AM13: 0 | AN13: 0 | AO13: 0 | AP13: 0 | AQ13: 0
A14: 2017-12-20 | B14: 2017-12-26 | C14: 0 | D14: 0 | E14: 152 | F14: 497 | G14: 1215 | H14: 2136 | I14: 0 | J14: 0 | K14: 0 | L14: 0 | M14: 6676 | N14: 0 | O14: 4993 | P14: 1420 | Q14: 110 | R14: 188 | S14: 0 | T14: 0 | U14: 0 | V14: 0 | W14: 0 | X14: 0 | Y14: 0 | Z14: 0 | AA14: 0 | AB14: 0 | AC14: 0 | AD14: 155 | AE14: 4700 | AF14: 22350 | AG14: 0 | AH14: 0 | AI14: 0 | AJ14: 0 | AK14: 0 | AL14: 0 | AM14: 0 | AN14: 0 | AO14: 0 | AP14: 0 | AQ14: 0
A15: 2017-12-27 | B15: 2018-01-02 | C15: 0 | D15: 0 | E15: 152 | F15: 497 | G15: 1215 | H15: 2136 | I15: 0 | J15: 0 | K15: 0 | L15: 0 | M15: 6676 | N15: 0 | O15: 4993 | P15: 1420 | Q15: 110 | R15: 188 | S15: 0 | T15: 0 | U15: 0 | V15: 0 | W15: 0 | X15: 0 | Y15: 0 | Z15: 0 | AA15: 0 | AB15: 0 | AC15: 0 | AD15: 155 | AE15: 4700 | AF15: 22350 | AG15: 0 | AH15: 0 | AI15: 0 | AJ15: 0 | AK15: 0 | AL15: 0 | AM15: 0 | AN15: 0 | AO15: 0 | AP15: 0 | AQ15: 0
A16: 2018-01-03 | B16: 2018-01-09 | C16: 0 | D16: 0 | E16: 152 | F16: 497 | G16: 1215 | H16: 2136 | I16: 0 | J16: 0 | K16: 0 | L16: 0 | M16: 6676 | N16: 0 | O16: 4993 | P16: 1420 | Q16: 110 | R16: 188 | S16: 0 | T16: 0 | U16: 0 | V16: 0 | W16: 0 | X16: 0 | Y16: 0 | Z16: 0 | AA16: 0 | AB16: 0 | AC16: 0 | AD16: 155 | AE16: 4700 | AF16: 22350 | AG16: 0 | AH16: 0 | AI16: 0 | AJ16: 0 | AK16: 0 | AL16: 0 | AM16: 0 | AN16: 0 | AO16: 0 | AP16: 0 | AQ16: 0
A17: 2018-01-10 | B17: 2018-01-16 | C17: 0 | D17: 0 | E17: 152 | F17: 491 | G17: 1215 | H17: 2136 | I17: 0 | J17: 0 | K17: 0 | L17: 0 | M17: 6676 | N17: 0 | O17: 4993 | P17: 1420 | Q17: 110 | R17: 188 | S17: 0 | T17: 0 | U17: 0 | V17: 0 | W17: 0 | X17: 0 | Y17: 0 | Z17: 0 | AA17: 0 | AB17: 0 | AC17: 0 | AD17: 155 | AE17: 4700 | AF17: 0 | AG17: 0 | AH17: 0 | AI17: 0 | AJ17: 0 | AK17: 0 | AL17: 0 | AM17: 0 | AN17: 0 | AO17: 0 | AP17: 0 | AQ17: 0
A18: 2018-01-17 | B18: 2018-01-23 | C18: 0 | D18: 0 | E18: 152 | F18: 491 | G18: 1215 | H18: 2136 | I18: 0 | J18: 0 | K18: 0 | L18: 0 | M18: 6676 | N18: 0 | O18: 4993 | P18: 1420 | Q18: 110 | R18: 188 | S18: 0 | T18: 0 | U18: 0 | V18: 0 | W18: 0 | X18: 0 | Y18: 0 | Z18: 0 | AA18: 0 | AB18: 0 | AC18: 0 | AD18: 155 | AE18: 4700 | AF18: 0 | AG18: 0 | AH18: 0 | AI18: 0 | AJ18: 0 | AK18: 0 | AL18: 0 | AM18: 0 | AN18: 0 | AO18: 0 | AP18: 0 | AQ18: 0
A19: 2018-01-24 | B19: 2018-01-30 | C19: 0 | D19: 0 | E19: 152 | F19: 491 | G19: 1215 | H19: 2136 | I19: 0 | J19: 0 | K19: 0 | L19: 0 | M19: 6676 | N19: 0 | O19: 4993 | P19: 1420 | Q19: 110 | R19: 188 | S19: 0 | T19: 0 | U19: 0 | V19: 0 | W19: 0 | X19: 0 | Y19: 0 | Z19: 0 | AA19: 0 | AB19: 0 | AC19: 0 | AD19: 155 | AE19: 4700 | AF19: 0 | AG19: 0 | AH19: 0 | AI19: 0 | AJ19: 0 | AK19: 0 | AL19: 0 | AM19: 0 | AN19: 0 | AO19: 0 | AP19: 0 | AQ19: 0
A20: 2018-01-31 | B20: 2018-02-06 | C20: 0 | D20: 0 | E20: 152 | F20: 491 | G20: 1215 | H20: 2136 | I20: 0 | J20: 0 | K20: 0 | L20: 0 | M20: 6676 | N20: 0 | O20: 4993 | P20: 1420 | Q20: 110 | R20: 188 | S20: 0 | T20: 0 | U20: 0 | V20: 0 | W20: 0 | X20: 0 | Y20: 0 | Z20: 0 | AA20: 0 | AB20: 0 | AC20: 0 | AD20: 155 | AE20: 4700 | AF20: 0 | AG20: 0 | AH20: 0 | AI20: 0 | AJ20: 0 | AK20: 0 | AL20: 0 | AM20: 0 | AN20: 0 | AO20: 0 | AP20: 0 | AQ20: 0
A21: 2018-02-07 | B21: 2018-02-13 | C21: 0 | D21: 0 | E21: 152 | F21: 491 | G21: 1215 | H21: 2136 | I21: 0 | J21: 0 | K21: 0 | L21: 0 | M21: 6676 | N21: 0 | O21: 4993 | P21: 1420 | Q21: 110 | R21: 188 | S21: 0 | T21: 0 | U21: 0 | V21: 0 | W21: 0 | X21: 0 | Y21: 0 | Z21: 0 | AA21: 0 | AB21: 0 | AC21: 0 | AD21: 155 | AE21: 4700 | AF21: 0 | AG21: 0 | AH21: 0 | AI21: 0 | AJ21: 0 | AK21: 0 | AL21: 0 | AM21: 0 | AN21: 0 | AO21: 0 | AP21: 0 | AQ21: 0
A22: 2018-02-14 | B22: 2018-02-20 | C22: 0 | D22: 0 | E22: 152 | F22: 491 | G22: 1215 | H22: 2136 | I22: 0 | J22: 0 | K22: 0 | L22: 0 | M22: 6676 | N22: 0 | O22: 4993 | P22: 1420 | Q22: 110 | R22: 188 | S22: 0 | T22: 0 | U22: 0 | V22: 0 | W22: 0 | X22: 0 | Y22: 0 | Z22: 0 | AA22: 0 | AB22: 0 | AC22: 0 | AD22: 155 | AE22: 4700 | AF22: 0 | AG22: 0 | AH22: 0 | AI22: 0 | AJ22: 0 | AK22: 0 | AL22: 0 | AM22: 0 | AN22: 0 | AO22: 0 | AP22: 0 | AQ22: 0
A23: 2018-02-21 | B23: 2018-02-27 | C23: 0 | D23: 0 | E23: 152 | F23: 491 | G23: 1215 | H23: 2136 | I23: 0 | J23: 0 | K23: 0 | L23: 0 | M23: 6676 | N23: 0 | O23: 4993 | P23: 1420 | Q23: 110 | R23: 188 | S23: 0 | T23: 0 | U23: 0 | V23: 0 | W23: 0 | X23: 0 | Y23: 0 | Z23: 0 | AA23: 0 | AB23: 0 | AC23: 0 | AD23: 155 | AE23: 4700 | AF23: 0 | AG23: 0 | AH23: 0 | AI23: 0 | AJ23: 0 | AK23: 0 | AL23: 0 | AM23: 0 | AN23: 0 | AO23: 0 | AP23: 0 | AQ23: 0
A24: 2018-02-28 | B24: 2018-03-06 | C24: 0 | D24: 0 | E24: 152 | F24: 491 | G24: 1215 | H24: 2136 | I24: 0 | J24: 0 | K24: 0 | L24: 0 | M24: 6676 | N24: 0 | O24: 4993 | P24: 1420 | Q24: 110 | R24: 188 | S24: 0 | T24: 0 | U24: 0 | V24: 0 | W24: 0 | X24: 0 | Y24: 0 | Z24: 0 | AA24: 0 | AB24: 0 | AC24: 0 | AD24: 155 | AE24: 4700 | AF24: 0 | AG24: 0 | AH24: 0 | AI24: 0 | AJ24: 0 | AK24: 0 | AL24: 0 | AM24: 0 | AN24: 0 | AO24: 0 | AP24: 0 | AQ24: 0
A25: 2018-03-07 | B25: 2018-03-13 | C25: 0 | D25: 0 | E25: 152 | F25: 491 | G25: 1215 | H25: 2136 | I25: 0 | J25: 0 | K25: 0 | L25: 0 | M25: 6676 | N25: 0 | O25: 4993 | P25: 1420 | Q25: 110 | R25: 188 | S25: 0 | T25: 0 | U25: 0 | V25: 0 | W25: 0 | X25: 0 | Y25: 0 | Z25: 0 | AA25: 0 | AB25: 0 | AC25: 0 | AD25: 155 | AE25: 4700 | AF25: 0 | AG25: 0 | AH25: 0 | AI25: 0 | AJ25: 0 | AK25: 0 | AL25: 0 | AM25: 0 | AN25: 0 | AO25: 0 | AP25: 0 | AQ25: 0
A26: 2018-03-14 | B26: 2018-03-20 | C26: 0 | D26: 0 | E26: 152 | F26: 491 | G26: 1215 | H26: 2136 | I26: 0 | J26: 0 | K26: 0 | L26: 0 | M26: 6676 | N26: 0 | O26: 4993 | P26: 1420 | Q26: 110 | R26: 188 | S26: 0 | T26: 0 | U26: 0 | V26: 0 | W26: 0 | X26: 0 | Y26: 0 | Z26: 0 | AA26: 0 | AB26: 0 | AC26: 0 | AD26: 155 | AE26: 4700 | AF26: 0 | AG26: 0 | AH26: 0 | AI26: 0 | AJ26: 0 | AK26: 0 | AL26: 0 | AM26: 0 | AN26: 0 | AO26: 0 | AP26: 0 | AQ26: 0
A27: 2018-03-21 | B27: 2018-03-27 | C27: 0 | D27: 0 | E27: 152 | F27: 491 | G27: 1215 | H27: 2136 | I27: 0 | J27: 0 | K27: 0 | L27: 0 | M27: 6676 | N27: 0 | O27: 4993 | P27: 1420 | Q27: 110 | R27: 188 | S27: 0 | T27: 0 | U27: 0 | V27: 0 | W27: 0 | X27: 0 | Y27: 0 | Z27: 0 | AA27: 0 | AB27: 0 | AC27: 0 | AD27: 155 | AE27: 4700 | AF27: 0 | AG27: 0 | AH27: 0 | AI27: 0 | AJ27: 0 | AK27: 0 | AL27: 0 | AM27: 0 | AN27: 0 | AO27: 0 | AP27: 0 | AQ27: 0
A28: 2018-03-28 | B28: 2018-04-03 | C28: 0 | D28: 0 | E28: 152 | F28: 491 | G28: 1215 | H28: 2136 | I28: 0 | J28: 0 | K28: 0 | L28: 0 | M28: 6676 | N28: 0 | O28: 4993 | P28: 1420 | Q28: 110 | R28: 188 | S28: 0 | T28: 0 | U28: 0 | V28: 0 | W28: 0 | X28: 0 | Y28: 0 | Z28: 0 | AA28: 0 | AB28: 0 | AC28: 0 | AD28: 155 | AE28: 4700 | AF28: 0 | AG28: 0 | AH28: 0 | AI28: 0 | AJ28: 0 | AK28: 0 | AL28: 0 | AM28: 0 | AN28: 0 | AO28: 0 | AP28: 0 | AQ28: 0
A29: 2018-04-04 | B29: 2018-04-10 | C29: 0 | D29: 0 | E29: 152 | F29: 491 | G29: 1215 | H29: 2136 | I29: 0 | J29: 0 | K29: 0 | L29: 0 | M29: 6676 | N29: 0 | O29: 4993 | P29: 1420 | Q29: 110 | R29: 188 | S29: 0 | T29: 0 | U29: 0 | V29: 0 | W29: 0 | X29: 0 | Y29: 0 | Z29: 0 | AA29: 0 | AB29: 0 | AC29: 0 | AD29: 155 | AE29: 4700 | AF29: 0 | AG29: 0 | AH29: 0 | AI29: 0 | AJ29: 0 | AK29: 0 | AL29: 0 | AM29: 0 | AN29: 0 | AO29: 0 | AP29: 0 | AQ29: 0
A30: 2018-04-11 | B30: 2018-04-17 | C30: 0 | D30: 0 | E30: 152 | F30: 491 | G30: 1215 | H30: 2136 | I30: 0 | J30: 0 | K30: 0 | L30: 0 | M30: 6676 | N30: 0 | O30: 4993 | P30: 1420 | Q30: 110 | R30: 188 | S30: 0 | T30: 0 | U30: 0 | V30: 0 | W30: 0 | X30: 0 | Y30: 0 | Z30: 0 | AA30: 0 | AB30: 0 | AC30: 0 | AD30: 155 | AE30: 4700 | AF30: 0 | AG30: 0 | AH30: 0 | AI30: 0 | AJ30: 0 | AK30: 0 | AL30: 0 | AM30: 0 | AN30: 0 | AO30: 0 | AP30: 0 | AQ30: 0
A31: 2018-04-18 | B31: 2018-04-24 | C31: 0 | D31: 0 | E31: 152 | F31: 491 | G31: 1215 | H31: 2136 | I31: 0 | J31: 0 | K31: 0 | L31: 0 | M31: 6676 | N31: 0 | O31: 4993 | P31: 1420 | Q31: 110 | R31: 188 | S31: 0 | T31: 0 | U31: 0 | V31: 0 | W31: 0 | X31: 0 | Y31: 0 | Z31: 0 | AA31: 0 | AB31: 0 | AC31: 0 | AD31: 155 | AE31: 4700 | AF31: 0 | AG31: 0 | AH31: 0 | AI31: 0 | AJ31: 0 | AK31: 0 | AL31: 0 | AM31: 0 | AN31: 0 | AO31: 0 | AP31: 0 | AQ31: 0
A32: 2018-04-25 | B32: 2018-05-01 | C32: 0 | D32: 0 | E32: 152 | F32: 491 | G32: 1215 | H32: 2136 | I32: 0 | J32: 0 | K32: 0 | L32: 0 | M32: 6676 | N32: 0 | O32: 4993 | P32: 1420 | Q32: 110 | R32: 188 | S32: 0 | T32: 0 | U32: 0 | V32: 0 | W32: 0 | X32: 0 | Y32: 0 | Z32: 0 | AA32: 0 | AB32: 0 | AC32: 0 | AD32: 155 | AE32: 4700 | AF32: 0 | AG32: 0 | AH32: 0 | AI32: 0 | AJ32: 0 | AK32: 0 | AL32: 0 | AM32: 0 | AN32: 0 | AO32: 0 | AP32: 0 | AQ32: 0
A33: 2018-05-02 | B33: 2018-05-08 | C33: 0 | D33: 0 | E33: 152 | F33: 491 | G33: 1215 | H33: 2136 | I33: 0 | J33: 0 | K33: 0 | L33: 0 | M33: 6676 | N33: 0 | O33: 4993 | P33: 1420 | Q33: 110 | R33: 188 | S33: 0 | T33: 0 | U33: 0 | V33: 0 | W33: 0 | X33: 0 | Y33: 0 | Z33: 0 | AA33: 0 | AB33: 0 | AC33: 0 | AD33: 155 | AE33: 4700 | AF33: 0 | AG33: 0 | AH33: 0 | AI33: 0 | AJ33: 0 | AK33: 0 | AL33: 0 | AM33: 0 | AN33: 0 | AO33: 0 | AP33: 0 | AQ33: 0
A34: 2018-05-09 | B34: 2018-05-15 | C34: 0 | D34: 0 | E34: 152 | F34: 491 | G34: 1067 | H34: 2136 | I34: 0 | J34: 0 | K34: 0 | L34: 0 | M34: 7764 | N34: 0 | O34: 4993 | P34: 1420 | Q34: 110 | R34: 188 | S34: 0 | T34: 0 | U34: 0 | V34: 0 | W34: 0 | X34: 0 | Y34: 0 | Z34: 0 | AA34: 0 | AB34: 0 | AC34: 0 | AD34: 155 | AE34: 4700 | AF34: 0 | AG34: 0 | AH34: 0 | AI34: 0 | AJ34: 0 | AK34: 0 | AL34: 0 | AM34: 0 | AN34: 0 | AO34: 0 | AP34: 0 | AQ34: 0
A35: 2018-05-16 | B35: 2018-05-22 | C35: 0 | D35: 0 | E35: 152 | F35: 491 | G35: 1067 | H35: 2136 | I35: 0 | J35: 0 | K35: 0 | L35: 0 | M35: 7764 | N35: 0 | O35: 4993 | P35: 1420 | Q35: 370 | R35: 188 | S35: 0 | T35: 0 | U35: 0 | V35: 0 | W35: 0 | X35: 0 | Y35: 0 | Z35: 0 | AA35: 0 | AB35: 0 | AC35: 0 | AD35: 155 | AE35: 4700 | AF35: 0 | AG35: 0 | AH35: 0 | AI35: 0 | AJ35: 0 | AK35: 0 | AL35: 0 | AM35: 0 | AN35: 0 | AO35: 0 | AP35: 0 | AQ35: 0
A36: 2018-05-23 | B36: 2018-05-29 | C36: 0 | D36: 0 | E36: 152 | F36: 491 | G36: 1067 | H36: 2136 | I36: 0 | J36: 0 | K36: 0 | L36: 0 | M36: 7764 | N36: 0 | O36: 4993 | P36: 1420 | Q36: 370 | R36: 188 | S36: 0 | T36: 0 | U36: 0 | V36: 0 | W36: 0 | X36: 0 | Y36: 0 | Z36: 0 | AA36: 0 | AB36: 0 | AC36: 0 | AD36: 155 | AE36: 4700 | AF36: 0 | AG36: 0 | AH36: 0 | AI36: 0 | AJ36: 0 | AK36: 0 | AL36: 0 | AM36: 0 | AN36: 0 | AO36: 0 | AP36: 0 | AQ36: 0
A37: 2018-05-30 | B37: 2018-06-05 | C37: 0 | D37: 0 | E37: 152 | F37: 491 | G37: 1067 | H37: 2136 | I37: 0 | J37: 0 | K37: 0 | L37: 0 | M37: 7764 | N37: 0 | O37: 4993 | P37: 1420 | Q37: 370 | R37: 188 | S37: 0 | T37: 0 | U37: 0 | V37: 0 | W37: 0 | X37: 0 | Y37: 0 | Z37: 0 | AA37: 0 | AB37: 0 | AC37: 0 | AD37: 155 | AE37: 4700 | AF37: 0 | AG37: 0 | AH37: 0 | AI37: 0 | AJ37: 0 | AK37: 0 | AL37: 0 | AM37: 0 | AN37: 0 | AO37: 0 | AP37: 0 | AQ37: 0
A38: 2018-06-06 | B38: 2018-06-12 | C38: 0 | D38: 0 | E38: 152 | F38: 491 | G38: 1067 | H38: 2136 | I38: 0 | J38: 0 | K38: 0 | L38: 0 | M38: 7764 | N38: 0 | O38: 4993 | P38: 1420 | Q38: 740 | R38: 188 | S38: 0 | T38: 0 | U38: 0 | V38: 0 | W38: 0 | X38: 0 | Y38: 0 | Z38: 0 | AA38: 0 | AB38: 0 | AC38: 0 | AD38: 155 | AE38: 4700 | AF38: 0 | AG38: 0 | AH38: 0 | AI38: 0 | AJ38: 0 | AK38: 0 | AL38: 0 | AM38: 0 | AN38: 0 | AO38: 0 | AP38: 0 | AQ38: 0
A39: 2018-06-13 | B39: 2018-06-19 | C39: 0 | D39: 0 | E39: 152 | F39: 491 | G39: 1067 | H39: 2136 | I39: 0 | J39: 0 | K39: 0 | L39: 0 | M39: 7764 | N39: 0 | O39: 4993 | P39: 1420 | Q39: 740 | R39: 188 | S39: 0 | T39: 0 | U39: 0 | V39: 0 | W39: 0 | X39: 0 | Y39: 0 | Z39: 0 | AA39: 0 | AB39: 0 | AC39: 0 | AD39: 155 | AE39: 4700 | AF39: 52260 | AG39: 0 | AH39: 0 | AI39: 0 | AJ39: 0 | AK39: 0 | AL39: 0 | AM39: 0 | AN39: 0 | AO39: 0 | AP39: 0 | AQ39: 0
A40: 2018-06-20 | B40: 2018-06-26 | C40: 0 | D40: 0 | E40: 152 | F40: 491 | G40: 1067 | H40: 2136 | I40: 0 | J40: 0 | K40: 0 | L40: 0 | M40: 7764 | N40: 0 | O40: 4993 | P40: 1420 | Q40: 740 | R40: 188 | S40: 0 | T40: 0 | U40: 0 | V40: 0 | W40: 0 | X40: 0 | Y40: 0 | Z40: 0 | AA40: 0 | AB40: 0 | AC40: 0 | AD40: 155 | AE40: 4700 | AF40: 52260 | AG40: 0 | AH40: 0 | AI40: 0 | AJ40: 0 | AK40: 0 | AL40: 0 | AM40: 0 | AN40: 0 | AO40: 0 | AP40: 0 | AQ40: 0
A41: 2018-06-27 | B41: 2018-07-03 | C41: 0 | D41: 0 | E41: 152 | F41: 491 | G41: 1067 | H41: 2136 | I41: 0 | J41: 0 | K41: 0 | L41: 0 | M41: 7764 | N41: 0 | O41: 4993 | P41: 1420 | Q41: 740 | R41: 188 | S41: 0 | T41: 0 | U41: 0 | V41: 0 | W41: 0 | X41: 0 | Y41: 0 | Z41: 0 | AA41: 0 | AB41: 0 | AC41: 0 | AD41: 155 | AE41: 4700 | AF41: 52260 | AG41: 0 | AH41: 0 | AI41: 0 | AJ41: 0 | AK41: 0 | AL41: 0 | AM41: 0 | AN41: 0 | AO41: 0 | AP41: 0 | AQ41: 0
A42: 2018-07-04 | B42: 2018-07-10 | C42: 0 | D42: 0 | E42: 152 | F42: 491 | G42: 1067 | H42: 2136 | I42: 0 | J42: 0 | K42: 0 | L42: 0 | M42: 7764 | N42: 0 | O42: 4993 | P42: 1420 | Q42: 490 | R42: 188 | S42: 0 | T42: 0 | U42: 0 | V42: 0 | W42: 0 | X42: 0 | Y42: 0 | Z42: 0 | AA42: 0 | AB42: 0 | AC42: 0 | AD42: 155 | AE42: 4700 | AF42: 52260 | AG42: 0 | AH42: 0 | AI42: 0 | AJ42: 0 | AK42: 0 | AL42: 0 | AM42: 0 | AN42: 0 | AO42: 0 | AP42: 0 | AQ42: 0
A43: 2018-07-11 | B43: 2018-07-17 | C43: 0 | D43: 0 | E43: 152 | F43: 491 | G43: 1067 | H43: 2136 | I43: 0 | J43: 0 | K43: 0 | L43: 0 | M43: 7764 | N43: 0 | O43: 4993 | P43: 1420 | Q43: 490 | R43: 188 | S43: 0 | T43: 0 | U43: 0 | V43: 0 | W43: 0 | X43: 0 | Y43: 0 | Z43: 0 | AA43: 0 | AB43: 0 | AC43: 0 | AD43: 0 | AE43: 4700 | AF43: 52260 | AG43: 0 | AH43: 0 | AI43: 0 | AJ43: 0 | AK43: 0 | AL43: 0 | AM43: 0 | AN43: 0 | AO43: 0 | AP43: 0 | AQ43: 0
A44: 2018-07-18 | B44: 2018-07-24 | C44: 0 | D44: 0 | E44: 152 | F44: 491 | G44: 1067 | H44: 2136 | I44: 0 | J44: 0 | K44: 0 | L44: 0 | M44: 7764 | N44: 0 | O44: 4993 | P44: 1420 | Q44: 490 | R44: 188 | S44: 0 | T44: 0 | U44: 0 | V44: 0 | W44: 0 | X44: 0 | Y44: 0 | Z44: 0 | AA44: 0 | AB44: 0 | AC44: 0 | AD44: 0 | AE44: 4700 | AF44: 52260 | AG44: 0 | AH44: 0 | AI44: 0 | AJ44: 0 | AK44: 0 | AL44: 0 | AM44: 0 | AN44: 0 | AO44: 0 | AP44: 0 | AQ44: 0
A45: 2018-07-25 | B45: 2018-07-31 | C45: 0 | D45: 0 | E45: 152 | F45: 491 | G45: 1067 | H45: 2136 | I45: 0 | J45: 0 | K45: 0 | L45: 0 | M45: 7764 | N45: 0 | O45: 4993 | P45: 1420 | Q45: 490 | R45: 188 | S45: 0 | T45: 0 | U45: 0 | V45: 0 | W45: 0 | X45: 0 | Y45: 0 | Z45: 0 | AA45: 0 | AB45: 0 | AC45: 0 | AD45: 0 | AE45: 4700 | AF45: 52260 | AG45: 0 | AH45: 0 | AI45: 0 | AJ45: 0 | AK45: 0 | AL45: 0 | AM45: 0 | AN45: 0 | AO45: 0 | AP45: 0 | AQ45: 0
A46: 2018-08-01 | B46: 2018-08-07 | C46: 0 | D46: 0 | E46: 152 | F46: 491 | G46: 1067 | H46: 2136 | I46: 0 | J46: 0 | K46: 0 | L46: 0 | M46: 7764 | N46: 0 | O46: 4993 | P46: 1420 | Q46: 490 | R46: 188 | S46: 0 | T46: 0 | U46: 0 | V46: 0 | W46: 0 | X46: 0 | Y46: 0 | Z46: 0 | AA46: 0 | AB46: 0 | AC46: 0 | AD46: 0 | AE46: 4700 | AF46: 52260 | AG46: 0 | AH46: 0 | AI46: 0 | AJ46: 0 | AK46: 0 | AL46: 0 | AM46: 0 | AN46: 0 | AO46: 0 | AP46: 0 | AQ46: 0
A47: 2018-08-08 | B47: 2018-08-14 | C47: 0 | D47: 0 | E47: 152 | F47: 491 | G47: 1067 | H47: 2136 | I47: 0 | J47: 0 | K47: 0 | L47: 0 | M47: 7764 | N47: 0 | O47: 4993 | P47: 1420 | Q47: 490 | R47: 188 | S47: 0 | T47: 0 | U47: 0 | V47: 0 | W47: 0 | X47: 0 | Y47: 0 | Z47: 0 | AA47: 0 | AB47: 0 | AC47: 0 | AD47: 0 | AE47: 4700 | AF47: 52260 | AG47: 0 | AH47: 0 | AI47: 0 | AJ47: 0 | AK47: 0 | AL47: 0 | AM47: 0 | AN47: 0 | AO47: 0 | AP47: 0 | AQ47: 0
A48: 2018-08-15 | B48: 2018-08-21 | C48: 0 | D48: 0 | E48: 152 | F48: 491 | G48: 1067 | H48: 2136 | I48: 0 | J48: 0 | K48: 0 | L48: 0 | M48: 7764 | N48: 0 | O48: 4993 | P48: 1420 | Q48: 490 | R48: 188 | S48: 0 | T48: 0 | U48: 0 | V48: 0 | W48: 0 | X48: 0 | Y48: 0 | Z48: 0 | AA48: 0 | AB48: 0 | AC48: 0 | AD48: 0 | AE48: 4700 | AF48: 52260 | AG48: 0 | AH48: 0 | AI48: 0 | AJ48: 0 | AK48: 0 | AL48: 0 | AM48: 0 | AN48: 0 | AO48: 0 | AP48: 0 | AQ48: 0
A49: 2018-08-22 | B49: 2018-08-28 | C49: 0 | D49: 0 | E49: 152 | F49: 491 | G49: 1067 | H49: 2136 | I49: 0 | J49: 0 | K49: 0 | L49: 0 | M49: 7764 | N49: 0 | O49: 4993 | P49: 1420 | Q49: 490 | R49: 188 | S49: 0 | T49: 0 | U49: 0 | V49: 0 | W49: 0 | X49: 0 | Y49: 0 | Z49: 0 | AA49: 0 | AB49: 0 | AC49: 0 | AD49: 155 | AE49: 4700 | AF49: 52260 | AG49: 0 | AH49: 0 | AI49: 0 | AJ49: 0 | AK49: 0 | AL49: 0 | AM49: 0 | AN49: 0 | AO49: 0 | AP49: 0 | AQ49: 0
A50: 2018-08-29 | B50: 2018-09-04 | C50: 0 | D50: 0 | E50: 152 | F50: 491 | G50: 1067 | H50: 2136 | I50: 0 | J50: 0 | K50: 0 | L50: 0 | M50: 7764 | N50: 0 | O50: 4993 | P50: 1420 | Q50: 490 | R50: 188 | S50: 0 | T50: 0 | U50: 0 | V50: 0 | W50: 0 | X50: 0 | Y50: 0 | Z50: 0 | AA50: 0 | AB50: 0 | AC50: 0 | AD50: 155 | AE50: 4700 | AF50: 52260 | AG50: 0 | AH50: 0 | AI50: 0 | AJ50: 0 | AK50: 0 | AL50: 0 | AM50: 0 | AN50: 0 | AO50: 0 | AP50: 0 | AQ50: 0
A51: 2018-09-05 | B51: 2018-09-11 | C51: 0 | D51: 0 | E51: 152 | F51: 491 | G51: 1067 | H51: 2136 | I51: 0 | J51: 0 | K51: 0 | L51: 0 | M51: 7764 | N51: 0 | O51: 4993 | P51: 1420 | Q51: 490 | R51: 188 | S51: 0 | T51: 0 | U51: 0 | V51: 0 | W51: 0 | X51: 0 | Y51: 0 | Z51: 0 | AA51: 0 | AB51: 0 | AC51: 0 | AD51: 155 | AE51: 4700 | AF51: 52260 | AG51: 0 | AH51: 0 | AI51: 0 | AJ51: 0 | AK51: 0 | AL51: 0 | AM51: 0 | AN51: 0 | AO51: 0 | AP51: 0 | AQ51: 0
A52: 2018-09-12 | B52: 2018-09-18 | C52: 0 | D52: 0 | E52: 152 | F52: 491 | G52: 1067 | H52: 2136 | I52: 0 | J52: 0 | K52: 0 | L52: 0 | M52: 7764 | N52: 0 | O52: 4993 | P52: 1420 | Q52: 490 | R52: 188 | S52: 0 | T52: 0 | U52: 0 | V52: 0 | W52: 0 | X52: 0 | Y52: 0 | Z52: 0 | AA52: 0 | AB52: 0 | AC52: 0 | AD52: 155 | AE52: 4700 | AF52: 52260 | AG52: 0 | AH52: 0 | AI52: 0 | AJ52: 0 | AK52: 0 | AL52: 0 | AM52: 0 | AN52: 0 | AO52: 0 | AP52: 0 | AQ52: 0
A53: 2018-09-19 | B53: 2018-09-25 | C53: 0 | D53: 0 | E53: 152 | F53: 491 | G53: 1067 | H53: 2136 | I53: 0 | J53: 0 | K53: 0 | L53: 0 | M53: 7764 | N53: 0 | O53: 4993 | P53: 1420 | Q53: 490 | R53: 188 | S53: 0 | T53: 0 | U53: 0 | V53: 0 | W53: 0 | X53: 0 | Y53: 0 | Z53: 0 | AA53: 0 | AB53: 0 | AC53: 0 | AD53: 155 | AE53: 4700 | AF53: 52260 | AG53: 0 | AH53: 0 | AI53: 0 | AJ53: 0 | AK53: 0 | AL53: 0 | AM53: 0 | AN53: 0 | AO53: 0 | AP53: 0 | AQ53: 0
A54: 2018-09-26 | B54: 2018-10-02 | C54: 0 | D54: 0 | E54: 152 | F54: 491 | G54: 1067 | H54: 2136 | I54: 0 | J54: 0 | K54: 0 | L54: 0 | M54: 7764 | N54: 0 | O54: 4993 | P54: 1420 | Q54: 490 | R54: 188 | S54: 0 | T54: 0 | U54: 0 | V54: 0 | W54: 0 | X54: 0 | Y54: 0 | Z54: 0 | AA54: 0 | AB54: 0 | AC54: 0 | AD54: 155 | AE54: 4700 | AF54: 52260 | AG54: 0 | AH54: 0 | AI54: 0 | AJ54: 0 | AK54: 0 | AL54: 0 | AM54: 0 | AN54: 0 | AO54: 0 | AP54: 0 | AQ54: 0
A55: 2018-10-03 | B55: 2018-10-09 | C55: 0 | D55: 0 | E55: 152 | F55: 491 | G55: 1067 | H55: 2136 | I55: 0 | J55: 0 | K55: 0 | L55: 0 | M55: 7764 | N55: 0 | O55: 4993 | P55: 1420 | Q55: 490 | R55: 188 | S55: 0 | T55: 0 | U55: 0 | V55: 0 | W55: 0 | X55: 0 | Y55: 0 | Z55: 0 | AA55: 0 | AB55: 0 | AC55: 0 | AD55: 155 | AE55: 4700 | AF55: 52260 | AG55: 0 | AH55: 0 | AI55: 0 | AJ55: 0 | AK55: 0 | AL55: 0 | AM55: 0 | AN55: 0 | AO55: 0 | AP55: 0 | AQ55: 0
A56: 2018-10-10 | B56: 2018-10-16 | C56: 0 | D56: 0 | E56: 152 | F56: 491 | G56: 1067 | H56: 2136 | I56: 0 | J56: 0 | K56: 0 | L56: 0 | M56: 7764 | N56: 0 | O56: 4993 | P56: 1420 | Q56: 490 | R56: 188 | S56: 0 | T56: 0 | U56: 0 | V56: 0 | W56: 0 | X56: 0 | Y56: 0 | Z56: 0 | AA56: 0 | AB56: 0 | AC56: 0 | AD56: 155 | AE56: 4700 | AF56: 52260 | AG56: 0 | AH56: 0 | AI56: 0 | AJ56: 0 | AK56: 0 | AL56: 0 | AM56: 0 | AN56: 0 | AO56: 0 | AP56: 0 | AQ56: 0
A57: 2018-10-17 | B57: 2018-10-23 | C57: 0 | D57: 0 | E57: 152 | F57: 491 | G57: 1067 | H57: 2136 | I57: 0 | J57: 0 | K57: 0 | L57: 0 | M57: 7764 | N57: 0 | O57: 4993 | P57: 1420 | Q57: 490 | R57: 188 | S57: 0 | T57: 0 | U57: 0 | V57: 0 | W57: 0 | X57: 0 | Y57: 0 | Z57: 0 | AA57: 0 | AB57: 0 | AC57: 0 | AD57: 155 | AE57: 4700 | AF57: 52260 | AG57: 0 | AH57: 0 | AI57: 0 | AJ57: 0 | AK57: 0 | AL57: 0 | AM57: 0 | AN57: 0 | AO57: 0 | AP57: 0 | AQ57: 0
A58: 2018-10-24 | B58: 2018-10-30 | C58: 0 | D58: 0 | E58: 152 | F58: 491 | G58: 1067 | H58: 2136 | I58: 0 | J58: 0 | K58: 0 | L58: 0 | M58: 7764 | N58: 0 | O58: 4993 | P58: 1420 | Q58: 490 | R58: 188 | S58: 0 | T58: 0 | U58: 0 | V58: 0 | W58: 0 | X58: 0 | Y58: 0 | Z58: 0 | AA58: 0 | AB58: 0 | AC58: 0 | AD58: 155 | AE58: 4700 | AF58: 52260 | AG58: 0 | AH58: 0 | AI58: 0 | AJ58: 0 | AK58: 0 | AL58: 0 | AM58: 0 | AN58: 0 | AO58: 0 | AP58: 0 | AQ58: 0

Sheet input อุปโภค
A1: ปี พ.ศ. | B1: ='input ข้าว'!B1 -> 2560 | D1: ฤดูแล้ง | E1: =RIGHT(B1,2)&"/"&RIGHT(B1+1,2) -> 60/61 | F1: ฤดูฝน | G1: =RIGHT(B1+1,2) -> 61
A2: โครงการชลประทาน | C2: ='input ข้าว'!C2 -> พลเทพ | D2: ='input ข้าว'!D2 -> ทุ่งวัดสิงห์ | E2: ='input ข้าว'!E2 -> ท่าโบสถ์ | F2: ='input ข้าว'!F2 -> สามชุก | G2: ='input ข้าว'!G2 -> ดอนเจดีย์ | H2: ='input ข้าว'!H2 -> โพธิ์พระยา | I2: ='input ข้าว'!I2 -> ชลประทานสุพรรณบุรี | J2: ='input ข้าว'!J2 -> บรมธาตุ | K2: ='input ข้าว'!K2 -> ชัณสูตร | L2: ='input ข้าว'!L2 -> ยางมณี | M2: ='input ข้าว'!M2 -> ผักไห่ | N2: ='input ข้าว'!N2 -> บางบาล | O2: ='input ข้าว'!O2 -> เจ้าเจ็ดบางยี่หน | P2: ='input ข้าว'!P2 -> พระยาบรรลือ | Q2: ='input ข้าว'!Q2 -> พระพิมล | R2: ='input ข้าว'!R2 -> ภาษีเจริญ | S2: ='input ข้าว'!S2 -> มโนรมย์ | T2: ='input ข้าว'!T2 -> ช่องแค | U2: ='input ข้าว'!U2 -> โคกกะเทียม | V2: ='input ข้าว'!V2 -> เริงราง | W2: ='input ข้าว'!W2 -> มหาราช | X2: ='input ข้าว'!X2 -> ป่าสักใต้ | Y2: ='input ข้าว'!Y2 -> นครหลวง | Z2: ='input ข้าว'!Z2 -> ชลประทานลพบุรี | AA2: ='input ข้าว'!AA2 -> คลองเพรียว-เสาไห้ | AB2: ='input ข้าว'!AB2 -> เขื่อนป่าสักชลสิทธิ์ | AC2: ='input ข้าว'!AC2 -> รังสิตเหนือ | AD2: ='input ข้าว'!AD2 -> รังสิตใต้ | AE2: ='input ข้าว'!AE2 -> ชลหารพิจิตร | AF2: ='input ข้าว'!AF2 -> พระองค์ไชยานุชิต | AG2: ='input ข้าว'!AG2 -> เขื่อนนเรศวร | AH2: ='input ข้าว'!AH2 -> เขื่อนแควน้อย | AI2: ='input ข้าว'!AI2 -> ยมน่าน | AJ2: ='input ข้าว'!AJ2 -> พลายชุมพล | AK2: ='input ข้าว'!AK2 -> ดงเศรษฐี | AL2: ='input ข้าว'!AL2 -> ท่าบัว | AM2: ='input ข้าว'!AM2 -> ท่อทองแดง | AN2: ='input ข้าว'!AN2 -> ชลประทานกำแพงเพชร | AO2: ='input ข้าว'!AO2 -> ชลประทานนครสวรรค์ | AP2: ='input ข้าว'!AP2 -> ชลประทานตาก | AQ2: ='input ข้าว'!AQ2 -> ชลประทานอุตรดิตถ์
A3: จังหวัด | C3: ='input ข้าว'!C3 -> ชัยนาท | D3: ='input ข้าว'!D3 -> ชัยนาท | E3: ='input ข้าว'!E3 -> ชัยนาท | F3: ='input ข้าว'!F3 -> สุพรรณบุรี | G3: ='input ข้าว'!G3 -> สุพรรณบุรี | H3: ='input ข้าว'!H3 -> สุพรรณบุรี | I3: ='input ข้าว'!I3 -> สุพรรณบุรี | J3: ='input ข้าว'!J3 -> ชัยนาท | K3: ='input ข้าว'!K3 -> สิงห์บุรี | L3: ='input ข้าว'!L3 -> อ่างทอง | M3: ='input ข้าว'!M3 -> พระนครศรีอยุธยา | N3: ='input ข้าว'!N3 -> พระนครศรีอยุธยา | O3: ='input ข้าว'!O3 -> พระนครศรีอยุธยา | P3: ='input ข้าว'!P3 -> นนทบุรี | Q3: ='input ข้าว'!Q3 -> นครปฐม | R3: ='input ข้าว'!R3 -> สมุทรสาคร | S3: ='input ข้าว'!S3 -> ชัยนาท | T3: ='input ข้าว'!T3 -> ชัยนาท | U3: ='input ข้าว'!U3 -> ลพบุรี | V3: ='input ข้าว'!V3 -> สระบุรี | W3: ='input ข้าว'!W3 -> สิงห์บุรี | X3: ='input ข้าว'!X3 -> พระนครศรีอยุธยา | Y3: ='input ข้าว'!Y3 -> พระนครศรีอยุธยา | Z3: ='input ข้าว'!Z3 -> ลพบุรี | AA3: ='input ข้าว'!AA3 -> สระบุรี | AB3: ='input ข้าว'!AB3 -> สระบุรี | AC3: ='input ข้าว'!AC3 -> พระนครศรีอยุธยา | AD3: ='input ข้าว'!AD3 -> พระนครศรีอยุธยา | AE3: ='input ข้าว'!AE3 -> สมุทรปราการ | AF3: ='input ข้าว'!AF3 -> ฉะเชิงเทรา | AG3: ='input ข้าว'!AG3 -> พิษณุโลก | AH3: ='input ข้าว'!AH3 -> พิษณุโลก | AI3: ='input ข้าว'!AI3 -> พิษณุโลก | AJ3: ='input ข้าว'!AJ3 -> พิษณุโลก | AK3: ='input ข้าว'!AK3 -> พิจิตร | AL3: ='input ข้าว'!AL3 -> พิจิตร | AM3: ='input ข้าว'!AM3 -> กำแพงเพชร | AN3: ='input ข้าว'!AN3 -> กำแพงเพชร | AO3: ='input ข้าว'!AO3 -> นครสวรรค์ | AP3: ='input ข้าว'!AP3 -> ตาก | AQ3: ='input ข้าว'!AQ3 -> อุตรดิตถ์
A4: รั่วซึม มม./สัปดาห์ | C4: ='input ข้าว'!C4 -> 7 | D4: ='input ข้าว'!D4 -> 7 | E4: ='input ข้าว'!E4 -> 7 | F4: ='input ข้าว'!F4 -> 7 | G4: ='input ข้าว'!G4 -> 7 | H4: ='input ข้าว'!H4 -> 7 | I4: ='input ข้าว'!I4 -> 7 | J4: ='input ข้าว'!J4 -> 7 | K4: ='input ข้าว'!K4 -> 7 | L4: ='input ข้าว'!L4 -> 7 | M4: ='input ข้าว'!M4 -> 7 | N4: ='input ข้าว'!N4 -> 7 | O4: ='input ข้าว'!O4 -> 7 | P4: ='input ข้าว'!P4 -> 7 | Q4: ='input ข้าว'!Q4 -> 7 | R4: ='input ข้าว'!R4 -> 7 | S4: ='input ข้าว'!S4 -> 7 | T4: ='input ข้าว'!T4 -> 7 | U4: ='input ข้าว'!U4 -> 7 | V4: ='input ข้าว'!V4 -> 7 | W4: ='input ข้าว'!W4 -> 7 | X4: ='input ข้าว'!X4 -> 7 | Y4: ='input ข้าว'!Y4 -> 7 | Z4: ='input ข้าว'!Z4 -> 7 | AA4: ='input ข้าว'!AA4 -> 7 | AB4: ='input ข้าว'!AB4 -> 7 | AC4: ='input ข้าว'!AC4 -> 7 | AD4: ='input ข้าว'!AD4 -> 7 | AE4: ='input ข้าว'!AE4 -> 7 | AF4: ='input ข้าว'!AF4 -> 7 | AG4: ='input ข้าว'!AG4 -> 7 | AH4: ='input ข้าว'!AH4 -> 7 | AI4: ='input ข้าว'!AI4 -> 7 | AJ4: ='input ข้าว'!AJ4 -> 7 | AK4: ='input ข้าว'!AK4 -> 7 | AL4: ='input ข้าว'!AL4 -> 7 | AM4: ='input ข้าว'!AM4 -> 7 | AN4: ='input ข้าว'!AN4 -> 7 | AO4: ='input ข้าว'!AO4 -> 7 | AP4: ='input ข้าว'!AP4 -> 7 | AQ4: ='input ข้าว'!AQ4 -> 7
A5: ประสิทธิ์ภาพโครงการ (%) | C5: ='input ข้าว'!C7 -> 90 | D5: ='input ข้าว'!D7 -> 90 | E5: ='input ข้าว'!E7 -> 90 | F5: ='input ข้าว'!F7 -> 90 | G5: ='input ข้าว'!G7 -> 90 | H5: ='input ข้าว'!H7 -> 90 | I5: ='input ข้าว'!I7 -> 90 | J5: ='input ข้าว'!J7 -> 90 | K5: ='input ข้าว'!K7 -> 90 | L5: ='input ข้าว'!L7 -> 90 | M5: ='input ข้าว'!M7 -> 90 | N5: ='input ข้าว'!N7 -> 77 | O5: ='input ข้าว'!O7 -> 77 | P5: ='input ข้าว'!P7 -> 77 | Q5: ='input ข้าว'!Q7 -> 77 | R5: ='input ข้าว'!R7 -> 77 | S5: ='input ข้าว'!S7 -> 85 | T5: ='input ข้าว'!T7 -> 85 | U5: ='input ข้าว'!U7 -> 85 | V5: ='input ข้าว'!V7 -> 85 | W5: ='input ข้าว'!W7 -> 85 | X5: ='input ข้าว'!X7 -> 85 | Y5: ='input ข้าว'!Y7 -> 85 | Z5: ='input ข้าว'!Z7 -> 85 | AA5: ='input ข้าว'!AA7 -> 100 | AB5: ='input ข้าว'!AB7 -> 100 | AC5: ='input ข้าว'!AC7 -> 100 | AD5: ='input ข้าว'!AD7 -> 100 | AE5: ='input ข้าว'!AE7 -> 100 | AF5: ='input ข้าว'!AF7 -> 100 | AG5: ='input ข้าว'!AG7 -> 77 | AH5: ='input ข้าว'!AH7 -> 77 | AI5: ='input ข้าว'!AI7 -> 77 | AJ5: ='input ข้าว'!AJ7 -> 77 | AK5: ='input ข้าว'!AK7 -> 77 | AL5: ='input ข้าว'!AL7 -> 77 | AM5: ='input ข้าว'!AM7 -> 65 | AN5: ='input ข้าว'!AN7 -> 65 | AO5: ='input ข้าว'!AO7 -> 85 | AP5: ='input ข้าว'!AP7 -> 85 | AQ5: ='input ข้าว'!AQ7 -> 85
A6: วัน | C6: อุปโภค-บริโภค อุตสาหกรรม รักษาระบบนิเวศน์ และอื่น ๆ (ลบ.ม.)
A7: =+'input ข้าว'!A22 -> 2017-11-01 | B7: =+A7+6 -> 2017-11-07 | C7: 0.001 | D7: 0.001 | E7: 0.001 | F7: 0.001 | G7: 0.001
A8: =+A7+7 -> 2017-11-08 | B8: 2017-11-14 | C8: 0.001 | D8: 0.001 | E8: 0.001 | F8: 0.001 | G8: 0.001
A9: =+A8+7 -> 2017-11-15 | B9: 2017-11-21 | C9: 0.001 | D9: 0.001 | E9: 0.001 | F9: 0.001 | G9: 0.001
A10: 2017-11-22 | B10: 2017-11-28 | C10: 0.001 | D10: 0.001 | E10: 0.001 | F10: 0.001 | G10: 0.001
A11: 2017-11-29 | B11: 2017-12-05 | C11: 0.001 | D11: 0.001 | E11: 0.001 | F11: 0.001 | G11: 0.001
A12: 2017-12-06 | B12: 2017-12-12 | C12: 0.001 | D12: 0.001 | E12: 0.001 | F12: 0.001 | G12: 0.001
A13: 2017-12-13 | B13: 2017-12-19 | C13: 0.001 | D13: 0.001 | E13: 0.001 | F13: 0.001 | G13: 0.001
A14: 2017-12-20 | B14: 2017-12-26 | C14: 0.001 | D14: 0.001 | E14: 0.001 | F14: 0.001 | G14: 0.001
A15: 2017-12-27 | B15: 2018-01-02 | C15: 0.001 | D15: 0.001 | E15: 0.001 | F15: 0.001 | G15: 0.001
A16: 2018-01-03 | B16: 2018-01-09 | C16: 0.001 | D16: 0.001 | E16: 0.001 | F16: 0.001 | G16: 0.001
A17: 2018-01-10 | B17: 2018-01-16 | C17: 0.001 | D17: 0.001 | E17: 0.001 | F17: 0.001 | G17: 0.001
A18: 2018-01-17 | B18: 2018-01-23 | C18: 0.001 | D18: 0.001 | E18: 0.001 | F18: 0.001 | G18: 0.001
A19: 2018-01-24 | B19: 2018-01-30 | C19: 0.001 | D19: 0.001 | E19: 0.001 | F19: 0.001 | G19: 0.001
A20: 2018-01-31 | B20: 2018-02-06 | C20: 0.001 | D20: 0.001 | E20: 0.001 | F20: 0.001 | G20: 0.001
A21: 2018-02-07 | B21: 2018-02-13 | C21: 0.001 | D21: 0.001 | E21: 0.001 | F21: 0.001 | G21: 0.001
A22: 2018-02-14 | B22: 2018-02-20 | C22: 0.001 | D22: 0.001 | E22: 0.001 | F22: 0.001 | G22: 0.001
A23: 2018-02-21 | B23: 2018-02-27 | C23: 0.001 | D23: 0.001 | E23: 0.001 | F23: 0.001 | G23: 0.001
A24: 2018-02-28 | B24: 2018-03-06 | C24: 0.001 | D24: 0.001 | E24: 0.001 | F24: 0.001 | G24: 0.001
A25: 2018-03-07 | B25: 2018-03-13 | C25: 0.001 | D25: 0.001 | E25: 0.001 | F25: 0.001 | G25: 0.001
A26: 2018-03-14 | B26: 2018-03-20 | C26: 0.001 | D26: 0.001 | E26: 0.001 | F26: 0.001 | G26: 0.001
A27: 2018-03-21 | B27: 2018-03-27 | C27: 0.001 | D27: 0.001 | E27: 0.001 | F27: 0.001 | G27: 0.001
A28: 2018-03-28 | B28: 2018-04-03 | C28: 0.001 | D28: 0.001 | E28: 0.001 | F28: 0.001 | G28: 0.001
A29: 2018-04-04 | B29: 2018-04-10 | C29: 0.001 | D29: 0.001 | E29: 0.001 | F29: 0.001 | G29: 0.001
A30: 2018-04-11 | B30: 2018-04-17 | C30: 0.001 | D30: 0.001 | E30: 0.001 | F30: 0.001 | G30: 0.001
A31: 2018-04-18 | B31: 2018-04-24 | C31: 0.001 | D31: 0.001 | E31: 0.001 | F31: 0.001 | G31: 0.001
A32: 2018-04-25 | B32: 2018-05-01 | C32: 0.001 | D32: 0.001 | E32: 0.001 | F32: 0.001 | G32: 0.001
A33: 2018-05-02 | B33: 2018-05-08 | C33: 0.001 | D33: 0.001 | E33: 0.001 | F33: 0.001 | G33: 0.001
A34: 2018-05-09 | B34: 2018-05-15 | C34: 0.001 | D34: 0.001 | E34: 0.001 | F34: 0.001 | G34: 0.001
A35: 2018-05-16 | B35: 2018-05-22 | C35: 0.001 | D35: 0.001 | E35: 0.001 | F35: 0.001 | G35: 0.001
A36: 2018-05-23 | B36: 2018-05-29 | C36: 0.001 | D36: 0.001 | E36: 0.001 | F36: 0.001 | G36: 0.001
A37: 2018-05-30 | B37: 2018-06-05 | C37: 0.001 | D37: 0.001 | E37: 0.001 | F37: 0.001 | G37: 0.001
A38: 2018-06-06 | B38: 2018-06-12 | C38: 0.001 | D38: 0.001 | E38: 0.001 | F38: 0.001 | G38: 0.001
A39: 2018-06-13 | B39: 2018-06-19 | C39: 0.001 | D39: 0.001 | E39: 0.001 | F39: 0.001 | G39: 0.001
A40: 2018-06-20 | B40: 2018-06-26 | C40: 0.001 | D40: 0.001 | E40: 0.001 | F40: 0.001 | G40: 0.001
A41: 2018-06-27 | B41: 2018-07-03 | C41: 0.001 | D41: 0.001 | E41: 0.001 | F41: 0.001 | G41: 0.001
A42: 2018-07-04 | B42: 2018-07-10 | C42: 0.001 | D42: 0.001 | E42: 0.001 | F42: 0.001 | G42: 0.001
A43: 2018-07-11 | B43: 2018-07-17 | C43: 0.001 | D43: 0.001 | E43: 0.001 | F43: 0.001 | G43: 0.001
A44: 2018-07-18 | B44: 2018-07-24 | C44: 0.001 | D44: 0.001 | E44: 0.001 | F44: 0.001 | G44: 0.001
A45: 2018-07-25 | B45: 2018-07-31 | C45: 0.001 | D45: 0.001 | E45: 0.001 | F45: 0.001 | G45: 0.001
A46: 2018-08-01 | B46: 2018-08-07 | C46: 0.001 | D46: 0.001 | E46: 0.001 | F46: 0.001 | G46: 0.001
A47: 2018-08-08 | B47: 2018-08-14 | C47: 0.001 | D47: 0.001 | E47: 0.001 | F47: 0.001 | G47: 0.001
A48: 2018-08-15 | B48: 2018-08-21 | C48: 0.001 | D48: 0.001 | E48: 0.001 | F48: 0.001 | G48: 0.001
A49: 2018-08-22 | B49: 2018-08-28 | C49: 0.001 | D49: 0.001 | E49: 0.001 | F49: 0.001 | G49: 0.001
A50: 2018-08-29 | B50: 2018-09-04 | C50: 0.001 | D50: 0.001 | E50: 0.001 | F50: 0.001 | G50: 0.001
A51: 2018-09-05 | B51: 2018-09-11 | C51: 0.001 | D51: 0.001 | E51: 0.001 | F51: 0.001 | G51: 0.001
A52: 2018-09-12 | B52: 2018-09-18 | C52: 0.001 | D52: 0.001 | E52: 0.001 | F52: 0.001 | G52: 0.001
A53: 2018-09-19 | B53: 2018-09-25 | C53: 0.001 | D53: 0.001 | E53: 0.001 | F53: 0.001 | G53: 0.001
A54: 2018-09-26 | B54: 2018-10-02 | C54: 0.001 | D54: 0.001 | E54: 0.001 | F54: 0.001 | G54: 0.001
A55: 2018-10-03 | B55: 2018-10-09 | C55: 0.001 | D55: 0.001 | E55: 0.001 | F55: 0.001 | G55: 0.001
A56: 2018-10-10 | B56: 2018-10-16 | C56: 0.001 | D56: 0.001 | E56: 0.001 | F56: 0.001 | G56: 0.001
A57: 2018-10-17 | B57: 2018-10-23 | C57: 0.001 | D57: 0.001 | E57: 0.001 | F57: 0.001 | G57: 0.001
A58: 2018-10-24 | B58: 2018-10-30 | C58: 0.001 | D58: 0.001 | E58: 0.001 | F58: 0.001 | G58: 0.001

Sheet รายงาน
A1: ='input ข้าว'!A1 -> ปี พ.ศ. | B1: ='input ข้าว'!B1 -> 2560 | C1: ='input ข้าว'!D1 -> ฤดูแล้ง | D1: ='input ข้าว'!E1 -> 60/61 | E1: ='input ข้าว'!F1 -> ฤดูฝน | F1: ='input ข้าว'!G1 -> 61 | K1: =A2&B2&" "&C1&D1&" "&E1&F1 -> โครงการชลประทานพลเทพ ฤดูแล้ง60/61 ฤดูฝน61 | O1: 1 | P1: 42
A2: โครงการชลประทาน | B2: =OFFSET('input ข้าว'!B2,0,$O$1,1,1) -> พลเทพ
A3: จังหวัด | B3: =OFFSET('input ข้าว'!B3,0,$O$1,1,1) -> ชัยนาท
A4: รั่วซึม มม./สัปดาห์ | B4: =OFFSET('input ข้าว'!B4,0,$O$1,1,1) -> 7
A5: น้ำเตรียมแปลงฤดูแล้ง มม./สัปดาห์ | C5: =OFFSET('input ข้าว'!B5,0,$O$1,1,1) -> 0 | D5: =OFFSET('input อ้อย'!B5,0,$O$1,1,1) -> 30 | E5: =OFFSET('input พืชผัก'!$B$5,0,$O$1,1,1) -> 20 | F5: =OFFSET('input ไม้ผล'!$B$5,0,$O$1,1,1) -> 30 | G5: =+D5 -> 30 | J5: =OFFSET('input พืชอื่น'!$B$5,0,$O$1,1,1) -> 20 | L5: รวมฤดูแล้ง (ลบ.ม.) | M5: =SUM(L9:L34) -> 110291191.5
A6: น้ำเตรียมแปลงฤดูฝน มม./สัปดาห์ | C6: =OFFSET('input ข้าว'!B6,0,$O$1,1,1) -> 100 | D6: =OFFSET('input อ้อย'!B6,0,$O$1,1,1) -> 15 | E6: =OFFSET('input พืชผัก'!$B$5,1,$O$1,1,1) -> 10 | F6: =OFFSET('input ไม้ผล'!$B$6,0,$O$1,1,1) -> 90 | G6: =+D6 -> 15 | J6: =OFFSET('input พืชอื่น'!$B$5,1,$O$1,1,1) -> 10 | L6: รวมฤดูฝน (ลบ.ม.) | M6: =SUM(L35:L60) -> 67228010.51
A7: ประสิทธิ์ภาพโครงการ (%) | B7: =OFFSET('input ข้าว'!B7,0,$O$1,1,1) -> 90 | C7: ='input ข้าว'!J1 -> ข้าว กข.(นาดำ) | D7: อ้อย | E7: =OFFSET('input พืชผัก'!$B$8,0,$O$1,1,1) -> กะหล่ำดอก | F7: =OFFSET('input ไม้ผล'!B7,0,$O$1,1,1) -> มะม่วง | G7: =OFFSET('input ไม้ยืนต้น'!$B$7,0,$O$1,1,1) -> มะม่วง | J7: =OFFSET('input พืชอื่น'!$B$8,0,$O$1,1,1) -> ไม้ดอก (บานชื่น) | L7: รวมทั้งปี (ลบ.ม.) | M7: =SUM(M5:M6) -> 177519202
A8: เริ่มต้น | B8: สิ้นสุด | C8: ข้าว | D8: อ้อย | E8: พืชผัก | F8: ไม้ผล | G8: ไม้ยืนต้น | H8: บ่อปลา | I8: บ่อกุ้ง | J8: อื่นๆ | K8: อุปโภค-บริโภค อุตสาหกรรม รักษาระบบนิเวศน์ และอื่น ๆ | L8: รวม (ลบ.ม.)
A9: ='input ข้าว'!A22 -> 2017-11-01 | B9: =+A9+6 -> 2017-11-07 | C9: =ข้าว!HN16 -> 5330622.222 | D9: =อ้อย!HN3 -> 2256.977778 | E9: =พืชผัก!HN16 -> 0 | F9: =ไม้ผล!HN3 -> 132724.6878 | G9: =ไม้ยืนต้น!HN3 -> 0 | H9: =บ่อปลา!HN3 -> 0 | I9: =บ่อกุ้ง!HN3 -> 0 | J9: =อื่นๆ!HN16 -> 0 | K9: =อุปโภค!HN3 -> 0.001111111111 | L9: =SUM(C9:K9) -> 5465603.889
A10: =+A9+7 -> 2017-11-08 | B10: 2017-11-14 | C10: =ข้าว!HN17 -> 5323222.978 | D10: =อ้อย!HN4 -> 816.9777778 | E10: =พืชผัก!HN17 -> 0 | F10: =ไม้ผล!HN4 -> 68884.68778 | G10: =ไม้ยืนต้น!HN4 -> 0 | H10: =บ่อปลา!HN4 -> 0 | I10: =บ่อกุ้ง!HN4 -> 0 | J10: =อื่นๆ!HN17 -> 0 | K10: =อุปโภค!HN4 -> 0.001111111111 | L10: =SUM(C10:K10) -> 5392924.644
A11: =+A10+7 -> 2017-11-15 | B11: 2017-11-21 | C11: =ข้าว!HN18 -> 5255600.733 | D11: =อ้อย!HN5 -> 816.9777778 | E11: =พืชผัก!HN18 -> 0 | F11: =ไม้ผล!HN5 -> 68884.68778 | G11: =ไม้ยืนต้น!HN5 -> 0 | H11: =บ่อปลา!HN5 -> 0 | I11: =บ่อกุ้ง!HN5 -> 0 | J11: =อื่นๆ!HN18 -> 0 | K11: =อุปโภค!HN5 -> 0.001111111111 | L11: 5325302.4
A12: 2017-11-22 | B12: 2017-11-28 | C12: =ข้าว!HN19 -> 4920471.478 | D12: =อ้อย!HN6 -> 816.9777778 | E12: =พืชผัก!HN19 -> 0 | F12: =ไม้ผล!HN6 -> 68884.68778 | G12: =ไม้ยืนต้น!HN6 -> 0 | H12: =บ่อปลา!HN6 -> 0 | I12: =บ่อกุ้ง!HN6 -> 0 | J12: =อื่นๆ!HN19 -> 0 | K12: =อุปโภค!HN6 -> 0.001111111111 | L12: 4990173.144
A13: 2017-11-29 | B13: 2017-12-05 | C13: =ข้าว!HN20 -> 5268706.833 | D13: =อ้อย!HN7 -> 1209.322222 | E13: =พืชผัก!HN20 -> 0 | F13: =ไม้ผล!HN7 -> 79978.48378 | G13: =ไม้ยืนต้น!HN7 -> 0 | H13: =บ่อปลา!HN7 -> 0 | I13: =บ่อกุ้ง!HN7 -> 0 | J13: =อื่นๆ!HN20 -> 0 | K13: =อุปโภค!HN7 -> 0.001111111111 | L13: 5349894.64
A14: 2017-12-06 | B14: 2017-12-12 | C14: =ข้าว!HN21 -> 4564676.567 | D14: =อ้อย!HN8 -> 1209.322222 | E14: =พืชผัก!HN21 -> 0 | F14: =ไม้ผล!HN8 -> 86008.70156 | G14: =ไม้ยืนต้น!HN8 -> 0 | H14: =บ่อปลา!HN8 -> 0 | I14: =บ่อกุ้ง!HN8 -> 0 | J14: =อื่นๆ!HN21 -> 0 | K14: =อุปโภค!HN8 -> 0.001111111111 | L14: 4651894.592
A15: 2017-12-13 | B15: 2017-12-19 | C15: =ข้าว!HN22 -> 2930955.856 | D15: =อ้อย!HN9 -> 1209.322222 | E15: =พืชผัก!HN22 -> 0 | F15: =ไม้ผล!HN9 -> 86008.70156 | G15: =ไม้ยืนต้น!HN9 -> 0 | H15: =บ่อปลา!HN9 -> 0 | I15: =บ่อกุ้ง!HN9 -> 0 | J15: =อื่นๆ!HN22 -> 0 | K15: =อุปโภค!HN9 -> 0.001111111111 | L15: 3018173.88
A16: 2017-12-20 | B16: 2017-12-26 | C16: =ข้าว!HN23 -> 2393332.078 | D16: =อ้อย!HN10 -> 1209.322222 | E16: =พืชผัก!HN23 -> 0 | F16: =ไม้ผล!HN10 -> 86008.70156 | G16: =ไม้ยืนต้น!HN10 -> 0 | H16: =บ่อปลา!HN10 -> 0 | I16: =บ่อกุ้ง!HN10 -> 0 | J16: =อื่นๆ!HN23 -> 0 | K16: =อุปโภค!HN10 -> 0.001111111111 | L16: 2480550.103
A17: 2017-12-27 | B17: 2018-01-02 | C17: =ข้าว!HN24 -> 1756454.278 | D17: =อ้อย!HN11 -> 1227.644444 | E17: =พืชผัก!HN24 -> 0 | F17: =ไม้ผล!HN11 -> 86008.70156 | G17: =ไม้ยืนต้น!HN11 -> 0 | H17: =บ่อปลา!HN11 -> 0 | I17: =บ่อกุ้ง!HN11 -> 0 | J17: =อื่นๆ!HN24 -> 0 | K17: =อุปโภค!HN11 -> 0.001111111111 | L17: 1843690.625
A18: 2018-01-03 | B18: 2018-01-09 | C18: =ข้าว!HN25 -> 2422122.367 | D18: =อ้อย!HN12 -> 1527.022222 | E18: =พืชผัก!HN25 -> 0 | F18: =ไม้ผล!HN12 -> 89880.06778 | G18: =ไม้ยืนต้น!HN12 -> 0 | H18: =บ่อปลา!HN12 -> 0 | I18: =บ่อกุ้ง!HN12 -> 0 | J18: =อื่นๆ!HN25 -> 0 | K18: =อุปโภค!HN12 -> 0.001111111111 | L18: 2513529.458
A19: 2018-01-10 | B19: 2018-01-16 | C19: =ข้าว!HN26 -> 3228874.433 | D19: =อ้อย!HN13 -> 1527.022222 | E19: =พืชผัก!HN26 -> 0 | F19: =ไม้ผล!HN13 -> 89880.06778 | G19: =ไม้ยืนต้น!HN13 -> 0 | H19: =บ่อปลา!HN13 -> 0 | I19: =บ่อกุ้ง!HN13 -> 0 | J19: =อื่นๆ!HN26 -> 0 | K19: =อุปโภค!HN13 -> 0.001111111111 | L19: 3320281.524
A20: 2018-01-17 | B20: 2018-01-23 | C20: =ข้าว!HN27 -> 4037535.156 | D20: =อ้อย!HN14 -> 1527.022222 | E20: =พืชผัก!HN27 -> 0 | F20: =ไม้ผล!HN14 -> 89880.06778 | G20: =ไม้ยืนต้น!HN14 -> 0 | H20: =บ่อปลา!HN14 -> 0 | I20: =บ่อกุ้ง!HN14 -> 0 | J20: =อื่นๆ!HN27 -> 0 | K20: =อุปโภค!HN14 -> 0.001111111111 | L20: 4128942.247
A21: 2018-01-24 | B21: 2018-01-30 | C21: =ข้าว!HN28 -> 4836425.922 | D21: =อ้อย!HN15 -> 1527.022222 | E21: =พืชผัก!HN28 -> 0 | F21: =ไม้ผล!HN15 -> 89880.06778 | G21: =ไม้ยืนต้น!HN15 -> 0 | H21: =บ่อปลา!HN15 -> 0 | I21: =บ่อกุ้ง!HN15 -> 0 | J21: =อื่นๆ!HN28 -> 0 | K21: =อุปโภค!HN15 -> 0.001111111111 | L21: 4927833.013
A22: 2018-01-31 | B22: 2018-02-06 | C22: =ข้าว!HN29 -> 5387377.822 | D22: =อ้อย!HN16 -> 1875.644444 | E22: =พืชผัก!HN29 -> 0 | F22: =ไม้ผล!HN16 -> 82199.31778 | G22: =ไม้ยืนต้น!HN16 -> 0 | H22: =บ่อปลา!HN16 -> 0 | I22: =บ่อกุ้ง!HN16 -> 0 | J22: =อื่นๆ!HN29 -> 0 | K22: =อุปโภค!HN16 -> 0.001111111111 | L22: 5471452.786
A23: 2018-02-07 | B23: 2018-02-13 | C23: =ข้าว!HN30 -> 5651392.878 | D23: =อ้อย!HN17 -> 1875.644444 | E23: =พืชผัก!HN30 -> 0 | F23: =ไม้ผล!HN17 -> 87265.024 | G23: =ไม้ยืนต้น!HN17 -> 0 | H23: =บ่อปลา!HN17 -> 0 | I23: =บ่อกุ้ง!HN17 -> 0 | J23: =อื่นๆ!HN30 -> 0 | K23: =อุปโภค!HN17 -> 0.001111111111 | L23: 5740533.547
A24: 2018-02-14 | B24: 2018-02-20 | C24: =ข้าว!HN31 -> 5772732.467 | D24: =อ้อย!HN18 -> 1875.644444 | E24: =พืชผัก!HN31 -> 0 | F24: =ไม้ผล!HN18 -> 87265.024 | G24: =ไม้ยืนต้น!HN18 -> 0 | H24: =บ่อปลา!HN18 -> 0 | I24: =บ่อกุ้ง!HN18 -> 0 | J24: =อื่นๆ!HN31 -> 0 | K24: =อุปโภค!HN18 -> 0.001111111111 | L24: 5861873.136
A25: 2018-02-21 | B25: 2018-02-27 | C25: =ข้าว!HN32 -> 6009013.7 | D25: =อ้อย!HN19 -> 1875.644444 | E25: =พืชผัก!HN32 -> 0 | F25: =ไม้ผล!HN19 -> 87265.024 | G25: =ไม้ยืนต้น!HN19 -> 0 | H25: =บ่อปลา!HN19 -> 0 | I25: =บ่อกุ้ง!HN19 -> 0 | J25: =อื่นๆ!HN32 -> 0 | K25: =อุปโภค!HN19 -> 0.001111111111 | L25: 6098154.37
A26: 2018-02-28 | B26: 2018-03-06 | C26: =ข้าว!HN33 -> 6362210.744 | D26: =อ้อย!HN20 -> 2404.933333 | E26: =พืชผัก!HN33 -> 0 | F26: =ไม้ผล!HN20 -> 87607.632 | G26: =ไม้ยืนต้น!HN20 -> 0 | H26: =บ่อปลา!HN20 -> 0 | I26: =บ่อกุ้ง!HN20 -> 0 | J26: =อื่นๆ!HN33 -> 0 | K26: =อุปโภค!HN20 -> 0.001111111111 | L26: 6452223.311
A27: 2018-03-07 | B27: 2018-03-13 | C27: =ข้าว!HN34 -> 6111508.778 | D27: =อ้อย!HN21 -> 2404.933333 | E27: =พืชผัก!HN34 -> 0 | F27: =ไม้ผล!HN21 -> 98295.24378 | G27: =ไม้ยืนต้น!HN21 -> 0 | H27: =บ่อปลา!HN21 -> 0 | I27: =บ่อกุ้ง!HN21 -> 0 | J27: =อื่นๆ!HN34 -> 0 | K27: =อุปโภค!HN21 -> 0.001111111111 | L27: 6212208.956
A28: 2018-03-14 | B28: 2018-03-20 | C28: =ข้าว!HN35 -> 5849739.033 | D28: =อ้อย!HN22 -> 2404.933333 | E28: =พืชผัก!HN35 -> 0 | F28: =ไม้ผล!HN22 -> 98295.24378 | G28: =ไม้ยืนต้น!HN22 -> 0 | H28: =บ่อปลา!HN22 -> 0 | I28: =บ่อกุ้ง!HN22 -> 0 | J28: =อื่นๆ!HN35 -> 0 | K28: =อุปโภค!HN22 -> 0.001111111111 | L28: 5950439.212
A29: 2018-03-21 | B29: 2018-03-27 | C29: =ข้าว!HN36 -> 4849600.589 | D29: =อ้อย!HN23 -> 2404.933333 | E29: =พืชผัก!HN36 -> 0 | F29: =ไม้ผล!HN23 -> 98295.24378 | G29: =ไม้ยืนต้น!HN23 -> 0 | H29: =บ่อปลา!HN23 -> 0 | I29: =บ่อกุ้ง!HN23 -> 0 | J29: =อื่นๆ!HN36 -> 0 | K29: =อุปโภค!HN23 -> 0.001111111111 | L29: 4950300.767
A30: 2018-03-28 | B30: 2018-04-03 | C30: =ข้าว!HN37 -> 3891678.978 | D30: =อ้อย!HN24 -> 2342.166667 | E30: =พืชผัก!HN37 -> 0 | F30: =ไม้ผล!HN24 -> 98295.24378 | G30: =ไม้ยืนต้น!HN24 -> 0 | H30: =บ่อปลา!HN24 -> 0 | I30: =บ่อกุ้ง!HN24 -> 0 | J30: =อื่นๆ!HN37 -> 0 | K30: =อุปโภค!HN24 -> 0.001111111111 | L30: 3992316.389
A31: 2018-04-04 | B31: 2018-04-10 | C31: =ข้าว!HN38 -> 2732459.589 | D31: =อ้อย!HN25 -> 1928.488889 | E31: =พืชผัก!HN38 -> 0 | F31: =ไม้ผล!HN25 -> 104006 | G31: =ไม้ยืนต้น!HN25 -> 0 | H31: =บ่อปลา!HN25 -> 0 | I31: =บ่อกุ้ง!HN25 -> 0 | J31: =อื่นๆ!HN38 -> 0 | K31: =อุปโภค!HN25 -> 0.001111111111 | L31: 2838394.079
A32: 2018-04-11 | B32: 2018-04-17 | C32: =ข้าว!HN39 -> 1674620.644 | D32: =อ้อย!HN26 -> 1928.488889 | E32: =พืชผัก!HN39 -> 0 | F32: =ไม้ผล!HN26 -> 104006 | G32: =ไม้ยืนต้น!HN26 -> 0 | H32: =บ่อปลา!HN26 -> 0 | I32: =บ่อกุ้ง!HN26 -> 0 | J32: =อื่นๆ!HN39 -> 0 | K32: =อุปโภค!HN26 -> 0.001111111111 | L32: 1780555.134
A33: 2018-04-18 | B33: 2018-04-24 | C33: =ข้าว!HN40 -> 1053690.556 | D33: =อ้อย!HN27 -> 1928.488889 | E33: =พืชผัก!HN40 -> 0 | F33: =ไม้ผล!HN27 -> 104006 | G33: =ไม้ยืนต้น!HN27 -> 0 | H33: =บ่อปลา!HN27 -> 0 | I33: =บ่อกุ้ง!HN27 -> 0 | J33: =อื่นๆ!HN40 -> 0 | K33: =อุปโภค!HN27 -> 0.001111111111 | L33: 1159625.046
A34: 2018-04-25 | B34: 2018-05-01 | C34: =ข้าว!HN41 -> 268676.4222 | D34: =อ้อย!HN28 -> 1638.2 | E34: =พืชผัก!HN41 -> 0 | F34: =ไม้ผล!HN28 -> 104006 | G34: =ไม้ยืนต้น!HN28 -> 0 | H34: =บ่อปลา!HN28 -> 0 | I34: =บ่อกุ้ง!HN28 -> 0 | J34: =อื่นๆ!HN41 -> 0 | K34: =อุปโภค!HN28 -> 0.001111111111 | L34: 374320.6233
A35: 2018-05-02 | B35: 2018-05-08 | C35: =ข้าว!HN42 -> 2344267.533 | D35: =อ้อย!HN29 -> 1507.866667 | E35: =พืชผัก!HN42 -> 0 | F35: =ไม้ผล!HN29 -> 66046.46778 | G35: =ไม้ยืนต้น!HN29 -> 0 | H35: =บ่อปลา!HN29 -> 0 | I35: =บ่อกุ้ง!HN29 -> 0 | J35: =อื่นๆ!HN42 -> 0 | K35: =อุปโภค!HN29 -> 0.001111111111 | L35: 2411821.869
A36: 2018-05-09 | B36: 2018-05-15 | C36: =ข้าว!HN43 -> 7033268.133 | D36: =อ้อย!HN30 -> 1507.866667 | E36: =พืชผัก!HN43 -> 0 | F36: =ไม้ผล!HN30 -> 66046.46778 | G36: =ไม้ยืนต้น!HN30 -> 0 | H36: =บ่อปลา!HN30 -> 0 | I36: =บ่อกุ้ง!HN30 -> 0 | J36: =อื่นๆ!HN43 -> 0 | K36: =อุปโภค!HN30 -> 0.001111111111 | L36: 7100822.469
A37: 2018-05-16 | B37: 2018-05-22 | C37: =ข้าว!HN44 -> 5501938.156 | D37: =อ้อย!HN31 -> 1507.866667 | E37: =พืชผัก!HN44 -> 0 | F37: =ไม้ผล!HN31 -> 66046.46778 | G37: =ไม้ยืนต้น!HN31 -> 0 | H37: =บ่อปลา!HN31 -> 0 | I37: =บ่อกุ้ง!HN31 -> 0 | J37: =อื่นๆ!HN44 -> 0 | K37: =อุปโภค!HN31 -> 0.001111111111 | L37: 5569492.491
A38: 2018-05-23 | B38: 2018-05-29 | C38: =ข้าว!HN45 -> 6980464.511 | D38: =อ้อย!HN32 -> 1507.866667 | E38: =พืชผัก!HN45 -> 0 | F38: =ไม้ผล!HN32 -> 66046.46778 | G38: =ไม้ยืนต้น!HN32 -> 0 | H38: =บ่อปลา!HN32 -> 0 | I38: =บ่อกุ้ง!HN32 -> 0 | J38: =อื่นๆ!HN45 -> 0 | K38: =อุปโภค!HN32 -> 0.001111111111 | L38: 7048018.847
A39: 2018-05-30 | B39: 2018-06-05 | C39: =ข้าว!HN46 -> 3623240.311 | D39: =อ้อย!HN33 -> 1220.533333 | E39: =พืชผัก!HN46 -> 0 | F39: =ไม้ผล!HN33 -> 57619.98678 | G39: =ไม้ยืนต้น!HN33 -> 0 | H39: =บ่อปลา!HN33 -> 0 | I39: =บ่อกุ้ง!HN33 -> 0 | J39: =อื่นๆ!HN46 -> 0 | K39: =อุปโภค!HN33 -> 0.001111111111 | L39: 3682080.832
A40: 2018-06-06 | B40: 2018-06-12 | C40: =ข้าว!HN47 -> 4125443.278 | D40: =อ้อย!HN34 -> 1220.533333 | E40: =พืชผัก!HN47 -> 0 | F40: =ไม้ผล!HN34 -> 62140.39744 | G40: =ไม้ยืนต้น!HN34 -> 0 | H40: =บ่อปลา!HN34 -> 0 | I40: =บ่อกุ้ง!HN34 -> 0 | J40: =อื่นๆ!HN47 -> 0 | K40: =อุปโภค!HN34 -> 0.001111111111 | L40: 4188804.21
A41: 2018-06-13 | B41: 2018-06-19 | C41: =ข้าว!HN48 -> 4767339.089 | D41: =อ้อย!HN35 -> 1220.533333 | E41: =พืชผัก!HN48 -> 0 | F41: =ไม้ผล!HN35 -> 62140.39744 | G41: =ไม้ยืนต้น!HN35 -> 0 | H41: =บ่อปลา!HN35 -> 0 | I41: =บ่อกุ้ง!HN35 -> 0 | J41: =อื่นๆ!HN48 -> 0 | K41: =อุปโภค!HN35 -> 0.001111111111 | L41: 4830700.021
A42: 2018-06-20 | B42: 2018-06-26 | C42: =ข้าว!HN49 -> 4863828.856 | D42: =อ้อย!HN36 -> 1220.533333 | E42: =พืชผัก!HN49 -> 0 | F42: =ไม้ผล!HN36 -> 62140.39744 | G42: =ไม้ยืนต้น!HN36 -> 0 | H42: =บ่อปลา!HN36 -> 0 | I42: =บ่อกุ้ง!HN36 -> 0 | J42: =อื่นๆ!HN49 -> 0 | K42: =อุปโภค!HN36 -> 0.001111111111 | L42: 4927189.787
A43: 2018-06-27 | B43: 2018-07-03 | C43: =ข้าว!HN50 -> 3098344.722 | D43: =อ้อย!HN37 -> 738.1666667 | E43: =พืชผัก!HN50 -> 0 | F43: =ไม้ผล!HN37 -> 62140.39744 | G43: =ไม้ยืนต้น!HN37 -> 0 | H43: =บ่อปลา!HN37 -> 0 | I43: =บ่อกุ้ง!HN37 -> 0 | J43: =อื่นๆ!HN50 -> 0 | K43: =อุปโภค!HN37 -> 0.001111111111 | L43: 3161223.287
A44: 2018-07-04 | B44: 2018-07-10 | C44: =ข้าว!HN51 -> 3014311.867 | D44: =อ้อย!HN38 -> 351.1 | E44: =พืชผัก!HN51 -> 0 | F44: =ไม้ผล!HN38 -> 37086.78844 | G44: =ไม้ยืนต้น!HN38 -> 0 | H44: =บ่อปลา!HN38 -> 0 | I44: =บ่อกุ้ง!HN38 -> 0 | J44: =อื่นๆ!HN51 -> 0 | K44: =อุปโภค!HN38 -> 0.001111111111 | L44: 3051749.756
A45: 2018-07-11 | B45: 2018-07-17 | C45: =ข้าว!HN52 -> 2748502.367 | D45: =อ้อย!HN39 -> 351.1 | E45: =พืชผัก!HN52 -> 0 | F45: =ไม้ผล!HN39 -> 37086.78844 | G45: =ไม้ยืนต้น!HN39 -> 0 | H45: =บ่อปลา!HN39 -> 0 | I45: =บ่อกุ้ง!HN39 -> 0 | J45: =อื่นๆ!HN52 -> 0 | K45: =อุปโภค!HN39 -> 0.001111111111 | L45: 2785940.256
A46: 2018-07-18 | B46: 2018-07-24 | C46: =ข้าว!HN53 -> 2720684.1 | D46: =อ้อย!HN40 -> 351.1 | E46: =พืชผัก!HN53 -> 0 | F46: =ไม้ผล!HN40 -> 37086.78844 | G46: =ไม้ยืนต้น!HN40 -> 0 | H46: =บ่อปลา!HN40 -> 0 | I46: =บ่อกุ้ง!HN40 -> 0 | J46: =อื่นๆ!HN53 -> 0 | K46: =อุปโภค!HN40 -> 0.001111111111 | L46: 2758121.99
A47: 2018-07-25 | B47: 2018-07-31 | C47: =ข้าว!HN54 -> 1585751.989 | D47: =อ้อย!HN41 -> 351.1 | E47: =พืชผัก!HN54 -> 0 | F47: =ไม้ผล!HN41 -> 37086.78844 | G47: =ไม้ยืนต้น!HN41 -> 0 | H47: =บ่อปลา!HN41 -> 0 | I47: =บ่อกุ้ง!HN41 -> 0 | J47: =อื่นๆ!HN54 -> 0 | K47: =อุปโภค!HN41 -> 0.001111111111 | L47: 1623189.878
A48: 2018-08-01 | B48: 2018-08-07 | C48: =ข้าว!HN55 -> 0 | D48: =อ้อย!HN42 -> 0 | E48: =พืชผัก!HN55 -> 0 | F48: =ไม้ผล!HN42 -> 9065.683444 | G48: =ไม้ยืนต้น!HN42 -> 0 | H48: =บ่อปลา!HN42 -> 0 | I48: =บ่อกุ้ง!HN42 -> 0 | J48: =อื่นๆ!HN55 -> 0 | K48: =อุปโภค!HN42 -> 0.001111111111 | L48: 9065.684556
A49: 2018-08-08 | B49: 2018-08-14 | C49: =ข้าว!HN56 -> 0 | D49: =อ้อย!HN43 -> 0 | E49: =พืชผัก!HN56 -> 0 | F49: =ไม้ผล!HN43 -> 9065.683444 | G49: =ไม้ยืนต้น!HN43 -> 0 | H49: =บ่อปลา!HN43 -> 0 | I49: =บ่อกุ้ง!HN43 -> 0 | J49: =อื่นๆ!HN56 -> 0 | K49: =อุปโภค!HN43 -> 0.001111111111 | L49: 9065.684556
A50: 2018-08-15 | B50: 2018-08-21 | C50: =ข้าว!HN57 -> 1245567.144 | D50: =อ้อย!HN44 -> 0 | E50: =พืชผัก!HN57 -> 0 | F50: =ไม้ผล!HN44 -> 9065.683444 | G50: =ไม้ยืนต้น!HN44 -> 0 | H50: =บ่อปลา!HN44 -> 0 | I50: =บ่อกุ้ง!HN44 -> 0 | J50: =อื่นๆ!HN57 -> 0 | K50: =อุปโภค!HN44 -> 0.001111111111 | L50: 1254632.829
A51: 2018-08-22 | B51: 2018-08-28 | C51: =ข้าว!HN58 -> 2167397.089 | D51: =อ้อย!HN45 -> 0 | E51: =พืชผัก!HN58 -> 0 | F51: =ไม้ผล!HN45 -> 9065.683444 | G51: =ไม้ยืนต้น!HN45 -> 0 | H51: =บ่อปลา!HN45 -> 0 | I51: =บ่อกุ้ง!HN45 -> 0 | J51: =อื่นๆ!HN58 -> 0 | K51: =อุปโภค!HN45 -> 0.001111111111 | L51: 2176462.773
A52: 2018-08-29 | B52: 2018-09-04 | C52: =ข้าว!HN59 -> 4722747.933 | D52: =อ้อย!HN46 -> 0 | E52: =พืชผัก!HN59 -> 0 | F52: =ไม้ผล!HN46 -> 8096.512444 | G52: =ไม้ยืนต้น!HN46 -> 0 | H52: =บ่อปลา!HN46 -> 0 | I52: =บ่อกุ้ง!HN46 -> 0 | J52: =อื่นๆ!HN59 -> 0 | K52: =อุปโภค!HN46 -> 0.001111111111 | L52: 4730844.447
A53: 2018-09-05 | B53: 2018-09-11 | C53: =ข้าว!HN60 -> 0 | D53: =อ้อย!HN47 -> 0 | E53: =พืชผัก!HN60 -> 0 | F53: =ไม้ผล!HN47 -> 0 | G53: =ไม้ยืนต้น!HN47 -> 0 | H53: =บ่อปลา!HN47 -> 0 | I53: =บ่อกุ้ง!HN47 -> 0 | J53: =อื่นๆ!HN60 -> 0 | K53: =อุปโภค!HN47 -> 0.001111111111 | L53: 0.001111111111
A54: 2018-09-12 | B54: 2018-09-18 | C54: =ข้าว!HN61 -> 0 | D54: =อ้อย!HN48 -> 0 | E54: =พืชผัก!HN61 -> 0 | F54: =ไม้ผล!HN48 -> 0 | G54: =ไม้ยืนต้น!HN48 -> 0 | H54: =บ่อปลา!HN48 -> 0 | I54: =บ่อกุ้ง!HN48 -> 0 | J54: =อื่นๆ!HN61 -> 0 | K54: =อุปโภค!HN48 -> 0.001111111111 | L54: 0.001111111111
A55: 2018-09-19 | B55: 2018-09-25 | C55: =ข้าว!HN62 -> 0 | D55: =อ้อย!HN49 -> 0 | E55: =พืชผัก!HN62 -> 0 | F55: =ไม้ผล!HN49 -> 0 | G55: =ไม้ยืนต้น!HN49 -> 0 | H55: =บ่อปลา!HN49 -> 0 | I55: =บ่อกุ้ง!HN49 -> 0 | J55: =อื่นๆ!HN62 -> 0 | K55: =อุปโภค!HN49 -> 0.001111111111 | L55: 0.001111111111
A56: 2018-09-26 | B56: 2018-10-02 | C56: =ข้าว!HN63 -> 1234477.544 | D56: =อ้อย!HN50 -> 89.27777778 | E56: =พืชผัก!HN63 -> 0 | F56: =ไม้ผล!HN50 -> 0 | G56: =ไม้ยืนต้น!HN50 -> 0 | H56: =บ่อปลา!HN50 -> 0 | I56: =บ่อกุ้ง!HN50 -> 0 | J56: =อื่นๆ!HN63 -> 0 | K56: =อุปโภค!HN50 -> 0.001111111111 | L56: 1234566.823
A57: 2018-10-03 | B57: 2018-10-09 | C57: =ข้าว!HN64 -> 1064771.989 | D57: =อ้อย!HN51 -> 78.32222222 | E57: =พืชผัก!HN64 -> 0 | F57: =ไม้ผล!HN51 -> 15794.814 | G57: =ไม้ยืนต้น!HN51 -> 0 | H57: =บ่อปลา!HN51 -> 0 | I57: =บ่อกุ้ง!HN51 -> 0 | J57: =อื่นๆ!HN64 -> 0 | K57: =อุปโภค!HN51 -> 0.001111111111 | L57: 1080645.126
A58: 2018-10-10 | B58: 2018-10-16 | C58: =ข้าว!HN65 -> 1220714.333 | D58: =อ้อย!HN52 -> 78.32222222 | E58: =พืชผัก!HN65 -> 0 | F58: =ไม้ผล!HN52 -> 15794.814 | G58: =ไม้ยืนต้น!HN52 -> 0 | H58: =บ่อปลา!HN52 -> 0 | I58: =บ่อกุ้ง!HN52 -> 0 | J58: =อื่นๆ!HN65 -> 0 | K58: =อุปโภค!HN52 -> 0.001111111111 | L58: 1236587.471
A59: 2018-10-17 | B59: 2018-10-23 | C59: =ข้าว!HN66 -> 1243565.344 | D59: =อ้อย!HN53 -> 78.32222222 | E59: =พืชผัก!HN66 -> 0 | F59: =ไม้ผล!HN53 -> 15794.814 | G59: =ไม้ยืนต้น!HN53 -> 0 | H59: =บ่อปลา!HN53 -> 0 | I59: =บ่อกุ้ง!HN53 -> 0 | J59: =อื่นๆ!HN66 -> 0 | K59: =อุปโภค!HN53 -> 0.001111111111 | L59: 1259438.482
A60: 2018-10-24 | B60: 2018-10-30 | C60: =ข้าว!HN67 -> 1081672.356 | D60: =อ้อย!HN54 -> 78.32222222 | E60: =พืชผัก!HN67 -> 0 | F60: =ไม้ผล!HN54 -> 15794.814 | G60: =ไม้ยืนต้น!HN54 -> 0 | H60: =บ่อปลา!HN54 -> 0 | I60: =บ่อกุ้ง!HN54 -> 0 | J60: =อื่นๆ!HN67 -> 0 | K60: =อุปโภค!HN54 -> 0.001111111111 | L60: 1097545.493
A61: รวม (ลบ.ม.) | C61: =SUM(C9:C60) -> 174272001.7 | D61: =SUM(D9:D60) -> 57227.81111 | E61: 0 | F61: 3189972.413 | G61: 0 | H61: 0 | I61: 0 | J61: 0 | K61: 0.05777777778 | L61: 177519202

Sheet ETO (hidden)
A1: สรุป ETo ฝ่ายเผยแพร่การใช้น้ำชลประทาน ส่วนการใช้น้ำชลประทาน พฤษภาคม 2554 | P1: **** มม./วัน
D2: 1 | E2: 2 | F2: 3 | G2: 4 | H2: 5 | I2: 6 | J2: 7 | K2: 8 | L2: 9 | M2: 10 | N2: 11 | O2: 12
A3: ลำดับที่ | B3: สถานีตรวจอากาศ | C3: จังหวัด | D3: Jan | E3: Feb | F3: Mar | G3: Apr | H3: May | I3: Jun | J3: Jul | K3: Aug | L3: Sep | M3: Oct | N3: Nov | O3: Dec | P3: Annual | R3: no | S3: prv_code | T3: prv_name | U3: ETo_sta
A4: 1 | B4: แม่ฮ่องสอน | C4: แม่ฮ่องสอน | D4: 2.83 | E4: 3.55 | F4: 4.51 | G4: 5.22 | H4: 4.46 | I4: 3.59 | J4: 2.93 | K4: 3.32 | L4: 3.11 | M4: 3.32 | N4: 3.02 | O4: 2.68 | R4: 63 | S4: 601 | T4: กระบี่ | U4: กระบี่
A5: =+A4+1 -> 2 | B5: แม่สะเรียง | C5: แม่ฮ่องสอน | D5: 2.89 | E5: 3.86 | F5: 4.78 | G5: 5.11 | H5: 4.35 | I5: 2.92 | J5: 2.82 | K5: 2.72 | L5: 3.07 | M5: 3.09 | N5: 2.93 | O5: 2.84 | R5: 4 | S5: 132 | T5: กรุงเทพมหานคร | U5: กรุงเทพมหานคร
A6: =+A5+1 -> 3 | B6: เชียงราย | C6: เชียงราย | D6: 2.83 | E6: 3.5 | F6: 4.4 | G6: 5.05 | H6: 4.35 | I6: 4 | J6: 3.53 | K6: 3.38 | L6: 3.45 | M6: 3.43 | N6: 3.17 | O6: 2.63 | R6: 19 | S6: 302 | T6: กาญจนบุรี | U6: กาญจนบุรี
A7: 4 | B7: สถานีฯเกษตร เชียงราย | C7: เชียงราย | D7: 2.79 | E7: 3.42 | F7: 4.26 | G7: 4.77 | H7: 4.13 | I7: 3.85 | J7: 3.4 | K7: 3.27 | L7: 3.71 | M7: 3.38 | N7: 3.14 | O7: 2.64 | R7: 44 | S7: 503 | T7: กาฬสินธุ์ | U7: กาฬสินธุ์
A8: 5 | B8: พะเยา | C8: พะเยา | D8: 2.83 | E8: 3.53 | F8: 4.45 | G8: 4.91 | H8: 4.4 | I8: 3.69 | J8: 3.58 | K8: 3.38 | L8: 3.4 | M8: 3.23 | N8: 2.92 | O8: 2.58 | R8: 27 | S8: 404 | T8: กำแพงเพชร | U8: กำแพงเพชร
A9: 6 | B9: เชียงใหม่ | C9: เชียงใหม่ | D9: 3.21 | E9: 4.09 | F9: 5.26 | G9: 6.12 | H9: 4.97 | I9: 4.3 | J9: 3.8 | K9: 3.62 | L9: 3.67 | M9: 3.74 | N9: 3.35 | O9: 3.03 | R9: 45 | S9: 505 | T9: ขอนแก่น | U9: ขอนแก่น
A10: 7 | B10: ดอยอ่างขาง | C10: เชียงใหม่ | D10: 3.16 | E10: 4.36 | F10: 5.3 | G10: 5.18 | H10: 3.95 | I10: 3.5 | J10: 3.27 | K10: 3.06 | L10: 3.23 | M10: 2.92 | N10: 2.98 | O10: 2.65 | R10: 10 | S10: 206 | T10: จันทบุรี | U10: จันทบุรี
A11: 8 | B11: สถานีฯเกษตร แม่โจ้ | C11: เชียงใหม่ | D11: 3.07 | E11: 3.71 | F11: 4.59 | G11: 4.85 | H11: 3.86 | I11: 3.92 | J11: 2.94 | K11: 3.37 | L11: 3.09 | M11: 3.68 | N11: 3.38 | O11: 3.03 | R11: 11 | S11: 207 | T11: ฉะเชิงเทรา | U11: ฉะเชิงเทรา
A12: 9 | B12: ลำปาง | C12: ลำปาง | D12: 3.07 | E12: 3.73 | F12: 4.69 | G12: 4.98 | H12: 4.44 | I12: 4.06 | J12: 3.61 | K12: 3.46 | L12: 3.51 | M12: 3.42 | N12: 3.13 | O12: 2.84 | R12: 12 | S12: 208 | T12: ชลบุรี | U12: ชลบุรี
A13: 10 | B13: เถิน | C13: ลำปาง | D13: 3.64 | E13: 4.54 | F13: 5.6 | G13: 5.77 | H13: 4.39 | I13: 4.27 | J13: 3.86 | K13: 3.67 | L13: 3.73 | M13: 3.64 | N13: 3.77 | O13: 3.45 | R13: 1 | S13: 109 | T13: ชัยนาท | U13: สถานีฯเกษตร ชัยนาท
A14: 11 | B14: สถานีฯเกษตร ลำปาง | C14: ลำปาง | D14: 2.77 | E14: 3.26 | F14: 4.06 | G14: 4.22 | H14: 3.78 | I14: 3.45 | J14: 3.37 | K14: 3.28 | L14: 3.06 | M14: 3.29 | N14: 3.11 | O14: 2.7 | R14: 46 | S14: 510 | T14: ชัยภูมิ | U14: ชัยภูมิ
A15: 12 | B15: ลำพูน | C15: ลำพูน | D15: 2.94 | E15: 3.79 | F15: 4.73 | G15: 5.46 | H15: 4.56 | I15: 3.78 | J15: 3.68 | K15: 3.47 | L15: 3.47 | M15: 3.35 | N15: 3.06 | O15: 2.74 | R15: 64 | S15: 611 | T15: ชุมพร | U15: ชุมพร
A16: 13 | B16: แพร่ | C16: แพร่ | D16: 2.98 | E16: 3.7 | F16: 4.48 | G16: 4.91 | H16: 4.57 | I16: 3.73 | J16: 3.59 | K16: 3.44 | L16: 3.5 | M16: 3.41 | N16: 3.17 | O16: 2.68 | R16: 28 | S16: 412 | T16: เชียงราย | U16: เชียงราย
A17: 14 | B17: น่าน | C17: น่าน | D17: 2.88 | E17: 3.49 | F17: 4.39 | G17: 4.63 | H17: 4.25 | I17: 3.88 | J17: 3.43 | K17: 3.33 | L17: 3.43 | M17: 3.47 | N17: 3.04 | O17: 2.7 | R17: 29 | S17: 413 | T17: เชียงใหม่ | U17: เชียงใหม่
A18: 15 | B18: สถานีฯเกษตร น่าน | C18: น่าน | D18: 2.88 | E18: 3.54 | F18: 4.37 | G18: 4.83 | H18: 4.14 | I18: 3.78 | J18: 3.37 | K18: 3.27 | L18: 3.72 | M18: 3.74 | N18: 3.32 | O18: 2.81 | R18: 65 | S18: 614 | T18: ตรัง | U18: ท่าอากาศยานตรัง
A19: 16 | B19: ท่าวังผา | C19: น่าน | D19: 2.88 | E19: 3.56 | F19: 4.55 | G19: 4.67 | H19: 4.28 | I19: 3.56 | J19: 3.46 | K19: 2.78 | L19: 3.41 | M19: 3.4 | N19: 3.11 | O19: 2.65 | R19: 13 | S19: 215 | T19: ตราด | U19: จันทบุรี
A20: 17 | B20: ทุ่งช้าง | C20: น่าน | D20: 3.14 | E20: 3.81 | F20: 4.76 | G20: 4.91 | H20: 4.39 | I20: 4.22 | J20: 3.76 | K20: 3.29 | L20: 3.73 | M20: 3.92 | N20: 3.29 | O20: 2.9 | R20: 30 | S20: 416 | T20: ตาก | U20: ตาก
A21: 18 | B21: อุตรดิตถ์ | C21: อุตรดิตถ์ | D21: 3.25 | E21: 3.88 | F21: 4.77 | G21: 4.91 | H21: 4.43 | I21: 3.59 | J21: 3.5 | K21: 3.4 | L21: 3.52 | M21: 3.59 | N21: 3.48 | O21: 2.99 | R21: 14 | S21: 218 | T21: นครนายก | U21: ปราจีนบุรี
A22: 19 | B22: ตาก | C22: ตาก | D22: 3.2 | E22: 4.16 | F22: 5.25 | G22: 5.8 | H22: 4.94 | I22: 3.86 | J22: 3.93 | K22: 3.84 | L22: 3.33 | M22: 3.39 | N22: 3.21 | O22: 2.94 | R22: 20 | S22: 319 | T22: นครปฐม | U22: นครปฐม
A23: 20 | B23: แม่สอด | C23: ตาก | D23: 3.32 | E23: 4.08 | F23: 4.96 | G23: 5.41 | H23: 4.21 | I23: 3 | J23: 2.88 | K23: 2.79 | L23: 3.15 | M23: 3.52 | N23: 3.48 | O23: 3.31 | R23: 48 | S23: 520 | T23: นครพนม | U23: นครพนม
A24: 21 | B24: เขื่อนภูมิพล | C24: ตาก | D24: 3.23 | E24: 4.12 | F24: 5.14 | G24: 5.67 | H24: 4.59 | I24: 3.81 | J24: 3.8 | K24: 3.74 | L24: 3.26 | M24: 3.41 | N24: 3.16 | O24: 3.01 | R24: 49 | S24: 521 | T24: นครราชสีมา | U24: นครราชสีมา
A25: 22 | B25: อุ้มผาง | C25: ตาก | D25: 3.12 | E25: 3.71 | F25: 4.3 | G25: 4.51 | H25: 3.7 | I25: 2.75 | J25: 2.69 | K25: 2.64 | L25: 2.52 | M25: 2.99 | N25: 3.33 | O25: 2.98 | R25: 66 | S25: 622 | T25: นครศรีธรรมราช | U25: นครศรีธรรมราช
A26: 23 | B26: สถานีฯเกษตร ดอยมูเซอ | C26: ตาก | D26: 4.14 | E26: 3.87 | F26: 4.88 | G26: 5.76 | H26: 4.46 | I26: 3.61 | J26: 2.84 | K26: 2.59 | L26: 2.91 | M26: 2.9 | N26: 3.15 | O26: 2.93 | R26: 31 | S26: 423 | T26: นครสวรรค์ | U26: นครสวรรค์
A27: 24 | B27: พิษณุโลก | C27: พิษณุโลก | D27: 3.27 | E27: 4.01 | F27: 4.99 | G27: 5.32 | H27: 4.71 | I27: 3.78 | J27: 3.65 | K27: 3.51 | L27: 3.27 | M27: 3.55 | N27: 3.42 | O27: 3.19 | R27: 2 | S27: 124 | T27: นนทบุรี | U27: ท่าอากาศยานดอนเมือง
A28: 25 | B28: เพชรบูรณ์ | C28: เพชรบูรณ์ | D28: 3.33 | E28: 4.05 | F28: 4.96 | G28: 5.18 | H28: 4.16 | I28: 3.69 | J28: 3.58 | K28: 3.43 | L28: 3.22 | M28: 3.69 | N28: 3.73 | O28: 3.41 | R28: 67 | S28: 625 | T28: นราธิวาส | U28: นราธิวาส
A29: 26 | B29: หล่มสัก | C29: เพชรบูรณ์ | D29: 3.15 | E29: 3.83 | F29: 4.34 | G29: 4.53 | H29: 4.04 | I29: 3.66 | J29: 3.59 | K29: 2.93 | L29: 3.18 | M29: 3.57 | N29: 3.48 | O29: 3.12 | R29: 32 | S29: 426 | T29: น่าน | U29: น่าน
A30: 27 | B30: วิเชียรบุรี | C30: เพชรบูรณ์ | D30: 3.31 | E30: 4.07 | F30: 4.56 | G30: 4.73 | H30: 4.08 | I30: 3.64 | J30: 3.58 | K30: 2.93 | L30: 3.22 | M30: 3.53 | N30: 3.49 | O30: 3.26 | R30: 77 | T30: บึงกาฬ | U30: หนองคาย
A31: 28 | B31: กำแพงเพชร | C31: กำแพงเพชร | D31: 3.26 | E31: 3.91 | F31: 4.35 | G31: 5.01 | H31: 4.45 | I31: 3.92 | J31: 3.5 | K31: 3.41 | L31: 3.55 | M31: 3.48 | N31: 3.34 | O31: 3.11 | R31: 50 | S31: 527 | T31: บุรีรัมย์ | U31: บุรีรัมย์
A32: 29 | B32: สุโขทัย | C32: สุโขทัย | D32: 3.36 | E32: 4.03 | F32: 4.66 | G32: 5.72 | H32: 4.44 | I32: 4.32 | J32: 3.94 | K32: 3.78 | L32: 3.66 | M32: 3.66 | N32: 3.51 | O32: 3.26 | R32: 3 | S32: 128 | T32: ปทุมธานี | U32: ปทุมธานี
A33: 30 | B33: สถานีฯเกษตร ศรีสาโรง | C33: สุโขทัย | D33: 3.04 | E33: 3.49 | F33: 4.47 | G33: 4.96 | H33: 3.95 | I33: 3.93 | J33: 3.54 | K33: 3.43 | L33: 3.49 | M33: 3.44 | N33: 3.45 | O33: 3 | R33: 21 | S33: 329 | T33: ประจวบคีรีขันธ์ | U33: ประจวบคีรีขันธ์
A34: 31 | B34: พิจิตร | C34: พิจิตร | D34: .'- | E34: .'- | F34: .'- | G34: .'- | H34: .'- | I34: .'- | J34: .'- | K34: .'- | L34: .'- | M34: .'- | N34: .'- | O34: .'- | R34: 15 | S34: 230 | T34: ปราจีนบุรี | U34: ปราจีนบุรี
A35: 32 | B35: สถานีฯเกษตร พิจิตร | C35: พิจิตร | D35: 3.28 | E35: 3.89 | F35: 4.35 | G35: 4.6 | H35: 4.05 | I35: 3.98 | J35: 3.5 | K35: 3.4 | L35: 3.19 | M35: 3.47 | N35: 3.58 | O35: 3.24 | R35: 68 | S35: 631 | T35: ปัตตานี | U35: ท่าอากาศยานปัตตานี
A36: 33 | B36: หนองคาย | C36: หนองคาย | D36: 3.11 | E36: 3.78 | F36: 4.62 | G36: 4.62 | H36: 4.03 | I36: 3.56 | J36: 3.51 | K36: 3.41 | L36: 3.51 | M36: 3.63 | N36: 3.31 | O36: 3.04 | R36: 5 | S36: 133 | T36: พระนครศรีอยุธยา | U36: สุพรรณบุรี
A37: 34 | B37: เลย | C37: เลย | D37: 3.28 | E37: 4.06 | F37: 4.81 | G37: 5.06 | H37: 4.43 | I37: 4.07 | J37: 3.66 | K37: 3.55 | L37: 3.55 | M37: 3.55 | N37: 3.23 | O37: 3.04 | R37: 43 | S37: 472 | T37: พะเยา | U37: พะเยา
A38: 35 | B38: สถานีฯเกษตร เลย | C38: เลย | D38: 3.19 | E38: 3.95 | F38: 4.73 | G38: 4.76 | H38: 4.2 | I38: 3.89 | J38: 3.87 | K38: 3.39 | L38: 3.84 | M38: 3.5 | N38: 3.42 | O38: 3 | R38: 69 | S38: 634 | T38: พังงา | U38: ท่าอากาศยานภูเก็ต
A39: 36 | B39: อุดรธานี | C39: อุดรธานี | D39: 3.32 | E39: 4.07 | F39: 4.85 | G39: 5.21 | H39: 4.56 | I39: 4.08 | J39: 3.71 | K39: 3.55 | L39: 3.61 | M39: 3.73 | N39: 3.7 | O39: 3.22 | R39: 70 | S39: 635 | T39: พัทลุง | U39: พัทลุง
A40: 37 | B40: สกลนคร | C40: สกลนคร | D40: 3.44 | E40: 4.09 | F40: 4.87 | G40: 5.02 | H40: 4.4 | I40: 3.99 | J40: 3.57 | K40: 3.44 | L40: 3.86 | M40: 3.9 | N40: 3.64 | O40: 3.25 | R40: 33 | S40: 436 | T40: พิจิตร | U40: สถานีฯเกษตร พิจิตร
A41: 38 | B41: สถานีฯเกษตร สกลนคร | C41: สกลนคร | D41: 3.14 | E41: 3.75 | F41: 4.48 | G41: 5 | H41: 4.36 | I41: 4.26 | J41: 3.86 | K41: 3.69 | L41: 3.98 | M41: 3.77 | N41: 3.38 | O41: 3.09 | R41: 34 | S41: 437 | T41: พิษณุโลก | U41: พิษณุโลก
A42: 39 | B42: นครพนม | C42: นครพนม | D42: 3.33 | E42: 3.86 | F42: 4.3 | G42: 4.5 | H42: 3.95 | I42: 3.47 | J42: 3.42 | K42: 3.33 | L42: 3.48 | M42: 3.6 | N42: 3.6 | O42: 3.16 | R42: 22 | S42: 338 | T42: เพชรบุรี | U42: เพชรบุรี
A43: 40 | B43: สถานีฯเกษตร นครพนม | C43: นครพนม | D43: 3.52 | E43: 4.03 | F43: 4.48 | G43: 4.96 | H43: 4.28 | I43: 4.25 | J43: 3.81 | K43: 3.32 | L43: 3.83 | M43: 3.57 | N43: 3.59 | O43: 3.25 | R43: 35 | S43: 439 | T43: เพชรบูรณ์ | U43: เพชรบูรณ์
A44: 41 | B44: ขอนแก่น | C44: ขอนแก่น | D44: 3.65 | E44: 4.18 | F44: 5.09 | G44: 4.97 | H44: 4.67 | I44: 4.29 | J44: 3.88 | K44: 3.68 | L44: 3.61 | M44: 3.79 | N44: 3.83 | O44: 3.63 | R44: 36 | S44: 440 | T44: แพร่ | U44: แพร่
A45: 42 | B45: สถานีฯเกษตร ท่าพระ | C45: ขอนแก่น | D45: 3.2 | E45: 3.81 | F45: 4.48 | G45: 4.76 | H45: 4.25 | I45: 3.91 | J45: 3.88 | K45: 3.36 | L45: 3.48 | M45: 3.59 | N45: 3.48 | O45: 3.18 | R45: 71 | S45: 641 | T45: ภูเก็ต | U45: ภูเก็ต
A46: 43 | B46: มุกดาหาร | C46: มุกดาหาร | D46: 3.65 | E46: 4.18 | F46: 5 | G46: 5.15 | H46: 4.11 | I46: 3.64 | J46: 3.56 | K46: 3.43 | L46: 3.57 | M46: 3.8 | N46: 3.95 | O46: 3.53 | R46: 51 | S46: 542 | T46: มหาสารคาม | U46: มหาสารคาม
A47: 44 | B47: มหาสารคาม | C47: มหาสารคาม | D47: 3.57 | E47: 4.19 | F47: 4.71 | G47: 5.22 | H47: 4.62 | I47: 4.22 | J47: 3.84 | K47: 3.64 | L47: 3.62 | M47: 3.76 | N47: 3.83 | O47: 3.58 | R47: 60 | S47: 573 | T47: มุกดาหาร | U47: มุกดาหาร
A48: 45 | B48: กาฬสินธุ์ | C48: กาฬสินธุ์ | D48: 4.15 | E48: 4.89 | F48: 5.4 | G48: 5.45 | H48: 4.8 | I48: 4.32 | J48: 4.22 | K48: 3.65 | L48: 3.71 | M48: 4.06 | N48: 4.3 | O48: 4.1 | R48: 37 | S48: 443 | T48: แม่ฮ่องสอน | U48: แม่ฮ่องสอน
A49: 46 | B49: ชัยภูมิ | C49: ชัยภูมิ | D49: 3.6 | E49: 4.2 | F49: 5 | G49: 5.12 | H49: 4.47 | I49: 4.13 | J49: 3.77 | K49: 3.61 | L49: 3.6 | M49: 3.78 | N49: 3.89 | O49: 3.51 | R49: 47 | S49: 517 | T49: ยโสธร | U49: ร้อยเอ็ด
A50: 47 | B50: ร้อยเอ็ด | C50: ร้อยเอ็ด | D50: 3.49 | E50: 4.13 | F50: 4.66 | G50: 4.83 | H50: 4.22 | I50: 3.9 | J50: 3.84 | K50: 3.64 | L50: 3.61 | M50: 3.63 | N50: 3.68 | O50: 3.51 | R50: 72 | S50: 644 | T50: ยะลา | U50: สถานีฯเกษตร ยะลา
A51: 48 | B51: สถานีฯเกษตร ร้อยเอ็ด | C51: ร้อยเอ็ด | D51: 4.04 | E51: 4.44 | F51: 4.92 | G51: 5.25 | H51: 4.59 | I51: 4.62 | J51: 4.21 | K51: 3.9 | L51: 3.6 | M51: 3.78 | N51: 4.1 | O51: 3.9 | R51: 52 | S51: 545 | T51: ร้อยเอ็ด | U51: ร้อยเอ็ด
A52: 49 | B52: อุบลราชธานี | C52: อุบลราชธานี | D52: 4 | E52: 4.53 | F52: 4.93 | G52: 5.03 | H52: 4.45 | I52: 3.96 | J52: 3.87 | K52: 3.71 | L52: 3.43 | M52: 3.71 | N52: 4.23 | O52: 4.22 | R52: 73 | S52: 646 | T52: ระนอง | U52: ระนอง
A53: 50 | B53: สถานีฯเกษตรอุบลราชธานี | C53: อุบลราชธานี | D53: 3.63 | E53: 3.68 | F53: 4.23 | G53: 4.13 | H53: 3.65 | I53: 3.64 | J53: 3.56 | K53: 2.87 | L53: 3.22 | M53: 3.34 | N53: 3.64 | O53: 3.42 | R53: 16 | S53: 247 | T53: ระยอง | U53: ระยอง
A54: 51 | B54: ศรีสะเกษ | C54: ศรีสะเกษ | D54: .'- | E54: .'- | F54: .'- | G54: .'- | H54: .'- | I54: .'- | J54: .'- | K54: .'- | L54: .'- | M54: .'- | N54: .'- | O54: .'- | R54: 23 | S54: 348 | T54: ราชบุรี | U54: ราชบุรี
A55: 52 | B55: สถานีฯเกษตร ศรีสะเกษ | C55: ศรีสะเกษ | D55: 3.4 | E55: 3.92 | F55: 4.56 | G55: 4.75 | H55: 4.42 | I55: 4.43 | J55: 4.19 | K55: 3.71 | L55: 3.85 | M55: 3.62 | N55: 3.79 | O55: 3.45 | R55: 6 | S55: 149 | T55: ลพบุรี | U55: ลพบุรี
A56: 53 | B56: นครราชสีมา | C56: นครราชสีมา | D56: 3.37 | E56: 3.95 | F56: 4.39 | G56: 4.64 | H56: 4.2 | I56: 3.95 | J56: 3.89 | K56: 3.79 | L56: 3.36 | M56: 3.42 | N56: 3.51 | O56: 3.41 | R56: 38 | S56: 450 | T56: ลำปาง | U56: ลำปาง
A57: 54 | B57: สถานีฯเกษตร ปากช่อง | C57: นครราชสีมา | D57: 4.71 | E57: 4.71 | F57: 5.01 | G57: 4.81 | H57: 4.2 | I57: 4.54 | J57: 4.26 | K57: 4.04 | L57: 3.38 | M57: 3.5 | N57: 4.44 | O57: 4.52 | R57: 39 | S57: 451 | T57: ลำพูน | U57: ลำพูน
A58: 55 | B58: โชคชัย | C58: นครราชสีมา | D58: 3.47 | E58: 4.21 | F58: 4.68 | G58: 4.74 | H58: 4.09 | I58: 4.18 | J58: 3.82 | K58: 3.72 | L58: 3.31 | M58: 3.6 | N58: 3.57 | O58: 3.42 | R58: 53 | S58: 552 | T58: เลย | U58: เลย
A59: 56 | B59: สุรินทร์ | C59: สุรินทร์ | D59: 3.76 | E59: 4.36 | F59: 4.83 | G59: 4.87 | H59: 4.21 | I59: 4.12 | J59: 3.71 | K59: 3.61 | L59: 3.62 | M59: 3.7 | N59: 3.84 | O59: 3.8 | R59: 54 | S59: 553 | T59: ศรีสะเกษ | U59: สถานีฯเกษตร ศรีสะเกษ
A60: 57 | B60: สถานีฯเกษตร สุรินทร์ | C60: สุรินทร์ | D60: 3.52 | E60: 3.97 | F60: 4.38 | G60: 4.56 | H60: 3.96 | I60: 3.98 | J60: 3.53 | K60: 3.45 | L60: 3.58 | M60: 3.6 | N60: 3.67 | O60: 3.43 | R60: 55 | S60: 554 | T60: สกลนคร | U60: สกลนคร
A61: 58 | B61: ท่าตูม | C61: สุรินทร์ | D61: 3.54 | E61: 4.2 | F61: 4.78 | G61: 4.99 | H61: 4.43 | I61: 4.03 | J61: 3.96 | K61: 3.52 | L61: 3.55 | M61: 3.72 | N61: 3.89 | O61: 3.62 | R61: 74 | S61: 655 | T61: สงขลา | U61: สงขลา
A62: 59 | B62: บุรีรัมย์ | C62: บุรีรัมย์ | D62: 4.17 | E62: 4.81 | F62: 5.27 | G62: 5.49 | H62: 4.74 | I62: 4.66 | J62: 4.14 | K62: 3.67 | L62: 3.64 | M62: 3.86 | N62: 4.12 | O62: 3.98 | R62: 75 | S62: 656 | T62: สตูล | U62: สตูล
A63: 60 | B63: นางรอง | C63: บุรีรัมย์ | D63: 3.62 | E63: 4.16 | F63: 4.81 | G63: 4.94 | H63: 4.38 | I63: 4 | J63: 3.94 | K63: 3.55 | L63: 3.6 | M63: 3.75 | N63: 3.92 | O63: 3.57 | R63: 17 | S63: 257 | T63: สมุทรปราการ | U63: สถานีฯเกษตร บางนา
A64: 61 | B64: นครสวรรค์ | C64: นครสวรรค์ | D64: 3.71 | E64: 4.87 | F64: 6.06 | G64: 6.06 | H64: 4.55 | I64: 4.1 | J64: 3.92 | K64: 3.71 | L64: 3.32 | M64: 3.57 | N64: 3.51 | O64: 3.37 | R64: 24 | S64: 358 | T64: สมุทรสงคราม | U64: ราชบุรี
A65: 62 | B65: สถานีฯเกษตร ตากฟ้า | C65: นครสวรรค์ | D65: 3.94 | E65: 4.35 | F65: 4.88 | G65: 4.93 | H65: 4.46 | I65: 4.02 | J65: 3.89 | K65: 3.48 | L65: 3.57 | M65: 3.54 | N65: 3.86 | O65: 3.81 | R65: 25 | S65: 359 | T65: สมุทรสาคร | U65: ท่าเรือคลองเตย
A66: 63 | B66: ชัยนาท | C66: ชัยนาท | D66: .'- | E66: .'- | F66: .'- | G66: .'- | H66: .'- | I66: .'- | J66: .'- | K66: .'- | L66: .'- | M66: .'- | N66: .'- | O66: .'- | R66: 18 | S66: 274 | T66: สระแก้ว | U66: สระแก้ว
A67: 64 | B67: สถานีฯเกษตร ชัยนาท | C67: ชัยนาท | D67: 3.3 | E67: 3.68 | F67: 4.34 | G67: 4.56 | H67: 4.31 | I67: 4.27 | J67: 3.84 | K67: 3.47 | L67: 3.42 | M67: 3.26 | N67: 3.31 | O67: 3.21 | R67: 7 | S67: 160 | T67: สระบุรี | U67: ลพบุรี
A68: 65 | B68: อยุธยา | C68: อยุธยา | D68: 3.95 | E68: 4.2 | F68: 4.58 | G68: 4.58 | H68: 4.02 | I68: 4.1 | J68: 3.73 | K68: 3.68 | L68: 3.36 | M68: 3.46 | N68: 3.92 | O68: 3.94 | R68: 8 | S68: 161 | T68: สิงห์บุรี | U68: ลพบุรี
A69: 66 | B69: ปทุมธานี | C69: ปทุมธานี | D69: 3.54 | E69: 3.85 | F69: 4.44 | G69: 4.64 | H69: 4.05 | I69: 4.15 | J69: 3.62 | K69: 3.59 | L69: 3.26 | M69: 2.9 | N69: 3.83 | O69: 3.54 | R69: 40 | S69: 462 | T69: สุโขทัย | U69: สุโขทัย
A70: 67 | B70: ราชบุรี | C70: ราชบุรี | D70: 4.04 | E70: 4.61 | F70: 5.27 | G70: 5.15 | H70: 4 | I70: 3.96 | J70: 3.57 | K70: 3.63 | L70: 3.44 | M70: 3.39 | N70: 3.86 | O70: 4.01 | R70: 26 | S70: 363 | T70: สุพรรณบุรี | U70: สุพรรณบุรี
A71: 68 | B71: สุพรรณบุรี | C71: สุพรรณบุรี | D71: 3.45 | E71: 4.11 | F71: 4.83 | G71: 5.01 | H71: 4.36 | I71: 3.99 | J71: 3.89 | K71: 3.32 | L71: 3.45 | M71: 3.45 | N71: 3.58 | O71: 3.5 | R71: 76 | S71: 664 | T71: สุราษฎร์ธานี | U71: สุราษฎร์ธานี
A72: 69 | B72: สถานีฯเกษตร อู่ทอง | C72: สุพรรณบุรี | D72: 3.46 | E72: 4.12 | F72: 4.74 | G72: 4.87 | H72: 3.89 | I72: 3.9 | J72: 3.52 | K72: 3.51 | L72: 3.25 | M72: 3.54 | N72: 3.47 | O72: 3.41 | R72: 56 | S72: 565 | T72: สุรินทร์ | U72: สุรินทร์
A73: =+A72+1 -> 70 | B73: ลพบุรี | C73: ลพบุรี | D73: 3.76 | E73: 4.32 | F73: 4.78 | G73: 5.09 | H73: 4.11 | I73: 3.67 | J73: 3.59 | K73: 3.56 | L73: 3.27 | M73: 3.65 | N73: 3.86 | O73: 3.82 | R73: 57 | S73: 566 | T73: หนองคาย | U73: หนองคาย
A74: 71 | B74: บัวชุม | C74: ลพบุรี | D74: 4.03 | E74: 4.89 | F74: 5.48 | G74: 5.03 | H74: 4.22 | I74: 3.82 | J74: 3.73 | K74: 3.05 | L74: 3.25 | M74: 3.65 | N74: 3.85 | O74: 3.93 | R74: 61 | S74: 575 | T74: หนองบัวลำภู | U74: อุดรธานี
A75: 72 | B75: กาญจนบุรี | C75: กาญจนบุรี | D75: 3.6 | E75: 4.36 | F75: 4.8 | G75: 5.3 | H75: 4.19 | I75: 3.72 | J75: 3.71 | K75: 3.72 | L75: 3.44 | M75: 3.33 | N75: 3.42 | O75: 3.51 | R75: 9 | S75: 167 | T75: อ่างทอง | U75: สุพรรณบุรี
A76: 73 | B76: ทองผาภูมิ | C76: กาญจนบุรี | D76: 3.44 | E76: 4.08 | F76: 4.71 | G76: 5.14 | H76: 3.81 | I76: 3.31 | J76: 2.73 | K76: 2.69 | L76: 2.61 | M76: 3.16 | N76: 3.39 | O76: 3.33 | R76: 62 | S76: 576 | T76: อำนาจเจริญ | U76: มุกดาหาร
A77: 74 | B77: กรุงเทพมหานคร | C77: กรุงเทพมหานคร | D77: 3.52 | E77: 4.17 | F77: 4.78 | G77: 4.69 | H77: 4.1 | I77: 4.07 | J77: 3.98 | K77: 3.46 | L77: 3.07 | M77: 3.23 | N77: 3.62 | O77: 3.49 | R77: 58 | S77: 568 | T77: อุดรธานี | U77: อุดรธานี
A78: 75 | B78: ท่าเรือคลองเตย | C78: กรุงเทพมหานคร | D78: 4.51 | E78: 4.57 | F78: 5.18 | G78: 5.04 | H78: 4.56 | I78: 4.61 | J78: 4.47 | K78: 4.46 | L78: 4.27 | M78: 3.97 | N78: 4.96 | O78: 4.77 | R78: 41 | S78: 469 | T78: อุตรดิตถ์ | U78: อุตรดิตถ์
A79: 76 | B79: ท่าอากาศยานดอนเมือง | C79: กรุงเทพมหานคร | D79: 4.14 | E79: 4.8 | F79: 5.37 | G79: 5.54 | H79: 4.94 | I79: 4.63 | J79: 4.6 | K79: 4.43 | L79: 3.95 | M79: 3.87 | N79: 4.11 | O79: 4.04 | R79: 42 | S79: 470 | T79: อุทัยธานี | U79: นครสวรรค์
A80: 77 | B80: สมุทรปราการ | C80: สมุทรปราการ | D80: .'- | E80: .'- | F80: .'- | G80: .'- | H80: .'- | I80: .'- | J80: .'- | K80: .'- | L80: .'- | M80: .'- | N80: .'- | O80: .'- | R80: 59 | S80: 571 | T80: อุบลราชธานี | U80: อุบลราชธานี
A81: 78 | B81: สถานีฯเกษตร บางนา | C81: สมุทรปราการ | D81: 1.14 | E81: 2.03 | F81: 3.25 | G81: 3.75 | H81: 3.74 | I81: 3.96 | J81: 3.74 | K81: 3.36 | L81: 2.6 | M81: 1.79 | N81: 1.46 | O81: 0.99
A82: 79 | B82: เพชรบุรี | C82: เพชรบุรี | D82: 3.59 | E82: 4.23 | F82: 4.87 | G82: 4.89 | H82: 4.22 | I82: 3.74 | J82: 3.66 | K82: 3.17 | L82: 3.38 | M82: 3.08 | N82: 3.39 | O82: 3.49
A83: 80 | B83: ประจวบคีรีขันธ์ | C83: ประจวบคีรีขันธ์ | D83: 3.82 | E83: 4.19 | F83: 4.38 | G83: 4.77 | H83: 4.22 | I83: 3.93 | J83: 3.9 | K83: 3.89 | L83: 3.68 | M83: 3.49 | N83: 3.84 | O83: 4.18
A84: 81 | B84: หัวหิน | C84: ประจวบคีรีขันธ์ | D84: 3.93 | E84: 4.49 | F84: 5.06 | G84: 5.07 | H84: 4.51 | I84: 4.18 | J84: 3.79 | K84: 3.81 | L84: 3.49 | M84: 3.45 | N84: 3.74 | O84: 4.02
A85: 82 | B85: สถานีฯเกษตร หนองพลับ | C85: ประจวบคีรีขันธ์ | D85: 3.77 | E85: 4.25 | F85: 4.49 | G85: 4.65 | H85: 3.84 | I85: 3.82 | J85: 3.4 | K85: 2.92 | L85: 3.26 | M85: 3.32 | N85: 3.4 | O85: 3.43
A86: 83 | B86: นครปฐม | C86: นครปฐม | D86: 3.7 | E86: 4.35 | F86: 5.15 | G86: 5.12 | H86: 4.02 | I86: 4 | J86: 3.63 | K86: 3.16 | L86: 3.44 | M86: 3.69 | N86: 3.92 | O86: 3.66
A87: 84 | B87: ฉะเชิงเทรา | C87: ฉะเชิงเทรา | D87: 3.85 | E87: 3.83 | F87: 4.19 | G87: 4.31 | H87: 3.86 | I87: 3.52 | J87: 3.46 | K87: 3.46 | L87: 3.26 | M87: 3.33 | N87: 3.47 | O87: 3.51
A88: 85 | B88: ปราจีนบุรี | C88: ปราจีนบุรี | D88: 3.87 | E88: 4.04 | F88: 4.3 | G88: 4.62 | H88: 3.98 | I88: 3.5 | J88: 3.45 | K88: 3.43 | L88: 3.27 | M88: 3.79 | N88: 4.1 | O88: 4.07
A89: 86 | B89: กบินทร์บุรี | C89: ปราจีนบุรี | D89: 3.75 | E89: 4.08 | F89: 4.33 | G89: 4.67 | H89: 3.98 | I89: 3.5 | J89: 3.43 | K89: 2.87 | L89: 3.22 | M89: 3.36 | N89: 3.93 | O89: 3.94
A90: 87 | B90: สระแก้ว | C90: สระแก้ว | D90: 3.96 | E90: 4.46 | F90: 4.67 | G90: 4.66 | H90: 3.96 | I90: 3.88 | J90: 3.45 | K90: 3.4 | L90: 3.24 | M90: 3.64 | N90: 3.92 | O90: 3.78
A91: 88 | B91: อรัญประเทศ | C91: สระแก้ว | D91: 3.89 | E91: 4.35 | F91: 4.98 | G91: 4.91 | H91: 4.11 | I91: 4.06 | J91: 3.99 | K91: 3.6 | L91: 3.35 | M91: 3.42 | N91: 3.61 | O91: 3.64
A92: 89 | B92: ชลบุรี | C92: ชลบุรี | D92: 4.09 | E92: 4.55 | F92: 4.83 | G92: 5.14 | H92: 4.48 | I92: 4.13 | J92: 4.12 | K92: 3.74 | L92: 3.43 | M92: 3.49 | N92: 4.09 | O92: 4.16
A93: 90 | B93: เกาะสีชัง | C93: ชลบุรี | D93: 3.87 | E93: 4.19 | F93: 4.46 | G93: 4.77 | H93: 4.24 | I93: 4.07 | J93: 3.98 | K93: 3.94 | L93: 3.48 | M93: 3.47 | N93: 4 | O93: 4.27
A94: 91 | B94: พัทยา | C94: ชลบุรี | D94: 4.14 | E94: 4.37 | F94: 4.83 | G94: 4.81 | H94: 4.31 | I94: 4.19 | J94: 4.14 | K94: 4.14 | L94: 3.61 | M94: 3.56 | N94: 4.13 | O94: 4.49
A95: 92 | B95: สัตหีบ | C95: ชลบุรี | D95: 3.99 | E95: 4.36 | F95: 4.66 | G95: 4.98 | H95: 4.27 | I95: 4.26 | J95: 4.17 | K95: 3.7 | L95: 3.71 | M95: 3.39 | N95: 4.08 | O95: 4.21
A96: 93 | B96: แหลมฉบัง | C96: ชลบุรี | D96: 4.83 | E96: 4.71 | F96: 5.28 | G96: 5.3 | H96: 4.64 | I96: 4.67 | J96: 4.69 | K96: 4.56 | L96: 4.1 | M96: 3.7 | N96: 4.74 | O96: 4.84
A97: 94 | B97: ระยอง | C97: ระยอง | D97: 3.75 | E97: 4.34 | F97: 4.54 | G97: 4.83 | H97: 4.33 | I97: 4.15 | J97: 4.08 | K97: 4.03 | L97: 3.55 | M97: 3.51 | N97: 3.77 | O97: 3.78
A98: 95 | B98: สถานีฯเกษตร ห้วยโป่ง | C98: ระยอง | D98: 3.56 | E98: 3.61 | F98: 4.1 | G98: 4.24 | H98: 3.83 | I98: 3.79 | J98: 3.42 | K98: 3.44 | L98: 3.29 | M98: 3.35 | N98: 3.64 | O98: 3.59
A99: 96 | B99: จันทบุรี | C99: จันทบุรี | D99: 3.72 | E99: 3.71 | F99: 4.08 | G99: 4.35 | H99: 3.44 | I99: 2.85 | J99: 2.85 | K99: 2.84 | L99: 2.69 | M99: 3.34 | N99: 3.83 | O99: 3.95
A100: 97 | B100: สถานีฯเกษตร พลิ้ว | C100: จันทบุรี | D100: 3.94 | E100: 3.73 | F100: 3.98 | G100: 4.2 | H100: 3.42 | I100: 3.36 | J100: 3.34 | K100: 2.84 | L100: 3.2 | M100: 3.31 | N100: 3.78 | O100: 3.86
A101: 98 | B101: ตราด | C101: ตราด | D101: 3.8 | E101: 3.83 | F101: 4.17 | G101: 4.28 | H101: 3.89 | I101: 3.35 | J101: 3.32 | K101: 2.87 | L101: 3.22 | M101: 3.35 | N101: 3.68 | O101: 3.84
A102: 99 | B102: ชุมพร | C102: ชุมพร | D102: 3.45 | E102: 4.1 | F102: 4.55 | G102: 4.5 | H102: 3.89 | I102: 3.54 | J102: 3.49 | K102: 3.53 | L102: 3.39 | M102: 3.38 | N102: 3.4 | O102: 3.44
A103: 100 | B103: สถานีฯเกษตร สวี | C103: ชุมพร | D103: 3.34 | E103: 3.61 | F103: 4.13 | G103: 4.15 | H103: 3.74 | I103: 4.12 | J103: 3.68 | K103: 3.83 | L103: 3.67 | M103: 3.36 | N103: 3.08 | O103: 3.27
A104: 101 | B104: ระนอง | C104: ระนอง | D104: 3.84 | E104: 4.21 | F104: 4.29 | G104: 4.27 | H104: 3.76 | I104: 3.34 | J104: 3.27 | K104: 3.3 | L104: 3.2 | M104: 3.31 | N104: 3.41 | O104: 3.52
A105: 102 | B105: สุราษฎร์ธานี | C105: สุราษฎร์ธานี | D105: 3.55 | E105: 4.24 | F105: 4.34 | G105: 4.28 | H105: 3.8 | I105: 3.47 | J105: 3.42 | K105: 3.49 | L105: 3.36 | M105: 3.07 | N105: 3.1 | O105: 3.27
A106: 103 | B106: ท่าอากาศยาน สุราษฎร์ธานี | C106: สุราษฎร์ธานี | D106: 3.65 | E106: 4.06 | F106: 4.42 | G106: 4.42 | H106: 3.9 | I106: 3.51 | J106: 3.49 | K106: 3.53 | L106: 3.41 | M106: 3.13 | N106: 3.15 | O106: 3.08
A107: 104 | B107: เกาะสมุย | C107: สุราษฎร์ธานี | D107: 3.65 | E107: 4.24 | F107: 4.56 | G107: 4.42 | H107: 4.26 | I107: 3.97 | J107: 3.97 | K107: 4.05 | L107: 3.89 | M107: 3.43 | N107: 3.43 | O107: 3.38
A108: 105 | B108: สถานีฯเกษตร สุราษฎร์ธานี | C108: สุราษฎร์ธานี | D108: 3.32 | E108: 4.04 | F108: 4.37 | G108: 4.24 | H108: 3.65 | I108: 3.6 | J108: 3.61 | K108: 3.68 | L108: 3.61 | M108: 3.34 | N108: 2.99 | O108: 3.11
A109: 106 | B109: พระแสง | C109: สุราษฎร์ธานี | D109: 3.49 | E109: 4 | F109: 4.2 | G109: 4.24 | H109: 3.41 | I109: 3.62 | J109: 3.28 | K109: 3.35 | L109: 3.3 | M109: 3.08 | N109: 2.89 | O109: 3.1
A110: 107 | B110: นครศรีธรรมราช | C110: นครศรีธรรมราช | D110: 3.19 | E110: 3.79 | F110: 4.14 | G110: 4.15 | H110: 3.77 | I110: 3.75 | J110: 3.76 | K110: 3.55 | L110: 3.35 | M110: 3.09 | N110: 2.83 | O110: 2.95
A111: 108 | B111: สถานีฯเกษตรนครศรีธรรมราช | C111: นครศรีธรรมราช | D111: 3.31 | E111: 3.72 | F111: 4.04 | G111: 4.21 | H111: 3.67 | I111: 3.67 | J111: 3.68 | K111: 3.8 | L111: 3.7 | M111: 3.44 | N111: 3.08 | O111: 2.94
A112: 109 | B112: ฉวาง | C112: นครศรีธรรมราช | D112: 3.45 | E112: 3.81 | F112: 4.11 | G112: 4.1 | H112: 3.64 | I112: 3.52 | J112: 3.16 | K112: 3.57 | L112: 3.54 | M112: 3.01 | N112: 3.07 | O112: 2.93
A113: 110 | B113: พัทลุง | C113: พัทลุง | D113: .'- | E113: .'- | F113: .'- | G113: .'- | H113: .'- | I113: .'- | J113: .'- | K113: .'- | L113: .'- | M113: .'- | N113: .'- | O113: .'-
A114: 111 | B114: สถานีฯเกษตร พัทลุง | C114: พัทลุง | D114: 3.46 | E114: 4 | F114: 4.11 | G114: 4.26 | H114: 3.77 | I114: 4.04 | J114: 3.74 | K114: 3.88 | L114: 3.86 | M114: 3.59 | N114: 3.17 | O114: 3.07
A115: 112 | B115: ตะกั่วป่า | C115: พัทลุง | D115: 3.83 | E115: 4.17 | F115: 4.14 | G115: 4.13 | H115: 3.7 | I115: 3.31 | J115: 3.28 | K115: 3.36 | L115: 3.22 | M115: 3.03 | N115: 3.42 | O115: 3.48
A116: 113 | B116: ภูเก็ต | C116: ภูเก็ต | D116: 4.29 | E116: 4.62 | F116: 4.55 | G116: 4.34 | H116: 3.84 | I116: 3.81 | J116: 3.78 | K116: 3.98 | L116: 3.43 | M116: 3.53 | N116: 3.65 | O116: 3.83
A117: 114 | B117: ท่าอากาศยานภูเก็ต | C117: ภูเก็ต | D117: 4.04 | E117: 4.37 | F117: 4.58 | G117: 4.36 | H117: 3.93 | I117: 3.93 | J117: 3.92 | K117: 3.78 | L117: 3.52 | M117: 3.19 | N117: 3.32 | O117: 3.67
A118: 115 | B118: เกาะลันตา | C118: ภูเก็ต | D118: 4.23 | E118: 4.51 | F118: 4.47 | G118: 4.11 | H118: 3.61 | I118: 3.58 | J118: 3.58 | K118: 3.72 | L118: 3.58 | M118: 3.34 | N118: 3.06 | O118: 3.68
A119: 116 | B119: กระบี่ | C119: กระบี่ | D119: 4.08 | E119: 4.73 | F119: 4.42 | G119: 4.21 | H119: 3.73 | I119: 3.58 | J119: 3.54 | K119: 3.63 | L119: 3.57 | M119: 3.07 | N119: 3.27 | O119: 3.5
A120: 117 | B120: ตรัง | C120: ตรัง | D120: .'- | E120: .'- | F120: .'- | G120: .'- | H120: .'- | I120: .'- | J120: .'- | K120: .'- | L120: .'- | M120: .'- | N120: .'- | O120: .'-
A121: 118 | B121: ท่าอากาศยานตรัง | C121: ตรัง | D121: 4.21 | E121: 4.86 | F121: 4.67 | G121: 4.3 | H121: 3.71 | I121: 3.6 | J121: 3.24 | K121: 3.35 | L121: 3.26 | M121: 3.12 | N121: 3.27 | O121: 3.64
A122: 119 | B122: สงขลา | C122: สงขลา | D122: 3.94 | E122: 4.34 | F122: 4.48 | G122: 4.51 | H122: 3.91 | I122: 3.9 | J122: 3.91 | K122: 4.09 | L122: 3.92 | M122: 3.36 | N122: 3.09 | O122: 3.37
A123: 120 | B123: สถานีฯเกษตร คอหงส์ | C123: สงขลา | D123: 3.71 | E123: 4.24 | F123: 4.24 | G123: 4.26 | H123: 3.75 | I123: 3.67 | J123: 3.68 | K123: 3.83 | L123: 3.49 | M123: 3.58 | N123: 2.97 | O123: 3.26
A124: 121 | B124: สะเดา | C124: สงขลา | D124: 3.51 | E124: 4.03 | F124: 4.14 | G124: 4.14 | H124: 3.66 | I124: 3.53 | J124: 3.55 | K124: 3.38 | L124: 3.31 | M124: 3.15 | N124: 2.89 | O124: 3.06
A125: 122 | B125: ท่าอากาศยานหาดใหญ่ | C125: สงขลา | D125: 3.8 | E125: 4.22 | F125: 4.5 | G125: 4.06 | H125: 3.57 | I125: 3.56 | J125: 3.62 | K125: 3.75 | L125: 3.56 | M125: 3.28 | N125: 2.99 | O125: 2.94
A126: 123 | B126: สตูล | C126: สตูล | D126: 4.43 | E126: 4.6 | F126: 4.4 | G126: 4.18 | H126: 3.64 | I126: 3.52 | J126: 3.53 | K126: 3.65 | L126: 3.28 | M126: 3.14 | N126: 3.32 | O126: 3.8
A127: 124 | B127: ปัตตานี | C127: ปัตตานี | D127: .'- | E127: .'- | F127: .'- | G127: .'- | H127: .'- | I127: .'- | J127: .'- | K127: .'- | L127: .'- | M127: .'- | N127: .'- | O127: .'-
A128: 125 | B128: ท่าอากาศยานปัตตานี | C128: ปัตตานี | D128: 3.36 | E128: 3.95 | F128: 3.91 | G128: 3.95 | H128: 3.49 | I128: 3.39 | J128: 3.42 | K128: 3.52 | L128: 3.48 | M128: 3.25 | N128: 2.95 | O128: 2.85
A129: 126 | B129: ยะลา | C129: ยะลา | D129: .'- | E129: .'- | F129: .'- | G129: .'- | H129: .'- | I129: .'- | J129: .'- | K129: .'- | L129: .'- | M129: .'- | N129: .'- | O129: .'-
A130: 127 | B130: สถานีฯเกษตร ยะลา | C130: ยะลา | D130: 3.53 | E130: 4.2 | F130: 4.25 | G130: 4.31 | H130: 3.77 | I130: 3.66 | J130: 3.66 | K130: 3.8 | L130: 3.75 | M130: 3.59 | N130: 2.94 | O130: 3.1
A131: 128 | B131: นราธิวาส | C131: นราธิวาส | D131: 3.32 | E131: 3.82 | F131: 4.07 | G131: 4.19 | H131: 3.75 | I131: 3.63 | J131: 3.61 | K131: 3.72 | L131: 3.4 | M131: 3.25 | N131: 2.94 | O131: 2.92

Sheet Evap (hidden)
A1: สรุปปริมาณการระเหย Evap ของสถานีภูมิอากาศต่าง ๆ (จากฐานข้อมมูลโปรแกรมเดิม) | P1: มม./เดือน
C2: 0 | D2: 1 | E2: 2 | F2: 3 | G2: 4 | H2: 5 | I2: 6 | J2: 7 | K2: 8 | L2: 9 | M2: 10 | N2: 11 | O2: 12
A3: ลำดับที่ | B3: สถานีตรวจอากาศ | C3: จังหวัด | D3: Jan | E3: Feb | F3: Mar | G3: Apr | H3: May | I3: Jun | J3: Jul | K3: Aug | L3: Sep | M3: Oct | N3: Nov | O3: Dec | P3: Annual | R3: no | S3: prv_code | T3: prv_name | U3: ETo_sta
A4: 1 | B4: แม่ฮ่องสอน | C4: แม่ฮ่องสอน | D4: 93.2 | E4: 113.7 | F4: 163.7 | G4: 195.1 | H4: 178.6 | I4: 127.1 | J4: 113.9 | K4: 109.8 | L4: 115.7 | M4: 111.4 | N4: 88.6 | O4: 81.5 | P4: =SUM(D4:O4) -> 1492.3 | R4: 1 | S4: 109 | T4: ชัยนาท | U4: ลพบุรี
A5: 2 | B5: แม่สะเรียง | C5: แม่ฮ่องสอน | D5: 87 | E5: 109.6 | F5: 154.1 | G5: 175 | H5: 153.5 | I5: 96.1 | J5: 87.6 | K5: 86.3 | L5: 99.6 | M5: 103.6 | N5: 88.6 | O5: 82.1 | P5: =SUM(D5:O5) -> 1323.1 | R5: 2 | S5: 124 | T5: นนทบุรี | U5: กรุงเทพมหานคร
A6: 3 | B6: เชียงราย | C6: เชียงราย | D6: 89.1 | E6: 118.2 | F6: 155.5 | G6: 171.7 | H6: 141.1 | I6: 110 | J6: 97 | K6: 86 | L6: 90 | M6: 89.7 | N6: 81.7 | O6: 79.1 | P6: 1309.1 | R6: 3 | S6: 128 | T6: ปทุมธานี | U6: กรุงเทพมหานคร
A7: 4 | B7: พะเยา | C7: พะเยา | D7: 95.5 | E7: 115.4 | F7: 165.6 | G7: 180.5 | H7: 158.5 | I7: 136.9 | J7: 123.7 | K7: 115.8 | L7: 106 | M7: 99.9 | N7: 86.9 | O7: 87.1 | P7: 1471.8 | R7: 4 | S7: 132 | T7: กรุงเทพมหานคร | U7: กรุงเทพมหานคร
A8: 5 | B8: เชียงใหม่ | C8: เชียงใหม่ | D8: 108.1 | E8: 128.7 | F8: 171.7 | G8: 189.4 | H8: 178.6 | I8: 143.7 | J8: 129.6 | K8: 126.3 | L8: 128.8 | M8: 129 | N8: 106.8 | O8: 98.3 | P8: 1639 | R8: 5 | S8: 133 | T8: พระนครศรีอยุธยา | U8: สุพรรณบุรี
A9: 6 | B9: ลำปาง | C9: ลำปาง | D9: 89.8 | E9: 112.1 | F9: 159.3 | G9: 179.2 | H9: 164.2 | I9: 136.7 | J9: 127.2 | K9: 117.5 | L9: 107.7 | M9: 100.1 | N9: 87 | O9: 81.3 | P9: 1462.1 | R9: 6 | S9: 149 | T9: ลพบุรี | U9: ลพบุรี
A10: 7 | B10: ลำพูน | C10: ลำพูน | D10: 109.5 | E10: 142.2 | F10: 205 | G10: 216.8 | H10: 197 | I10: 162.1 | J10: 149.3 | K10: 136.7 | L10: 118.1 | M10: 107.5 | N10: 94.4 | O10: 95.8 | P10: 1734.4 | R10: 7 | S10: 160 | T10: สระบุรี | U10: ลพบุรี
A11: 8 | B11: แพร่ | C11: แพร่ | D11: 106.7 | E11: 123.5 | F11: 182.1 | G11: 200.8 | H11: 186.3 | I11: 153.1 | J11: 144.4 | K11: 133.2 | L11: 126.1 | M11: 120.9 | N11: 105 | O11: 100.2 | P11: 1682.3 | R11: 8 | S11: 161 | T11: สิงห์บุรี | U11: ลพบุรี
A12: 9 | B12: น่าน | C12: น่าน | D12: 81.3 | E12: 90.8 | F12: 120.6 | G12: 142.2 | H12: 137.2 | I12: 111.7 | J12: 101.1 | K12: 96 | L12: 99.4 | M12: 99.9 | N12: 85.2 | O12: 79.1 | P12: 1244.5 | R12: 9 | S12: 167 | T12: อ่างทอง | U12: สุพรรณบุรี
A13: 10 | B13: ท่าวังผา | C13: ตาก | D13: 92.9 | E13: 110.4 | F13: 148.8 | G13: 167.2 | H13: 162.3 | I13: 132.6 | J13: 118.5 | K13: 116.7 | L13: 121.9 | M13: 114.2 | N13: 93.9 | O13: 85.1 | P13: 1464.5 | R13: 10 | S13: 206 | T13: จันทบุรี | U13: จันทบุรี
A14: 11 | B14: ทุ่งช้าง | C14: น่าน | D14: 119.7 | E14: 102.3 | F14: 115.1 | G14: 127.2 | H14: 115.3 | I14: 87.4 | J14: 98.9 | K14: 99.1 | L14: 92 | M14: 101.5 | N14: 101.8 | O14: 89.6 | P14: 1249.9 | R14: 11 | S14: 207 | T14: ฉะเชิงเทรา | U14: กบินทร์บุรี
A15: 12 | B15: อุตรดิตถ์ | C15: อุตรดิตถ์ | D15: 111.7 | E15: 120.9 | F15: 163.1 | G15: 182.2 | H15: 172.6 | I15: 137.2 | J15: 123.6 | K15: 121 | L15: 121.9 | M15: 124.5 | N15: 114.9 | O15: 113.4 | P15: 1607 | R15: 12 | S15: 208 | T15: ชลบุรี | U15: ชลบุรี
A16: 13 | B16: สุโขทัย | C16: สุโขทัย | D16: 108.6 | E16: 104.3 | F16: 167.1 | G16: 168.3 | H16: 161.1 | I16: 149.1 | J16: 170.6 | K16: 148.1 | L16: 110.6 | M16: 118.3 | N16: 119.5 | O16: 113.3 | P16: 1638.9 | R16: 13 | S16: 215 | T16: ตราด | U16: จันทบุรี
A17: 14 | B17: ตาก | C17: ตาก | D17: 124.4 | E17: 168.9 | F17: 241 | G17: 251.9 | H17: 204.3 | I17: 152.8 | J17: 150.4 | K17: 141.1 | L17: 126.4 | M17: 107.6 | N17: 99.6 | O17: 102.8 | P17: 1871.2 | R17: 14 | S17: 218 | T17: นครนายก | U17: ปราจีนบุรี
A18: 15 | B18: แม่สอด | C18: ตาก | D18: 119.8 | E18: 144.8 | F18: 196.9 | G18: 212 | H18: 164.9 | I18: 103.6 | J18: 95 | K18: 88.1 | L18: 103.8 | M18: 122.3 | N18: 121.4 | O18: 118.3 | P18: 1590.9 | R18: 15 | S18: 230 | T18: ปราจีนบุรี | U18: ปราจีนบุรี
A19: 16 | B19: เขื่อนภูมิพล | C19: ตาก | D19: 110 | E19: 142.1 | F19: 188.3 | G19: 199.7 | H19: 166.8 | I19: 136 | J19: 137.9 | K19: 129.6 | L19: 120.9 | M19: 107.7 | N19: 96.7 | O19: 97.3 | P19: 1633 | R19: 16 | S19: 247 | T19: ระยอง | U19: ระยอง
A20: 17 | B20: อุ้มผาง | C20: ตาก | D20: 107.4 | E20: 123.1 | F20: 157.6 | G20: 158.3 | H20: 127.3 | I20: 90.9 | J20: 84.5 | K20: 73.9 | L20: 87.6 | M20: 96.5 | N20: 95.9 | O20: 98.9 | P20: 1301.9 | R20: 17 | S20: 257 | T20: สมุทรปราการ | U20: กรุงเทพมหานคร
A21: 18 | B21: พิษณุโลก | C21: พิษณุโลก | D21: 109.8 | E21: 121.2 | F21: 162.8 | G21: 186.8 | H21: 179.9 | I21: 149.4 | J21: 141.2 | K21: 129.1 | L21: 120 | M21: 122.6 | N21: 113.3 | O21: 111.5 | P21: 1647.6 | R21: 18 | S21: 274 | T21: สระแก้ว | U21: สระแก้ว
A22: 19 | B22: เพชรบูรณ์ | C22: เพชรบูรณ์ | D22: 121.4 | E22: 132.7 | F22: 174 | G22: 184.3 | H22: 156.4 | I22: 130.1 | J22: 117.9 | K22: 106.1 | L22: 105.2 | M22: 119 | N22: 122.7 | O22: 126.5 | P22: 1596.3 | R22: 19 | S22: 302 | T22: กาญจนบุรี | U22: กาญจนบุรี
A23: 20 | B23: หล่มสัก | C23: เพชรบูรณ์ | D23: 124.3 | E23: 131.6 | F23: 164.7 | G23: 171.2 | H23: 165 | I23: 143 | J23: 134.3 | K23: 126.2 | L23: 122.7 | M23: 128.6 | N23: 124.2 | O23: 124.3 | P23: 1660.1 | R23: 20 | S23: 319 | T23: นครปฐม | U23: กาญจนบุรี
A24: 21 | B24: วิเชียรบุรี | C24: เพชรบูรณ์ | D24: 129 | E24: 143.3 | F24: 187.5 | G24: 186.7 | H24: 166.3 | I24: 144.7 | J24: 136.3 | K24: 126.1 | L24: 117.4 | M24: 126.4 | N24: 126.7 | O24: 130.5 | P24: 1720.9 | R24: 21 | S24: 329 | T24: ประจวบคีรีขันธ์ | U24: ประจวบคีรีขันธ์
A25: 22 | B25: กำแพงเพชร | C25: กำแพงเพชร | D25: 106.2 | E25: 118.1 | F25: 149.3 | G25: 166.2 | H25: 155.6 | I25: 119.9 | J25: 115.2 | K25: 106.2 | L25: 105.3 | M25: 98.5 | N25: 91.7 | O25: 97.2 | P25: 1429.4 | R25: 22 | S25: 338 | T25: เพชรบุรี | U25: เพชรบุรี
A26: 23 | B26: หนองคาย | C26: หนองคาย | D26: 107.6 | E26: 115.6 | F26: 150.7 | G26: 170.4 | H26: 147.5 | I26: 117.7 | J26: 113.5 | K26: 102.6 | L26: 111 | M26: 120 | N26: 114.4 | O26: 107.8 | P26: 1478.8 | R26: 23 | S26: 348 | T26: ราชบุรี | U26: กาญจนบุรี
A27: 24 | B27: เลย | C27: เลย | D27: 113.3 | E27: 124.9 | F27: 159 | G27: 168 | H27: 149.3 | I27: 134.7 | J27: 128 | K27: 115.9 | L27: 104.9 | M27: 108.3 | N27: 102.6 | O27: 103.9 | P27: 1512.8 | R27: 24 | S27: 358 | T27: สมุทรสงคราม | U27: เพชรบุรี
A28: 25 | B28: อุดรธานี | C28: อุดรธานี | D28: 127.7 | E28: 136.8 | F28: 177.2 | G28: 187.8 | H28: 171.2 | I28: 146.2 | J28: 137.2 | K28: 130.5 | L28: 122.2 | M28: 130.1 | N28: 125.3 | O28: 123.2 | P28: 1715.4 | R28: 25 | S28: 359 | T28: สมุทรสาคร | U28: กรุงเทพมหานคร
A29: 26 | B29: สกลนคร | C29: สกลนคร | D29: 151.4 | E29: 154.2 | F29: 198.2 | G29: 195 | H29: 157.7 | I29: 132.5 | J29: 132.1 | K29: 122 | L29: 120.4 | M29: 142.2 | N29: 142.3 | O29: 140.3 | P29: 1788.3 | R29: 26 | S29: 363 | T29: สุพรรณบุรี | U29: สุพรรณบุรี
A30: 27 | B30: นครพนม | C30: นครพนม | D30: 114.9 | E30: 116.5 | F30: 147.4 | G30: 152.9 | H30: 135.6 | I30: 102.1 | J30: 101.2 | K30: 96.1 | L30: 104.4 | M30: 116.8 | N30: 113.8 | O30: 109.3 | P30: 1411 | R30: 27 | S30: 404 | T30: กำแพงเพชร | U30: กำแพงเพชร
A31: 28 | B31: ขอนแก่น | C31: ขอนแก่น | D31: 134.8 | E31: 143.7 | F31: 192.1 | G31: 196.5 | H31: 178.4 | I31: 154.7 | J31: 150.6 | K31: 131.7 | L31: 121.8 | M31: 131.2 | N31: 132.7 | O31: 133.7 | P31: 1801.9 | R31: 28 | S31: 412 | T31: เชียงราย | U31: เชียงราย
A32: 29 | B32: มุกดาหาร | C32: มุกดาหาร | D32: 125 | E32: 128.6 | F32: 172.2 | G32: 170 | H32: 151 | I32: 124.9 | J32: 121.3 | K32: 110 | L32: 113.1 | M32: 122.1 | N32: 122.2 | O32: 118.6 | P32: 1579 | R32: 29 | S32: 413 | T32: เชียงใหม่ | U32: เชียงใหม่
A33: 30 | B33: โกสุมพิสัย | C33: มหาสารคาม | D33: 129.2 | E33: 139 | F33: 182.3 | G33: 189.1 | H33: 166.8 | I33: 147.3 | J33: 143 | K33: 130.3 | L33: 122.1 | M33: 129.3 | N33: 124.9 | O33: 126.1 | P33: 1729.4 | R33: 30 | S33: 416 | T33: ตาก | U33: ตาก
A34: 31 | B34: กมลาไสย | C34: กาฬสินธุ์ | D34: 126.6 | E34: 135.1 | F34: 172.6 | G34: 141.9 | H34: 128.9 | I34: 109.2 | J34: 116.5 | K34: 124.9 | L34: 100.3 | M34: 127.9 | N34: 132 | O34: 138.3 | P34: 1554.2 | R34: 31 | S34: 423 | T34: นครสวรรค์ | U34: นครสวรรค์
A35: 32 | B35: ชัยภูมิ | C35: ชัยภูมิ | D35: 147 | E35: 155.5 | F35: 206.7 | G35: 208.2 | H35: 180.1 | I35: 158.4 | J35: 154.5 | K35: 138.9 | L35: 127.8 | M35: 142.9 | N35: 148.5 | O35: 149.8 | P35: 1918.3 | R35: 32 | S35: 426 | T35: น่าน | U35: น่าน
A36: 33 | B36: ร้อยเอ็ด | C36: ร้อยเอ็ด | D36: 137.3 | E36: 138.1 | F36: 179.1 | G36: 177.3 | H36: 156.4 | I36: 131.6 | J36: 130.3 | K36: 116.4 | L36: 104.1 | M36: 124.3 | N36: 129.5 | O36: 134.9 | P36: 1659.3 | R36: 33 | S36: 436 | T36: พิจิตร | U36: พิษณุโลก
A37: 34 | B37: อุบลราชธานี | C37: อุบลราชธานี | D37: 154.4 | E37: 154.7 | F37: 194.7 | G37: 194.2 | H37: 176.6 | I37: 146.4 | J37: 144.9 | K37: 132.5 | L37: 120 | M37: 136.3 | N37: 146.3 | O37: 152.8 | P37: 1853.8 | R37: 34 | S37: 437 | T37: พิษณุโลก | U37: พิษณุโลก
A38: 35 | B38: นครราชสีมา | C38: นครราชสีมา | D38: 137.3 | E38: 143.9 | F38: 183.2 | G38: 183.4 | H38: 174.8 | I38: 163.4 | J38: 164.3 | K38: 151 | L38: 125.8 | M38: 125.6 | N38: 128.6 | O38: 135.9 | P38: 1817.2 | R38: 35 | S38: 439 | T38: เพชรบูรณ์ | U38: เพชรบูรณ์
A39: 36 | B39: โชคชัย | C39: นครราชสีมา | D39: 128.6 | E39: 137.9 | F39: 180.7 | G39: 182.1 | H39: 175.6 | I39: 164.1 | J39: 162.9 | K39: 153.2 | L39: 134.7 | M39: 128.2 | N39: 120.2 | O39: 124.6 | P39: 1792.8 | R39: 36 | S39: 440 | T39: แพร่ | U39: แพร่
A40: 37 | B40: สุรินทร์ | C40: สุรินทร์ | D40: 161.9 | E40: 158.4 | F40: 196.6 | G40: 186.3 | H40: 172.3 | I40: 150.7 | J40: 151.9 | K40: 145.2 | L40: 124.7 | M40: 138.2 | N40: 149.7 | O40: 155.5 | P40: 1891.4 | R40: 37 | S40: 443 | T40: แม่ฮ่องสอน | U40: แม่ฮ่องสอน
A41: 38 | B41: ท่าตูม | C41: สุรินทร์ | D41: 145.6 | E41: 148.3 | F41: 190.6 | G41: 192 | H41: 177.6 | I41: 153.4 | J41: 150.7 | K41: 137.5 | L41: 121.1 | M41: 130.8 | N41: 138.2 | O41: 141.7 | P41: 1827.5 | R41: 38 | S41: 450 | T41: ลำปาง | U41: ลำปาง
A42: 39 | B42: นางรอง | C42: บุรีรัมย์ | D42: 125.8 | E42: 130.5 | F42: 163.6 | G42: 160.7 | H42: 150.7 | I42: 133.5 | J42: 131.8 | K42: 123.5 | L42: 109.1 | M42: 111.8 | N42: 114.6 | O42: 121.2 | P42: 1576.8 | R42: 39 | S42: 451 | T42: ลำพูน | U42: ลำพูน
A43: 40 | B43: นครสวรรค์ | C43: นครสวรรค์ | D43: 144 | E43: 174.3 | F43: 233.2 | G43: 243.5 | H43: 206.8 | I43: 179.5 | J43: 169.5 | K43: 151 | L43: 130.1 | M43: 126.6 | N43: 126.5 | O43: 133 | P43: 2018 | R43: 40 | S43: 462 | T43: สุโขทัย | U43: สุโขทัย
A44: 41 | B44: สุพรรณบุรี | C44: สุพรรณบุรี | D44: 129.5 | E44: 138.4 | F44: 181.1 | G44: 195.9 | H44: 188.7 | I44: 169 | J44: 163.6 | K44: 155.4 | L44: 135.5 | M44: 133 | N44: 130 | O44: 133.4 | P44: 1853.5 | R44: 41 | S44: 469 | T44: อุตรดิตถ์ | U44: อุตรดิตถ์
A45: 42 | B45: ลพบุรี | C45: ลพบุรี | D45: 151.4 | E45: 151.8 | F45: 194.9 | G45: 194.2 | H45: 184.3 | I45: 163.8 | J45: 158 | K45: 144.9 | L45: 131.9 | M45: 127.6 | N45: 143.5 | O45: 159.5 | P45: 1905.8 | R45: 42 | S45: 470 | T45: อุทัยธานี | U45: นครสวรรค์
A46: 43 | B46: บัวชุม | C46: บัวชุม | D46: 152.8 | E46: 167.4 | F46: 211.8 | G46: 204.4 | H46: 176.1 | I46: 155.8 | J46: 147.8 | K46: 133.2 | L46: 116.8 | M46: 124.2 | N46: 136.6 | O46: 148.1 | P46: 1875 | R46: 43 | S46: 472 | T46: พะเยา | U46: พะเยา
A47: 44 | B47: สถานีทดลองเกษตร | D47: NO OBSERVATION | E47: 0 | F47: 0 | G47: 0 | H47: 0 | I47: 0 | J47: 0 | K47: 0 | L47: 0 | M47: 0 | N47: 0 | O47: 0 | P47: 0 | R47: 44 | S47: 503 | T47: กาฬสินธุ์ | U47: กมลาไสย
A48: 45 | B48: กาญจนบุรี | C48: กาญจนบุรี | D48: 140 | E48: 150.4 | F48: 205.8 | G48: 215.7 | H48: 190.4 | I48: 157.5 | J48: 160.4 | K48: 154 | L48: 138.1 | M48: 122.6 | N48: 128 | O48: 142.2 | P48: 1905.1 | R48: 45 | S48: 505 | T48: ขอนแก่น | U48: ขอนแก่น
A49: 46 | B49: ทองผาภูมิ | C49: กาญจนบุรี | D49: 118.4 | E49: 137.1 | F49: 174.9 | G49: 176.9 | H49: 139.4 | I49: 95.1 | J49: 90.1 | K49: 84.9 | L49: 102.2 | M49: 109.3 | N49: 103 | O49: 108.8 | P49: 1440.1 | R49: 46 | S49: 510 | T49: ชัยภูมิ | U49: ชัยภูมิ
A50: 47 | B50: กรุงเทพมหานคร | C50: กรุงเทพมหานคร | D50: 135.6 | E50: 143.6 | F50: 183.6 | G50: 183.3 | H50: 173.7 | I50: 151.4 | J50: 150.3 | K50: 151.6 | L50: 128.6 | M50: 122.8 | N50: 124.4 | O50: 133.6 | P50: 1782.5 | R50: 47 | S50: 517 | T50: ยโสธร | U50: ร้อยเอ็ด
A51: 48 | B51: คลองเตย | C51: กรุงเทพมหานคร | D51: - | E51: - | F51: - | G51: - | H51: - | I51: - | J51: - | K51: - | L51: - | M51: - | N51: - | O51: - | P51: 0 | R51: 48 | S51: 520 | T51: นครพนม | U51: นครพนม
A52: 49 | B52: ท่าอากาศยานดอนเมือง | C52: กรุงเทพมหานคร | D52: NO OBSERVATION | E52: 0 | F52: 0 | G52: 0 | H52: 0 | I52: 0 | J52: 0 | K52: 0 | L52: 0 | M52: 0 | N52: 0 | O52: 0 | P52: 0 | R52: 49 | S52: 521 | T52: นครราชสีมา | U52: นครราชสีมา
A53: 50 | B53: ปราจีนบุรี | C53: ปราจีนบุรี | D53: 137.8 | E53: 132.4 | F53: 169 | G53: 157.3 | H53: 147 | I53: 126.7 | J53: 133 | K53: 126 | L53: 122.8 | M53: 125.1 | N53: 136.2 | O53: 140.4 | P53: 1653.7 | R53: 50 | S53: 527 | T53: บุรีรัมย์ | U53: นางรอง
A54: 51 | B54: กบินทร์บุรี | C54: ปราจีนบุรี | D54: 146.5 | E54: 147.8 | F54: 185.5 | G54: 178.4 | H54: 154.4 | I54: 129.7 | J54: 130.2 | K54: 127.3 | L54: 122.5 | M54: 126.8 | N54: 135.4 | O54: 151.9 | P54: 1736.4 | R54: 51 | S54: 542 | T54: มหาสารคาม | U54: โกสุมพิสัย
A55: 52 | B55: อรัญประเทศ | C55: สระแก้ว | D55: 141.7 | E55: 144.8 | F55: 187.9 | G55: 181 | H55: 163.1 | I55: 144.4 | J55: 141.9 | K55: 140 | L55: 124.2 | M55: 123.6 | N55: 124.8 | O55: 131.9 | P55: 1749.3 | R55: 52 | S55: 545 | T55: ร้อยเอ็ด | U55: ร้อยเอ็ด
A56: 53 | B56: สระแก้ว | C56: สระแก้ว | D56: 140.2 | E56: 140.9 | F56: 168.8 | G56: 136.2 | H56: 135.7 | I56: 107.5 | J56: 102.1 | K56: 122.6 | L56: 108.1 | M56: 120.4 | N56: 134.2 | O56: 146.9 | P56: 1563.6 | R56: 53 | S56: 552 | T56: เลย | U56: เลย
A57: 54 | B57: ชลบุรี | C57: ชลบุรี | D57: 143.2 | E57: 142.1 | F57: 178.8 | G57: 175.2 | H57: 162.3 | I57: 153.1 | J57: 153.4 | K57: 152.9 | L57: 133.1 | M57: 127.6 | N57: 135.8 | O57: 150.5 | P57: 1808 | R57: 54 | S57: 553 | T57: ศรีสะเกษ | U57: อุบลราชธานี
A58: 55 | B58: เกาะสีชัง | C58: ชลบุรี | D58: NO OBSERVATION | E58: 0 | F58: 0 | G58: 0 | H58: 0 | I58: 0 | J58: 0 | K58: 0 | L58: 0 | M58: 0 | N58: 0 | O58: 0 | P58: 0 | R58: 55 | S58: 554 | T58: สกลนคร | U58: สกลนคร
A59: 56 | B59: พัทยา | C59: ชลบุรี | D59: 137.9 | E59: 143.7 | F59: 178.8 | G59: 174.1 | H59: 164.7 | I59: 161.8 | J59: 159.9 | K59: 160.4 | L59: 131.1 | M59: 114.9 | N59: 129.1 | O59: 144.3 | P59: 1800.7 | R59: 56 | S59: 565 | T59: สุรินทร์ | U59: สุรินทร์
A60: 57 | B60: สัตหีบ | C60: ชลบุรี | D60: NO OBSERVATION | E60: 0 | F60: 0 | G60: 0 | H60: 0 | I60: 0 | J60: 0 | K60: 0 | L60: 0 | M60: 0 | N60: 0 | O60: 0 | P60: 0 | R60: 57 | S60: 566 | T60: หนองคาย | U60: หนองคาย
A61: 58 | B61: แหลมฉบัง | C61: ชลบุรี | D61: - | E61: - | F61: - | G61: - | H61: - | I61: - | J61: - | K61: - | L61: - | M61: - | N61: - | O61: - | P61: 0 | R61: 58 | S61: 568 | T61: อุดรธานี | U61: อุดรธานี
A62: 59 | B62: ระยอง | C62: ระยอง | D62: 139.9 | E62: 140.4 | F62: 170.8 | G62: 169.6 | H62: 148.5 | I62: 141.7 | J62: 147.6 | K62: 146.3 | L62: 115.2 | M62: 120 | N62: 140.7 | O62: 151.8 | P62: 1732.5 | R62: 59 | S62: 571 | T62: อุบลราชธานี | U62: อุบลราชธานี
A63: 60 | B63: จันทบุรี | C63: จันทบุรี | D63: 147.4 | E63: 131.2 | F63: 153.2 | G63: 141.3 | H63: 124 | I63: 104.1 | J63: 110.4 | K63: 104.2 | L63: 93.9 | M63: 118.4 | N63: 141.6 | O63: 155.2 | P63: 1524.9 | R63: 60 | S63: 573 | T63: มุกดาหาร | U63: มุกดาหาร
A64: 61 | B64: คลองใหญ่ | C64: จันทบุรี | D64: 142 | E64: 132 | F64: 155.9 | G64: 149.1 | H64: 136 | I64: 99.7 | J64: 103.6 | K64: 99.5 | L64: 101.5 | M64: 110.6 | N64: 129.4 | O64: 144.3 | P64: 1503.6 | R64: 61 | S64: 575 | T64: หนองบัวลำภู | U64: อุดรธานี
A65: 62 | B65: เพชรบุรี | C65: เพชรบุรี | D65: 118 | E65: 128.6 | F65: 170.3 | G65: 166.4 | H65: 160 | I65: 132.8 | J65: 132.5 | K65: 126.1 | L65: 118.7 | M65: 102.1 | N65: 103.9 | O65: 114 | P65: 1573.4 | R65: 62 | S65: 576 | T65: อำนาจเจริญ | U65: มุกดาหาร
A66: 63 | B66: ประจวบคีรีขันธ์ | C66: ประจวบคีรีขันธ์ | D66: 139 | E66: 132.9 | F66: 165.7 | G66: 173.2 | H66: 163.9 | I66: 138.5 | J66: 144.4 | K66: 134 | L66: 130.7 | M66: 120.9 | N66: 137.6 | O66: 151.9 | P66: 1732.7 | R66: 63 | S66: 601 | T66: กระบี่ | U66: นครศรีธรรมราช
A67: 64 | B67: หัวหิน | C67: ประจวบคีรีขันธ์ | D67: 132.4 | E67: 139.9 | F67: 172.7 | G67: 172.7 | H67: 165.1 | I67: 143.4 | J67: 143.8 | K67: 140.2 | L67: 129.1 | M67: 121.2 | N67: 125.4 | O67: 139.7 | P67: 1725.6 | R67: 64 | S67: 611 | T67: ชุมพร | U67: ชุมพร
A68: 65 | B68: ชุมพร | C68: ชุมพร | D68: 112.4 | E68: 114.4 | F68: 145.2 | G68: 145.3 | H68: 128.2 | I68: 109.7 | J68: 112.6 | K68: 108.1 | L68: 109 | M68: 100.4 | N68: 92.8 | O68: 102.5 | P68: 1380.6 | R68: 65 | S68: 614 | T68: ตรัง | U68: ท่าอากาศยานตรัง
A69: 66 | B69: สุราษฎร์ธานี | C69: สุราษฎร์ธานี | D69: 125.5 | E69: 134.8 | F69: 171.4 | G69: 159.9 | H69: 143.8 | I69: 136 | J69: 136.9 | K69: 131.7 | L69: 121.1 | M69: 113.2 | N69: 96.8 | O69: 101.4 | P69: =SUM(D69:O69) -> 1572.5 | R69: 66 | S69: 622 | T69: นครศรีธรรมราช | U69: นครศรีธรรมราช
A70: 67 | B70: ท่าอากาศยานสุราษฎร์ธานี | C70: สุราษฎร์ธานี | D70: 131.8 | E70: 143.6 | F70: 183.4 | G70: 163.1 | H70: 134.9 | I70: 124 | J70: 129 | K70: 125.9 | L70: 114.3 | M70: 108.1 | N70: 98.7 | O70: 109.9 | P70: 1566.7 | R70: 67 | S70: 625 | T70: นราธิวาส | U70: นราธิวาส
A71: 68 | B71: เกาะสมุย | C71: สุราษฎร์ธานี | D71: 139.5 | E71: 148.6 | F71: 182.3 | G71: 172.6 | H71: 161 | I71: 145.6 | J71: 150.7 | K71: 149.5 | L71: 140.3 | M71: 122.2 | N71: 115.4 | O71: 127 | P71: 1754.7 | R71: 68 | S71: 631 | T71: ปัตตานี | U71: ท่าอากาศยานปัตตานี
A72: 69 | B72: พระแสง | C72: สุราษฎร์ธานี | D72: 102.5 | E72: 123.2 | F72: 130.4 | G72: 116.4 | H72: 104.2 | I72: 92 | J72: 118.8 | K72: 107.5 | L72: 106.9 | M72: 94.7 | N72: 78.8 | O72: 92.6 | P72: 1268 | R72: 69 | S72: 634 | T72: พังงา | U72: ท่าอากาศยานภูเก็ต
A73: 70 | B73: นครศรีธรรมราช | C73: นครศรีธรรมราช | D73: 108.5 | E73: 111.5 | F73: 140.4 | G73: 135.9 | H73: 130.8 | I73: 126.6 | J73: 132.1 | K73: 131.7 | L73: 116.2 | M73: 105.4 | N73: 84.4 | O73: 89.3 | P73: 1412.8 | R73: 70 | S73: 635 | T73: พัทลุง | U73: ท่าอากาศยานตรัง
A74: 71 | B74: ขนอม | C74: นครศรีธรรมราช | D74: - | E74: - | F74: - | G74: - | H74: - | I74: - | J74: - | K74: - | L74: - | M74: - | N74: - | O74: - | P74: 0 | R74: 71 | S74: 641 | T74: ภูเก็ต | U74: ภูเก็ต
A75: 72 | B75: ฉวาง | C75: นครศรีธรรมราช | D75: 102.7 | E75: 123.6 | F75: 126.3 | G75: 107.5 | H75: 111.9 | I75: 92.6 | J75: 111.7 | K75: 111.8 | L75: 105.7 | M75: 92.6 | N75: 53.7 | O75: 84.3 | P75: 1224.4 | R75: 72 | S75: 644 | T75: ยะลา | U75: นราธิวาส
A76: 73 | B76: สะเดา | C76: สงขลา | D76: 122.4 | E76: 108.5 | F76: 145.1 | G76: 107.9 | H76: 130.9 | I76: 103 | J76: 124.2 | K76: 126.2 | L76: 128.9 | M76: 98.3 | N76: 69.7 | O76: 81 | P76: 1346.1 | R76: 73 | S76: 646 | T76: ระนอง | U76: ระนอง
A77: 74 | B77: สงขลา | C77: สงขลา | D77: 156.7 | E77: 162.9 | F77: 188.7 | G77: 177 | H77: 158.6 | I77: 140.7 | J77: 145.2 | K77: 151.1 | L77: 140 | M77: 127.6 | N77: 102.8 | O77: 119.9 | P77: 1771.2 | R77: 74 | S77: 655 | T77: สงขลา | U77: สงขลา
A78: 75 | B78: ท่าอากาศยานหาดใหญ่ | C78: สงขลา | D78: NO OBSERVATION | E78: 0 | F78: 0 | G78: 0 | H78: 0 | I78: 0 | J78: 0 | K78: 0 | L78: 0 | M78: 0 | N78: 0 | O78: 0 | P78: 0 | R78: 75 | S78: 656 | T78: สตูล | U78: สตูล
A79: 76 | B79: ท่าอากาศยานปัตตานี | C79: ปัตตานี | D79: 129.5 | E79: 138.6 | F79: 167.7 | G79: 159.8 | H79: 148.9 | I79: 137.1 | J79: 140.3 | K79: 144.2 | L79: 135.5 | M79: 125 | N79: 103.5 | O79: 102 | P79: 1632.1 | R79: 76 | S79: 664 | T79: สุราษฎร์ธานี | U79: สุราษฎร์ธานี
A80: 77 | B80: นราธิวาส | C80: นราธิวาส | D80: 115.7 | E80: 117.5 | F80: 160.2 | G80: 155.8 | H80: 141.5 | I80: 124.7 | J80: 128.2 | K80: 126.9 | L80: 124.8 | M80: 117 | N80: 89.1 | O80: 88.3 | P80: 1489.7 | R80: 77 | T80: บึงกาฬ | U80: หนองคาย
A81: 78 | B81: ระนอง | C81: ระนอง | D81: 119.7 | E81: 127.5 | F81: 160.1 | G81: 135.4 | H81: 109 | I81: 95.9 | J81: 100.8 | K81: 91.8 | L81: 83.6 | M81: 85 | N81: 83.4 | O81: 109 | P81: 1301.2
A82: 79 | B82: ตะกั่วป่า | C82: ภูเก็ต | D82: 137.1 | E82: 139.5 | F82: 155.6 | G82: 148.1 | H82: 124.4 | I82: 117.1 | J82: 116.1 | K82: 112.7 | L82: 102 | M82: 105.6 | N82: 103.9 | O82: 120.3 | P82: 1482.4
A83: 80 | B83: ภูเก็ต | C83: ภูเก็ต | D83: 154.4 | E83: 151.8 | F83: 168.6 | G83: 146.3 | H83: 121.7 | I83: 111.6 | J83: 111.2 | K83: 111.5 | L83: 102.4 | M83: 106.6 | N83: 110 | O83: 133.3 | P83: 1529.4
A84: 81 | B84: ท่าอากาศยานภูเก็ต | C84: ภูเก็ต | D84: 160.2 | E84: 157.3 | F84: 188.4 | G84: 160.9 | H84: 138.3 | I84: 128.2 | J84: 133.4 | K84: 136.9 | L84: 118.9 | M84: 117.6 | N84: 118.8 | O84: 137.9 | P84: 1696.8
A85: 82 | B85: เกาะลันตา | C85: กระบี่ | D85: NO OBSERVATION | E85: 0 | F85: 0 | G85: 0 | H85: 0 | I85: 0 | J85: 0 | K85: 0 | L85: 0 | M85: 0 | N85: 0 | O85: 0 | P85: 0
A86: 83 | B86: กระบี่ | C86: กระบี่ | D86: - | E86: - | F86: - | G86: - | H86: - | I86: - | J86: - | K86: - | L86: - | M86: - | N86: - | O86: - | P86: 0
A87: 84 | B87: ท่าอากาศยานตรัง | C87: ตรัง | D87: 159.3 | E87: 161.3 | F87: 176.3 | G87: 146.9 | H87: 120.8 | I87: 109 | J87: 111 | K87: 111.7 | L87: 100.9 | M87: 100.6 | N87: 94.4 | O87: 118.8 | P87: 1511
A88: 85 | B88: สตูล | C88: สตูล | D88: 178.3 | E88: 167.3 | F88: 182.6 | G88: 150.8 | H88: 135.3 | I88: 123.8 | J88: 128.1 | K88: 128.9 | L88: 115.7 | M88: 114.8 | N88: 108.3 | O88: 133.9 | P88: 1667.8

Sheet ฝนใช้การ (hidden)
A1: จังหวัด | B1: ปริมาณฝนใช้การของข้าว - มม./เดือน (จากฐานข้อมูลโปรแกรมเดิม) | P1: จังหวัด | Q1: ปริมาณฝนใช้การของพืชไร่ - มม./เดือน (จากฐานข้อมูลโปรแกรมเดิม)
B2: มค. | C2: กพ. | D2: มีค. | E2: เมย. | F2: พค. | G2: มิย. | H2: กค. | I2: สค. | J2: กย. | K2: ตค. | L2: พย. | M2: ธค. | N2: รวม | Q2: มค. | R2: กพ. | S2: มีค. | T2: เมย. | U2: พค. | V2: มิย. | W2: กค. | X2: สค. | Y2: กย. | Z2: ตค. | AA2: พย. | AB2: ธค. | AC2: รวม
A3: กำแพงเพชร | B3: 0.8 | C3: 14 | D3: 18.1 | E3: 41.3 | F3: 200 | G3: 170.1 | H3: 148.4 | I3: 155.7 | J3: 252.3 | K3: 208.9 | L3: 66.5 | M3: 2 | N3: 1278.1 | P3: กำแพงเพชร | Q3: 0.8 | R3: 11.5 | S3: 12.5 | T3: 29.1 | U3: 88.91891892 | V3: 75.62554054 | W3: 65.8 | X3: 98.1 | Y3: 106.9 | Z3: 61.4 | AA3: 45.92541436 | AB3: 2 | AC3: =SUM(Q3:AB3) -> 598.5698738
A4: เชียงราย | B4: 12.2 | C4: 7.8 | D4: 19.1 | E4: 89.8 | F4: 202.9 | G4: 208.4 | H4: 273.7 | I4: 305 | J4: 249.5 | K4: 142.4 | L4: 60.5 | M4: 24.6 | N4: 1595.9 | P4: เชียงราย | Q4: 12.2 | R4: 7.8 | S4: 15.5 | T4: 56.8 | U4: 90.20824324 | V4: 92.65351351 | W4: 56.7 | X4: 102.8 | Y4: 92.1 | Z4: 52.8 | AA4: 41.78176796 | AB4: 24.6 | AC4: 645.9435247
A5: เชียงใหม่ | B5: 6.9 | C5: 4.6 | D5: 13 | E5: 50.1 | F5: 158.4 | G5: 131.6 | H5: 160.8 | I5: 227 | J5: 220.7 | K5: 121.9 | L5: 52.8 | M5: 19.8 | N5: 1167.6 | P5: เชียงใหม่ | Q5: 6.9 | R5: 4.6 | S5: 13 | T5: 34.2 | U5: 70.42378378 | V5: 58.50864865 | W5: 75 | X5: 136 | Y5: 121.8 | Z5: 69.9 | AA5: 36.4640884 | AB5: 19.8 | AC5: 646.5965208
A6: ตาก | B6: 5.9 | C6: 4.7 | D6: 20.3 | E6: 35.6 | F6: 173.7 | G6: 113.8 | H6: 92.4 | I6: 115.8 | J6: 219.4 | K6: 206.7 | L6: 60.4 | M6: 5.8 | N6: 1054.5 | P6: ตาก | Q6: 5.9 | R6: 4.7 | S6: 17.7 | T6: 24 | U6: 77.22608108 | V6: 50.59486486 | W6: 58.1 | X6: 80.6 | Y6: 130.7 | Z6: 75 | AA6: 41.71270718 | AB6: 5.8 | AC6: 572.0336531
A7: น่าน | B7: 8.1 | C7: 14.1 | D7: 27.5 | E7: 103.1 | F7: 175 | G7: 155.6 | H7: 205.4 | I7: 235.7 | J7: 204 | K7: 94.5 | L7: 19.1 | M7: 5.9 | N7: 1248 | P7: น่าน | Q7: 8.1 | R7: 11 | S7: 17.2 | T7: 59.4 | U7: 77.80405405 | V7: 69.17891892 | W7: 58.5 | X7: 106.1 | Y7: 95 | Z7: 54.6 | AA7: 13.19060773 | AB7: 5.9 | AC7: 575.9735807
A8: พะเยา | B8: 2.5 | C8: 6.2 | D8: 11.5 | E8: 104.9 | F8: 179.1 | G8: 99.1 | H8: 137.8 | I8: 163.6 | J8: 189.3 | K8: 116.5 | L8: 59.4 | M8: 4.3 | N8: 1074.2 | P8: พะเยา | Q8: 2.5 | R8: 6.2 | S8: 11.5 | T8: 64.4 | U8: 79.62689189 | V8: 44.05932432 | W8: 69.5 | X8: 107.3 | Y8: 112.9 | Z8: 64.8 | AA8: 41.02209945 | AB8: 4.3 | AC8: 608.1083157
A9: พิจิตร | B9: 6.8 | C9: 15.4 | D9: 22.3 | E9: 57 | F9: 151 | G9: 148.9 | H9: 167.5 | I9: 206.9 | J9: 247.3 | K9: 119.9 | L9: 24 | M9: 2.7 | N9: 1169.7 | P9: พิจิตร | Q9: 6.8 | R9: 11.5 | S9: 16.2 | T9: 36.2 | U9: 67.13378378 | V9: 66.20013514 | W9: 71.3 | X9: 129.4 | Y9: 115.8 | Z9: 66.5 | AA9: 16.57458564 | AB9: 2.7 | AC9: 606.3085046
A10: พิษณุโลก | B10: 6.6 | C10: 11.9 | D10: 29.1 | E10: 51 | F10: 188.5 | G10: 183.3 | H10: 189.8 | I10: 242.1 | J10: 231 | K10: 157 | L10: 30.7 | M10: 5.5 | N10: 1326.5 | P10: พิษณุโลก | Q10: 6.6 | R10: 11.9 | S10: 22.6 | T10: 34.3 | U10: 83.80608108 | V10: 81.49418919 | W10: 75 | X10: 136 | Y10: 121.8 | Z10: 69.9 | AA10: 21.20165746 | AB10: 5.5 | AC10: 670.1019277
A11: เพชรบูรณ์ | B11: 7 | C11: 17.4 | D11: 34.5 | E11: 70.3 | F11: 157.4 | G11: 153.1 | H11: 168.5 | I11: 189.3 | J11: 208.9 | K11: 98.3 | L11: 13.2 | M11: 3.8 | N11: 1121.7 | P11: เพชรบูรณ์ | Q11: 7 | R11: 12.9 | S11: 25 | T11: 47.3 | U11: 69.97918919 | V11: 68.06743243 | W11: 73.2 | X11: 122.5 | Y11: 118.8 | Z11: 68.2 | AA11: 9.116022099 | AB11: 3.8 | AC11: 625.8626437
A12: แพร่ | B12: 7 | C12: 5.4 | D12: 20.8 | E12: 71.6 | F12: 179.2 | G12: 121.8 | H12: 144.2 | I12: 224.4 | J12: 191.3 | K12: 97.3 | L12: 21.1 | M12: 3.2 | N12: 1087.3 | P12: แพร่ | Q12: 7 | R12: 5.4 | S12: 16.3 | T12: 47.2 | U12: 79.67135135 | V12: 54.15162162 | W12: 84.1 | X12: 152.6 | Y12: 122.4 | Z12: 59.4 | AA12: 14.5718232 | AB12: 3.2 | AC12: 645.9947962
A13: แม่ฮ่องสอน | B13: 8.4 | C13: 2 | D13: 5.3 | E13: 50.4 | F13: 180.1 | G13: 185 | H13: 209.5 | I13: 238.9 | J13: 199.3 | K13: 114.7 | L13: 37.1 | M13: 15.2 | N13: 1245.9 | P13: แม่ฮ่องสอน | Q13: 8.4 | R13: 2 | S13: 5.3 | T13: 34.2 | U13: 80.07148649 | V13: 82.25 | W13: 71.3 | X13: 129.4 | Y13: 115.8 | Z13: 66.5 | AA13: 25.62154696 | AB13: 15.2 | AC13: 636.0430334
A14: ลำปาง | B14: 6.2 | C14: 6.5 | D14: 18.8 | E14: 65.9 | F14: 158.7 | G14: 118.2 | H14: 132.4 | I14: 198.7 | J14: 208.8 | K14: 119.4 | L14: 34.9 | M14: 5.3 | N14: 1073.8 | P14: ลำปาง | Q14: 6.2 | R14: 6.5 | S14: 12.1 | T14: 40.3 | U14: 70.55716216 | V14: 52.55108108 | W14: 67.7 | X14: 122.7 | Y14: 109.9 | Z14: 63.1 | AA14: 24.10220994 | AB14: 5.3 | AC14: 581.0104532
A15: ลำพูน | B15: 2.5 | C15: 2 | D15: 5.2 | E15: 41.1 | F15: 162.3 | G15: 135.8 | H15: 111.9 | I15: 140.3 | J15: 190.2 | K15: 121.1 | L15: 64.4 | M15: 3.9 | N15: 980.7 | P15: ลำพูน | Q15: 2.5 | R15: 2 | S15: 5.2 | T15: 28.1 | U15: 72.1577027 | V15: 60.37594595 | W15: 68.7 | X15: 97.3 | Y15: 121 | Z15: 71.6 | AA15: 44.47513812 | AB15: 3.9 | AC15: 577.3087868
A16: สุโขทัย | B16: 6.2 | C16: 8.6 | D16: 19.3 | E16: 49.8 | F16: 162 | G16: 139.1 | H16: 137.9 | I16: 180.5 | J16: 238.5 | K16: 141.2 | L16: 25 | M16: 4.9 | N16: 1113 | P16: สุโขทัย | Q16: 6.2 | R16: 8.6 | S16: 16.4 | T16: 34.4 | U16: 72.02432432 | V16: 61.84310811 | W16: 76.8 | X16: 118.9 | Y16: 124.7 | Z16: 71.6 | AA16: 17.26519337 | AB16: 4.9 | AC16: 613.6326258
A17: อุตรดิตถ์ | B17: 11 | C17: 12.6 | D17: 29.2 | E17: 108 | F17: 204.7 | G17: 201.8 | H17: 233.1 | I17: 271 | J17: 175.6 | K17: 80.4 | L17: 22.7 | M17: 5.9 | N17: 1356 | P17: อุตรดิตถ์ | Q17: 11 | R17: 12.6 | S17: 22.9 | T17: 65.3 | U17: 91.00851351 | V17: 89.71918919 | W17: 73.2 | X17: 132.7 | Y17: 118.8 | Z17: 49.4 | AA17: 15.67679558 | AB17: 5.9 | AC17: 688.2044983
A18: กรุงเทพมหานคร | B18: 9.1 | C18: 29.9 | D18: 28.6 | E18: 64.7 | F18: 215.3 | G18: 149.3 | H18: 154.5 | I18: 196.7 | J18: 289.2 | K18: 231.2 | L18: 48.1 | M18: 9.7 | N18: 1426.3 | P18: กรุงเทพฯ | Q18: 5.9 | R18: 12.7 | S18: 14.1 | T18: 35.1 | U18: 95.72121622 | V18: 66.37797297 | W18: 82.3 | X18: 116 | Y18: 133.6 | Z18: 76.7 | AA18: 33.21823204 | AB18: 9.7 | AC18: 681.4174212
A19: ชัยนาท | B19: 5.7 | C19: 10.8 | D19: 28.5 | E19: 50.3 | F19: 117.4 | G19: 90.3 | H19: 123.1 | I19: 146.9 | J19: 247.7 | K19: 145.8 | L19: 31.3 | M19: 5 | N19: 1002.8 | P19: ชัยนาท | Q19: 5.7 | R19: 10.8 | S19: 19 | T19: 34.3 | U19: 52.19540541 | V19: 40.14689189 | W19: 73.6 | X19: 97.5 | Y19: 127.7 | Z19: 73.3 | AA19: 21.6160221 | AB19: 5 | AC19: 560.8583194
A20: นครสวรรค์ | B20: 9.8 | C20: 14.9 | D20: 30 | E20: 60.9 | F20: 138.7 | G20: 117.1 | H20: 134.1 | I20: 194.9 | J20: 223.7 | K20: 144.4 | L20: 35.3 | M20: 7.3 | N20: 1111.1 | P20: นครสวรรค์ | Q20: 9.8 | R20: 12.7 | S20: 25.7 | T20: 42.2 | U20: 61.66527027 | V20: 52.06202703 | W20: 85.5 | X20: 130 | Y20: 148.5 | Z20: 85.2 | AA20: 24.37845304 | AB20: 7.3 | AC20: 685.0057503
A21: นนทบุรี | B21: 5.9 | C21: 16.7 | D21: 19.7 | E21: 53.2 | F21: 140 | G21: 131.4 | H21: 147.2 | I21: 169.5 | J21: 251.5 | K21: 188.8 | L21: 45.5 | M21: 8.2 | N21: 1177.6 | P21: นนทบุรี | Q21: 5.9 | R21: 12.7 | S21: 14.1 | T21: 35.1 | U21: 62.24324324 | V21: 58.41972973 | W21: 82.3 | X21: 116 | Y21: 133.6 | Z21: 76.7 | AA21: 31.42265193 | AB21: 8.2 | AC21: 636.6856249
A22: ปทุมธานี | B22: 5.5 | C22: 17 | D22: 21.2 | E22: 65.9 | F22: 147.7 | G22: 156.6 | H22: 178.9 | I22: 200.5 | J22: 270.2 | K22: 190.5 | L22: 41.5 | M22: 8 | N22: 1303.5 | P22: ปทุมธานี | Q22: 5.5 | R22: 13.6 | S22: 16.6 | T22: 42.2 | U22: 65.66662162 | V22: 69.62351351 | W22: 82.3 | X22: 132 | Y22: 133.6 | Z22: 76.7 | AA22: 28.66022099 | AB22: 8 | AC22: 674.4503561
A23: ลพบุรี | B23: 8.7 | C23: 16 | D23: 25.8 | E23: 72.3 | F23: 163.3 | G23: 136.1 | H23: 147.5 | I23: 172.2 | J23: 248.8 | K23: 157 | L23: 37.5 | M23: 8.1 | N23: 1193.3 | P23: ลพบุรี | Q23: 8.7 | R23: 12.8 | S23: 19.1 | T23: 47.9 | U23: 72.6022973 | V23: 60.50932432 | W23: 87.8 | X23: 117.8 | Y23: 142.6 | Z23: 81.8 | AA23: 25.89779006 | AB23: 8.1 | AC23: 685.6094117
A24: สมุทรปราการ | B24: 10.1 | C24: 23.5 | D24: 20.6 | E24: 58.8 | F24: 165.9 | G24: 132.1 | H24: 131.4 | I24: 166.4 | J24: 261.4 | K24: 200.9 | L24: 44.1 | M24: 7.9 | N24: 1223.1 | P24: สมุทรปราการ | Q24: 5.5 | R24: 13.6 | S24: 16.6 | T24: 42.2 | U24: 73.75824324 | V24: 58.73094595 | W24: 82.3 | X24: 132 | Y24: 133.6 | Z24: 76.7 | AA24: 30.4558011 | AB24: 7.9 | AC24: 673.3449903
A25: สมุทรสงคราม | B25: 5.3 | C25: 8.9 | D25: 13.5 | E25: 22.7 | F25: 119.9 | G25: 110.4 | H25: 110.7 | I25: 133.4 | J25: 210.6 | K25: 225.4 | L25: 92.9 | M25: 6.1 | N25: 1059.8 | P25: สมุทรสงคราม | Q25: 5.5 | R25: 13.6 | S25: 16.6 | T25: 42.2 | U25: 53.30689189 | V25: 49.08324324 | W25: 82.3 | X25: 132 | Y25: 133.6 | Z25: 76.7 | AA25: 64.15745856 | AB25: 6.1 | AC25: 675.1475937
A26: สมุทรสาคร | B26: 5.4 | C26: 18.4 | D26: 18.4 | E26: 47.1 | F26: 142 | G26: 121.6 | H26: 135.4 | I26: 149 | J26: 233.2 | K26: 216 | L26: 74 | M26: 10.4 | N26: 1170.9 | P26: สมุทรสาคร | Q26: 5.5 | R26: 13.6 | S26: 16.6 | T26: 42.2 | U26: 63.13243243 | V26: 54.0627027 | W26: 82.3 | X26: 132 | Y26: 133.6 | Z26: 76.7 | AA26: 51.10497238 | AB26: 10.4 | AC26: 681.2001075
A27: สระบุรี | B27: 4.6 | C27: 19.9 | D27: 28.4 | E27: 65.3 | F27: 153.5 | G27: 180.9 | H27: 197.4 | I27: 214 | J27: 268.3 | K27: 153.7 | L27: 40.7 | M27: 7.9 | N27: 1334.6 | P27: สระบุรี | Q27: 4.6 | R27: 16.3 | S27: 19.5 | T27: 41.9 | U27: 68.24527027 | V27: 80.42716216 | W27: 76.8 | X27: 139.3 | Y27: 124.7 | Z27: 71.6 | AA27: 28.10773481 | AB27: 7.9 | AC27: 679.3801672
A28: สิงห์บุรี | B28: 7 | C28: 12.5 | D28: 26.6 | E28: 45.7 | F28: 118.2 | G28: 105.7 | H28: 127.2 | I28: 151.6 | J28: 245.4 | K28: 141.7 | L28: 26.7 | M28: 4 | N28: 1012.3 | P28: สิงห์บุรี | Q28: 7 | R28: 12.5 | S28: 18.6 | T28: 29.5 | U28: 52.55108108 | V28: 46.99364865 | W28: 74.6 | X28: 105 | Y28: 133.6 | Z28: 76.7 | AA28: 18.43922652 | AB28: 4 | AC28: 579.4839562
A29: พระนครศรีอยุธยา | B29: 5.6 | C29: 14.7 | D29: 21.6 | E29: 58.1 | F29: 148.4 | G29: 146.7 | H29: 160.4 | I29: 165.2 | J29: 253.5 | K29: 169.7 | L29: 37.3 | M29: 7.1 | N29: 1188.3 | P29: อยุธยา | Q29: 5.6 | R29: 12 | S29: 16.4 | T29: 36.6 | U29: 65.97783784 | V29: 65.22202703 | W29: 80.5 | X29: 108.9 | Y29: 130.7 | Z29: 75 | AA29: 25.75966851 | AB29: 7.1 | AC29: 629.7595334
A30: อ่างทอง | B30: 5.2 | C30: 12.1 | D30: 21.4 | E30: 62.7 | F30: 131.6 | G30: 123 | H30: 134.7 | I30: 146.4 | J30: 252.2 | K30: 162.3 | L30: 35.1 | M30: 5.2 | N30: 1091.9 | P30: อ่างทอง | Q30: 5.2 | R30: 12.1 | S30: 16.7 | T30: 41.3 | U30: 58.50864865 | V30: 54.68513514 | W30: 77.9 | X30: 101.2 | Y30: 136.6 | Z30: 78.4 | AA30: 24.24033149 | AB30: 5.2 | AC30: 612.0341153
A31: อุทัยธานี | B31: 8.7 | C31: 17.9 | D31: 36.5 | E31: 68.4 | F31: 155.5 | G31: 127.1 | H31: 142.2 | I31: 167.4 | J31: 263.7 | K31: 173.6 | L31: 46.2 | M31: 4.2 | N31: 1211.4 | P31: อุทัยธานี | Q31: 8.7 | R31: 12.5 | S31: 25 | T31: 42.8 | U31: 69.13445946 | V31: 56.50797297 | W31: 67.7 | X31: 102.5 | Y31: 109.9 | Z31: 63.1 | AA31: 31.90607735 | AB31: 4.2 | AC31: 593.9485098
A32: กาญจนบุรี | B32: 5.1 | C32: 14.4 | D32: 28.3 | E32: 75.4 | F32: 152.9 | G32: 82.2 | H32: 95.3 | I32: 102.3 | J32: 214.2 | K32: 198.2 | L32: 70.2 | M32: 8.6 | N32: 1047.1 | P32: กาญจนบุรี | Q32: 5.1 | R32: 12 | S32: 20 | T32: 48.8 | U32: 67.97851351 | V32: 36.54567568 | W32: 59.6 | X32: 75.4 | Y32: 142.6 | Z32: 81.8 | AA32: 48.48066298 | AB32: 8.6 | AC32: 606.9048522
A33: นครปฐม | B33: 3 | C33: 8.9 | D33: 14.6 | E33: 44.6 | F33: 123.2 | G33: 119.2 | H33: 126.2 | I33: 138.8 | J33: 234.4 | K33: 205.3 | L33: 52.2 | M33: 6.3 | N33: 1076.7 | P33: นครปฐม | Q33: 3 | R33: 8.9 | S33: 12 | T33: 29.1 | U33: 54.77405405 | V33: 52.99567568 | W33: 74.1 | X33: 92.7 | Y33: 127.7 | Z33: 73.3 | AA33: 36.04972376 | AB33: 6.3 | AC33: 570.9194535
A34: ราชบุรี | B34: 4.3 | C34: 8.1 | D34: 13.3 | E34: 40 | F34: 143.5 | G34: 110 | H34: 122.3 | I34: 132.9 | J34: 210.4 | K34: 209.2 | L34: 76.8 | M34: 5.9 | N34: 1076.7 | P34: ราชบุรี | Q34: 4.3 | R34: 8.1 | S34: 12 | T34: 27.7 | U34: 63.79932432 | V34: 48.90540541 | W34: 71.3 | X34: 90.1 | Y34: 115.8 | Z34: 66.5 | AA34: 53.03867403 | AB34: 5.9 | AC34: 567.4434038
A35: สุพรรณบุรี | B35: 6.7 | C35: 8.9 | D35: 18 | E35: 65.1 | F35: 143.4 | G35: 101.4 | H35: 113.9 | I35: 136.1 | J35: 254.1 | K35: 192.8 | L35: 39.8 | M35: 11.2 | N35: 1091.4 | P35: สุพรรณบุรี | Q35: 6.7 | R35: 8.9 | S35: 13.2 | T35: 42 | U35: 63.75486486 | V35: 45.08189189 | W35: 70.2 | X35: 95.2 | Y35: 142.6 | Z35: 81.8 | AA35: 27.48618785 | AB35: 11.2 | AC35: 608.1229446
A36: จันทบุรี | B36: 12.3 | C36: 45 | D36: 55.1 | E36: 111.1 | F36: 294.5 | G36: 326.3 | H36: 317.9 | I36: 326.4 | J36: 322.5 | K36: 256.7 | L36: 61.2 | M36: 12.4 | N36: 2141.4 | P36: จันทบุรี | Q36: 12.3 | R36: 31.8 | S36: 38.5 | T36: 68.5 | U36: 130.9331081 | V36: 145.0712162 | W36: 65.8 | X36: 119.4 | Y36: 106.9 | Z36: 61.4 | AA36: 42.26519337 | AB36: 12.4 | AC36: 835.2695177
A37: ฉะเชิงเทรา | B37: 6.8 | C37: 16.7 | D37: 28.7 | E37: 71.2 | F37: 146.6 | G37: 143.5 | H37: 158.6 | I37: 196 | J37: 253.2 | K37: 176.9 | L37: 39 | M37: 7.2 | N37: 1244.4 | P37: ฉะเชิงเทรา | Q37: 6.8 | R37: 12 | S37: 18.5 | T37: 46.6 | U37: 65.17756757 | V37: 63.79932432 | W37: 73.2 | X37: 122.9 | Y37: 118.8 | Z37: 68.2 | AA37: 26.93370166 | AB37: 7.2 | AC37: 630.1105935
A38: ชลบุรี | B38: 10.6 | C38: 18.9 | D38: 31.4 | E38: 78.5 | F38: 166.6 | G38: 133.2 | H38: 133.9 | I38: 168.8 | J38: 261.5 | K38: 208.8 | L38: 65.1 | M38: 8.9 | N38: 1286.2 | P38: ชลบุรี | Q38: 10.6 | R38: 13 | S38: 23.5 | T38: 48.9 | U38: 74.06945946 | V38: 59.22 | W38: 84.1 | X38: 113 | Y38: 136.6 | Z38: 78.4 | AA38: 44.95856354 | AB38: 8.9 | AC38: 695.248023
A39: ตราด | B39: 22.8 | C39: 44.9 | D39: 76.4 | E39: 137.6 | F39: 283 | G39: 338 | H39: 334.9 | I39: 344.1 | J39: 331.8 | K39: 269.6 | L39: 72.9 | M39: 13.5 | N39: 2269.5 | P39: ตราด | Q39: 16 | R39: 34.4 | S39: 55.4 | T39: 82.5 | U39: 125.8202703 | V39: 150.272973 | W39: 73.2 | X39: 132.7 | Y39: 118.8 | Z39: 68.2 | AA39: 50.34530387 | AB39: 13.5 | AC39: 921.1385471
A40: นครนายก | B40: 6.1 | C40: 20.3 | D40: 25.7 | E40: 77.7 | F40: 177.1 | G40: 213.8 | H40: 246.9 | I40: 271.8 | J40: 290.7 | K40: 174.7 | L40: 39.3 | M40: 7.1 | N40: 1551.2 | P40: นครยายก | Q40: 6.1 | R40: 15.4 | S40: 17.2 | T40: 48.3 | U40: 78.7377027 | V40: 95.05432432 | W40: 67.7 | X40: 122.7 | Y40: 109.9 | Z40: 63.1 | AA40: 27.14088398 | AB40: 7.1 | AC40: 658.432911
A41: ปราจีนบุรี | B41: 8.9 | C41: 25.1 | D41: 55.2 | E41: 128.1 | F41: 221.2 | G41: 258 | H41: 275.2 | I41: 303.9 | J41: 297.3 | K41: 181.1 | L41: 35.8 | M41: 8.1 | N41: 1797.9 | P41: ปราจีนบุรี | Q41: 8.9 | R41: 17.2 | S41: 39.8 | T41: 74.4 | U41: 98.34432432 | V41: 114.7054054 | W41: 78.6 | X41: 142.6 | Y41: 127.7 | Z41: 73.3 | AA41: 24.72375691 | AB41: 8.1 | AC41: 808.3734866
A42: ระยอง | B42: 17.3 | C42: 40.2 | D42: 65.1 | E42: 65.5 | F42: 189.8 | G42: 149.3 | H42: 132.5 | I42: 128.4 | J42: 235.6 | K42: 212.3 | L42: 83.6 | M42: 3.8 | N42: 1323.4 | P42: ระยอง | Q42: 11.3 | R42: 31.3 | S42: 47.5 | T42: 42.1 | U42: 84.38405405 | V42: 66.37797297 | W42: 86 | X42: 89.1 | Y42: 139.6 | Z42: 80.1 | AA42: 57.73480663 | AB42: 3.8 | AC42: 739.2968337
A43: สระแก้ว | B43: 7 | C43: 22.6 | D43: 43.6 | E43: 87.9 | F43: 194.1 | G43: 215.2 | H43: 218.9 | I43: 247.6 | J43: 263.6 | K43: 169 | L43: 43.8 | M43: 7.2 | N43: 1520.5 | P43: สระแก้ว | Q43: 8.9 | R43: 17.2 | S43: 39.8 | T43: 74.4 | U43: 86.29581081 | V43: 95.67675676 | W43: 78.6 | X43: 142.6 | Y43: 127.7 | Z43: 73.3 | AA43: 30.24861878 | AB43: 7.2 | AC43: 781.9211864
A44: กาฬสินธุ์ | B44: 3.8 | C44: 15 | D44: 27.5 | E44: 64.6 | F44: 175.7 | G44: 208.2 | H44: 210.4 | I44: 242.5 | J44: 247.4 | K44: 69.7 | L44: 6.9 | M44: 2.4 | N44: 1274.1 | P44: กาฬสินธุ์ | Q44: 3.8 | R44: 12 | S44: 18.9 | T44: 41.9 | U44: 78.11527027 | V44: 92.56459459 | W44: 82.3 | X44: 149.3 | Y44: 133.6 | Z44: 42.9 | AA44: 4.76519337 | AB44: 2.4 | AC44: 662.5450582
A45: ขอนแก่น | B45: 4.4 | C45: 14.7 | D45: 34.7 | E45: 66.4 | F45: 173.6 | G45: 179.5 | H45: 165.8 | I45: 196 | J45: 234.6 | K45: 107.3 | L45: 15.8 | M45: 3.3 | N45: 1196.1 | P45: ขอนแก่น | Q45: 4.4 | R45: 12 | S45: 26.1 | T45: 42.8 | U45: 77.18162162 | V45: 79.80472973 | W45: 91.4 | X45: 137 | Y45: 148.5 | Z45: 65.6 | AA45: 10.91160221 | AB45: 3.3 | AC45: 698.9979536
A46: ชัยภูมิ | B46: 3.3 | C46: 20.3 | D46: 41.8 | E46: 87.5 | F46: 153.9 | G46: 142.3 | H46: 133.7 | I46: 130.3 | J46: 250.8 | K46: 146.2 | L46: 19.5 | M46: 4.2 | N46: 1133.8 | P46: ชัยภูมิ | Q46: 3.3 | R46: 17.2 | S46: 33.2 | T46: 60.2 | U46: 68.42310811 | V46: 63.26581081 | W46: 82.7 | X46: 95.8 | Y46: 148.5 | Z46: 85.2 | AA46: 13.46685083 | AB46: 4.2 | AC46: 675.4557697
A47: นครพนม | B47: 2.7 | C47: 21.3 | D47: 46.8 | E47: 106.5 | F47: 229.9 | G47: 322.5 | H47: 320.6 | I47: 335.9 | J47: 256.4 | K47: 77.6 | L47: 8.4 | M47: 1.3 | N47: 1729.9 | P47: นครพนม | Q47: 2.7 | R47: 15.6 | S47: 32.2 | T47: 68 | U47: 102.2122973 | V47: 143.3817568 | W47: 67.7 | X47: 122.7 | Y47: 109.9 | Z47: 45.7 | AA47: 5.801104972 | AB47: 1.3 | AC47: 717.195159
A48: นครราชสีมา | B48: 4.6 | C48: 20.5 | D48: 41.6 | E48: 65.8 | F48: 152.1 | G48: 104.5 | H48: 122.5 | I48: 128 | J48: 233.2 | K48: 152.1 | L48: 31 | M48: 3.6 | N48: 1059.5 | P48: นครราชสีมา | Q48: 4.6 | R48: 16.5 | S48: 31.3 | T48: 42.3 | U48: 67.62283784 | V48: 46.46013514 | W48: 74.5 | X48: 89.3 | Y48: 142.6 | Z48: 81.8 | AA48: 21.40883978 | AB48: 3.6 | AC48: 621.9918128
A49: บุรีรัมย์ | B49: 3 | C49: 13.6 | D49: 33.7 | E49: 77.5 | F49: 163.7 | G49: 163.8 | H49: 164.5 | I49: 182 | J49: 268 | K49: 139.9 | L49: 26.1 | M49: 1.3 | N49: 1237.1 | P49: บุรีรัมย์ | Q49: 3 | R49: 13.6 | S49: 25.6 | T49: 49.5 | U49: 72.78013514 | V49: 72.82459459 | W49: 87.8 | X49: 122.9 | Y49: 142.6 | Z49: 81.8 | AA49: 18.02486188 | AB49: 1.3 | AC49: 691.7295916
A50: มหาสารคาม | B50: 4 | C50: 13.8 | D50: 28.6 | E50: 65.6 | F50: 163.1 | G50: 165 | H50: 163 | I50: 194.3 | J50: 251.5 | K50: 80.6 | L50: 9.8 | M50: 1.3 | N50: 1140.6 | P50: มหาสารคาม | Q50: 4 | R50: 12 | S50: 19.4 | T50: 42.4 | U50: 72.51337838 | V50: 73.35810811 | W50: 84.1 | X50: 127.7 | Y50: 136.6 | Z50: 52.4 | AA50: 6.767955801 | AB50: 1.3 | AC50: 632.5394423
A51: มุกดาหาร | B51: 3.2 | C51: 15.3 | D51: 30.1 | E51: 87.4 | F51: 181.6 | G51: 263.5 | H51: 219.4 | I51: 289.6 | J51: 240.9 | K51: 93.3 | L51: 8.8 | M51: 1.2 | N51: 1434.3 | P51: มุกดาหาร | Q51: 3.2 | R51: 12 | S51: 23 | T51: 54.2 | U51: 80.73837838 | V51: 117.1506757 | W51: 75 | X51: 136 | Y51: 121.8 | Z51: 57 | AA51: 6.077348066 | AB51: 1.2 | AC51: 687.3664021
A52: ยโสธร | B52: 3.4 | C52: 9.8 | D52: 25.6 | E52: 71.2 | F52: 197.7 | G52: 209.4 | H52: 227.2 | I52: 265.8 | J52: 266.6 | K52: 87.2 | L52: 9.8 | M52: 0.2 | N52: 1373.9 | P52: ยโสธร | Q52: 3.4 | R52: 9.8 | S52: 17.3 | T52: 46.5 | U52: 87.89635135 | V52: 93.09810811 | W52: 73.2 | X52: 132.7 | Y52: 118.8 | Z52: 50.1 | AA52: 6.767955801 | AB52: 0.2 | AC52: 639.7624153
A53: ร้อยเอ็ด | B53: 3 | C53: 21 | D53: 31 | E53: 87.7 | F53: 200.1 | G53: 206.2 | H53: 195.9 | I53: 244.6 | J53: 265.1 | K53: 101.6 | L53: 11.7 | M53: 1.2 | N53: 1369.1 | P53: ร้อยเอ็ด | Q53: 3 | R53: 16.6 | S53: 23.7 | T53: 54.8 | U53: 88.96337838 | V53: 91.67540541 | W53: 76.8 | X53: 139.3 | Y53: 124.7 | Z53: 71.6 | AA53: 8.080110497 | AB53: 1.2 | AC53: 700.4188943
A54: เลย | B54: 6.4 | C54: 17.6 | D54: 37.6 | E54: 95.9 | F54: 209.8 | G54: 164.8 | H54: 159.5 | I54: 177.5 | J54: 220.1 | K54: 117.4 | L54: 17.6 | M54: 3.9 | N54: 1228.1 | P54: เลย | Q54: 6.4 | R54: 12.3 | S54: 25.3 | T54: 60.5 | U54: 93.27594595 | V54: 73.26918919 | W54: 73.2 | X54: 113.6 | Y54: 118.8 | Z54: 68.2 | AA54: 12.15469613 | AB54: 3.9 | AC54: 660.8998313
A55: ศรีสะเกษ | B55: 1.3 | C55: 7.2 | D55: 26.6 | E55: 74 | F55: 171.9 | G55: 182.8 | H55: 186.6 | I55: 225.6 | J55: 247.4 | K55: 127 | L55: 22.4 | M55: 1.3 | N55: 1274.1 | P55: ศรีสะเกษ | Q55: 1.3 | R55: 7.2 | S55: 17.5 | T55: 48.4 | U55: 76.42581081 | V55: 81.27189189 | W55: 80.5 | X55: 145.9 | Y55: 130.7 | Z55: 75 | AA55: 15.46961326 | AB55: 1.3 | AC55: 680.967316
A56: สกลนคร | B56: 4.4 | C56: 18.6 | D56: 44.9 | E56: 93.7 | F56: 226.8 | G56: 252.9 | H56: 223.3 | I56: 297.9 | J56: 224.5 | K56: 80.3 | L56: 7.1 | M56: 2.7 | N56: 1477.1 | P56: สกลนคร | Q56: 4.4 | R56: 13.4 | S56: 34.7 | T56: 63.2 | U56: 100.8340541 | V56: 112.437973 | W56: 87.8 | X56: 159.2 | Y56: 142.6 | Z56: 52.8 | AA56: 4.903314917 | AB56: 2.7 | AC56: 778.9753419
A57: สุรินทร์ | B57: 2.7 | C57: 11 | D57: 20.8 | E57: 92.3 | F57: 176 | G57: 178.3 | H57: 201.1 | I57: 209.2 | J57: 254.9 | K57: 124.9 | L57: 22.5 | M57: 1.7 | N57: 1295.4 | P57: สุรินทร์ | Q57: 2.7 | R57: 11 | S57: 17.7 | T57: 61.9 | U57: 78.24864865 | V57: 79.27121622 | W57: 95.1 | X57: 168 | Y57: 154.4 | Z57: 74.8 | AA57: 15.53867403 | AB57: 1.7 | AC57: 760.3585389
A58: หนองคาย | B58: 7 | C58: 10.5 | D58: 30.7 | E58: 89.5 | F58: 230.2 | G58: 256 | H58: 237 | I58: 286.5 | J58: 254.1 | K58: 76.6 | L58: 12.2 | M58: 3.3 | N58: 1493.6 | P58: หนองคาย | Q58: 7 | R58: 10.5 | S58: 22.5 | T58: 57 | U58: 102.3456757 | V58: 113.8162162 | W58: 71.3 | X58: 129.4 | Y58: 115.8 | Z58: 45.6 | AA58: 8.425414365 | AB58: 3.3 | AC58: 686.9873063
A59: หนองบัวลำภู | B59: 5.5 | C59: 19.4 | D59: 36.5 | E59: 82.7 | F59: 214.8 | G59: 223.2 | H59: 216.3 | I59: 254.5 | J59: 239.8 | K59: 84.2 | L59: 8.8 | M59: 3.3 | N59: 1389 | P59: หนองบัวลำพู | Q59: 7 | R59: 10.5 | S59: 22.5 | T59: 57 | U59: 95.49891892 | V59: 99.23351351 | W59: 71.3 | X59: 129.4 | Y59: 115.8 | Z59: 45.6 | AA59: 6.077348066 | AB59: 3.3 | AC59: 663.2097805
A60: อำนาจเจริญ | B60: 3.3 | C60: 15.1 | D60: 32.5 | E60: 82 | F60: 177.7 | G60: 211.2 | H60: 198.6 | I60: 241.3 | J60: 252.8 | K60: 108.9 | L60: 12.7 | M60: 1.9 | N60: 1338 | P60: อำนาจเจริญ | Q60: 0.7 | R60: 11.4 | S60: 25.2 | T60: 57.1 | U60: 79.00445946 | V60: 93.89837838 | W60: 93.3 | X60: 169.2 | Y60: 151.5 | Z60: 60.5 | AA60: 8.770718232 | AB60: 1.9 | AC60: 752.4735561
A61: อุดรธานี | B61: 5.5 | C61: 19.4 | D61: 36.5 | E61: 82.7 | F61: 214.8 | G61: 223.2 | H61: 216.3 | I61: 254.5 | J61: 239.8 | K61: 84.2 | L61: 8.8 | M61: 3.3 | N61: 1389 | P61: อุดรธานี | Q61: 5.5 | R61: 16.4 | S61: 25.8 | T61: 53.3 | U61: 95.49891892 | V61: 99.23351351 | W61: 80.6 | X61: 145.7 | Y61: 129 | Z61: 53 | AA61: 6.077348066 | AB61: 3.3 | AC61: 713.4097805
A62: อุบลราชธานี | B62: 0.7 | C62: 11.4 | D62: 30.6 | E62: 86.6 | F62: 211 | G62: 248.6 | H62: 252.6 | I62: 282.6 | J62: 268.6 | K62: 98.5 | L62: 24 | M62: 1.9 | N62: 1517.1 | P62: อุบลราชธานี | Q62: 0.7 | R62: 11.4 | S62: 25.2 | T62: 57.1 | U62: 93.80945946 | V62: 110.5262162 | W62: 93.3 | X62: 169.2 | Y62: 151.5 | Z62: 60.5 | AA62: 16.57458564 | AB62: 1.9 | AC62: 791.7102613
A63: กระบี่ | B63: 31.3 | C63: 25.7 | D63: 56.3 | E63: 127 | F63: 241.3 | G63: 238.1 | H63: 247.1 | I63: 254.7 | J63: 282.1 | K63: 253.5 | L63: 175.2 | M63: 59 | N63: 1991.3 | P63: กระบี่ | Q63: 16 | R63: 40.8 | S63: 86.7 | T63: 85.2 | U63: 107.2806757 | V63: 105.857973 | W63: 69.5 | X63: 122 | Y63: 116.6 | Z63: 62.7 | AA63: 120.9944751 | AB63: 59 | AC63: 992.6331238
A64: ชุมพร | B64: 93.9 | C64: 62.8 | D64: 56.5 | E64: 74.4 | F64: 188.8 | G64: 173.5 | H64: 174.2 | I64: 204.5 | J64: 157.7 | K64: 254.1 | L64: 301.4 | M64: 118.1 | N64: 1859.9 | P64: ชุมพร | Q64: 39.4 | R64: 37.5 | S64: 54.1 | T64: 71.6 | U64: 83.93945946 | V64: 77.13716216 | W64: 64 | X64: 97.6 | Y64: 107.4 | Z64: 57.7 | AA64: 208.1491713 | AB64: 118.1 | AC64: 1016.625793
A65: ตรัง | B65: 51.8 | C65: 23.5 | D65: 42.7 | E65: 177.4 | F65: 227.7 | G65: 217.7 | H65: 241.9 | I65: 237.5 | J65: 273.1 | K65: 263.8 | L65: 228.6 | M65: 130.2 | N65: 2115.9 | P65: ตรัง | Q65: 15.2 | R65: 32.3 | S65: 82.3 | T65: 86.9 | U65: 101.2341892 | V65: 96.78824324 | W65: 67.7 | X65: 118.8 | Y65: 113.5 | Z65: 61 | AA65: 157.8729282 | AB65: 130.2 | AC65: 1063.795361
A66: นครศรีธรรมราช | B66: 173.5 | C66: 42.5 | D66: 44.6 | E66: 94.4 | F66: 169.6 | G66: 95.1 | H66: 108.1 | I66: 97.3 | J66: 160.8 | K66: 287.2 | L66: 339.3 | M66: 312.8 | N66: 1925.2 | P66: นครศรีธรรมราช | Q66: 26.4 | R66: 31.5 | S66: 63.5 | T66: 66.5 | U66: 75.40324324 | V66: 42.28094595 | W66: 63 | X66: 105.2 | Y66: 116.6 | Z66: 62.7 | AA66: 234.3232044 | AB66: 312.8 | AC66: 1200.207394
A67: นราธิวาส | B67: 134.1 | C67: 45.3 | D67: 71.7 | E67: 68.8 | F67: 145.5 | G67: 116.7 | H67: 150.6 | I67: 146.5 | J67: 188.8 | K67: 250.4 | L67: 335.4 | M67: 327.3 | N67: 1981.1 | P67: นราธิวาส | Q67: 27.5 | R67: 52 | S67: 45.5 | T67: 69.9 | U67: 64.68851351 | V67: 51.88418919 | W67: 71.3 | X67: 120.4 | Y67: 119.7 | Z67: 64.3 | AA67: 231.6298343 | AB67: 327.3 | AC67: =SUM(Q67:AB67) -> 1246.102537
A68: ประจวบคีรีขันธ์ | B68: 41.7 | C68: 54.7 | D68: 42.1 | E68: 41 | F68: 123.6 | G68: 94.9 | H68: 89 | I68: 102.7 | J68: 95.8 | K68: 204 | L68: 220 | M68: 35.4 | N68: 1144.9 | P68: ประจวบคีรีขันธ์ | Q68: 35.6 | R68: 32.1 | S68: 31.4 | T68: 74.5 | U68: 54.95189189 | V68: 42.19202703 | W68: 64 | X68: 67 | Y68: 127.8 | Z68: 72.6 | AA68: 151.9337017 | AB68: 35.4 | AC68: 789.4776206
